Workbook

Sheet Dashboard

Sheet Camp_Link
A1: State | B1: Township | C1: Camp | D1: CP_Pcode | E1: Profiled | F1: Dashboard | G1: 3W | H1: Comment
A2: Kachin | B2: Myitkyina | C2: Tat Kone Baptist Church | D2: MMR001CMP001 | E2: TRUE | F2: =IF($E2=TRUE,HYPERLINK(CONCATENATE("Kachin_CampProfile_R5_GeneratedDoc\",$A2,"\",$B2,"\",$D2,".pdf"),CONCATENATE($D2,".pdf")),"No Data") -> MMR001CMP001.pdf | G2: =IF($E2=TRUE,HYPERLINK(CONCATENATE("Kachin_CampProfile_R5_GeneratedDoc\",$A2,"\",$B2,"\",$D2,"_3W.pdf"),CONCATENATE($D2,"_3W.pdf")),"No Data") -> MMR001CMP001_3W.pdf
A3: Kachin | B3: Myitkyina | C3: Njang Dung Baptist Church | D3: MMR001CMP002 | E3: TRUE | F3: =IF($E3=TRUE,HYPERLINK(CONCATENATE("Kachin_CampProfile_R5_GeneratedDoc\",$A3,"\",$B3,"\",$D3,".pdf"),CONCATENATE($D3,".pdf")),"No Data") -> MMR001CMP002.pdf | G3: =IF($E3=TRUE,HYPERLINK(CONCATENATE("Kachin_CampProfile_R5_GeneratedDoc\",$A3,"\",$B3,"\",$D3,"_3W.pdf"),CONCATENATE($D3,"_3W.pdf")),"No Data") -> MMR001CMP002_3W.pdf
A4: Kachin | B4: Myitkyina | C4: Tat Kone Galile Baptist Church | D4: MMR001CMP003 | E4: TRUE | F4: MMR001CMP003.pdf | G4: MMR001CMP003_3W.pdf
A5: Kachin | B5: Myitkyina | C5: Tat Kone Emanuel Church | D5: MMR001CMP004 | E5: TRUE | F5: MMR001CMP004.pdf | G5: MMR001CMP004_3W.pdf
A6: Kachin | B6: Myitkyina | C6: Tat Kone San Pya Baptist Church | D6: MMR001CMP005 | E6: TRUE | F6: MMR001CMP005.pdf | G6: MMR001CMP005_3W.pdf
A7: Kachin | B7: Myitkyina | C7: Shatapru Sut Ngai Tawng | D7: MMR001CMP006 | E7: TRUE | F7: MMR001CMP006.pdf | G7: MMR001CMP006_3W.pdf
A8: Kachin | B8: Myitkyina | C8: Shatapru Thida Aye Baptist Church | D8: MMR001CMP007 | E8: TRUE | F8: MMR001CMP007.pdf | G8: MMR001CMP007_3W.pdf
A9: Kachin | B9: Myitkyina | C9: Man Hkring Baptist Church | D9: MMR001CMP008 | E9: TRUE | F9: MMR001CMP008.pdf | G9: MMR001CMP008_3W.pdf
A10: Kachin | B10: Myitkyina | C10: Shwe Zet Baptist Church | D10: MMR001CMP009 | E10: TRUE | F10: MMR001CMP009.pdf | G10: MMR001CMP009_3W.pdf
A11: Kachin | B11: Myitkyina | C11: Du Kahtawng Qtr. 4 | D11: MMR001CMP010 | E11: TRUE | F11: MMR001CMP010.pdf | G11: MMR001CMP010_3W.pdf
A12: Kachin | B12: Myitkyina | C12: Du Kahtawng Qtr. 5 | D12: MMR001CMP011 | E12: TRUE | F12: MMR001CMP011.pdf | G12: MMR001CMP011_3W.pdf
A13: Kachin | B13: Myitkyina | C13: Du Kahtawng Qtr. 14 | D13: MMR001CMP012 | E13: TRUE | F13: MMR001CMP012.pdf | G13: MMR001CMP012_3W.pdf
A14: Kachin | B14: Myitkyina | C14: Kyun Pin Thar Baptist Church | D14: MMR001CMP013 | E14: TRUE | F14: MMR001CMP013.pdf | G14: MMR001CMP013_3W.pdf
A15: Kachin | B15: Myitkyina | C15: Le Kone Ziun Baptist Church | D15: MMR001CMP014 | E15: TRUE | F15: MMR001CMP014.pdf | G15: MMR001CMP014_3W.pdf
A16: Kachin | B16: Myitkyina | C16: Le Kone Bethlehem Church | D16: MMR001CMP015 | E16: TRUE | F16: MMR001CMP015.pdf | G16: MMR001CMP015_3W.pdf
A17: Kachin | B17: Myitkyina | C17: Maliyang Baptist Church | D17: MMR001CMP016 | E17: TRUE | F17: MMR001CMP016.pdf | G17: MMR001CMP016_3W.pdf
A18: Kachin | B18: Myitkyina | C18: Jan Mai Kawng Baptist Church | D18: MMR001CMP018 | E18: TRUE | F18: MMR001CMP018.pdf | G18: MMR001CMP018_3W.pdf
A19: Kachin | B19: Myitkyina | C19: Jan Mai Kawng Catholic Church | D19: MMR001CMP019 | E19: TRUE | F19: MMR001CMP019.pdf | G19: MMR001CMP019_3W.pdf
A20: Kachin | B20: Myitkyina | C20: Maw Hpawng Hka Nan Baptist Church | D20: MMR001CMP020 | E20: TRUE | F20: MMR001CMP020.pdf | G20: MMR001CMP020_3W.pdf
A21: Kachin | B21: Myitkyina | C21: Maw Hpawng Lhaovo Baptist Church | D21: MMR001CMP021 | E21: TRUE | F21: MMR001CMP021.pdf | G21: MMR001CMP021_3W.pdf
A22: Kachin | B22: Myitkyina | C22: Wun Tho Buddhist Monastery | D22: MMR001CMP022 | E22: TRUE | F22: MMR001CMP022.pdf | G22: MMR001CMP022_3W.pdf
A23: Kachin | B23: Myitkyina | C23: Tat Kone COC Baptist - Tat Kone Htoi San | D23: MMR001CMP023 | E23: TRUE | F23: MMR001CMP023.pdf | G23: MMR001CMP023_3W.pdf
A24: Kachin | B24: Myitkyina | C24: Nan Kway St. John Catholic Church | D24: MMR001CMP024 | E24: TRUE | F24: MMR001CMP024.pdf | G24: MMR001CMP024_3W.pdf
A25: Kachin | B25: Waingmaw | C25: Qtr. 2 Myoma Baptist Church | D25: MMR001CMP025 | E25: TRUE | F25: MMR001CMP025.pdf | G25: MMR001CMP025_3W.pdf
A26: Kachin | B26: Waingmaw | C26: Qtr. 4 Monestry (Thargaya Thayett Taw) | D26: MMR001CMP026 | E26: TRUE | F26: MMR001CMP026.pdf | G26: MMR001CMP026_3W.pdf
A27: Kachin | B27: Waingmaw | C27: Mading Baptist Church | D27: MMR001CMP027 | E27: TRUE | F27: MMR001CMP027.pdf | G27: MMR001CMP027_3W.pdf
A28: Kachin | B28: Waingmaw | C28: Hkat Cho | D28: MMR001CMP028 | E28: TRUE | F28: MMR001CMP028.pdf | G28: MMR001CMP028_3W.pdf
A29: Kachin | B29: Waingmaw | C29: Maina Catholic Church (St. Joseph) | D29: MMR001CMP029 | E29: TRUE | F29: MMR001CMP029.pdf | G29: MMR001CMP029_3W.pdf
A30: Kachin | B30: Waingmaw | C30: Qtr. 3 Mu-yin Baptist Church | D30: MMR001CMP030 | E30: TRUE | F30: MMR001CMP030.pdf | G30: MMR001CMP030_3W.pdf
A31: Kachin | B31: Waingmaw | C31: Maina AG Church | D31: MMR001CMP031 | E31: TRUE | F31: MMR001CMP031.pdf | G31: MMR001CMP031_3W.pdf
A32: Kachin | B32: Waingmaw | C32: Qtr. 2 Lhaovo Baptist Church | D32: MMR001CMP032 | E32: TRUE | F32: MMR001CMP032.pdf | G32: MMR001CMP032_3W.pdf
A33: Kachin | B33: Waingmaw | C33: Nawng Hee Village | D33: MMR001CMP033 | E33: TRUE | F33: =IF($E33=TRUE,HYPERLINK(CONCATENATE("Kachin_CampProfile_R5_GeneratedDoc\",$A33,"\",$B33,"\",$D33,".pdf"),CONCATENATE($D33,".pdf")),"No Data") -> MMR001CMP033.pdf | G33: =IF($E33=TRUE,HYPERLINK(CONCATENATE("Kachin_CampProfile_R5_GeneratedDoc\",$A33,"\",$B33,"\",$D33,"_3W.pdf"),CONCATENATE($D33,"_3W.pdf")),"No Data") -> MMR001CMP033_3W.pdf
A34: Kachin | B34: Waingmaw | C34: Thargaya Lisu Baptist Church | D34: MMR001CMP037 | E34: TRUE | F34: MMR001CMP037.pdf | G34: MMR001CMP037_3W.pdf
A35: Kachin | B35: Waingmaw | C35: Waingmaw AG Church | D35: MMR001CMP038 | E35: TRUE | F35: MMR001CMP038.pdf | G35: MMR001CMP038_3W.pdf
A36: Kachin | B36: Waingmaw | C36: Maina Lawang Baptist Church | D36: MMR001CMP039 | E36: TRUE | F36: MMR001CMP039.pdf | G36: MMR001CMP039_3W.pdf
A37: Kachin | B37: Waingmaw | C37: Maina KBC (Bawng Ring) | D37: MMR001CMP040 | E37: TRUE | F37: MMR001CMP040.pdf | G37: MMR001CMP040_3W.pdf
A38: Kachin | B38: Waingmaw | C38: Shing Jai | D38: MMR001CMP041 | E38: TRUE | F38: MMR001CMP041.pdf | G38: MMR001CMP041_3W.pdf
A39: Kachin | B39: Chipwi | C39: Chipwi KBC camp | D39: MMR001CMP042 | E39: TRUE | F39: MMR001CMP042.pdf | G39: MMR001CMP042_3W.pdf
A40: Kachin | B40: Chipwi | C40: Hpare Hkyer - BP6 | D40: MMR001CMP043 | E40: TRUE | F40: MMR001CMP043.pdf | G40: MMR001CMP043_3W.pdf
A41: Kachin | B41: Bhamo | C41: Robert Church | D41: MMR001CMP047 | E41: TRUE | F41: MMR001CMP047.pdf | G41: MMR001CMP047_3W.pdf
A42: Kachin | B42: Bhamo | C42: Lisu Boarding-House | D42: MMR001CMP049 | E42: TRUE | F42: MMR001CMP049.pdf | G42: MMR001CMP049_3W.pdf
A43: Kachin | B43: Bhamo | C43: AD-2000 Tharthana Compound | D43: MMR001CMP050 | E43: TRUE | F43: MMR001CMP050.pdf | G43: MMR001CMP050_3W.pdf
A44: Kachin | B44: Bhamo | C44: Mu-yin Baptist Church | D44: MMR001CMP051 | E44: TRUE | F44: MMR001CMP051.pdf | G44: MMR001CMP051_3W.pdf
A45: Kachin | B45: Bhamo | C45: Htoi San Church | D45: MMR001CMP052 | E45: TRUE | F45: MMR001CMP052.pdf | G45: MMR001CMP052_3W.pdf
A46: Kachin | B46: Bhamo | C46: Yoe Kyi Monastery | D46: MMR001CMP053 | E46: TRUE | F46: MMR001CMP053.pdf | G46: MMR001CMP053_3W.pdf
A47: Kachin | B47: Bhamo | C47: Nant Hlaing Church | D47: MMR001CMP054 | E47: TRUE | F47: MMR001CMP054.pdf | G47: MMR001CMP054_3W.pdf
A48: Kachin | B48: Bhamo | C48: Ta Gun Taing Monastery (Shwe Kyi Na) | D48: MMR001CMP055 | E48: TRUE | F48: MMR001CMP055.pdf | G48: MMR001CMP055_3W.pdf
A49: Kachin | B49: Momauk | C49: Momauk Baptist Church | D49: MMR001CMP056 | E49: TRUE | F49: MMR001CMP056.pdf | G49: MMR001CMP056_3W.pdf
A50: Kachin | B50: Momauk | C50: Ni Thaw Ka Monestry | D50: MMR001CMP059 | E50: TRUE | F50: MMR001CMP059.pdf | G50: MMR001CMP059_3W.pdf
A51: Kachin | B51: Momauk | C51: Man Bung Catholic compound | D51: MMR001CMP062 | E51: TRUE | F51: MMR001CMP062.pdf | G51: MMR001CMP062_3W.pdf
A52: Kachin | B52: Mansi | C52: Mansi Baptist Church | D52: MMR001CMP066 | E52: TRUE | F52: MMR001CMP066.pdf | G52: MMR001CMP066_3W.pdf
A53: Kachin | B53: Shwegu | C53: Shwe Gu Baptist Church | D53: MMR001CMP067 | E53: TRUE | F53: MMR001CMP067.pdf | G53: MMR001CMP067_3W.pdf
A54: Kachin | B54: Shwegu | C54: Shwe Gu Catholic Church | D54: MMR001CMP068 | E54: TRUE | F54: MMR001CMP068.pdf | G54: MMR001CMP068_3W.pdf
A55: Kachin | B55: Momauk | C55: Loi Je Catholic Church | D55: MMR001CMP069 | E55: TRUE | F55: MMR001CMP069.pdf | G55: MMR001CMP069_3W.pdf
A56: Kachin | B56: Momauk | C56: Loi Je Lisu Camp | D56: MMR001CMP070 | E56: TRUE | F56: MMR001CMP070.pdf | G56: MMR001CMP070_3W.pdf
A57: Kachin | B57: Momauk | C57: Loi Je Baptist Church | D57: MMR001CMP071 | E57: TRUE | F57: MMR001CMP071.pdf | G57: MMR001CMP071_3W.pdf
A58: Kachin | B58: Momauk | C58: Nyaung Na Pin | D58: MMR001CMP072 | E58: TRUE | F58: MMR001CMP072.pdf | G58: MMR001CMP072_3W.pdf
A59: Kachin | B59: Momauk | C59: Seng Ja | D59: MMR001CMP073 | E59: TRUE | F59: MMR001CMP073.pdf | G59: MMR001CMP073_3W.pdf
A60: Kachin | B60: Khaunglanhpu | C60: La Ja | D60: MMR001CMP074 | E60: FALSE | F60: No Data | G60: No Data
A61: Kachin | B61: Mogaung | C61: Mang Hawng Baptist Church | D61: MMR001CMP077 | E61: TRUE | F61: MMR001CMP077.pdf | G61: MMR001CMP077_3W.pdf
A62: Kachin | B62: Mogaung | C62: Kyun Taw Baptist Church | D62: MMR001CMP078 | E62: TRUE | F62: MMR001CMP078.pdf | G62: MMR001CMP078_3W.pdf
A63: Kachin | B63: Mogaung | C63: Nat Gyi Kone Baptist Church | D63: MMR001CMP079 | E63: TRUE | F63: MMR001CMP079.pdf | G63: MMR001CMP079_3W.pdf
A64: Kachin | B64: Mohnyin | C64: St. Patrick Catholic Church | D64: MMR001CMP080 | E64: TRUE | F64: MMR001CMP080.pdf | G64: MMR001CMP080_3W.pdf
A65: Kachin | B65: Hpakant | C65: Maw Wan, Mu-yin Baptist Church | D65: MMR001CMP091 | E65: TRUE | F65: =IF($E65=TRUE,HYPERLINK(CONCATENATE("Kachin_CampProfile_R5_GeneratedDoc\",$A65,"\",$B65,"\",$D65,".pdf"),CONCATENATE($D65,".pdf")),"No Data") -> MMR001CMP091.pdf | G65: =IF($E65=TRUE,HYPERLINK(CONCATENATE("Kachin_CampProfile_R5_GeneratedDoc\",$A65,"\",$B65,"\",$D65,"_3W.pdf"),CONCATENATE($D65,"_3W.pdf")),"No Data") -> MMR001CMP091_3W.pdf
A66: Kachin | B66: Hpakant | C66: Nant Ma Hpit Catholic Church | D66: MMR001CMP103 | E66: TRUE | F66: MMR001CMP103.pdf | G66: MMR001CMP103_3W.pdf
A67: Kachin | B67: Hpakant | C67: Yumar Baptist Church | D67: MMR001CMP105 | E67: TRUE | F67: MMR001CMP105.pdf | G67: MMR001CMP105_3W.pdf
A68: Kachin | B68: Hpakant | C68: Chin Church, Seik Mu | D68: MMR001CMP109 | E68: TRUE | F68: MMR001CMP109.pdf | G68: MMR001CMP109_3W.pdf
A69: Kachin | B69: Waingmaw | C69: Zai Awng - Mung Ga Zup | D69: MMR001CMP111 | E69: TRUE | F69: MMR001CMP111.pdf | G69: MMR001CMP111_3W.pdf
A70: Kachin | B70: Waingmaw | C70: Border Post 8 | D70: MMR001CMP113 | E70: TRUE | F70: MMR001CMP113.pdf | G70: MMR001CMP113_3W.pdf
A71: Kachin | B71: Waingmaw | C71: Hkau Shau (BP 12) | D71: MMR001CMP115 | E71: TRUE | F71: MMR001CMP115.pdf | G71: MMR001CMP115_3W.pdf
A72: Kachin | B72: Waingmaw | C72: Woi Chyai | D72: MMR001CMP116 | E72: TRUE | F72: MMR001CMP116.pdf | G72: MMR001CMP116_3W.pdf
A73: Kachin | B73: Waingmaw | C73: Maga Yang | D73: MMR001CMP119 | E73: TRUE | F73: MMR001CMP119.pdf | G73: MMR001CMP119_3W.pdf
A74: Kachin | B74: Waingmaw | C74: Pajau - Jan Mai | D74: MMR001CMP120 | E74: TRUE | F74: MMR001CMP120.pdf | G74: MMR001CMP120_3W.pdf
A75: Kachin | B75: Waingmaw | C75: Je Yang Hka | D75: MMR001CMP121 | E75: TRUE | F75: MMR001CMP121.pdf | G75: MMR001CMP121_3W.pdf
A76: Kachin | B76: Momauk | C76: Hpun Lum Yang | D76: MMR001CMP122 | E76: TRUE | F76: MMR001CMP122.pdf | G76: MMR001CMP122_3W.pdf
A77: Kachin | B77: Momauk | C77: Dum Bung | D77: MMR001CMP123 | E77: TRUE | F77: MMR001CMP123.pdf | G77: MMR001CMP123_3W.pdf
A78: Kachin | B78: Momauk | C78: Pa Kahtawng | D78: MMR001CMP126 | E78: TRUE | F78: MMR001CMP126.pdf | G78: MMR001CMP126_3W.pdf
A79: Kachin | B79: Mansi | C79: Lana Zup Ja | D79: MMR001CMP128 | E79: TRUE | F79: MMR001CMP128.pdf | G79: MMR001CMP128_3W.pdf
A80: Kachin | B80: Mansi | C80: Bum Tsit Pa | D80: MMR001CMP129 | E80: TRUE | F80: MMR001CMP129.pdf | G80: MMR001CMP129_3W.pdf
A81: Kachin | B81: Momauk | C81: Nhkawng Pa | D81: MMR001CMP131 | E81: TRUE | F81: MMR001CMP131.pdf | G81: MMR001CMP131_3W.pdf
A82: Kachin | B82: Mansi | C82: Man Wing Catholic Church | D82: MMR001CMP132 | E82: TRUE | F82: MMR001CMP132.pdf | G82: MMR001CMP132_3W.pdf
A83: Kachin | B83: Mansi | C83: Man Wing Baptist Church | D83: MMR001CMP133 | E83: TRUE | F83: MMR001CMP133.pdf | G83: MMR001CMP133_3W.pdf
A84: Kachin | B84: Hpakant | C84: Hlaing Naung Baptist | D84: MMR001CMP148 | E84: TRUE | F84: MMR001CMP148.pdf | G84: MMR001CMP148_3W.pdf
A85: Kachin | B85: Mohnyin | C85: Nawng Ing (Indawgyi) Baptist Church | D85: MMR001CMP152 | E85: TRUE | F85: MMR001CMP152.pdf | G85: MMR001CMP152_3W.pdf
A86: Kachin | B86: Waingmaw | C86: Post 6 Camp | D86: MMR001CMP160 | E86: TRUE | F86: MMR001CMP160.pdf | G86: MMR001CMP160_3W.pdf
A87: Kachin | B87: Myitkyina | C87: Pa Dauk Myaing(Pa La Na) | D87: MMR001CMP162 | E87: TRUE | F87: MMR001CMP162.pdf | G87: MMR001CMP162_3W.pdf
A88: Kachin | B88: Hpakant | C88: Lisu Baptist Church, Maw Wan Ward | D88: MMR001CMP167 | E88: TRUE | F88: MMR001CMP167.pdf | G88: MMR001CMP167_3W.pdf
A89: Kachin | B89: Hpakant | C89: 5 Ward RC Church(lon Khin) | D89: MMR001CMP168 | E89: TRUE | F89: MMR001CMP168.pdf | G89: MMR001CMP168_3W.pdf
A90: Kachin | B90: Hpakant | C90: Baptist Church, Hmaw Si Sar(Lon Khin) | D90: MMR001CMP169 | E90: TRUE | F90: MMR001CMP169.pdf | G90: MMR001CMP169_3W.pdf
A91: Kachin | B91: Hpakant | C91: Dhama Rakhita, Nyein Chan Tar Yar Ward(Lon Khin) | D91: MMR001CMP174 | E91: TRUE | F91: MMR001CMP174.pdf | G91: MMR001CMP174_3W.pdf
A92: Kachin | B92: Hpakant | C92: AG Church, Hmaw Si Sa | D92: MMR001CMP176 | E92: TRUE | F92: MMR001CMP176.pdf | G92: MMR001CMP176_3W.pdf
A93: Kachin | B93: Hpakant | C93: 5 Ward Baptist Church(lon Khin) | D93: MMR001CMP179 | E93: TRUE | F93: MMR001CMP179.pdf | G93: MMR001CMP179_3W.pdf
A94: Kachin | B94: Hpakant | C94: Lisu Baptist Church, Maw Shan Vil,. Seik Mu | D94: MMR001CMP181 | E94: TRUE | F94: MMR001CMP181.pdf | G94: MMR001CMP181_3W.pdf
A95: Kachin | B95: Hpakant | C95: Rawan Baptist Church, Maw Shan Vil., Seik Mu | D95: MMR001CMP182 | E95: TRUE | F95: MMR001CMP182.pdf | G95: MMR001CMP182_3W.pdf
A96: Kachin | B96: Hpakant | C96: Sai Nai Baptish Church, Maw Shan Vil., Seki Mu | D96: MMR001CMP183 | E96: TRUE | F96: MMR001CMP183.pdf | G96: MMR001CMP183_3W.pdf
A97: Kachin | B97: Hpakant | C97: Ward 2 Sai Taung Baptist Church, Seik Mu | D97: MMR001CMP184 | E97: TRUE | F97: =IF($E97=TRUE,HYPERLINK(CONCATENATE("Kachin_CampProfile_R5_GeneratedDoc\",$A97,"\",$B97,"\",$D97,".pdf"),CONCATENATE($D97,".pdf")),"No Data") -> MMR001CMP184.pdf | G97: =IF($E97=TRUE,HYPERLINK(CONCATENATE("Kachin_CampProfile_R5_GeneratedDoc\",$A97,"\",$B97,"\",$D97,"_3W.pdf"),CONCATENATE($D97,"_3W.pdf")),"No Data") -> MMR001CMP184_3W.pdf
A98: Kachin | B98: Hpakant | C98: AG Church, Maw Wan | D98: MMR001CMP190 | E98: TRUE | F98: MMR001CMP190.pdf | G98: MMR001CMP190_3W.pdf
A99: Kachin | B99: Hpakant | C99: Hmaw Wan, Anglican | D99: MMR001CMP191 | E99: TRUE | F99: MMR001CMP191.pdf | G99: MMR001CMP191_3W.pdf
A100: Kachin | B100: Hpakant | C100: Nam Ma Phyit, COC | D100: MMR001CMP192 | E100: TRUE | F100: MMR001CMP192.pdf | G100: MMR001CMP192_3W.pdf
A101: Kachin | B101: Bhamo | C101: Phan Khar Kone | D101: MMR001CMP193 | E101: TRUE | F101: MMR001CMP193.pdf | G101: MMR001CMP193_3W.pdf
A102: Kachin | B102: Bhamo | C102: Aung Thar Church | D102: MMR001CMP194 | E102: TRUE | F102: MMR001CMP194.pdf | G102: MMR001CMP194_3W.pdf
A103: Kachin | B103: Chipwi | C103: Lhaovao Baptist Church (LBC) | D103: MMR001CMP195 | E103: TRUE | F103: MMR001CMP195.pdf | G103: MMR001CMP195_3W.pdf
A104: Kachin | B104: Sumprabum | C104: Sumprabum | D104: MMR001CMP206 | E104: FALSE | F104: No Data | G104: No Data
A105: Kachin | B105: Chipwi | C105: Pan Wa | D105: MMR001CMP210 | E105: TRUE | F105: MMR001CMP210.pdf | G105: MMR001CMP210_3W.pdf
A106: Kachin | B106: Mansi | C106: Maing Khaung | D106: MMR001CMP218 | E106: TRUE | F106: MMR001CMP218.pdf | G106: MMR001CMP218_3W.pdf
A107: Kachin | B107: Mansi | C107: Maing Khaung Catholic Church | D107: MMR001CMP223 | E107: TRUE | F107: MMR001CMP223.pdf | G107: MMR001CMP223_3W.pdf
A108: Kachin | B108: Chipwi | C108: Saw Zam | D108: MMR001CMP225 | E108: TRUE | F108: MMR001CMP225.pdf | G108: MMR001CMP225_3W.pdf
A109: Kachin | B109: Mansi | C109: Bum Tsit Pa Camp II | D109: MMR001CMP226 | E109: FALSE | F109: No Data | G109: No Data
A110: Kachin | B110: Mansi | C110: Man Wing Catholic Church II | D110: MMR001CMP228 | E110: TRUE | F110: MMR001CMP228.pdf | G110: MMR001CMP228_3W.pdf
A111: Kachin | B111: Hpakant | C111: Hpakant Baptist Church, Nam Ma Hpit | D111: MMR001CMP229 | E111: TRUE | F111: MMR001CMP229.pdf | G111: MMR001CMP229_3W.pdf
A112: Kachin | B112: Mansi | C112: Man Wing Baptist Church Cultural Compound | D112: MMR001CMP230 | E112: TRUE | F112: MMR001CMP230.pdf | G112: MMR001CMP230_3W.pdf
A113: Kachin | B113: Hpakant | C113: Ku Day Maw KBC | D113: MMR001CMP231 | E113: TRUE | F113: MMR001CMP231.pdf | G113: MMR001CMP231_3W.pdf
A114: Kachin | B114: Puta-O | C114: Lung Sut | D114: MMR001CMP234 | E114: TRUE | F114: MMR001CMP234.pdf | G114: MMR001CMP234_3W.pdf
A115: Kachin | B115: Mogaung | C115: Sar Hmaw - KBC | D115: MMR001CMP236 | E115: TRUE | F115: MMR001CMP236.pdf | G115: MMR001CMP236_3W.pdf
A116: Kachin | B116: Mogaung | C116: Ma Hawng RC | D116: MMR001CMP237 | E116: FALSE | F116: No Data | G116: No Data
A117: Kachin | B117: Sumprabum | C117: Ndup Yang | D117: MMR001CMP238 | E117: FALSE | F117: No Data | G117: No Data
A118: Kachin | B118: Sumprabum | C118: Salang Yang | D118: MMR001CMP239 | E118: FALSE | F118: No Data | G118: No Data
A119: Shan_North | B119: Namhkan | C119: Nam Hkam (KBC Jaw Wang) | D119: MMR015CMP001 | E119: TRUE | F119: MMR015CMP001.pdf | G119: MMR015CMP001_3W.pdf
A120: Shan_North | B120: Namhkan | C120: Nam Hkam Catholic Church ( St. Thomas I) | D120: MMR015CMP003 | E120: TRUE | F120: MMR015CMP003.pdf | G120: MMR015CMP003_3W.pdf
A121: Shan_North | B121: Namhkan | C121: Nam Hkam - Nay Win Ni (Palawng) | D121: MMR015CMP004 | E121: TRUE | F121: MMR015CMP004.pdf | G121: MMR015CMP004_3W.pdf
A122: Shan_North | B122: Kutkai | C122: Mungji Pa Dabang (Baptist Church) | D122: MMR015CMP006 | E122: TRUE | F122: MMR015CMP006.pdf | G122: MMR015CMP006_3W.pdf
A123: Shan_North | B123: Kutkai | C123: Nam Hpak Ka Mare | D123: MMR015CMP007 | E123: TRUE | F123: MMR015CMP007.pdf | G123: MMR015CMP007_3W.pdf
A124: Shan_North | B124: Manton | C124: Mandung - Jinghpaw | D124: MMR015CMP009 | E124: TRUE | F124: MMR015CMP009.pdf | G124: MMR015CMP009_3W.pdf
A125: Shan_North | B125: Namtu | C125: Nam Tu Baptist | D125: MMR015CMP014 | E125: TRUE | F125: MMR015CMP014.pdf | G125: MMR015CMP014_3W.pdf
A126: Shan_North | B126: Kutkai | C126: Kone Khem Camp | D126: MMR015CMP015 | E126: FALSE | F126: No Data | G126: No Data
A127: Shan_North | B127: Kutkai | C127: Kutkai downtown (KBC Church) | D127: MMR015CMP016 | E127: TRUE | F127: MMR015CMP016.pdf | G127: MMR015CMP016_3W.pdf
A128: Shan_North | B128: Kutkai | C128: Kutkai downtown (RC Church) | D128: MMR015CMP017 | E128: TRUE | F128: MMR015CMP017.pdf | G128: MMR015CMP017_3W.pdf
A129: Shan_North | B129: Kutkai | C129: Mine Yu Lay village | D129: MMR015CMP018 | E129: TRUE | F129: =IF($E129=TRUE,HYPERLINK(CONCATENATE("Kachin_CampProfile_R5_GeneratedDoc\",$A129,"\",$B129,"\",$D129,".pdf"),CONCATENATE($D129,".pdf")),"No Data") -> MMR015CMP018.pdf | G129: =IF($E129=TRUE,HYPERLINK(CONCATENATE("Kachin_CampProfile_R5_GeneratedDoc\",$A129,"\",$B129,"\",$D129,"_3W.pdf"),CONCATENATE($D129,"_3W.pdf")),"No Data") -> MMR015CMP018_3W.pdf
A130: Shan_North | B130: Kutkai | C130: Zup Aung Camp | D130: MMR015CMP020 | E130: TRUE | F130: MMR015CMP020.pdf | G130: MMR015CMP020_3W.pdf
A131: Shan_North | B131: Manton | C131: Mandung - RC | D131: MMR015CMP209 | E131: TRUE | F131: MMR015CMP209.pdf | G131: MMR015CMP209_3W.pdf
A132: Shan_North | B132: Muse | C132: Muse Baptist Church | D132: MMR015CMP213 | E132: TRUE | F132: MMR015CMP213.pdf | G132: MMR015CMP213_3W.pdf
A133: Shan_North | B133: Namhkan | C133: Nam Hkam (KBC Jaw Wang) II | D133: MMR015CMP214 | E133: TRUE | F133: =IF($E133=TRUE,HYPERLINK(CONCATENATE("Kachin_CampProfile_R5_GeneratedDoc\",$A133,"\",$B133,"\",$D133,".pdf"),CONCATENATE($D133,".pdf")),"No Data") -> MMR015CMP214.pdf | G133: MMR015CMP214_3W.pdf
A134: Shan_North | B134: Namhkan | C134: Namhkan - Pang Long KBC | D134: MMR015CMP215 | E134: TRUE | F134: MMR015CMP215.pdf | G134: MMR015CMP215_3W.pdf
A135: Shan_North | B135: Muse | C135: Muse Catholic Church | D135: MMR015CMP216 | E135: TRUE | F135: MMR015CMP216.pdf | G135: MMR015CMP216_3W.pdf
A136: Shan_North | B136: Kutkai | C136: Mungji Pa Dabang (Catholic Church) | D136: MMR015CMP217 | E136: TRUE | F136: MMR015CMP217.pdf | G136: MMR015CMP217_3W.pdf
A137: Shan_North | B137: Hseni | C137: Nam Sa Larp | D137: MMR015CMP218 | E137: FALSE | F137: No Data | G137: No Data
A138: Shan_North | B138: Kutkai | C138: New Pang Ku | D138: MMR015CMP219 | E138: FALSE | F138: =IF($E138=TRUE,HYPERLINK(CONCATENATE("Kachin_CampProfile_R5_GeneratedDoc\",$A138,"\",$B138,"\",$D138,".pdf"),CONCATENATE($D138,".pdf")),"No Data") -> No Data | G138: =IF($E138=TRUE,HYPERLINK(CONCATENATE("Kachin_CampProfile_R5_GeneratedDoc\",$A138,"\",$B138,"\",$D138,"_3W.pdf"),CONCATENATE($D138,"_3W.pdf")),"No Data") -> No Data
A139: Shan_North | B139: Muse | C139: Munekoe Pa (Giwang) - Hka San (Mung Go Pa ) | D139: MMR015CMP012 | E139: FALSE | F139: =IF($E139=TRUE,HYPERLINK(CONCATENATE("Kachin_CampProfile_R5_GeneratedDoc\",$A139,"\",$B139,"\",$D139,".pdf"),CONCATENATE($D139,".pdf")),"No Data") -> No Data | G139: =IF($E139=TRUE,HYPERLINK(CONCATENATE("Kachin_CampProfile_R5_GeneratedDoc\",$A139,"\",$B139,"\",$D139,"_3W.pdf"),CONCATENATE($D139,"_3W.pdf")),"No Data") -> No Data

Sheet CCCM (1)
A1: Breakdown of camps profiled by state/township and by agencies | J1: Breakdown by agencies
A3: Agencies | B3: Column Labels | J3: Agencies | K3: Profiled Camps | L3: Percentage %
A4: State / Township | B4: KBC | C4: KMSS-BMO | D4: KMSS-LSO | E4: KMSS-MYT | F4: SHALOM | G4: Grand Total | J4: KBC | K4: 64 | L4: =GETPIVOTDATA("CP_PCode",$J$3,"A1_01","KBC")/GETPIVOTDATA("CP_PCode",$J$3) -> 0.5
A5: Kachin | J5: KMSS-BMO | K5: 12 | L5: =GETPIVOTDATA("CP_PCode",$J$3,"A1_01","KMSS-BMO")/GETPIVOTDATA("CP_PCode",$J$3) -> 0.09375
A6: Bhamo | B6: 4 | C6: 2 | F6: 4 | G6: 10 | J6: KMSS-LSO | K6: 5 | L6: =GETPIVOTDATA("CP_PCode",$J$3,"A1_01","KMSS-LSO")/GETPIVOTDATA("CP_PCode",$J$3) -> 0.0390625
A7: Chipwi | B7: 1 | E7: 2 | F7: 2 | G7: 5 | J7: KMSS-MYT | K7: 16 | L7: =GETPIVOTDATA("CP_PCode",$J$3,"A1_01","KMSS-MYT")/GETPIVOTDATA("CP_PCode",$J$3) -> 0.125
A8: Hpakant | B8: 8 | E8: 2 | F8: 10 | G8: 20 | J8: SHALOM | K8: 31 | L8: =GETPIVOTDATA("CP_PCode",$J$3,"A1_01","SHALOM")/GETPIVOTDATA("CP_PCode",$J$3) -> 0.2421875
A9: Mansi | B9: 4 | C9: 5 | G9: 9 | J9: Grand Total | K9: 128 | L9: =SUM(L4:L8) -> 1
A10: Mogaung | B10: 4 | G10: 4
A11: Mohnyin | B11: 1 | E11: 1 | G11: 2
A12: Momauk | B12: 5 | C12: 4 | E12: 3 | F12: 1 | G12: 13
A13: Myitkyina | B13: 15 | E13: 3 | F13: 6 | G13: 24 | J13: Breakdown of total and profiled camps
A14: Shwegu | B14: 1 | C14: 1 | G14: 2 | J14: Status | K14: Open
A15: Waingmaw | B15: 8 | E15: 5 | F15: 8 | G15: 21 | J15: Affected Population | K15: IDP
A16: Puta-O | B16: 1 | G16: 1
A17: Shan_North | J17: Accomodation Type | K17: Total | M17: Profiled | N17: # of camps
A18: Kutkai | B18: 5 | D18: 2 | G18: 7 | J18: Boarding School | K18: 2 | M18: Yes | N18: 128
A19: Manton | B19: 1 | D19: 1 | G19: 2 | J19: Camp | K19: 138 | M19: No | N19: 10
A20: Muse | B20: 1 | D20: 1 | G20: 2 | J20: Host Families | K20: 25 | M20: Total | N20: 138
A21: Namhkan | B21: 4 | D21: 1 | G21: 5 | J21: Grand Total | K21: 165
A22: Namtu | B22: 1 | G22: 1
A23: Grand Total | B23: 64 | C23: 12 | D23: 5 | E23: 16 | F23: 31 | G23: 128
A28: Breakdown of "Source of Information" by gender | I28: Comparison of # of respondents vis-à-vis profiled camps
U29: Key informant | V29: (Multiple Items)
F30: Round 5 | G30: Round 4 | K30: Round 5 | L30: Round 4
A31: Count of CampName | B31: Column Labels | F31: Percentage | I31: # of Respondents | J31: Count of # of Respondents | K31: Percentage % | U31: Township / Camp | V31: # of Respondents
A32: Township / Camp | B32: 1 | C32: Female | D32: Male | E32: Grand Total | I32: 1 | J32: 36 | K32: 0.28125 | L32: 0.5757575758 | U32: MMR001CMP001 | V32: 1
A33: Camp Manager | B33: 1 | C33: 19 | D33: 95 | E33: 115 | F33: =GETPIVOTDATA("CampName",$A$31,"Key informant","Camp Manager")/GETPIVOTDATA("CampName",$A$31) -> 0.3616352201 | G33: 0.4674796748 | I33: 2 | J33: 28 | K33: 0.21875 | L33: 0.1666666667 | U33: MMR001CMP002 | V33: 1
A34: Camp Resident | C34: 50 | D34: 28 | E34: 78 | F34: =GETPIVOTDATA("CampName",$A$31,"Key informant","Camp Resident")/GETPIVOTDATA("CampName",$A$31) -> 0.2452830189 | G34: 0.1260162602 | I34: 3 | J34: 31 | K34: 0.2421875 | L34: 0.1136363636 | U34: MMR001CMP003 | V34: 1
A35: Committee Member | C35: 57 | D35: 49 | E35: 106 | F35: =GETPIVOTDATA("CampName",$A$31,"Key informant","Committee Member")/GETPIVOTDATA("CampName",$A$31) -> 0.3333333333 | G35: 0.337398374 | I35: 4 | J35: 32 | K35: 0.25 | L35: 0.1060606061 | U35: MMR001CMP004 | V35: 3
A36: Other | C36: 1 | E36: 1 | F36: =GETPIVOTDATA("CampName",$A$31,"Key informant","Other")/GETPIVOTDATA("CampName",$A$31) -> 0.003144654088 | G36: 0.01 | I36: 5 | J36: 1 | K36: 0.0078125 | L36: 0.03787878788 | U36: MMR001CMP005 | V36: 2
A37: Religious leader | C37: 4 | D37: 10 | E37: 14 | F37: =GETPIVOTDATA("CampName",$A$31,"Key informant","Religious leader")/GETPIVOTDATA("CampName",$A$31) -> 0.04402515723 | G37: 0.04 | I37: Grand Total | J37: 128 | K37: 1 | U37: MMR001CMP006 | V37: 2
A38: Teacher | C38: 4 | E38: 4 | F38: =GETPIVOTDATA("CampName",$A$31,"Key informant","Teacher")/GETPIVOTDATA("CampName",$A$31) -> 0.01257861635 | G38: 0 | U38: MMR001CMP007 | V38: 2
A39: Grand Total | B39: 1 | C39: 135 | D39: 182 | E39: 318 | F39: =SUM(F33:F38) -> 1 | U39: MMR001CMP008 | V39: 1
A40: Percentage | B40: =GETPIVOTDATA("CampName",$A$31,"Gender","1")/GETPIVOTDATA("CampName",$A$31) -> 0.003144654088 | C40: =GETPIVOTDATA("CampName",$A$31,"Gender","Female")/GETPIVOTDATA("CampName",$A$31) -> 0.4245283019 | D40: =GETPIVOTDATA("CampName",$A$31,"Gender","Male")/GETPIVOTDATA("CampName",$A$31) -> 0.572327044 | U40: MMR001CMP009 | V40: 3
U41: MMR001CMP010 | V41: 4
U42: MMR001CMP011 | V42: 4
U43: MMR001CMP012 | V43: 4
U44: MMR001CMP013 | V44: 2
U45: MMR001CMP014 | V45: 1
U46: MMR001CMP015 | V46: 2
U47: MMR001CMP016 | V47: 1
U48: MMR001CMP018 | V48: 3
U49: MMR001CMP019 | V49: 3
U50: MMR001CMP020 | V50: 1
U51: MMR001CMP021 | V51: 2
U52: MMR001CMP022 | V52: 2
U53: MMR001CMP023 | V53: 2
U54: MMR001CMP024 | V54: 3
U55: MMR001CMP025 | V55: 2
U56: MMR001CMP026 | V56: 3
U57: MMR001CMP027 | V57: 2
U58: MMR001CMP028 | V58: 1
U59: MMR001CMP029 | V59: 4
U60: MMR001CMP030 | V60: 1
U61: MMR001CMP031 | V61: 1
U62: MMR001CMP032 | V62: 3
U63: MMR001CMP033 | V63: 1
U64: MMR001CMP037 | V64: 2
U65: MMR001CMP038 | V65: 1
U66: MMR001CMP039 | V66: 2
U67: MMR001CMP040 | V67: 1
U68: MMR001CMP041 | V68: 3
U69: MMR001CMP042 | V69: 3
U70: MMR001CMP043 | V70: 3
U71: MMR001CMP047 | V71: 3
U72: MMR001CMP049 | V72: 2
U73: MMR001CMP050 | V73: 1
U74: MMR001CMP051 | V74: 5
U75: MMR001CMP052 | V75: 3
U76: MMR001CMP053 | V76: 1
U77: MMR001CMP054 | V77: 1
U78: MMR001CMP055 | V78: 4
U79: MMR001CMP056 | V79: 3
U80: MMR001CMP059 | V80: 2
U81: MMR001CMP062 | V81: 3
U82: MMR001CMP066 | V82: 4
U83: MMR001CMP067 | V83: 3
U84: MMR001CMP068 | V84: 1
U85: MMR001CMP069 | V85: 1
U86: MMR001CMP070 | V86: 2
U87: MMR001CMP071 | V87: 2
U88: MMR001CMP072 | V88: 2
U89: MMR001CMP073 | V89: 2
U90: MMR001CMP077 | V90: 2
U91: MMR001CMP078 | V91: 2
U92: MMR001CMP079 | V92: 2
U93: MMR001CMP080 | V93: 4
U94: MMR001CMP091 | V94: 3
U95: MMR001CMP103 | V95: 4
U96: MMR001CMP105 | V96: 4
U97: MMR001CMP109 | V97: 3
U98: MMR001CMP111 | V98: 4
U99: MMR001CMP113 | V99: 4
U100: MMR001CMP115 | V100: 1
U101: MMR001CMP116 | V101: 3
U102: MMR001CMP119 | V102: 4
U103: MMR001CMP120 | V103: 4
U104: MMR001CMP121 | V104: 4
U105: MMR001CMP122 | V105: 4
U106: MMR001CMP123 | V106: 4
U107: MMR001CMP126 | V107: 4
U108: MMR001CMP128 | V108: 1
U109: MMR001CMP129 | V109: 1
U110: MMR001CMP131 | V110: 3
U111: MMR001CMP132 | V111: 1
U112: MMR001CMP133 | V112: 1
U113: MMR001CMP148 | V113: 1
U114: MMR001CMP152 | V114: 2
U115: MMR001CMP160 | V115: 4
U116: MMR001CMP162 | V116: 3
U117: MMR001CMP167 | V117: 4
U118: MMR001CMP168 | V118: 4
U119: MMR001CMP169 | V119: 4
U120: MMR001CMP174 | V120: 4
U121: MMR001CMP176 | V121: 4
U122: MMR001CMP179 | V122: 4
U123: MMR001CMP181 | V123: 3
U124: MMR001CMP182 | V124: 3
U125: MMR001CMP183 | V125: 4
U126: MMR001CMP184 | V126: 4
U127: MMR001CMP190 | V127: 3
U128: MMR001CMP191 | V128: 3
U129: MMR001CMP192 | V129: 3
U130: MMR001CMP193 | V130: 4
U131: MMR001CMP194 | V131: 1
U132: MMR001CMP195 | V132: 1
U133: MMR001CMP210 | V133: 4
U134: MMR001CMP218 | V134: 3
U135: MMR001CMP223 | V135: 4
U136: MMR001CMP225 | V136: 4
U137: MMR001CMP228 | V137: 1
U138: MMR001CMP229 | V138: 4
U139: MMR001CMP230 | V139: 3
U140: MMR001CMP231 | V140: 4
U141: MMR001CMP234 | V141: 3
U142: MMR015CMP001 | V142: 3
U143: MMR015CMP003 | V143: 1
U144: MMR015CMP004 | V144: 2
U145: MMR015CMP006 | V145: 1
U146: MMR015CMP007 | V146: 2
U147: MMR015CMP009 | V147: 2
U148: MMR015CMP014 | V148: 1
U149: MMR015CMP016 | V149: 2
U150: MMR015CMP017 | V150: 1
U151: MMR015CMP018 | V151: 3
U152: MMR015CMP020 | V152: 2
U153: MMR015CMP209 | V153: 1
U154: MMR015CMP213 | V154: 1
U155: MMR015CMP214 | V155: 3
U156: MMR015CMP215 | V156: 1
U157: MMR015CMP216 | V157: 1
U158: MMR015CMP217 | V158: 1
U159: MMR001CMP236 | V159: 2
U160: Grand Total | V160: 318

Sheet CCCM(2)
A1: More detailed breakdowns:
A2: Breakdown of camps profiled by state/township and by agencies | L2: Breakdown of camps prone to calamities | Q2: Breakdown of functional camp management committees
A3: Agencies | B3: Column Labels | L3: Count of State | M3: Column Labels | Q3: Count of State | R3: Column Labels
A4: State / Township | B4: KBC | C4: KMSS | D4: Shalom | E4: KmSS_Myitkyina | F4: KMSS_Bhamo | G4: KMSS-Myitkyina | H4: UNHCR | I4: KMSS_MYT | J4: Grand Total | L4: State | M4: FALSE | N4: TRUE | O4: Grand Total | Q4: State | R4: FALSE | S4: TRUE | T4: Grand Total
A5: Kachin | L5: Kachin | M5: 54 | N5: 57 | O5: 111 | Q5: Kachin | R5: 6 | S5: 105 | T5: 111
A6: Bhamo | B6: 4 | D6: 4 | F6: 2 | J6: 10 | L6: Shan_North | M6: 7 | N6: 10 | O6: 17 | Q6: Shan_North | R6: 1 | S6: 16 | T6: 17
A7: Chipwi | B7: 1 | D7: 2 | G7: 2 | J7: 5 | L7: Grand Total | M7: 61 | N7: 67 | O7: 128 | Q7: Grand Total | R7: 7 | S7: 121 | T7: 128
A8: Hpakant | B8: 8 | D8: 10 | E8: 1 | G8: 1 | J8: 20
A9: Mansi | B9: 4 | F9: 5 | J9: 9 | L9: Breakdown of camps by reason of Calamities | Q9: Breakdown regarding complaints mechanism in the IDP camps
A10: Mogaung | B10: 4 | J10: 4 | L10: Lanslide
A11: Mohnyin | B11: 1 | C11: 1 | J11: 2 | L11: Count of State | M11: Column Labels | Q11: Count of State | R11: Column Labels
A12: Momauk | B12: 5 | C12: 2 | D12: 1 | F12: 4 | G12: 1 | J12: 13 | L12: State | M12: TRUE | Q12: State | R12: FALSE | S12: TRUE | T12: Grand Total
A13: Myitkyina | B13: 15 | C13: 1 | D13: 6 | G13: 1 | I13: 1 | J13: 24 | L13: Kachin | M13: 14 | Q13: Kachin | R13: 21 | S13: 90 | T13: 111
A14: Shwegu | B14: 1 | F14: 1 | J14: 2 | L14: Grand Total | M14: 14 | Q14: Shan_North | R14: 1 | S14: 16 | T14: 17
A15: Waingmaw | B15: 8 | C15: 3 | D15: 8 | G15: 2 | J15: 21 | L15: Flooding | Q15: Grand Total | R15: 22 | S15: 106 | T15: 128
A16: Puta-O | B16: 1 | J16: 1 | L16: Count of State | M16: Column Labels
A17: Shan_North | L17: State | M17: TRUE | Q17: Breakdown of number of complaints received in last 6 months
A18: Kutkai | B18: 5 | H18: 2 | J18: 7 | L18: Kachin | M18: 13
A19: Manton | B19: 1 | H19: 1 | J19: 2 | L19: Shan_North | M19: 1 | Q19: State | R19: # of complaints
A20: Muse | B20: 1 | H20: 1 | J20: 2 | L20: Grand Total | M20: 14 | Q20: Kachin | R20: 108
A21: Namhkan | B21: 4 | H21: 1 | J21: 5 | L21: Fire | Q21: Shan_North | R21: 10
A22: Namtu | B22: 1 | J22: 1 | L22: Count of State | M22: Column Labels | Q22: Grand Total | R22: 118
A23: Grand Total | B23: 64 | C23: 7 | D23: 31 | E23: 1 | F23: 12 | G23: 7 | H23: 5 | I23: 1 | J23: 128 | L23: State | M23: TRUE
L24: Kachin | M24: 34 | Q24: Breakdown of number of camp management committee members VERSUS attendance in CCCM training
L25: Shan_North | M25: 4 | R25: # of CMCs | T25: CCCM training attended
L26: Grand Total | M26: 38 | Q26: State | R26: Males | S26: Females | T26: M | U26: F
L27: Pollution | Q27: Kachin | R27: 735 | S27: 493 | T27: 152 | U27: 84
L28: Count of State | M28: Column Labels | Q28: Shan_North | R28: 99 | S28: 65 | T28: 22 | U28: 13
L29: State | M29: TRUE | Q29: Grand Total | R29: 834 | S29: 558 | T29: 174 | U29: 97
L30: Kachin | M30: 32 | Q30: % | T30: =GETPIVOTDATA("M",$Q$26)/GETPIVOTDATA("Males",$Q$26) -> 0.2086330935 | U30: =GETPIVOTDATA("F",$Q$26)/GETPIVOTDATA("Females",$Q$26) -> 0.1738351254
L31: Shan_North | M31: 4
L32: Grand Total | M32: 36
L33: Water Shortage
L34: Count of State | M34: Column Labels
L35: State | M35: TRUE
L36: Kachin | M36: 19
L37: Shan_North | M37: 7
L38: Grand Total | M38: 26

Sheet CCCM(3)
A1: Breakdown of camps having camp management committees
A3: Count of State | B3: Column Labels
A4: State | B4: FALSE | C4: TRUE | D4: Grand Total
A5: Kachin | B5: 7 | C5: 104 | D5: 111
A6: Shan_North | C6: 17 | D6: 17
A7: Grand Total | B7: 7 | C7: 121 | D7: 128
A9: Breakdown by ownership of camp land
A11: Religious / Cultural Property
A12: Count of State | B12: Column Labels
A13: State | B13: TRUE
A14: Kachin | B14: 88
A15: Shan_North | B15: 13
A16: Grand Total | B16: 101
A18: Private Claimant
A19: Count of State | B19: Column Labels
A20: State | B20: TRUE
A21: Kachin | B21: 2
A22: Shan_North | B22: 3
A23: Grand Total | B23: 5
A26: Public
A27: Count of State | B27: Column Labels
A28: State | B28: TRUE
A29: Kachin | B29: 10
A30: Grand Total | B30: 10
A32: Other
A33: Count of State | B33: Column Labels
A34: State | B34: TRUE
A35: Kachin | B35: 6
A36: Grand Total | B36: 6
A38: Other | B38: TRUE
A39: Breakdown of 'other' category
A40: State | B40: Count of State
A41: Government | B41: 3
A42: IRRC | B42: 2
A43: KIA/KIO | B43: 1
A44: Grand Total | B44: 6

Sheet Demography (1)
A1: Breakdown of registered IDP population by age cohort
A3: Sex | B3: (Multiple Items)
A4: Township | B4: (All)
A6: Age Category | B6: # of Displaced People | C6: Percentage %
A7: 00-05 | B7: 997 | C7: =GETPIVOTDATA("Total",$A$6,"Age Category","00-05")/GETPIVOTDATA("Total",$A$6) -> 0.01192098907 | D7: months
A8: 01 | B8: 2196 | C8: =GETPIVOTDATA("Total",$A$6,"Age Category","01")/GETPIVOTDATA("Total",$A$6) -> 0.02625726379 | D8: years
A9: 02 | B9: 2447 | C9: =GETPIVOTDATA("Total",$A$6,"Age Category","02")/GETPIVOTDATA("Total",$A$6) -> 0.02925843556 | D9: years
A10: 03-04 | B10: 3840 | C10: =GETPIVOTDATA("Total",$A$6,"Age Category","03-04")/GETPIVOTDATA("Total",$A$6) -> 0.04591434106 | D10: years
A11: 05-10 | B11: 12274 | C11: =GETPIVOTDATA("Total",$A$6,"Age Category","05-10")/GETPIVOTDATA("Total",$A$6) -> 0.1467584953 | D11: years
A12: 06-11 | B12: 1122 | C12: =GETPIVOTDATA("Total",$A$6,"Age Category","06-11")/GETPIVOTDATA("Total",$A$6) -> 0.01341559653 | D12: months
A13: 11-14 | B13: 10408 | C13: =GETPIVOTDATA("Total",$A$6,"Age Category","11-14")/GETPIVOTDATA("Total",$A$6) -> 0.1244469952 | D13: years
A14: 15-17 | B14: 7467 | C14: =GETPIVOTDATA("Total",$A$6,"Age Category","15-17")/GETPIVOTDATA("Total",$A$6) -> 0.08928187101 | D14: years
A15: 18-24 | B15: 10589 | C15: =GETPIVOTDATA("Total",$A$6,"Age Category","18-24")/GETPIVOTDATA("Total",$A$6) -> 0.1266111868 | D15: years
A16: 25-49 | B16: 18439 | C16: =GETPIVOTDATA("Total",$A$6,"Age Category","25-49")/GETPIVOTDATA("Total",$A$6) -> 0.2204725351 | D16: years
A17: 50-59 | B17: 7905 | C17: =GETPIVOTDATA("Total",$A$6,"Age Category","50-59")/GETPIVOTDATA("Total",$A$6) -> 0.09451897554 | D17: years
A18: 60+ | B18: 5950 | C18: =GETPIVOTDATA("Total",$A$6,"Age Category","60+")/GETPIVOTDATA("Total",$A$6) -> 0.07114331492 | D18: years
A19: Grand Total | B19: 83634 | C19: =SUM(C7:C18) -> 1

Sheet Demography(2)
A1: Breakdown of registered IDP population by State and Township - disaggregation by gender and age cohorts
A3: Sum of Total | B3: Column Labels | AC3: Percentage by Township | AD3: Percentage by State
B4: Females | N4: Females Total | O4: Males | AA4: Males Total | AB4: Grand Total
B5: Age Category | O5: Age Category
A6: State/Township | B6: 00-05 | C6: 06-11 | D6: 01 | E6: 02 | F6: 03-04 | G6: 5-10 | H6: 11-14 | I6: 15-17 | J6: 18-24 | K6: 25-49 | L6: 50-59 | M6: 60+ | O6: 00-05 | P6: 06-11 | Q6: 01 | R6: 02 | S6: 03-04 | T6: 5-10 | U6: 11-14 | V6: 15-17 | W6: 18-24 | X6: 25-49 | Y6: 50-59 | Z6: 60+
A7: Kachin | B7: 482 | C7: 531 | D7: 1032 | E7: 1211 | F7: 1788 | G7: 5664 | H7: 4970 | I7: 3609 | J7: 5312 | K7: 9216 | L7: 4253 | M7: 3171 | N7: 41239 | O7: 464 | P7: 513 | Q7: 1071 | R7: 1129 | S7: 1741 | T7: 5692 | U7: 4840 | V7: 3482 | W7: 4692 | X7: 8185 | Y7: 3373 | Z7: 2174 | AA7: 37356 | AB7: 78595 | AD7: =GETPIVOTDATA("Total",$A$3,"State","Kachin")/GETPIVOTDATA("Total",$A$3) -> 0.9397493842
A8: Bhamo | B8: 48 | C8: 60 | D8: 78 | E8: 108 | F8: 149 | G8: 436 | H8: 368 | I8: 351 | J8: 512 | K8: 713 | L8: 398 | M8: 325 | N8: 3546 | O8: 59 | P8: 50 | Q8: 75 | R8: 119 | S8: 156 | T8: 438 | U8: 417 | V8: 367 | W8: 522 | X8: 690 | Y8: 352 | Z8: 171 | AA8: 3416 | AB8: 6962 | AC8: =GETPIVOTDATA("Total",$A$3,"State","Kachin","Township","Bhamo")/GETPIVOTDATA("Total",$A$3) -> 0.08324365689
A9: Chipwi | B9: 20 | C9: 16 | D9: 40 | E9: 67 | F9: 103 | G9: 163 | H9: 166 | I9: 123 | J9: 151 | K9: 257 | L9: 140 | M9: 93 | N9: 1339 | O9: 14 | P9: 15 | Q9: 37 | R9: 49 | S9: 149 | T9: 168 | U9: 170 | V9: 112 | W9: 184 | X9: 226 | Y9: 97 | Z9: 54 | AA9: 1275 | AB9: 2614 | AC9: =GETPIVOTDATA("Total",$A$3,"State","Kachin","Township","Chipwi")/GETPIVOTDATA("Total",$A$3) -> 0.03125523113
A10: Hpakant | B10: 11 | C10: 23 | D10: 31 | E10: 43 | F10: 111 | G10: 285 | H10: 143 | I10: 155 | J10: 229 | K10: 422 | L10: 169 | M10: 89 | N10: 1711 | O10: 16 | P10: 20 | Q10: 46 | R10: 40 | S10: 94 | T10: 282 | U10: 143 | V10: 150 | W10: 221 | X10: 410 | Y10: 184 | Z10: 57 | AA10: 1663 | AB10: 3374 | AC10: =GETPIVOTDATA("Total",$A$3,"State","Kachin","Township","Hpakant")/GETPIVOTDATA("Total",$A$3) -> 0.04034244446
A11: Mansi | B11: 100 | C11: 97 | D11: 156 | E11: 154 | F11: 265 | G11: 979 | H11: 846 | I11: 477 | J11: 814 | K11: 1141 | L11: 855 | M11: 472 | N11: 6356 | O11: 76 | P11: 97 | Q11: 143 | R11: 132 | S11: 216 | T11: 849 | U11: 736 | V11: 545 | W11: 613 | X11: 893 | Y11: 647 | Z11: 296 | AA11: 5243 | AB11: 11599 | AC11: =GETPIVOTDATA("Total",$A$3,"State","Kachin","Township","Mansi")/GETPIVOTDATA("Total",$A$3) -> 0.1386876151
A12: Mogaung | B12: 0 | C12: 1 | D12: 7 | E12: 4 | F12: 6 | G12: 30 | H12: 8 | I12: 10 | J12: 7 | K12: 54 | L12: 10 | M12: 11 | N12: 148 | O12: 2 | P12: 2 | Q12: 5 | R12: 7 | S12: 9 | T12: 49 | U12: 23 | V12: 19 | W12: 11 | X12: 27 | Y12: 3 | Z12: 9 | AA12: 166 | AB12: 314 | AC12: =GETPIVOTDATA("Total",$A$3,"State","Kachin","Township","Mogaung")/GETPIVOTDATA("Total",$A$3) -> 0.00375445393
A13: Mohnyin | B13: 0 | C13: 0 | D13: 4 | E13: 4 | F13: 5 | G13: 13 | H13: 8 | I13: 10 | J13: 6 | K13: 24 | L13: 7 | M13: 5 | N13: 86 | O13: 0 | P13: 4 | Q13: 2 | R13: 2 | S13: 3 | T13: 18 | U13: 13 | V13: 9 | W13: 7 | X13: 13 | Y13: 2 | Z13: 3 | AA13: 76 | AB13: 162 | AC13: =GETPIVOTDATA("Total",$A$3,"State","Kachin","Township","Mohnyin")/GETPIVOTDATA("Total",$A$3) -> 0.001937011263
A14: Momauk | B14: 156 | C14: 137 | D14: 328 | E14: 374 | F14: 460 | G14: 1623 | H14: 1803 | I14: 1114 | J14: 1489 | K14: 2459 | L14: 1076 | M14: 946 | N14: 11965 | O14: 142 | P14: 122 | Q14: 330 | R14: 328 | S14: 467 | T14: 1719 | U14: 1797 | V14: 959 | W14: 1304 | X14: 2478 | Y14: 878 | Z14: 707 | AA14: 11231 | AB14: 23196 | AC14: =GETPIVOTDATA("Total",$A$3,"State","Kachin","Township","Momauk")/GETPIVOTDATA("Total",$A$3) -> 0.2773513165
A15: Myitkyina | B15: 35 | C15: 40 | D15: 53 | E15: 57 | F15: 163 | G15: 504 | H15: 375 | I15: 331 | J15: 460 | K15: 920 | L15: 299 | M15: 315 | N15: 3552 | O15: 30 | P15: 38 | Q15: 65 | R15: 78 | S15: 151 | T15: 541 | U15: 362 | V15: 279 | W15: 389 | X15: 823 | Y15: 189 | Z15: 177 | AA15: 3122 | AB15: 6674 | AC15: =GETPIVOTDATA("Total",$A$3,"State","Kachin","Township","Myitkyina")/GETPIVOTDATA("Total",$A$3) -> 0.07980008131
A16: Shwegu | B16: 4 | C16: 6 | D16: 4 | E16: 5 | F16: 19 | G16: 35 | H16: 27 | I16: 37 | J16: 49 | K16: 62 | L16: 10 | M16: 10 | N16: 268 | O16: 2 | P16: 3 | Q16: 5 | R16: 3 | S16: 5 | T16: 39 | U16: 31 | V16: 17 | W16: 42 | X16: 37 | Y16: 9 | Z16: 7 | AA16: 200 | AB16: 468 | AC16: =GETPIVOTDATA("Total",$A$3,"State","Kachin","Township","Shwegu")/GETPIVOTDATA("Total",$A$3) -> 0.005595810316
A17: Waingmaw | B17: 106 | C17: 149 | D17: 327 | E17: 388 | F17: 501 | G17: 1584 | H17: 1220 | I17: 995 | J17: 1583 | K17: 3126 | L17: 1284 | M17: 893 | N17: 12156 | O17: 117 | P17: 159 | Q17: 362 | R17: 367 | S17: 482 | T17: 1566 | U17: 1135 | V17: 1016 | W17: 1391 | X17: 2554 | Y17: 1005 | Z17: 687 | AA17: 10841 | AB17: 22997 | AC17: =GETPIVOTDATA("Total",$A$3,"State","Kachin","Township","Waingmaw")/GETPIVOTDATA("Total",$A$3) -> 0.2749719014
A18: Puta-O | B18: 2 | C18: 2 | D18: 4 | E18: 7 | F18: 6 | G18: 12 | H18: 6 | I18: 6 | J18: 12 | K18: 38 | L18: 5 | M18: 12 | N18: 112 | O18: 6 | P18: 3 | Q18: 1 | R18: 4 | S18: 9 | T18: 23 | U18: 13 | V18: 9 | W18: 8 | X18: 34 | Y18: 7 | Z18: 6 | AA18: 123 | AB18: 235 | AC18: =GETPIVOTDATA("Total",$A$3,"State","Kachin","Township","Puta-O")/GETPIVOTDATA("Total",$A$3) -> 0.002809862018
A19: Shan_North | B19: 25 | C19: 39 | D19: 35 | E19: 59 | F19: 159 | G19: 458 | H19: 320 | I19: 203 | J19: 293 | K19: 590 | L19: 160 | M19: 335 | N19: 2676 | O19: 26 | P19: 39 | Q19: 58 | R19: 48 | S19: 152 | T19: 460 | U19: 278 | V19: 173 | W19: 292 | X19: 448 | Y19: 119 | Z19: 270 | AA19: 2363 | AB19: 5039 | AD19: =GETPIVOTDATA("Total",$A$3,"State","Shan_North")/GETPIVOTDATA("Total",$A$3) -> 0.06025061578
A20: Kutkai | B20: 10 | C20: 16 | D20: 17 | E20: 31 | F20: 90 | G20: 245 | H20: 151 | I20: 70 | J20: 112 | K20: 294 | L20: 80 | M20: 64 | N20: 1180 | O20: 17 | P20: 25 | Q20: 27 | R20: 25 | S20: 87 | T20: 257 | U20: 129 | V20: 73 | W20: 126 | X20: 221 | Y20: 74 | Z20: 45 | AA20: 1106 | AB20: 2286 | AC20: =GETPIVOTDATA("Total",$A$3,"State","Shan_North","Township","Kutkai")/GETPIVOTDATA("Total",$A$3) -> 0.02733338116
A21: Manton | B21: 3 | C21: 3 | D21: 3 | E21: 3 | F21: 8 | G21: 29 | H21: 5 | I21: 25 | J21: 38 | K21: 45 | L21: 13 | M21: 9 | N21: 184 | O21: 2 | P21: 1 | Q21: 5 | R21: 0 | S21: 11 | T21: 24 | U21: 7 | V21: 14 | W21: 21 | X21: 46 | Y21: 6 | Z21: 8 | AA21: 145 | AB21: 329 | AC21: =GETPIVOTDATA("Total",$A$3,"State","Shan_North","Township","Manton")/GETPIVOTDATA("Total",$A$3) -> 0.003933806825
A22: Muse | B22: 2 | C22: 3 | D22: 3 | E22: 3 | F22: 14 | G22: 39 | H22: 35 | I22: 13 | J22: 10 | K22: 52 | L22: 5 | M22: 11 | N22: 190 | O22: 1 | P22: 1 | Q22: 4 | R22: 7 | S22: 16 | T22: 36 | U22: 25 | V22: 9 | W22: 6 | X22: 28 | Y22: 4 | Z22: 3 | AA22: 140 | AB22: 330 | AC22: =GETPIVOTDATA("Total",$A$3,"State","Shan_North","Township","Muse")/GETPIVOTDATA("Total",$A$3) -> 0.003945763685
A23: Namhkan | B23: 10 | C23: 17 | D23: 12 | E23: 22 | F23: 47 | G23: 140 | H23: 126 | I23: 91 | J23: 133 | K23: 193 | L23: 61 | M23: 250 | N23: 1102 | O23: 6 | P23: 12 | Q23: 22 | R23: 16 | S23: 37 | T23: 138 | U23: 113 | V23: 76 | W23: 139 | X23: 150 | Y23: 32 | Z23: 214 | AA23: 955 | AB23: 2057 | AC23: =GETPIVOTDATA("Total",$A$3,"State","Shan_North","Township","Namhkan")/GETPIVOTDATA("Total",$A$3) -> 0.0245952603
A24: Namtu | B24: 0 | C24: 0 | D24: 0 | E24: 0 | F24: 0 | G24: 5 | H24: 3 | I24: 4 | J24: 0 | K24: 6 | L24: 1 | M24: 1 | N24: 20 | O24: 0 | P24: 0 | Q24: 0 | R24: 0 | S24: 1 | T24: 5 | U24: 4 | V24: 1 | W24: 0 | X24: 3 | Y24: 3 | Z24: 0 | AA24: 17 | AB24: 37 | AC24: =GETPIVOTDATA("Total",$A$3,"State","Shan_North","Township","Namtu")/GETPIVOTDATA("Total",$A$3) -> 0.0004424038071
A25: Grand Total | B25: 507 | C25: 570 | D25: 1067 | E25: 1270 | F25: 1947 | G25: 6122 | H25: 5290 | I25: 3812 | J25: 5605 | K25: 9806 | L25: 4413 | M25: 3506 | N25: 43915 | O25: 490 | P25: 552 | Q25: 1129 | R25: 1177 | S25: 1893 | T25: 6152 | U25: 5118 | V25: 3655 | W25: 4984 | X25: 8633 | Y25: 3492 | Z25: 2444 | AA25: 39719 | AB25: 83634
A26: Percentage % | B26: =GETPIVOTDATA("Total",$A$3,"Age Category","00-05","Sex","Females","Age Category2","Age Category")/GETPIVOTDATA("Total",$A$3,"Sex","Females") -> 0.01154503017 | C26: =GETPIVOTDATA("Total",$A$3,"Age Category","06-11","Sex","Females","Age Category2","Age Category")/GETPIVOTDATA("Total",$A$3,"Sex","Females") -> 0.01297961972 | D26: =GETPIVOTDATA("Total",$A$3,"Age Category","01","Sex","Females","Age Category2","Age Category")/GETPIVOTDATA("Total",$A$3,"Sex","Females") -> 0.02429693727 | E26: =GETPIVOTDATA("Total",$A$3,"Age Category","02","Sex","Females","Age Category2","Age Category")/GETPIVOTDATA("Total",$A$3,"Sex","Females") -> 0.02891950359 | F26: =GETPIVOTDATA("Total",$A$3,"Age Category","03-04","Sex","Females","Age Category2","Age Category")/GETPIVOTDATA("Total",$A$3,"Sex","Females") -> 0.04433564841 | G26: =GETPIVOTDATA("Total",$A$3,"Age Category","5-10","Sex","Females","Age Category2","Age Category")/GETPIVOTDATA("Total",$A$3,"Sex","Females") -> 0.13940567 | H26: =GETPIVOTDATA("Total",$A$3,"Age Category","11-14","Sex","Females","Age Category2","Age Category")/GETPIVOTDATA("Total",$A$3,"Sex","Females") -> 0.1204599795 | I26: =GETPIVOTDATA("Total",$A$3,"Age Category","15-17","Sex","Females","Age Category2","Age Category")/GETPIVOTDATA("Total",$A$3,"Sex","Females") -> 0.08680405328 | J26: =GETPIVOTDATA("Total",$A$3,"Age Category","18-24","Sex","Females","Age Category2","Age Category")/GETPIVOTDATA("Total",$A$3,"Sex","Females") -> 0.1276329272 | K26: =GETPIVOTDATA("Total",$A$3,"Age Category","25-49","Sex","Females","Age Category2","Age Category")/GETPIVOTDATA("Total",$A$3,"Sex","Females") -> 0.2232950017 | L26: =GETPIVOTDATA("Total",$A$3,"Age Category","50-59","Sex","Females","Age Category2","Age Category")/GETPIVOTDATA("Total",$A$3,"Sex","Females") -> 0.1004895821 | M26: =GETPIVOTDATA("Total",$A$3,"Age Category","60+","Sex","Females","Age Category2","Age Category")/GETPIVOTDATA("Total",$A$3,"Sex","Females") -> 0.07983604691 | N26: =GETPIVOTDATA("Total",$A$3,"Sex","Females")/GETPIVOTDATA("Total",$A$3) -> 0.5250854915 | O26: =GETPIVOTDATA("Total",$A$3,"Age Category","00-05","Sex","Males","Age Category2","Age Category")/GETPIVOTDATA("Total",$A$3,"Sex","Males") -> 0.01233666507 | P26: =GETPIVOTDATA("Total",$A$3,"Age Category","06-11","Sex","Males","Age Category2","Age Category")/GETPIVOTDATA("Total",$A$3,"Sex","Males") -> 0.01389763086 | Q26: =GETPIVOTDATA("Total",$A$3,"Age Category","01","Sex","Males","Age Category2","Age Category")/GETPIVOTDATA("Total",$A$3,"Sex","Males") -> 0.0284246834 | R26: =GETPIVOTDATA("Total",$A$3,"Age Category","02","Sex","Males","Age Category2","Age Category")/GETPIVOTDATA("Total",$A$3,"Sex","Males") -> 0.02963317304 | S26: =GETPIVOTDATA("Total",$A$3,"Age Category","03-04","Sex","Males","Age Category2","Age Category")/GETPIVOTDATA("Total",$A$3,"Sex","Males") -> 0.04765981017 | T26: =GETPIVOTDATA("Total",$A$3,"Age Category","5-10","Sex","Males","Age Category2","Age Category")/GETPIVOTDATA("Total",$A$3,"Sex","Males") -> 0.1548880888 | U26: =GETPIVOTDATA("Total",$A$3,"Age Category","11-14","Sex","Males","Age Category2","Age Category")/GETPIVOTDATA("Total",$A$3,"Sex","Males") -> 0.1288552078 | V26: =GETPIVOTDATA("Total",$A$3,"Age Category","15-17","Sex","Males","Age Category2","Age Category")/GETPIVOTDATA("Total",$A$3,"Sex","Males") -> 0.09202145069 | W26: =GETPIVOTDATA("Total",$A$3,"Age Category","18-24","Sex","Males","Age Category2","Age Category")/GETPIVOTDATA("Total",$A$3,"Sex","Males") -> 0.1254815076 | X26: =GETPIVOTDATA("Total",$A$3,"Age Category","25-49","Sex","Males","Age Category2","Age Category")/GETPIVOTDATA("Total",$A$3,"Sex","Males") -> 0.2173518971 | Y26: =GETPIVOTDATA("Total",$A$3,"Age Category","50-59","Sex","Males","Age Category2","Age Category")/GETPIVOTDATA("Total",$A$3,"Sex","Males") -> 0.08791762129 | Z26: =GETPIVOTDATA("Total",$A$3,"Age Category","60+","Sex","Males","Age Category2","Age Category")/GETPIVOTDATA("Total",$A$3,"Sex","Males") -> 0.06153226416 | AA26: =GETPIVOTDATA("Total",$A$3,"Sex","Males")/GETPIVOTDATA("Total",$A$3) -> 0.4749145085 | AB26: 1

Sheet Demography_addition
A1: Breakdown of births, deaths, arrivals and departures (in last 6 months) - breakdown by State and Township | I1: Breakdown of majority of arrivals by location
A3: State/Township | B3: Birth | C3: Deaths | D3: Arrival HH | E3: Arrival Ind | F3: Departure HH | G3: Deaparture Ind | I3: State/Township | J3: Arrival HH | K3: Arrival Ind
A4: Kachin | B4: 580 | C4: 14 | D4: 141 | E4: 651 | F4: 255 | G4: 1230 | I4: Kachin | J4: 141 | K4: 651
A5: Bhamo | B5: 98 | C5: 3 | D5: 5 | E5: 29 | F5: 27 | G5: 104 | I5: Abroad | J5: 1 | K5: 5
A6: Chipwi | B6: 18 | D6: 3 | E6: 17 | F6: 7 | G6: 32 | I6: Host families | J6: 17 | K6: 107
A7: Hpakant | B7: 31 | C7: 3 | D7: 10 | E7: 42 | F7: 23 | G7: 94 | I7: Other IDP camps | J7: 70 | K7: 307
A8: Mansi | B8: 79 | D8: 15 | E8: 75 | F8: 23 | G8: 101 | I8: Place of origin | J8: 53 | K8: 232
A9: Mogaung | B9: 4 | C9: 1 | D9: 7 | E9: 33 | F9: 4 | G9: 8 | I9: (blank)
A10: Mohnyin | D10: 1 | E10: 7 | I10: Shan_North | J10: 19 | K10: 82
A11: Momauk | B11: 196 | D11: 32 | E11: 137 | F11: 9 | G11: 31 | I11: Other IDP camps | J11: 3 | K11: 11
A12: Myitkyina | B12: 38 | D12: 29 | E12: 130 | F12: 76 | G12: 372 | I12: Place of origin | J12: 16 | K12: 71
A13: Puta-O | B13: 5 | I13: (blank)
A14: Shwegu | B14: 5 | I14: Grand Total | J14: 160 | K14: 733
A15: Waingmaw | B15: 106 | C15: 7 | D15: 39 | E15: 181 | F15: 86 | G15: 488
A16: Shan_North | B16: 12 | D16: 19 | E16: 82 | F16: 30 | G16: 139
A17: Kutkai | B17: 6 | D17: 15 | E17: 66 | F17: 8 | G17: 38
A18: Manton | B18: 3 | F18: 1 | G18: 3
A19: Muse | B19: 3 | D19: 1 | E19: 5 | F19: 5 | G19: 13
A20: Namhkan | D20: 3 | E20: 11 | F20: 15 | G20: 81
A21: Namtu | F21: 1 | G21: 4
A22: Grand Total | B22: 592 | C22: 14 | D22: 160 | E22: 733 | F22: 285 | G22: 1369
A25: Breakdown of majority of departures by destination
A27: State/Township | B27: Departure HH | C27: Departure Ind
A28: Kachin | B28: 255 | C28: 1230
A29: Don't know | B29: 4 | C29: 12
A30: Host families | B30: 5 | C30: 22
A31: Other IDP camps | B31: 80 | C31: 350
A32: Other? | B32: 80 | C32: 390
A33: Place of origin | B33: 66 | C33: 374
A34: (blank) | B34: 20 | C34: 82
A35: Shan_North | B35: 30 | C35: 139
A36: Other IDP camps | B36: 10 | C36: 45
A37: Other? | B37: 10 | C37: 53
A38: Place of origin | B38: 8 | C38: 34
A39: (blank) | B39: 2 | C39: 7
A40: Grand Total | B40: 285 | C40: 1369

Sheet Data_Gap
A1: State | B1: Township | C1: Camp | D1: CP_PCode | E1: Accessibility | F1: Location_Type | G1: HS_ Cluster | H1: Group | I1: Priority | J1: Sector_Mimu | K1: Gap | L1: Other_text | M1: Comment
A2: Kachin | B2: Mogaung | C2: Nat Gyi Kone Baptist Church | D2: MMR001CMP079 | E2: GCA | F2: Urban | G2: 14 | H2: Camp resident - Children | I2: Priority 1 | J2: Education | K2: School materials / supplies
A3: Kachin | B3: Mogaung | C3: Nat Gyi Kone Baptist Church | D3: MMR001CMP079 | E3: GCA | F3: Urban | G3: 14 | H3: Camp resident - Children | I3: Priority 2 | J3: Protection | K3: Birth certificate
A4: Kachin | B4: Mogaung | C4: Nat Gyi Kone Baptist Church | D4: MMR001CMP079 | E4: GCA | F4: Urban | G4: 14 | H4: Camp resident - Children | I4: Priority 3 | J4: Health | K4: Medicines
A5: Kachin | B5: Mogaung | C5: Mang Hawng Baptist Church | D5: MMR001CMP077 | E5: GCA | F5: Mixed | G5: 18 | H5: Camp manager | I5: Priority 1 | J5: Food | K5: Cash/Money Assistance
A6: Kachin | B6: Mogaung | C6: Mang Hawng Baptist Church | D6: MMR001CMP077 | E6: GCA | F6: Mixed | G6: 18 | H6: Camp manager | I6: Priority 2 | J6: Education | K6: Vocational training
A7: Kachin | B7: Mogaung | C7: Mang Hawng Baptist Church | D7: MMR001CMP077 | E7: GCA | F7: Mixed | G7: 18 | H7: Camp manager | I7: Priority 3 | J7: Food | K7: Basic Food
A8: Kachin | B8: Mogaung | C8: Mang Hawng Baptist Church | D8: MMR001CMP077 | E8: GCA | F8: Mixed | G8: 18 | H8: Camp resident -Men | I8: Priority 1 | J8: NonFoodItems | K8: Blankets/Winter Clothing
A9: Kachin | B9: Mogaung | C9: Mang Hawng Baptist Church | D9: MMR001CMP077 | E9: GCA | F9: Mixed | G9: 18 | H9: Camp resident -Men | I9: Priority 2 | J9: Food | K9: Access to livelihood opportunities
A10: Kachin | B10: Mogaung | C10: Mang Hawng Baptist Church | D10: MMR001CMP077 | E10: GCA | F10: Mixed | G10: 18 | H10: Camp resident -Men | I10: Priority 3 | J10: NonFoodItems | K10: Kitchen Sets
A11: Kachin | B11: Mogaung | C11: Mang Hawng Baptist Church | D11: MMR001CMP077 | E11: GCA | F11: Mixed | G11: 18 | H11: Camp resident - women | I11: Priority 1 | J11: NonFoodItems | K11: Blankets/Winter Clothing
A12: Kachin | B12: Mogaung | C12: Mang Hawng Baptist Church | D12: MMR001CMP077 | E12: GCA | F12: Mixed | G12: 18 | H12: Camp resident - women | I12: Priority 2 | J12: Wash | K12: Women NFIs (sanitary pads, underwear, etc.)
A13: Kachin | B13: Mogaung | C13: Mang Hawng Baptist Church | D13: MMR001CMP077 | E13: GCA | F13: Mixed | G13: 18 | H13: Camp resident - women | I13: Priority 3 | J13: Food | K13: Access to livelihood opportunities
A14: Kachin | B14: Mogaung | C14: Mang Hawng Baptist Church | D14: MMR001CMP077 | E14: GCA | F14: Mixed | G14: 18 | H14: Camp resident - Children | I14: Priority 1 | J14: Food | K14: Complementary Food
A15: Kachin | B15: Mogaung | C15: Mang Hawng Baptist Church | D15: MMR001CMP077 | E15: GCA | F15: Mixed | G15: 18 | H15: Camp resident - Children | I15: Priority 2 | J15: Education | K15: School Facilities
A16: Kachin | B16: Mogaung | C16: Mang Hawng Baptist Church | D16: MMR001CMP077 | E16: GCA | F16: Mixed | G16: 18 | H16: Camp resident - Children | I16: Priority 3 | J16: Education | K16: School materials / supplies
A17: Kachin | B17: Myitkyina | C17: Kyun Pin Thar Baptist Church | D17: MMR001CMP013 | E17: GCA | F17: Urban | G17: 44 | H17: Camp manager | I17: Priority 1 | J17: Food | K17: Basic Food
A18: Kachin | B18: Myitkyina | C18: Kyun Pin Thar Baptist Church | D18: MMR001CMP013 | E18: GCA | F18: Urban | G18: 44 | H18: Camp manager | I18: Priority 2 | J18: Environment | K18: Firewood / fuel
A19: Kachin | B19: Myitkyina | C19: Kyun Pin Thar Baptist Church | D19: MMR001CMP013 | E19: GCA | F19: Urban | G19: 44 | H19: Camp manager | I19: Priority 3 | J19: Food | K19: Access to livelihood opportunities
A20: Kachin | B20: Myitkyina | C20: Kyun Pin Thar Baptist Church | D20: MMR001CMP013 | E20: GCA | F20: Urban | G20: 44 | H20: Camp resident -Men | I20: Priority 1 | J20: Food | K20: Access to livelihood opportunities
A21: Kachin | B21: Myitkyina | C21: Kyun Pin Thar Baptist Church | D21: MMR001CMP013 | E21: GCA | F21: Urban | G21: 44 | H21: Camp resident -Men | I21: Priority 2 | J21: Education | K21: School materials / supplies
A22: Kachin | B22: Myitkyina | C22: Kyun Pin Thar Baptist Church | D22: MMR001CMP013 | E22: GCA | F22: Urban | G22: 44 | H22: Camp resident -Men | I22: Priority 3 | J22: Education | K22: Transport to school
A23: Kachin | B23: Myitkyina | C23: Kyun Pin Thar Baptist Church | D23: MMR001CMP013 | E23: GCA | F23: Urban | G23: 44 | H23: Camp resident - women | I23: Priority 1 | J23: Food | K23: Cash/Money Assistance
A24: Kachin | B24: Myitkyina | C24: Kyun Pin Thar Baptist Church | D24: MMR001CMP013 | E24: GCA | F24: Urban | G24: 44 | H24: Camp resident - women | I24: Priority 2 | J24: NonFoodItems | K24: Kitchen Sets
A25: Kachin | B25: Myitkyina | C25: Kyun Pin Thar Baptist Church | D25: MMR001CMP013 | E25: GCA | F25: Urban | G25: 44 | H25: Camp resident - women | I25: Priority 3 | J25: Wash | K25: Women NFIs (sanitary pads, underwear, etc.)
A26: Kachin | B26: Myitkyina | C26: Kyun Pin Thar Baptist Church | D26: MMR001CMP013 | E26: GCA | F26: Urban | G26: 44 | H26: Camp resident - Children | I26: Priority 1 | J26: Education | K26: School materials / supplies
A27: Kachin | B27: Myitkyina | C27: Kyun Pin Thar Baptist Church | D27: MMR001CMP013 | E27: GCA | F27: Urban | G27: 44 | H27: Camp resident - Children | I27: Priority 2 | J27: Education | K27: Transport to school
A28: Kachin | B28: Myitkyina | C28: Kyun Pin Thar Baptist Church | D28: MMR001CMP013 | E28: GCA | F28: Urban | G28: 44 | H28: Camp resident - Children | I28: Priority 3 | J28: Health | K28: Medicines
A29: Kachin | B29: Myitkyina | C29: Tat Kone Galile Baptist Church | D29: MMR001CMP003 | E29: GCA | F29: Urban | G29: 32 | H29: Camp manager | I29: Priority 1 | J29: Food | K29: Basic Food
A30: Kachin | B30: Myitkyina | C30: Tat Kone Galile Baptist Church | D30: MMR001CMP003 | E30: GCA | F30: Urban | G30: 32 | H30: Camp manager | I30: Priority 2 | J30: Health | K30: Medicines
A31: Kachin | B31: Myitkyina | C31: Tat Kone Galile Baptist Church | D31: MMR001CMP003 | E31: GCA | F31: Urban | G31: 32 | H31: Camp manager | I31: Priority 3 | J31: Food | K31: Cash/Money Assistance
A32: Kachin | B32: Myitkyina | C32: Tat Kone Galile Baptist Church | D32: MMR001CMP003 | E32: GCA | F32: Urban | G32: 32 | H32: Camp resident -Men | I32: Priority 1 | J32: Shelter | K32: Individual Shelter/Houses
A33: Kachin | B33: Myitkyina | C33: Tat Kone Galile Baptist Church | D33: MMR001CMP003 | E33: GCA | F33: Urban | G33: 32 | H33: Camp resident -Men | I33: Priority 2
A34: Kachin | B34: Myitkyina | C34: Tat Kone Galile Baptist Church | D34: MMR001CMP003 | E34: GCA | F34: Urban | G34: 32 | H34: Camp resident -Men | I34: Priority 3
A35: Kachin | B35: Myitkyina | C35: Tat Kone Galile Baptist Church | D35: MMR001CMP003 | E35: GCA | F35: Urban | G35: 32 | H35: Camp resident - women | I35: Priority 1 | J35: Wash | K35: Hygiene Kits
A36: Kachin | B36: Myitkyina | C36: Tat Kone Galile Baptist Church | D36: MMR001CMP003 | E36: GCA | F36: Urban | G36: 32 | H36: Camp resident - women | I36: Priority 2 | J36: Education | K36: Transport to school
A37: Kachin | B37: Myitkyina | C37: Tat Kone Galile Baptist Church | D37: MMR001CMP003 | E37: GCA | F37: Urban | G37: 32 | H37: Camp resident - women | I37: Priority 3 | J37: Protection | K37: Household registration
A38: Kachin | B38: Myitkyina | C38: Tat Kone Galile Baptist Church | D38: MMR001CMP003 | E38: GCA | F38: Urban | G38: 32 | H38: Camp resident - Children | I38: Priority 1 | J38: Food | K38: Complementary Food
A39: Kachin | B39: Myitkyina | C39: Tat Kone Galile Baptist Church | D39: MMR001CMP003 | E39: GCA | F39: Urban | G39: 32 | H39: Camp resident - Children | I39: Priority 2 | J39: Education | K39: School materials / supplies
A40: Kachin | B40: Myitkyina | C40: Tat Kone Galile Baptist Church | D40: MMR001CMP003 | E40: GCA | F40: Urban | G40: 32 | H40: Camp resident - Children | I40: Priority 3 | J40: Protection | K40: Birth certificate
A41: Kachin | B41: Myitkyina | C41: Le Kone Ziun Baptist Church | D41: MMR001CMP014 | E41: GCA | F41: Urban | G41: 138 | H41: Camp manager | I41: Priority 1 | J41: Food | K41: Basic Food
A42: Kachin | B42: Myitkyina | C42: Le Kone Ziun Baptist Church | D42: MMR001CMP014 | E42: GCA | F42: Urban | G42: 138 | H42: Camp manager | I42: Priority 2 | J42: Education | K42: School materials / supplies
A43: Kachin | B43: Myitkyina | C43: Le Kone Ziun Baptist Church | D43: MMR001CMP014 | E43: GCA | F43: Urban | G43: 138 | H43: Camp manager | I43: Priority 3 | J43: Protection | K43: Conflict Management
A44: Kachin | B44: Myitkyina | C44: Le Kone Ziun Baptist Church | D44: MMR001CMP014 | E44: GCA | F44: Urban | G44: 138 | H44: Camp resident -Men | I44: Priority 1 | J44: Health | K44: Medical staff (doctor, nurse, etc)
A45: Kachin | B45: Myitkyina | C45: Le Kone Ziun Baptist Church | D45: MMR001CMP014 | E45: GCA | F45: Urban | G45: 138 | H45: Camp resident -Men | I45: Priority 2 | J45: Food | K45: Cash/Money Assistance
A46: Kachin | B46: Myitkyina | C46: Le Kone Ziun Baptist Church | D46: MMR001CMP014 | E46: GCA | F46: Urban | G46: 138 | H46: Camp resident -Men | I46: Priority 3 | J46: Protection | K46: Household registration
A47: Kachin | B47: Myitkyina | C47: Le Kone Ziun Baptist Church | D47: MMR001CMP014 | E47: GCA | F47: Urban | G47: 138 | H47: Camp resident - women | I47: Priority 1 | J47: NonFoodItems | K47: Kitchen Sets
A48: Kachin | B48: Myitkyina | C48: Le Kone Ziun Baptist Church | D48: MMR001CMP014 | E48: GCA | F48: Urban | G48: 138 | H48: Camp resident - women | I48: Priority 2 | J48: Food | K48: Cash/Money Assistance
A49: Kachin | B49: Myitkyina | C49: Le Kone Ziun Baptist Church | D49: MMR001CMP014 | E49: GCA | F49: Urban | G49: 138 | H49: Camp resident - women | I49: Priority 3 | J49: Education | K49: Vocational training
A50: Kachin | B50: Myitkyina | C50: Le Kone Ziun Baptist Church | D50: MMR001CMP014 | E50: GCA | F50: Urban | G50: 138 | H50: Camp resident - Children | I50: Priority 1 | J50: Food | K50: Complementary Food
A51: Kachin | B51: Myitkyina | C51: Le Kone Ziun Baptist Church | D51: MMR001CMP014 | E51: GCA | F51: Urban | G51: 138 | H51: Camp resident - Children | I51: Priority 2 | J51: Education | K51: School materials / supplies
A52: Kachin | B52: Myitkyina | C52: Le Kone Ziun Baptist Church | D52: MMR001CMP014 | E52: GCA | F52: Urban | G52: 138 | H52: Camp resident - Children | I52: Priority 3 | J52: Food | K52: Cash/Money Assistance
A53: Kachin | B53: Myitkyina | C53: Maliyang Baptist Church | D53: MMR001CMP016 | E53: GCA | F53: Urban | G53: 60 | H53: Camp manager | I53: Priority 1 | J53: Food | K53: Basic Food
A54: Kachin | B54: Myitkyina | C54: Maliyang Baptist Church | D54: MMR001CMP016 | E54: GCA | F54: Urban | G54: 60 | H54: Camp manager | I54: Priority 2 | J54: Food | K54: Cash/Money Assistance
A55: Kachin | B55: Myitkyina | C55: Maliyang Baptist Church | D55: MMR001CMP016 | E55: GCA | F55: Urban | G55: 60 | H55: Camp manager | I55: Priority 3 | J55: Protection | K55: Household registration
A56: Kachin | B56: Myitkyina | C56: Maliyang Baptist Church | D56: MMR001CMP016 | E56: GCA | F56: Urban | G56: 60 | H56: Camp resident -Men | I56: Priority 1 | J56: Food | K56: Access to livelihood opportunities
A57: Kachin | B57: Myitkyina | C57: Maliyang Baptist Church | D57: MMR001CMP016 | E57: GCA | F57: Urban | G57: 60 | H57: Camp resident -Men | I57: Priority 2 | J57: Food | K57: Basic Food
A58: Kachin | B58: Myitkyina | C58: Maliyang Baptist Church | D58: MMR001CMP016 | E58: GCA | F58: Urban | G58: 60 | H58: Camp resident -Men | I58: Priority 3 | J58: Food | K58: Access to livelihood opportunities
A59: Kachin | B59: Myitkyina | C59: Maliyang Baptist Church | D59: MMR001CMP016 | E59: GCA | F59: Urban | G59: 60 | H59: Camp resident - women | I59: Priority 1 | J59: Food | K59: Cash/Money Assistance
A60: Kachin | B60: Myitkyina | C60: Maliyang Baptist Church | D60: MMR001CMP016 | E60: GCA | F60: Urban | G60: 60 | H60: Camp resident - women | I60: Priority 2 | J60: Food | K60: Basic Food
A61: Kachin | B61: Myitkyina | C61: Maliyang Baptist Church | D61: MMR001CMP016 | E61: GCA | F61: Urban | G61: 60 | H61: Camp resident - women | I61: Priority 3 | J61: Health | K61: Medicines
A62: Kachin | B62: Myitkyina | C62: Maliyang Baptist Church | D62: MMR001CMP016 | E62: GCA | F62: Urban | G62: 60 | H62: Camp resident - Children | I62: Priority 1 | J62: Education | K62: School materials / supplies
A63: Kachin | B63: Myitkyina | C63: Maliyang Baptist Church | D63: MMR001CMP016 | E63: GCA | F63: Urban | G63: 60 | H63: Camp resident - Children | I63: Priority 2 | J63: Food | K63: Cash/Money Assistance
A64: Kachin | B64: Myitkyina | C64: Maliyang Baptist Church | D64: MMR001CMP016 | E64: GCA | F64: Urban | G64: 60 | H64: Camp resident - Children | I64: Priority 3 | J64: Food | K64: Complementary Food
A65: Kachin | B65: Puta-O | C65: Lung Sut | D65: MMR001CMP234 | E65: GCA | F65: Urban | G65: 59 | H65: Camp manager | I65: Priority 1 | J65: Food | K65: Basic Food
A66: Kachin | B66: Puta-O | C66: Lung Sut | D66: MMR001CMP234 | E66: GCA | F66: Urban | G66: 59 | H66: Camp manager | I66: Priority 2 | J66: Health | K66: Medicines
A67: Kachin | B67: Puta-O | C67: Lung Sut | D67: MMR001CMP234 | E67: GCA | F67: Urban | G67: 59 | H67: Camp manager | I67: Priority 3 | J67: Education | K67: Vocational training
A68: Kachin | B68: Puta-O | C68: Lung Sut | D68: MMR001CMP234 | E68: GCA | F68: Urban | G68: 59 | H68: Camp resident -Men | I68: Priority 1 | J68: Food | K68: Access to livelihood opportunities
A69: Kachin | B69: Puta-O | C69: Lung Sut | D69: MMR001CMP234 | E69: GCA | F69: Urban | G69: 59 | H69: Camp resident -Men | I69: Priority 2 | J69: Protection | K69: Legal aid and advice
A70: Kachin | B70: Puta-O | C70: Lung Sut | D70: MMR001CMP234 | E70: GCA | F70: Urban | G70: 59 | H70: Camp resident -Men | I70: Priority 3 | J70: Protection | K70: More awareness sessions on guiding principles of IDP
A71: Kachin | B71: Puta-O | C71: Lung Sut | D71: MMR001CMP234 | E71: GCA | F71: Urban | G71: 59 | H71: Camp resident - women | I71: Priority 1 | J71: Environment | K71: Firewood / fuel
A72: Kachin | B72: Puta-O | C72: Lung Sut | D72: MMR001CMP234 | E72: GCA | F72: Urban | G72: 59 | H72: Camp resident - women | I72: Priority 2 | J72: Wash | K72: Women NFIs (sanitary pads, underwear, etc.)
A73: Kachin | B73: Puta-O | C73: Lung Sut | D73: MMR001CMP234 | E73: GCA | F73: Urban | G73: 59 | H73: Camp resident - women | I73: Priority 3 | J73: Food | K73: Cash/Money Assistance
A74: Kachin | B74: Puta-O | C74: Lung Sut | D74: MMR001CMP234 | E74: GCA | F74: Urban | G74: 59 | H74: Camp resident - Children | I74: Priority 1 | J74: Food | K74: Complementary Food
A75: Kachin | B75: Puta-O | C75: Lung Sut | D75: MMR001CMP234 | E75: GCA | F75: Urban | G75: 59 | H75: Camp resident - Children | I75: Priority 2 | J75: Education | K75: Transport to school
A76: Kachin | B76: Puta-O | C76: Lung Sut | D76: MMR001CMP234 | E76: GCA | F76: Urban | G76: 59 | H76: Camp resident - Children | I76: Priority 3 | J76: Health | K76: Medicines
A77: Kachin | B77: Myitkyina | C77: Le Kone Bethlehem Church | D77: MMR001CMP015 | E77: GCA | F77: Urban | G77: 108 | H77: Camp manager | I77: Priority 1 | J77: Food | K77: Basic Food
A78: Kachin | B78: Myitkyina | C78: Le Kone Bethlehem Church | D78: MMR001CMP015 | E78: GCA | F78: Urban | G78: 108 | H78: Camp manager | I78: Priority 2 | J78: Food | K78: Complementary Food
A79: Kachin | B79: Myitkyina | C79: Le Kone Bethlehem Church | D79: MMR001CMP015 | E79: GCA | F79: Urban | G79: 108 | H79: Camp manager | I79: Priority 3 | J79: NonFoodItems | K79: Blankets/Winter Clothing
A80: Kachin | B80: Myitkyina | C80: Le Kone Bethlehem Church | D80: MMR001CMP015 | E80: GCA | F80: Urban | G80: 108 | H80: Camp resident -Men | I80: Priority 1 | J80: Food | K80: Basic Food
A81: Kachin | B81: Myitkyina | C81: Le Kone Bethlehem Church | D81: MMR001CMP015 | E81: GCA | F81: Urban | G81: 108 | H81: Camp resident -Men | I81: Priority 2 | J81: Environment | K81: Firewood / fuel
A82: Kachin | B82: Myitkyina | C82: Le Kone Bethlehem Church | D82: MMR001CMP015 | E82: GCA | F82: Urban | G82: 108 | H82: Camp resident -Men | I82: Priority 3 | J82: Education | K82: Vocational training
A83: Kachin | B83: Myitkyina | C83: Le Kone Bethlehem Church | D83: MMR001CMP015 | E83: GCA | F83: Urban | G83: 108 | H83: Camp resident - women | I83: Priority 1 | J83: Food | K83: Basic Food
A84: Kachin | B84: Myitkyina | C84: Le Kone Bethlehem Church | D84: MMR001CMP015 | E84: GCA | F84: Urban | G84: 108 | H84: Camp resident - women | I84: Priority 2 | J84: Shelter | K84: Communal building
A85: Kachin | B85: Myitkyina | C85: Le Kone Bethlehem Church | D85: MMR001CMP015 | E85: GCA | F85: Urban | G85: 108 | H85: Camp resident - women | I85: Priority 3 | J85: Health | K85: Health facility / Clinic
A86: Kachin | B86: Myitkyina | C86: Le Kone Bethlehem Church | D86: MMR001CMP015 | E86: GCA | F86: Urban | G86: 108 | H86: Camp resident - Children | I86: Priority 1 | J86: Food | K86: Basic Food
A87: Kachin | B87: Myitkyina | C87: Le Kone Bethlehem Church | D87: MMR001CMP015 | E87: GCA | F87: Urban | G87: 108 | H87: Camp resident - Children | I87: Priority 2 | J87: Wash | K87: Hygiene Kits
A88: Kachin | B88: Myitkyina | C88: Le Kone Bethlehem Church | D88: MMR001CMP015 | E88: GCA | F88: Urban | G88: 108 | H88: Camp resident - Children | I88: Priority 3 | J88: Education | K88: School materials / supplies
A89: Kachin | B89: Myitkyina | C89: Tat Kone Baptist Church | D89: MMR001CMP001 | E89: GCA | F89: Urban | G89: 54 | H89: Camp manager | I89: Priority 1 | J89: Food | K89: Basic Food
A90: Kachin | B90: Myitkyina | C90: Tat Kone Baptist Church | D90: MMR001CMP001 | E90: GCA | F90: Urban | G90: 54 | H90: Camp manager | I90: Priority 2 | J90: Environment | K90: Firewood / fuel
A91: Kachin | B91: Myitkyina | C91: Tat Kone Baptist Church | D91: MMR001CMP001 | E91: GCA | F91: Urban | G91: 54 | H91: Camp manager | I91: Priority 3 | J91: Wash | K91: Hygiene Kits
A92: Kachin | B92: Myitkyina | C92: Tat Kone Baptist Church | D92: MMR001CMP001 | E92: GCA | F92: Urban | G92: 54 | H92: Camp resident -Men | I92: Priority 1 | J92: Education | K92: School materials / supplies
A93: Kachin | B93: Myitkyina | C93: Tat Kone Baptist Church | D93: MMR001CMP001 | E93: GCA | F93: Urban | G93: 54 | H93: Camp resident -Men | I93: Priority 2 | J93: Education | K93: Vocational training
A94: Kachin | B94: Myitkyina | C94: Tat Kone Baptist Church | D94: MMR001CMP001 | E94: GCA | F94: Urban | G94: 54 | H94: Camp resident -Men | I94: Priority 3 | J94: Education | K94: School Facilities
A95: Kachin | B95: Myitkyina | C95: Tat Kone Baptist Church | D95: MMR001CMP001 | E95: GCA | F95: Urban | G95: 54 | H95: Camp resident - women | I95: Priority 1 | J95: Food | K95: Cash/Money Assistance
A96: Kachin | B96: Myitkyina | C96: Tat Kone Baptist Church | D96: MMR001CMP001 | E96: GCA | F96: Urban | G96: 54 | H96: Camp resident - women | I96: Priority 2 | J96: NonFoodItems | K96: Kitchen Sets
A97: Kachin | B97: Myitkyina | C97: Tat Kone Baptist Church | D97: MMR001CMP001 | E97: GCA | F97: Urban | G97: 54 | H97: Camp resident - women | I97: Priority 3 | J97: Wash | K97: Women NFIs (sanitary pads, underwear, etc.)
A98: Kachin | B98: Myitkyina | C98: Tat Kone Baptist Church | D98: MMR001CMP001 | E98: GCA | F98: Urban | G98: 54 | H98: Camp resident - Children | I98: Priority 1 | J98: Health | K98: Medicines
A99: Kachin | B99: Myitkyina | C99: Tat Kone Baptist Church | D99: MMR001CMP001 | E99: GCA | F99: Urban | G99: 54 | H99: Camp resident - Children | I99: Priority 2 | J99: Education | K99: School materials / supplies
A100: Kachin | B100: Myitkyina | C100: Tat Kone Baptist Church | D100: MMR001CMP001 | E100: GCA | F100: Urban | G100: 54 | H100: Camp resident - Children | I100: Priority 3 | J100: Education | K100: School Facilities
A101: Kachin | B101: Myitkyina | C101: Jan Mai Kawng Baptist Church | D101: MMR001CMP018 | E101: GCA | F101: Urban | G101: 203 | H101: Camp manager | I101: Priority 1 | J101: Food | K101: Basic Food
A102: Kachin | B102: Myitkyina | C102: Jan Mai Kawng Baptist Church | D102: MMR001CMP018 | E102: GCA | F102: Urban | G102: 203 | H102: Camp manager | I102: Priority 2 | J102: Food | K102: Cash/Money Assistance
A103: Kachin | B103: Myitkyina | C103: Jan Mai Kawng Baptist Church | D103: MMR001CMP018 | E103: GCA | F103: Urban | G103: 203 | H103: Camp manager | I103: Priority 3 | J103: Shelter | K103: Communal building
A104: Kachin | B104: Myitkyina | C104: Jan Mai Kawng Baptist Church | D104: MMR001CMP018 | E104: GCA | F104: Urban | G104: 203 | H104: Camp resident -Men | I104: Priority 1 | J104: Health | K104: Health facility / Clinic
A105: Kachin | B105: Myitkyina | C105: Jan Mai Kawng Baptist Church | D105: MMR001CMP018 | E105: GCA | F105: Urban | G105: 203 | H105: Camp resident -Men | I105: Priority 2 | J105: Environment | K105: Firewood / fuel
A106: Kachin | B106: Waingmaw | C106: Qtr. 2 Myoma Baptist Church | D106: MMR001CMP025 | E106: GCA | F106: Urban | G106: 65 | H106: Camp manager | I106: Priority 1 | J106: Food | K106: Basic Food
A107: Kachin | B107: Waingmaw | C107: Qtr. 2 Myoma Baptist Church | D107: MMR001CMP025 | E107: GCA | F107: Urban | G107: 65 | H107: Camp manager | I107: Priority 2 | J107: Wash | K107: Hygiene Kits
A108: Kachin | B108: Waingmaw | C108: Qtr. 2 Myoma Baptist Church | D108: MMR001CMP025 | E108: GCA | F108: Urban | G108: 65 | H108: Camp manager | I108: Priority 3 | J108: Health | K108: Health facility / Clinic
A109: Kachin | B109: Waingmaw | C109: Qtr. 2 Myoma Baptist Church | D109: MMR001CMP025 | E109: GCA | F109: Urban | G109: 65 | H109: Camp resident -Men | I109: Priority 1 | J109: Food | K109: Basic Food
A110: Kachin | B110: Waingmaw | C110: Qtr. 2 Myoma Baptist Church | D110: MMR001CMP025 | E110: GCA | F110: Urban | G110: 65 | H110: Camp resident -Men | I110: Priority 2 | J110: Environment | K110: Firewood / fuel
A111: Kachin | B111: Waingmaw | C111: Qtr. 2 Myoma Baptist Church | D111: MMR001CMP025 | E111: GCA | F111: Urban | G111: 65 | H111: Camp resident -Men | I111: Priority 3 | J111: Wash | K111: Hygiene Kits
A112: Kachin | B112: Waingmaw | C112: Qtr. 2 Myoma Baptist Church | D112: MMR001CMP025 | E112: GCA | F112: Urban | G112: 65 | H112: Camp resident - women | I112: Priority 1 | J112: Wash | K112: Hygiene Kits
A113: Kachin | B113: Waingmaw | C113: Qtr. 2 Myoma Baptist Church | D113: MMR001CMP025 | E113: GCA | F113: Urban | G113: 65 | H113: Camp resident - women | I113: Priority 2 | J113: Education | K113: School materials / supplies
A114: Kachin | B114: Waingmaw | C114: Qtr. 2 Myoma Baptist Church | D114: MMR001CMP025 | E114: GCA | F114: Urban | G114: 65 | H114: Camp resident - women | I114: Priority 3 | J114: Environment | K114: Firewood / fuel
A115: Kachin | B115: Waingmaw | C115: Qtr. 2 Myoma Baptist Church | D115: MMR001CMP025 | E115: GCA | F115: Urban | G115: 65 | H115: Camp resident - Children | I115: Priority 1 | J115: Food | K115: Basic Food
A116: Kachin | B116: Waingmaw | C116: Qtr. 2 Myoma Baptist Church | D116: MMR001CMP025 | E116: GCA | F116: Urban | G116: 65 | H116: Camp resident - Children | I116: Priority 2 | J116: Education | K116: School materials / supplies
A117: Kachin | B117: Waingmaw | C117: Qtr. 2 Myoma Baptist Church | D117: MMR001CMP025 | E117: GCA | F117: Urban | G117: 65 | H117: Camp resident - Children | I117: Priority 3 | J117: Wash | K117: Hygiene Kits
A118: Kachin | B118: Mohnyin | C118: Nawng Ing (Indawgyi) Baptist Church | D118: MMR001CMP152 | E118: GCA | F118: Rural | G118: 18 | H118: Camp manager | I118: Priority 1 | J118: Wash | K118: Hygiene Kits
A119: Kachin | B119: Mohnyin | C119: Nawng Ing (Indawgyi) Baptist Church | D119: MMR001CMP152 | E119: GCA | F119: Rural | G119: 18 | H119: Camp manager | I119: Priority 2 | J119: Health | K119: Medicines
A120: Kachin | B120: Mohnyin | C120: Nawng Ing (Indawgyi) Baptist Church | D120: MMR001CMP152 | E120: GCA | F120: Rural | G120: 18 | H120: Camp manager | I120: Priority 3 | J120: Food | K120: Cash/Money Assistance
A121: Kachin | B121: Mohnyin | C121: Nawng Ing (Indawgyi) Baptist Church | D121: MMR001CMP152 | E121: GCA | F121: Rural | G121: 18 | H121: Camp resident -Men | I121: Priority 1 | J121: Food | K121: Basic Food
A122: Kachin | B122: Mohnyin | C122: Nawng Ing (Indawgyi) Baptist Church | D122: MMR001CMP152 | E122: GCA | F122: Rural | G122: 18 | H122: Camp resident -Men | I122: Priority 2 | J122: Health | K122: Medicines
A123: Kachin | B123: Mohnyin | C123: Nawng Ing (Indawgyi) Baptist Church | D123: MMR001CMP152 | E123: GCA | F123: Rural | G123: 18 | H123: Camp resident -Men | I123: Priority 3 | J123: Food | K123: Cash/Money Assistance
A124: Kachin | B124: Mohnyin | C124: Nawng Ing (Indawgyi) Baptist Church | D124: MMR001CMP152 | E124: GCA | F124: Rural | G124: 18 | H124: Camp resident - women | I124: Priority 1 | J124: Food | K124: Cash/Money Assistance
A125: Kachin | B125: Mohnyin | C125: Nawng Ing (Indawgyi) Baptist Church | D125: MMR001CMP152 | E125: GCA | F125: Rural | G125: 18 | H125: Camp resident - women | I125: Priority 2 | J125: Wash | K125: Hygiene Kits
A126: Kachin | B126: Mohnyin | C126: Nawng Ing (Indawgyi) Baptist Church | D126: MMR001CMP152 | E126: GCA | F126: Rural | G126: 18 | H126: Camp resident - women | I126: Priority 3 | J126: Wash | K126: Women NFIs (sanitary pads, underwear, etc.)
A127: Kachin | B127: Mohnyin | C127: Nawng Ing (Indawgyi) Baptist Church | D127: MMR001CMP152 | E127: GCA | F127: Rural | G127: 18 | H127: Camp resident - Children | I127: Priority 1 | J127: Education | K127: School materials / supplies
A128: Kachin | B128: Mohnyin | C128: Nawng Ing (Indawgyi) Baptist Church | D128: MMR001CMP152 | E128: GCA | F128: Rural | G128: 18 | H128: Camp resident - Children | I128: Priority 2 | J128: Food | K128: Cash/Money Assistance
A129: Kachin | B129: Mohnyin | C129: Nawng Ing (Indawgyi) Baptist Church | D129: MMR001CMP152 | E129: GCA | F129: Rural | G129: 18 | H129: Camp resident - Children | I129: Priority 3 | J129: Wash | K129: Hygiene Kits
A130: Kachin | B130: Hpakant | C130: Hlaing Naung Baptist | D130: MMR001CMP148 | E130: GCA | F130: Mixed | G130: 14 | H130: Camp manager | I130: Priority 1 | J130: Food | K130: Basic Food
A131: Kachin | B131: Hpakant | C131: Hlaing Naung Baptist | D131: MMR001CMP148 | E131: GCA | F131: Mixed | G131: 14 | H131: Camp manager | I131: Priority 2 | J131: Education | K131: School materials / supplies
A132: Kachin | B132: Hpakant | C132: Hlaing Naung Baptist | D132: MMR001CMP148 | E132: GCA | F132: Mixed | G132: 14 | H132: Camp manager | I132: Priority 3 | J132: Health | K132: Medicines
A133: Kachin | B133: Hpakant | C133: Hlaing Naung Baptist | D133: MMR001CMP148 | E133: GCA | F133: Mixed | G133: 14 | H133: Camp resident -Men | I133: Priority 1 | J133: NonFoodItems | K133: Kitchen Sets
A134: Kachin | B134: Hpakant | C134: Hlaing Naung Baptist | D134: MMR001CMP148 | E134: GCA | F134: Mixed | G134: 14 | H134: Camp resident -Men | I134: Priority 2 | J134: Shelter | K134: Partitions within shelters
A135: Kachin | B135: Hpakant | C135: Hlaing Naung Baptist | D135: MMR001CMP148 | E135: GCA | F135: Mixed | G135: 14 | H135: Camp resident -Men | I135: Priority 3 | J135: Shelter | K135: Individual Shelter/Houses
A136: Kachin | B136: Hpakant | C136: Hlaing Naung Baptist | D136: MMR001CMP148 | E136: GCA | F136: Mixed | G136: 14 | H136: Camp resident - women | I136: Priority 1 | J136: Food | K136: Basic Food
A137: Kachin | B137: Hpakant | C137: Hlaing Naung Baptist | D137: MMR001CMP148 | E137: GCA | F137: Mixed | G137: 14 | H137: Camp resident - women | I137: Priority 2 | J137: Education | K137: School materials / supplies
A138: Kachin | B138: Hpakant | C138: Hlaing Naung Baptist | D138: MMR001CMP148 | E138: GCA | F138: Mixed | G138: 14 | H138: Camp resident - women | I138: Priority 3 | J138: Health | K138: Medicines
A139: Kachin | B139: Hpakant | C139: Hlaing Naung Baptist | D139: MMR001CMP148 | E139: GCA | F139: Mixed | G139: 14 | H139: Camp resident - Children | I139: Priority 1 | J139: Education | K139: School materials / supplies
A140: Kachin | B140: Hpakant | C140: Hlaing Naung Baptist | D140: MMR001CMP148 | E140: GCA | F140: Mixed | G140: 14 | H140: Camp resident - Children | I140: Priority 2 | J140: Education | K140: Transport to school
A141: Kachin | B141: Hpakant | C141: Hlaing Naung Baptist | D141: MMR001CMP148 | E141: GCA | F141: Mixed | G141: 14 | H141: Camp resident - Children | I141: Priority 3 | J141: Health | K141: Medicines
A142: Kachin | B142: Mogaung | C142: Kyun Taw Baptist Church | D142: MMR001CMP078 | E142: GCA | F142: Mixed | G142: 13 | H142: Camp manager | I142: Priority 1 | J142: Environment | K142: Firewood / fuel
A143: Kachin | B143: Mogaung | C143: Kyun Taw Baptist Church | D143: MMR001CMP078 | E143: GCA | F143: Mixed | G143: 13 | H143: Camp manager | I143: Priority 2 | J143: Food | K143: Access to livelihood opportunities
A144: Kachin | B144: Mogaung | C144: Kyun Taw Baptist Church | D144: MMR001CMP078 | E144: GCA | F144: Mixed | G144: 13 | H144: Camp manager | I144: Priority 3 | J144: Protection | K144: Legal aid and advice
A145: Kachin | B145: Mogaung | C145: Kyun Taw Baptist Church | D145: MMR001CMP078 | E145: GCA | F145: Mixed | G145: 13 | H145: Camp resident -Men | I145: Priority 1 | J145: Food | K145: Cash/Money Assistance
A146: Kachin | B146: Mogaung | C146: Kyun Taw Baptist Church | D146: MMR001CMP078 | E146: GCA | F146: Mixed | G146: 13 | H146: Camp resident -Men | I146: Priority 2 | J146: Food | K146: Access to livelihood opportunities
A147: Kachin | B147: Mogaung | C147: Kyun Taw Baptist Church | D147: MMR001CMP078 | E147: GCA | F147: Mixed | G147: 13 | H147: Camp resident -Men | I147: Priority 3 | J147: Protection | K147: More awareness sessions on guiding principles of IDP
A148: Kachin | B148: Mogaung | C148: Kyun Taw Baptist Church | D148: MMR001CMP078 | E148: GCA | F148: Mixed | G148: 13 | H148: Camp resident - women | I148: Priority 1 | J148: Food | K148: Cash/Money Assistance
A149: Kachin | B149: Mogaung | C149: Kyun Taw Baptist Church | D149: MMR001CMP078 | E149: GCA | F149: Mixed | G149: 13 | H149: Camp resident - women | I149: Priority 2 | J149: Food | K149: Basic Food
A150: Kachin | B150: Mogaung | C150: Kyun Taw Baptist Church | D150: MMR001CMP078 | E150: GCA | F150: Mixed | G150: 13 | H150: Camp resident - women | I150: Priority 3 | J150: Health | K150: Health facility / Clinic
A151: Kachin | B151: Mogaung | C151: Kyun Taw Baptist Church | D151: MMR001CMP078 | E151: GCA | F151: Mixed | G151: 13 | H151: Camp resident - Children | I151: Priority 1 | J151: Food | K151: Cash/Money Assistance
A152: Kachin | B152: Mogaung | C152: Kyun Taw Baptist Church | D152: MMR001CMP078 | E152: GCA | F152: Mixed | G152: 13 | H152: Camp resident - Children | I152: Priority 2 | J152: Education | K152: School materials / supplies
A153: Kachin | B153: Mogaung | C153: Kyun Taw Baptist Church | D153: MMR001CMP078 | E153: GCA | F153: Mixed | G153: 13 | H153: Camp resident - Children | I153: Priority 3 | J153: Wash | K153: Hygiene Kits
A154: Kachin | B154: Myitkyina | C154: Jan Mai Kawng Baptist Church | D154: MMR001CMP018 | E154: GCA | F154: Urban | G154: 203 | H154: Camp resident -Men | I154: Priority 3 | J154: Food | K154: Basic Food
A155: Kachin | B155: Myitkyina | C155: Jan Mai Kawng Baptist Church | D155: MMR001CMP018 | E155: GCA | F155: Urban | G155: 203 | H155: Camp resident - women | I155: Priority 1 | J155: Food | K155: Basic Food
A156: Kachin | B156: Myitkyina | C156: Jan Mai Kawng Baptist Church | D156: MMR001CMP018 | E156: GCA | F156: Urban | G156: 203 | H156: Camp resident - women | I156: Priority 2 | J156: Wash | K156: Bathing Spaces
A157: Kachin | B157: Myitkyina | C157: Jan Mai Kawng Baptist Church | D157: MMR001CMP018 | E157: GCA | F157: Urban | G157: 203 | H157: Camp resident - women | I157: Priority 3 | J157: Health | K157: Health facility / Clinic
A158: Kachin | B158: Myitkyina | C158: Jan Mai Kawng Baptist Church | D158: MMR001CMP018 | E158: GCA | F158: Urban | G158: 203 | H158: Camp resident - Children | I158: Priority 1 | J158: Education | K158: School materials / supplies
A159: Kachin | B159: Myitkyina | C159: Jan Mai Kawng Baptist Church | D159: MMR001CMP018 | E159: GCA | F159: Urban | G159: 203 | H159: Camp resident - Children | I159: Priority 2 | J159: Education | K159: Transport to school
A160: Kachin | B160: Myitkyina | C160: Jan Mai Kawng Baptist Church | D160: MMR001CMP018 | E160: GCA | F160: Urban | G160: 203 | H160: Camp resident - Children | I160: Priority 3 | J160: Health | K160: Health facility / Clinic
A161: Kachin | B161: Waingmaw | C161: Maina Lawang Baptist Church | D161: MMR001CMP039 | E161: GCA | F161: Rural | G161: 48 | H161: Camp manager | I161: Priority 1 | J161: Food | K161: Basic Food
A162: Kachin | B162: Waingmaw | C162: Maina Lawang Baptist Church | D162: MMR001CMP039 | E162: GCA | F162: Rural | G162: 48 | H162: Camp manager | I162: Priority 2 | J162: Wash | K162: Hygiene Kits
A163: Kachin | B163: Waingmaw | C163: Maina Lawang Baptist Church | D163: MMR001CMP039 | E163: GCA | F163: Rural | G163: 48 | H163: Camp manager | I163: Priority 3 | J163: Food | K163: Complementary Food
A164: Kachin | B164: Waingmaw | C164: Maina Lawang Baptist Church | D164: MMR001CMP039 | E164: GCA | F164: Rural | G164: 48 | H164: Camp resident -Men | I164: Priority 1 | J164: Food | K164: Access to livelihood opportunities
A165: Kachin | B165: Waingmaw | C165: Maina Lawang Baptist Church | D165: MMR001CMP039 | E165: GCA | F165: Rural | G165: 48 | H165: Camp resident -Men | I165: Priority 2 | J165: Food | K165: Cash/Money Assistance
A166: Kachin | B166: Waingmaw | C166: Maina Lawang Baptist Church | D166: MMR001CMP039 | E166: GCA | F166: Rural | G166: 48 | H166: Camp resident -Men | I166: Priority 3 | J166: Education | K166: School materials / supplies
A167: Kachin | B167: Waingmaw | C167: Maina Lawang Baptist Church | D167: MMR001CMP039 | E167: GCA | F167: Rural | G167: 48 | H167: Camp resident - women | I167: Priority 1 | J167: Food | K167: Cash/Money Assistance
A168: Kachin | B168: Waingmaw | C168: Maina Lawang Baptist Church | D168: MMR001CMP039 | E168: GCA | F168: Rural | G168: 48 | H168: Camp resident - women | I168: Priority 2 | J168: Education | K168: Vocational training
A169: Kachin | B169: Waingmaw | C169: Maina Lawang Baptist Church | D169: MMR001CMP039 | E169: GCA | F169: Rural | G169: 48 | H169: Camp resident - women | I169: Priority 3 | J169: Wash | K169: Hygiene Kits
A170: Kachin | B170: Waingmaw | C170: Maina Lawang Baptist Church | D170: MMR001CMP039 | E170: GCA | F170: Rural | G170: 48 | H170: Camp resident - Children | I170: Priority 1 | J170: Education | K170: School materials / supplies
A171: Kachin | B171: Waingmaw | C171: Maina Lawang Baptist Church | D171: MMR001CMP039 | E171: GCA | F171: Rural | G171: 48 | H171: Camp resident - Children | I171: Priority 2 | J171: Education | K171: School Facilities
A172: Kachin | B172: Waingmaw | C172: Maina Lawang Baptist Church | D172: MMR001CMP039 | E172: GCA | F172: Rural | G172: 48 | H172: Camp resident - Children | I172: Priority 3 | J172: Education | K172: Transport to school
A173: Kachin | B173: Myitkyina | C173: Shwe Zet Baptist Church | D173: MMR001CMP009 | E173: GCA | F173: Urban | G173: 90 | H173: Camp manager | I173: Priority 1 | J173: Health | K173: Medicines
A174: Kachin | B174: Myitkyina | C174: Shwe Zet Baptist Church | D174: MMR001CMP009 | E174: GCA | F174: Urban | G174: 90 | H174: Camp manager | I174: Priority 2 | J174: Education | K174: School materials / supplies
A175: Kachin | B175: Myitkyina | C175: Shwe Zet Baptist Church | D175: MMR001CMP009 | E175: GCA | F175: Urban | G175: 90 | H175: Camp manager | I175: Priority 3 | J175: Food | K175: Access to livelihood opportunities
A176: Kachin | B176: Myitkyina | C176: Shwe Zet Baptist Church | D176: MMR001CMP009 | E176: GCA | F176: Urban | G176: 90 | H176: Camp resident -Men | I176: Priority 1 | J176: Education | K176: Vocational training
A177: Kachin | B177: Myitkyina | C177: Shwe Zet Baptist Church | D177: MMR001CMP009 | E177: GCA | F177: Urban | G177: 90 | H177: Camp resident -Men | I177: Priority 2 | J177: Food | K177: Access to livelihood opportunities
A178: Kachin | B178: Myitkyina | C178: Shwe Zet Baptist Church | D178: MMR001CMP009 | E178: GCA | F178: Urban | G178: 90 | H178: Camp resident -Men | I178: Priority 3 | J178: Shelter | K178: Communal building
A179: Kachin | B179: Myitkyina | C179: Shwe Zet Baptist Church | D179: MMR001CMP009 | E179: GCA | F179: Urban | G179: 90 | H179: Camp resident - women | I179: Priority 1 | J179: Food | K179: Basic Food
A180: Kachin | B180: Myitkyina | C180: Shwe Zet Baptist Church | D180: MMR001CMP009 | E180: GCA | F180: Urban | G180: 90 | H180: Camp resident - women | I180: Priority 2 | J180: NonFoodItems | K180: Kitchen Sets
A181: Kachin | B181: Myitkyina | C181: Shwe Zet Baptist Church | D181: MMR001CMP009 | E181: GCA | F181: Urban | G181: 90 | H181: Camp resident - women | I181: Priority 3 | J181: Food | K181: Cash/Money Assistance
A182: Kachin | B182: Myitkyina | C182: Shwe Zet Baptist Church | D182: MMR001CMP009 | E182: GCA | F182: Urban | G182: 90 | H182: Camp resident - Children | I182: Priority 1 | J182: Food | K182: Complementary Food
A183: Kachin | B183: Myitkyina | C183: Shwe Zet Baptist Church | D183: MMR001CMP009 | E183: GCA | F183: Urban | G183: 90 | H183: Camp resident - Children | I183: Priority 2 | J183: Health | K183: Medicines
A184: Kachin | B184: Myitkyina | C184: Shwe Zet Baptist Church | D184: MMR001CMP009 | E184: GCA | F184: Urban | G184: 90 | H184: Camp resident - Children | I184: Priority 3 | J184: Education | K184: School materials / supplies
A185: Kachin | B185: Waingmaw | C185: Maina KBC (Bawng Ring) | D185: MMR001CMP040 | E185: GCA | F185: Rural | G185: 428 | H185: Camp manager | I185: Priority 1 | J185: Environment | K185: Firewood / fuel
A186: Kachin | B186: Waingmaw | C186: Maina KBC (Bawng Ring) | D186: MMR001CMP040 | E186: GCA | F186: Rural | G186: 428 | H186: Camp manager | I186: Priority 2 | J186: Food | K186: Basic Food
A187: Kachin | B187: Waingmaw | C187: Maina KBC (Bawng Ring) | D187: MMR001CMP040 | E187: GCA | F187: Rural | G187: 428 | H187: Camp manager | I187: Priority 3 | J187: Food | K187: Complementary Food
A188: Kachin | B188: Waingmaw | C188: Maina KBC (Bawng Ring) | D188: MMR001CMP040 | E188: GCA | F188: Rural | G188: 428 | H188: Camp resident -Men | I188: Priority 1 | J188: Food | K188: Access to livelihood opportunities
A189: Kachin | B189: Waingmaw | C189: Maina KBC (Bawng Ring) | D189: MMR001CMP040 | E189: GCA | F189: Rural | G189: 428 | H189: Camp resident -Men | I189: Priority 2 | J189: Food | K189: Basic Food
A190: Kachin | B190: Waingmaw | C190: Maina KBC (Bawng Ring) | D190: MMR001CMP040 | E190: GCA | F190: Rural | G190: 428 | H190: Camp resident -Men | I190: Priority 3 | J190: Protection | K190: Legal aid and advice
A191: Kachin | B191: Waingmaw | C191: Maina KBC (Bawng Ring) | D191: MMR001CMP040 | E191: GCA | F191: Rural | G191: 428 | H191: Camp resident - women | I191: Priority 1 | J191: Wash | K191: Hygiene Kits
A192: Kachin | B192: Waingmaw | C192: Maina KBC (Bawng Ring) | D192: MMR001CMP040 | E192: GCA | F192: Rural | G192: 428 | H192: Camp resident - women | I192: Priority 2 | J192: Food | K192: Basic Food
A193: Kachin | B193: Waingmaw | C193: Maina KBC (Bawng Ring) | D193: MMR001CMP040 | E193: GCA | F193: Rural | G193: 428 | H193: Camp resident - women | I193: Priority 3 | J193: Protection | K193: More awareness sessions on guiding principles of IDP
A194: Kachin | B194: Waingmaw | C194: Maina KBC (Bawng Ring) | D194: MMR001CMP040 | E194: GCA | F194: Rural | G194: 428 | H194: Camp resident - Children | I194: Priority 1 | J194: Food | K194: Cash/Money Assistance
A195: Kachin | B195: Waingmaw | C195: Maina KBC (Bawng Ring) | D195: MMR001CMP040 | E195: GCA | F195: Rural | G195: 428 | H195: Camp resident - Children | I195: Priority 2 | J195: Food | K195: Basic Food
A196: Kachin | B196: Waingmaw | C196: Maina KBC (Bawng Ring) | D196: MMR001CMP040 | E196: GCA | F196: Rural | G196: 428 | H196: Camp resident - Children | I196: Priority 3 | J196: Food | K196: Complementary Food
A197: Kachin | B197: Waingmaw | C197: Mading Baptist Church | D197: MMR001CMP027 | E197: GCA | F197: Rural | G197: 22 | H197: Camp manager | I197: Priority 1 | J197: Food | K197: Basic Food
A198: Kachin | B198: Waingmaw | C198: Mading Baptist Church | D198: MMR001CMP027 | E198: GCA | F198: Rural | G198: 22 | H198: Camp manager | I198: Priority 2 | J198: Environment | K198: Firewood / fuel
A199: Kachin | B199: Waingmaw | C199: Mading Baptist Church | D199: MMR001CMP027 | E199: GCA | F199: Rural | G199: 22 | H199: Camp manager | I199: Priority 3 | J199: Wash | K199: Hygiene Kits
A200: Kachin | B200: Waingmaw | C200: Mading Baptist Church | D200: MMR001CMP027 | E200: GCA | F200: Rural | G200: 22 | H200: Camp resident -Men | I200: Priority 1 | J200: Food | K200: Basic Food
... 1337 more rows

Sheet Gap
A1: Breakdown of "top three" identified priority gaps
A3: Priority Gaps | B3: Count of CP_PCode
A4: Access to livelihood opportunities | B4: 119
A5: Basic Food | B5: 216
A6: Bathing Spaces | B6: 12
A7: Blankets/Winter Clothing | B7: 37
A8: Cash/Money Assistance | B8: 180
A9: Communal building | B9: 14
A10: Complementary Food | B10: 73
A11: Firewood / fuel | B11: 74
A12: Health facility / Clinic | B12: 41
A13: Hygiene Kits | B13: 92
A14: Individual Shelter/Houses | B14: 31
A15: Kitchen Sets | B15: 43
A16: Latrines/Toilets | B16: 13
A17: Legal aid and advice | B17: 20
A18: Medical staff (doctor, nurse, etc) | B18: 26
A19: Medicines | B19: 62
A20: Other | B20: 16
A21: Partitions within shelters | B21: 18
A22: School Facilities | B22: 27
A23: School materials / supplies | B23: 135
A24: Transport to school | B24: 56
A25: Vocational training | B25: 74
A26: Well / water tank | B26: 27
A27: Women NFIs (sanitary pads, underwear, etc.) | B27: 40
A28: Birth certificate | B28: 17
A29: Household registration | B29: 32
A30: Conflict Management | B30: 13
A31: More awareness sessions on guiding principles of IDP | B31: 16
A32: Identity documents | B32: 5
A33: (blank) | B33: 7
A34: Grand Total | B34: 1536

Sheet Data_Livelihood
A1: State | B1: Township | C1: Camp | D1: CP_PCode | E1: Accessibility | F1: Location_Type | G1: HS_Cluster | H1: Sex | I1: Priority | J1: Period | K1: Livelihood | L1: Other_text | M1: Comment
A2: Kachin | B2: Waingmaw | C2: Maina KBC (Bawng Ring) | D2: MMR001CMP040 | E2: GCA | F2: Rural | G2: 428 | H2: M | I2: P2 | J2: After Displacement | K2: Daily wage worker
A3: Kachin | B3: Myitkyina | C3: Tat Kone Baptist Church | D3: MMR001CMP001 | E3: GCA | F3: Urban | G3: 54 | H3: F | I3: P1 | J3: Before Displacement | K3: Farming by own land
A4: Kachin | B4: Myitkyina | C4: Tat Kone Baptist Church | D4: MMR001CMP001 | E4: GCA | F4: Urban | G4: 54 | H4: M | I4: P1 | J4: Before Displacement | K4: Livestock
A5: Kachin | B5: Myitkyina | C5: Tat Kone Baptist Church | D5: MMR001CMP001 | E5: GCA | F5: Urban | G5: 54 | H5: F | I5: P2 | J5: Before Displacement | K5: Livestock
A6: Kachin | B6: Myitkyina | C6: Tat Kone Baptist Church | D6: MMR001CMP001 | E6: GCA | F6: Urban | G6: 54 | H6: M | I6: P2 | J6: Before Displacement | K6: Daily wage worker
A7: Kachin | B7: Waingmaw | C7: Qtr. 2 Myoma Baptist Church | D7: MMR001CMP025 | E7: GCA | F7: Urban | G7: 65 | H7: F | I7: P1 | J7: After Displacement | K7: Daily wage worker
A8: Kachin | B8: Waingmaw | C8: Qtr. 2 Myoma Baptist Church | D8: MMR001CMP025 | E8: GCA | F8: Urban | G8: 65 | H8: F | I8: P2 | J8: After Displacement | K8: Livestock
A9: Kachin | B9: Waingmaw | C9: Qtr. 2 Myoma Baptist Church | D9: MMR001CMP025 | E9: GCA | F9: Urban | G9: 65 | H9: M | I9: P1 | J9: After Displacement | K9: Daily wage worker
A10: Kachin | B10: Waingmaw | C10: Qtr. 2 Myoma Baptist Church | D10: MMR001CMP025 | E10: GCA | F10: Urban | G10: 65 | H10: M | I10: P2 | J10: After Displacement | K10: Mining
A11: Kachin | B11: Mohnyin | C11: Nawng Ing (Indawgyi) Baptist Church | D11: MMR001CMP152 | E11: GCA | F11: Rural | G11: 18 | H11: F | I11: P1 | J11: After Displacement | K11: Livestock
A12: Kachin | B12: Mohnyin | C12: Nawng Ing (Indawgyi) Baptist Church | D12: MMR001CMP152 | E12: GCA | F12: Rural | G12: 18 | H12: F | I12: P2 | J12: After Displacement | K12: Daily wage worker
A13: Kachin | B13: Mohnyin | C13: Nawng Ing (Indawgyi) Baptist Church | D13: MMR001CMP152 | E13: GCA | F13: Rural | G13: 18 | H13: M | I13: P1 | J13: After Displacement | K13: Mining
A14: Kachin | B14: Mohnyin | C14: Nawng Ing (Indawgyi) Baptist Church | D14: MMR001CMP152 | E14: GCA | F14: Rural | G14: 18 | H14: M | I14: P2 | J14: After Displacement | K14: Daily wage worker
A15: Kachin | B15: Hpakant | C15: Hlaing Naung Baptist | D15: MMR001CMP148 | E15: GCA | F15: Mixed | G15: 14 | H15: F | I15: P1 | J15: After Displacement | K15: Daily wage worker
A16: Kachin | B16: Hpakant | C16: Hlaing Naung Baptist | D16: MMR001CMP148 | E16: GCA | F16: Mixed | G16: 14 | H16: F | I16: P2 | J16: After Displacement | K16: Livestock
A17: Kachin | B17: Hpakant | C17: Hlaing Naung Baptist | D17: MMR001CMP148 | E17: GCA | F17: Mixed | G17: 14 | H17: M | I17: P1 | J17: After Displacement | K17: Livestock
A18: Kachin | B18: Hpakant | C18: Hlaing Naung Baptist | D18: MMR001CMP148 | E18: GCA | F18: Mixed | G18: 14 | H18: M | I18: P2 | J18: After Displacement | K18: Daily wage worker
A19: Kachin | B19: Mogaung | C19: Kyun Taw Baptist Church | D19: MMR001CMP078 | E19: GCA | F19: Mixed | G19: 13 | H19: F | I19: P1 | J19: After Displacement | K19: Livestock
A20: Kachin | B20: Mogaung | C20: Kyun Taw Baptist Church | D20: MMR001CMP078 | E20: GCA | F20: Mixed | G20: 13 | H20: F | I20: P2 | J20: After Displacement | K20: Daily wage worker
A21: Kachin | B21: Mogaung | C21: Kyun Taw Baptist Church | D21: MMR001CMP078 | E21: GCA | F21: Mixed | G21: 13 | H21: M | I21: P1 | J21: After Displacement | K21: Livestock
A22: Kachin | B22: Mogaung | C22: Kyun Taw Baptist Church | D22: MMR001CMP078 | E22: GCA | F22: Mixed | G22: 13 | H22: M | I22: P2 | J22: After Displacement | K22: Daily wage worker
A23: Kachin | B23: Mogaung | C23: Nat Gyi Kone Baptist Church | D23: MMR001CMP079 | E23: GCA | F23: Urban | G23: 14 | H23: F | I23: P1 | J23: After Displacement | K23: Livestock
A24: Kachin | B24: Mogaung | C24: Nat Gyi Kone Baptist Church | D24: MMR001CMP079 | E24: GCA | F24: Urban | G24: 14 | H24: F | I24: P2 | J24: After Displacement | K24: Manucfacturing (Non Food)
A25: Kachin | B25: Mogaung | C25: Nat Gyi Kone Baptist Church | D25: MMR001CMP079 | E25: GCA | F25: Urban | G25: 14 | H25: M | I25: P1 | J25: After Displacement | K25: Daily wage worker
A26: Kachin | B26: Mogaung | C26: Nat Gyi Kone Baptist Church | D26: MMR001CMP079 | E26: GCA | F26: Urban | G26: 14 | H26: M | I26: P2 | J26: After Displacement | K26: Farming by Land Tenancy
A27: Kachin | B27: Mogaung | C27: Mang Hawng Baptist Church | D27: MMR001CMP077 | E27: GCA | F27: Mixed | G27: 18 | H27: F | I27: P1 | J27: After Displacement | K27: Livestock
A28: Kachin | B28: Mogaung | C28: Mang Hawng Baptist Church | D28: MMR001CMP077 | E28: GCA | F28: Mixed | G28: 18 | H28: F | I28: P2 | J28: After Displacement | K28: Daily wage worker
A29: Kachin | B29: Mogaung | C29: Mang Hawng Baptist Church | D29: MMR001CMP077 | E29: GCA | F29: Mixed | G29: 18 | H29: M | I29: P1 | J29: After Displacement | K29: Daily wage worker
A30: Kachin | B30: Mogaung | C30: Mang Hawng Baptist Church | D30: MMR001CMP077 | E30: GCA | F30: Mixed | G30: 18 | H30: M | I30: P2 | J30: After Displacement | K30: Mining
A31: Kachin | B31: Myitkyina | C31: Kyun Pin Thar Baptist Church | D31: MMR001CMP013 | E31: GCA | F31: Urban | G31: 44 | H31: F | I31: P1 | J31: After Displacement | K31: Daily wage worker
A32: Kachin | B32: Myitkyina | C32: Kyun Pin Thar Baptist Church | D32: MMR001CMP013 | E32: GCA | F32: Urban | G32: 44 | H32: F | I32: P2 | J32: After Displacement | K32: Trade (buying and selling)
A33: Kachin | B33: Myitkyina | C33: Kyun Pin Thar Baptist Church | D33: MMR001CMP013 | E33: GCA | F33: Urban | G33: 44 | H33: M | I33: P1 | J33: After Displacement | K33: Daily wage worker
A34: Kachin | B34: Myitkyina | C34: Kyun Pin Thar Baptist Church | D34: MMR001CMP013 | E34: GCA | F34: Urban | G34: 44 | H34: M | I34: P2 | J34: After Displacement | K34: Farming by Land Tenancy
A35: Kachin | B35: Myitkyina | C35: Tat Kone Galile Baptist Church | D35: MMR001CMP003 | E35: GCA | F35: Urban | G35: 32 | H35: F | I35: P1 | J35: After Displacement | K35: Daily wage worker
A36: Kachin | B36: Myitkyina | C36: Tat Kone Galile Baptist Church | D36: MMR001CMP003 | E36: GCA | F36: Urban | G36: 32 | H36: F | I36: P2 | J36: After Displacement | K36: Livestock
A37: Kachin | B37: Myitkyina | C37: Tat Kone Galile Baptist Church | D37: MMR001CMP003 | E37: GCA | F37: Urban | G37: 32 | H37: M | I37: P1 | J37: After Displacement | K37: Daily wage worker
A38: Kachin | B38: Myitkyina | C38: Tat Kone Galile Baptist Church | D38: MMR001CMP003 | E38: GCA | F38: Urban | G38: 32 | H38: M | I38: P2 | J38: After Displacement | K38: Other
A39: Kachin | B39: Waingmaw | C39: Maina Lawang Baptist Church | D39: MMR001CMP039 | E39: GCA | F39: Rural | G39: 48 | H39: F | I39: P2 | J39: Before Displacement | K39: None
A40: Kachin | B40: Waingmaw | C40: Maina Lawang Baptist Church | D40: MMR001CMP039 | E40: GCA | F40: Rural | G40: 48 | H40: M | I40: P1 | J40: Before Displacement | K40: Farming by own land
A41: Kachin | B41: Waingmaw | C41: Maina Lawang Baptist Church | D41: MMR001CMP039 | E41: GCA | F41: Rural | G41: 48 | H41: F | I41: P1 | J41: Before Displacement | K41: Daily wage worker
A42: Kachin | B42: Waingmaw | C42: Maina Lawang Baptist Church | D42: MMR001CMP039 | E42: GCA | F42: Rural | G42: 48 | H42: M | I42: P2 | J42: Before Displacement | K42: Daily wage worker
A43: Kachin | B43: Waingmaw | C43: Maina KBC (Bawng Ring) | D43: MMR001CMP040 | E43: GCA | F43: Rural | G43: 428 | H43: F | I43: P1 | J43: Before Displacement | K43: Farming by own land
A44: Kachin | B44: Waingmaw | C44: Maina KBC (Bawng Ring) | D44: MMR001CMP040 | E44: GCA | F44: Rural | G44: 428 | H44: M | I44: P2 | J44: Before Displacement | K44: Daily wage worker
A45: Kachin | B45: Waingmaw | C45: Maina KBC (Bawng Ring) | D45: MMR001CMP040 | E45: GCA | F45: Rural | G45: 428 | H45: F | I45: P2 | J45: Before Displacement | K45: Livestock
A46: Kachin | B46: Waingmaw | C46: Maina KBC (Bawng Ring) | D46: MMR001CMP040 | E46: GCA | F46: Rural | G46: 428 | H46: M | I46: P1 | J46: Before Displacement | K46: Farming by own land
A47: Kachin | B47: Myitkyina | C47: Tat Kone Galile Baptist Church | D47: MMR001CMP003 | E47: GCA | F47: Urban | G47: 32 | H47: M | I47: P1 | J47: Before Displacement | K47: Farming by own land
A48: Kachin | B48: Myitkyina | C48: Tat Kone Galile Baptist Church | D48: MMR001CMP003 | E48: GCA | F48: Urban | G48: 32 | H48: M | I48: P2 | J48: Before Displacement | K48: Daily wage worker
A49: Kachin | B49: Myitkyina | C49: Tat Kone Galile Baptist Church | D49: MMR001CMP003 | E49: GCA | F49: Urban | G49: 32 | H49: F | I49: P2 | J49: Before Displacement | K49: Trade (buying and selling)
A50: Kachin | B50: Myitkyina | C50: Tat Kone Galile Baptist Church | D50: MMR001CMP003 | E50: GCA | F50: Urban | G50: 32 | H50: F | I50: P1 | J50: Before Displacement | K50: Farming by own land
A51: Kachin | B51: Myitkyina | C51: Shwe Zet Baptist Church | D51: MMR001CMP009 | E51: GCA | F51: Urban | G51: 90 | H51: M | I51: P1 | J51: Before Displacement | K51: Farming by own land
A52: Kachin | B52: Myitkyina | C52: Shwe Zet Baptist Church | D52: MMR001CMP009 | E52: GCA | F52: Urban | G52: 90 | H52: M | I52: P2 | J52: Before Displacement | K52: Mining
A53: Kachin | B53: Myitkyina | C53: Shwe Zet Baptist Church | D53: MMR001CMP009 | E53: GCA | F53: Urban | G53: 90 | H53: F | I53: P2 | J53: Before Displacement | K53: Livestock
A54: Kachin | B54: Myitkyina | C54: Shwe Zet Baptist Church | D54: MMR001CMP009 | E54: GCA | F54: Urban | G54: 90 | H54: F | I54: P1 | J54: Before Displacement | K54: Farming by own land
A55: Kachin | B55: Myitkyina | C55: Kyun Pin Thar Baptist Church | D55: MMR001CMP013 | E55: GCA | F55: Urban | G55: 44 | H55: F | I55: P2 | J55: Before Displacement | K55: Trade (buying and selling)
A56: Kachin | B56: Myitkyina | C56: Kyun Pin Thar Baptist Church | D56: MMR001CMP013 | E56: GCA | F56: Urban | G56: 44 | H56: M | I56: P1 | J56: Before Displacement | K56: Daily wage worker
A57: Kachin | B57: Myitkyina | C57: Kyun Pin Thar Baptist Church | D57: MMR001CMP013 | E57: GCA | F57: Urban | G57: 44 | H57: M | I57: P2 | J57: Before Displacement | K57: Farming by own land
A58: Kachin | B58: Myitkyina | C58: Kyun Pin Thar Baptist Church | D58: MMR001CMP013 | E58: GCA | F58: Urban | G58: 44 | H58: F | I58: P1 | J58: Before Displacement | K58: Farming by own land
A59: Kachin | B59: Myitkyina | C59: Le Kone Ziun Baptist Church | D59: MMR001CMP014 | E59: GCA | F59: Urban | G59: 138 | H59: M | I59: P2 | J59: Before Displacement | K59: Livestock
A60: Kachin | B60: Myitkyina | C60: Le Kone Ziun Baptist Church | D60: MMR001CMP014 | E60: GCA | F60: Urban | G60: 138 | H60: F | I60: P2 | J60: Before Displacement | K60: Livestock
A61: Kachin | B61: Myitkyina | C61: Le Kone Ziun Baptist Church | D61: MMR001CMP014 | E61: GCA | F61: Urban | G61: 138 | H61: F | I61: P1 | J61: Before Displacement | K61: Farming by own land
A62: Kachin | B62: Myitkyina | C62: Le Kone Ziun Baptist Church | D62: MMR001CMP014 | E62: GCA | F62: Urban | G62: 138 | H62: M | I62: P1 | J62: Before Displacement | K62: Farming by own land
A63: Kachin | B63: Myitkyina | C63: Le Kone Bethlehem Church | D63: MMR001CMP015 | E63: GCA | F63: Urban | G63: 108 | H63: F | I63: P2 | J63: Before Displacement | K63: Livestock
A64: Kachin | B64: Myitkyina | C64: Le Kone Bethlehem Church | D64: MMR001CMP015 | E64: GCA | F64: Urban | G64: 108 | H64: M | I64: P1 | J64: Before Displacement | K64: Farming by own land
A65: Kachin | B65: Myitkyina | C65: Le Kone Bethlehem Church | D65: MMR001CMP015 | E65: GCA | F65: Urban | G65: 108 | H65: M | I65: P2 | J65: Before Displacement | K65: Manufacturing (Food processing)
A66: Kachin | B66: Myitkyina | C66: Le Kone Bethlehem Church | D66: MMR001CMP015 | E66: GCA | F66: Urban | G66: 108 | H66: F | I66: P1 | J66: Before Displacement | K66: Farming by own land
A67: Kachin | B67: Myitkyina | C67: Maliyang Baptist Church | D67: MMR001CMP016 | E67: GCA | F67: Urban | G67: 60 | H67: F | I67: P1 | J67: Before Displacement | K67: Farming by own land
A68: Kachin | B68: Myitkyina | C68: Maliyang Baptist Church | D68: MMR001CMP016 | E68: GCA | F68: Urban | G68: 60 | H68: M | I68: P1 | J68: Before Displacement | K68: Farming by own land
A69: Kachin | B69: Myitkyina | C69: Maliyang Baptist Church | D69: MMR001CMP016 | E69: GCA | F69: Urban | G69: 60 | H69: F | I69: P2 | J69: Before Displacement | K69: Livestock
A70: Kachin | B70: Myitkyina | C70: Maliyang Baptist Church | D70: MMR001CMP016 | E70: GCA | F70: Urban | G70: 60 | H70: M | I70: P2 | J70: Before Displacement | K70: Mining
A71: Kachin | B71: Myitkyina | C71: Jan Mai Kawng Baptist Church | D71: MMR001CMP018 | E71: GCA | F71: Urban | G71: 203 | H71: F | I71: P1 | J71: Before Displacement | K71: Livestock
A72: Kachin | B72: Myitkyina | C72: Jan Mai Kawng Baptist Church | D72: MMR001CMP018 | E72: GCA | F72: Urban | G72: 203 | H72: M | I72: P1 | J72: Before Displacement | K72: Livestock
A73: Kachin | B73: Myitkyina | C73: Jan Mai Kawng Baptist Church | D73: MMR001CMP018 | E73: GCA | F73: Urban | G73: 203 | H73: F | I73: P2 | J73: Before Displacement | K73: Farming by own land
A74: Kachin | B74: Myitkyina | C74: Jan Mai Kawng Baptist Church | D74: MMR001CMP018 | E74: GCA | F74: Urban | G74: 203 | H74: M | I74: P2 | J74: Before Displacement | K74: Daily wage worker
A75: Kachin | B75: Waingmaw | C75: Qtr. 2 Myoma Baptist Church | D75: MMR001CMP025 | E75: GCA | F75: Urban | G75: 65 | H75: M | I75: P2 | J75: Before Displacement | K75: Farming by own land
A76: Kachin | B76: Waingmaw | C76: Qtr. 2 Myoma Baptist Church | D76: MMR001CMP025 | E76: GCA | F76: Urban | G76: 65 | H76: F | I76: P2 | J76: Before Displacement | K76: Livestock
A77: Kachin | B77: Waingmaw | C77: Qtr. 2 Myoma Baptist Church | D77: MMR001CMP025 | E77: GCA | F77: Urban | G77: 65 | H77: F | I77: P1 | J77: Before Displacement | K77: Farming by own land
A78: Kachin | B78: Waingmaw | C78: Qtr. 2 Myoma Baptist Church | D78: MMR001CMP025 | E78: GCA | F78: Urban | G78: 65 | H78: M | I78: P1 | J78: Before Displacement | K78: Livestock
A79: Kachin | B79: Waingmaw | C79: Mading Baptist Church | D79: MMR001CMP027 | E79: GCA | F79: Rural | G79: 22 | H79: M | I79: P2 | J79: Before Displacement | K79: Livestock
A80: Kachin | B80: Waingmaw | C80: Mading Baptist Church | D80: MMR001CMP027 | E80: GCA | F80: Rural | G80: 22 | H80: F | I80: P1 | J80: Before Displacement | K80: Farming by own land
A81: Kachin | B81: Waingmaw | C81: Mading Baptist Church | D81: MMR001CMP027 | E81: GCA | F81: Rural | G81: 22 | H81: M | I81: P1 | J81: Before Displacement | K81: Farming by own land
A82: Kachin | B82: Waingmaw | C82: Mading Baptist Church | D82: MMR001CMP027 | E82: GCA | F82: Rural | G82: 22 | H82: F | I82: P2 | J82: Before Displacement | K82: Livestock
A83: Kachin | B83: Mogaung | C83: Mang Hawng Baptist Church | D83: MMR001CMP077 | E83: GCA | F83: Mixed | G83: 18 | H83: F | I83: P1 | J83: Before Displacement | K83: Farming by own land
A84: Kachin | B84: Mogaung | C84: Mang Hawng Baptist Church | D84: MMR001CMP077 | E84: GCA | F84: Mixed | G84: 18 | H84: M | I84: P2 | J84: Before Displacement | K84: Livestock
A85: Kachin | B85: Mogaung | C85: Mang Hawng Baptist Church | D85: MMR001CMP077 | E85: GCA | F85: Mixed | G85: 18 | H85: F | I85: P2 | J85: Before Displacement | K85: Livestock
A86: Kachin | B86: Mogaung | C86: Mang Hawng Baptist Church | D86: MMR001CMP077 | E86: GCA | F86: Mixed | G86: 18 | H86: M | I86: P1 | J86: Before Displacement | K86: Farming by own land
A87: Kachin | B87: Mogaung | C87: Kyun Taw Baptist Church | D87: MMR001CMP078 | E87: GCA | F87: Mixed | G87: 13 | H87: M | I87: P2 | J87: Before Displacement | K87: Livestock
A88: Kachin | B88: Mogaung | C88: Kyun Taw Baptist Church | D88: MMR001CMP078 | E88: GCA | F88: Mixed | G88: 13 | H88: F | I88: P2 | J88: Before Displacement | K88: Livestock
A89: Kachin | B89: Mogaung | C89: Kyun Taw Baptist Church | D89: MMR001CMP078 | E89: GCA | F89: Mixed | G89: 13 | H89: F | I89: P1 | J89: Before Displacement | K89: Farming by own land
A90: Kachin | B90: Mogaung | C90: Kyun Taw Baptist Church | D90: MMR001CMP078 | E90: GCA | F90: Mixed | G90: 13 | H90: M | I90: P1 | J90: Before Displacement | K90: Farming by own land
A91: Kachin | B91: Mogaung | C91: Nat Gyi Kone Baptist Church | D91: MMR001CMP079 | E91: GCA | F91: Urban | G91: 14 | H91: F | I91: P2 | J91: Before Displacement | K91: Daily wage worker
A92: Kachin | B92: Mogaung | C92: Nat Gyi Kone Baptist Church | D92: MMR001CMP079 | E92: GCA | F92: Urban | G92: 14 | H92: M | I92: P2 | J92: Before Displacement | K92: Daily wage worker
A93: Kachin | B93: Mogaung | C93: Nat Gyi Kone Baptist Church | D93: MMR001CMP079 | E93: GCA | F93: Urban | G93: 14 | H93: F | I93: P1 | J93: Before Displacement | K93: Livestock
A94: Kachin | B94: Mogaung | C94: Nat Gyi Kone Baptist Church | D94: MMR001CMP079 | E94: GCA | F94: Urban | G94: 14 | H94: M | I94: P1 | J94: Before Displacement | K94: Farming by own land
A95: Kachin | B95: Hpakant | C95: Hlaing Naung Baptist | D95: MMR001CMP148 | E95: GCA | F95: Mixed | G95: 14 | H95: M | I95: P2 | J95: Before Displacement | K95: Farming by own land
A96: Kachin | B96: Hpakant | C96: Hlaing Naung Baptist | D96: MMR001CMP148 | E96: GCA | F96: Mixed | G96: 14 | H96: F | I96: P2 | J96: Before Displacement | K96: Livestock
A97: Kachin | B97: Hpakant | C97: Hlaing Naung Baptist | D97: MMR001CMP148 | E97: GCA | F97: Mixed | G97: 14 | H97: F | I97: P1 | J97: Before Displacement | K97: Farming by own land
A98: Kachin | B98: Hpakant | C98: Hlaing Naung Baptist | D98: MMR001CMP148 | E98: GCA | F98: Mixed | G98: 14 | H98: M | I98: P1 | J98: Before Displacement | K98: Livestock
A99: Kachin | B99: Mohnyin | C99: Nawng Ing (Indawgyi) Baptist Church | D99: MMR001CMP152 | E99: GCA | F99: Rural | G99: 18 | H99: F | I99: P1 | J99: Before Displacement | K99: Livestock
A100: Kachin | B100: Mohnyin | C100: Nawng Ing (Indawgyi) Baptist Church | D100: MMR001CMP152 | E100: GCA | F100: Rural | G100: 18 | H100: M | I100: P2 | J100: Before Displacement | K100: Trade (buying and selling)
A101: Kachin | B101: Mohnyin | C101: Nawng Ing (Indawgyi) Baptist Church | D101: MMR001CMP152 | E101: GCA | F101: Rural | G101: 18 | H101: F | I101: P2 | J101: Before Displacement | K101: Trade (buying and selling)
A102: Kachin | B102: Mohnyin | C102: Nawng Ing (Indawgyi) Baptist Church | D102: MMR001CMP152 | E102: GCA | F102: Rural | G102: 18 | H102: M | I102: P1 | J102: Before Displacement | K102: Livestock
A103: Kachin | B103: Puta-O | C103: Lung Sut | D103: MMR001CMP234 | E103: GCA | F103: Urban | G103: 59 | H103: M | I103: P2 | J103: Before Displacement | K103: Fishing
A104: Kachin | B104: Puta-O | C104: Lung Sut | D104: MMR001CMP234 | E104: GCA | F104: Urban | G104: 59 | H104: F | I104: P2 | J104: Before Displacement | K104: Livestock
A105: Kachin | B105: Puta-O | C105: Lung Sut | D105: MMR001CMP234 | E105: GCA | F105: Urban | G105: 59 | H105: F | I105: P1 | J105: Before Displacement | K105: Farming by own land
A106: Kachin | B106: Puta-O | C106: Lung Sut | D106: MMR001CMP234 | E106: GCA | F106: Urban | G106: 59 | H106: M | I106: P1 | J106: Before Displacement | K106: Farming by own land
A107: Kachin | B107: Waingmaw | C107: Mading Baptist Church | D107: MMR001CMP027 | E107: GCA | F107: Rural | G107: 22 | H107: F | I107: P1 | J107: After Displacement | K107: Livestock
A108: Kachin | B108: Waingmaw | C108: Mading Baptist Church | D108: MMR001CMP027 | E108: GCA | F108: Rural | G108: 22 | H108: F | I108: P2 | J108: After Displacement | K108: Daily wage worker
A109: Kachin | B109: Waingmaw | C109: Mading Baptist Church | D109: MMR001CMP027 | E109: GCA | F109: Rural | G109: 22 | H109: M | I109: P1 | J109: After Displacement | K109: Livestock
A110: Kachin | B110: Waingmaw | C110: Mading Baptist Church | D110: MMR001CMP027 | E110: GCA | F110: Rural | G110: 22 | H110: M | I110: P2 | J110: After Displacement | K110: Daily wage worker
A111: Kachin | B111: Hpakant | C111: Yumar Baptist Church | D111: MMR001CMP105 | E111: GCA | F111: Rural | G111: 19 | H111: F | I111: P1 | J111: After Displacement | K111: Daily wage worker
A112: Kachin | B112: Hpakant | C112: Yumar Baptist Church | D112: MMR001CMP105 | E112: GCA | F112: Rural | G112: 19 | H112: F | I112: P2 | J112: After Displacement | K112: None
A113: Kachin | B113: Hpakant | C113: Yumar Baptist Church | D113: MMR001CMP105 | E113: GCA | F113: Rural | G113: 19 | H113: M | I113: P1 | J113: After Displacement | K113: Mining
A114: Kachin | B114: Hpakant | C114: Yumar Baptist Church | D114: MMR001CMP105 | E114: GCA | F114: Rural | G114: 19 | H114: M | I114: P2 | J114: After Displacement | K114: Daily wage worker
A115: Kachin | B115: Hpakant | C115: Baptist Church, Hmaw Si Sar(Lon Khin) | D115: MMR001CMP169 | E115: GCA | F115: Rural | G115: 36 | H115: F | I115: P1 | J115: After Displacement | K115: Daily wage worker
A116: Kachin | B116: Hpakant | C116: Baptist Church, Hmaw Si Sar(Lon Khin) | D116: MMR001CMP169 | E116: GCA | F116: Rural | G116: 36 | H116: F | I116: P2 | J116: After Displacement | K116: None
A117: Kachin | B117: Hpakant | C117: Baptist Church, Hmaw Si Sar(Lon Khin) | D117: MMR001CMP169 | E117: GCA | F117: Rural | G117: 36 | H117: M | I117: P1 | J117: After Displacement | K117: Daily wage worker
A118: Kachin | B118: Hpakant | C118: Baptist Church, Hmaw Si Sar(Lon Khin) | D118: MMR001CMP169 | E118: GCA | F118: Rural | G118: 36 | H118: M | I118: P2 | J118: After Displacement | K118: Mining
A119: Kachin | B119: Hpakant | C119: Hpakant Baptist Church, Nam Ma Hpit | D119: MMR001CMP229 | E119: GCA | F119: Rural | G119: 116 | H119: F | I119: P1 | J119: After Displacement | K119: Daily wage worker
A120: Kachin | B120: Hpakant | C120: Hpakant Baptist Church, Nam Ma Hpit | D120: MMR001CMP229 | E120: GCA | F120: Rural | G120: 116 | H120: F | I120: P2 | J120: After Displacement | K120: None
A121: Kachin | B121: Hpakant | C121: Hpakant Baptist Church, Nam Ma Hpit | D121: MMR001CMP229 | E121: GCA | F121: Rural | G121: 116 | H121: M | I121: P1 | J121: After Displacement | K121: Daily wage worker
A122: Kachin | B122: Hpakant | C122: Hpakant Baptist Church, Nam Ma Hpit | D122: MMR001CMP229 | E122: GCA | F122: Rural | G122: 116 | H122: M | I122: P2 | J122: After Displacement | K122: Mining
A123: Kachin | B123: Hpakant | C123: Ku Day Maw KBC | D123: MMR001CMP231 | E123: GCA | F123: Rural | G123: 46 | H123: F | I123: P1 | J123: After Displacement | K123: Daily wage worker
A124: Kachin | B124: Hpakant | C124: Ku Day Maw KBC | D124: MMR001CMP231 | E124: GCA | F124: Rural | G124: 46 | H124: F | I124: P2 | J124: After Displacement | K124: None
A125: Kachin | B125: Hpakant | C125: Ku Day Maw KBC | D125: MMR001CMP231 | E125: GCA | F125: Rural | G125: 46 | H125: M | I125: P1 | J125: After Displacement | K125: Daily wage worker
A126: Kachin | B126: Hpakant | C126: Ku Day Maw KBC | D126: MMR001CMP231 | E126: GCA | F126: Rural | G126: 46 | H126: M | I126: P2 | J126: After Displacement | K126: Mining
A127: Kachin | B127: Hpakant | C127: 5 Ward Baptist Church(lon Khin) | D127: MMR001CMP179 | E127: GCA | F127: Rural | G127: 77 | H127: F | I127: P1 | J127: After Displacement | K127: Daily wage worker
A128: Kachin | B128: Hpakant | C128: 5 Ward Baptist Church(lon Khin) | D128: MMR001CMP179 | E128: GCA | F128: Rural | G128: 77 | H128: F | I128: P2 | J128: After Displacement | K128: None
A129: Kachin | B129: Hpakant | C129: 5 Ward Baptist Church(lon Khin) | D129: MMR001CMP179 | E129: GCA | F129: Rural | G129: 77 | H129: M | I129: P1 | J129: After Displacement | K129: Mining
A130: Kachin | B130: Hpakant | C130: 5 Ward Baptist Church(lon Khin) | D130: MMR001CMP179 | E130: GCA | F130: Rural | G130: 77 | H130: M | I130: P2 | J130: After Displacement | K130: Daily wage worker
A131: Kachin | B131: Hpakant | C131: Ward 2 Sai Taung Baptist Church, Seik Mu | D131: MMR001CMP184 | E131: GCA | F131: Rural | G131: 35 | H131: F | I131: P1 | J131: After Displacement | K131: Daily wage worker
A132: Kachin | B132: Hpakant | C132: Ward 2 Sai Taung Baptist Church, Seik Mu | D132: MMR001CMP184 | E132: GCA | F132: Rural | G132: 35 | H132: F | I132: P2 | J132: After Displacement | K132: None
A133: Kachin | B133: Hpakant | C133: Ward 2 Sai Taung Baptist Church, Seik Mu | D133: MMR001CMP184 | E133: GCA | F133: Rural | G133: 35 | H133: M | I133: P1 | J133: After Displacement | K133: Mining
A134: Kachin | B134: Hpakant | C134: Ward 2 Sai Taung Baptist Church, Seik Mu | D134: MMR001CMP184 | E134: GCA | F134: Rural | G134: 35 | H134: M | I134: P2 | J134: After Displacement | K134: Daily wage worker
A135: Kachin | B135: Hpakant | C135: Yumar Baptist Church | D135: MMR001CMP105 | E135: GCA | F135: Rural | G135: 19 | H135: F | I135: P1 | J135: Before Displacement | K135: Daily wage worker
A136: Kachin | B136: Hpakant | C136: Yumar Baptist Church | D136: MMR001CMP105 | E136: GCA | F136: Rural | G136: 19 | H136: M | I136: P1 | J136: Before Displacement | K136: Mining
A137: Kachin | B137: Hpakant | C137: Yumar Baptist Church | D137: MMR001CMP105 | E137: GCA | F137: Rural | G137: 19 | H137: F | I137: P2 | J137: Before Displacement | K137: Trade (buying and selling)
A138: Kachin | B138: Hpakant | C138: Yumar Baptist Church | D138: MMR001CMP105 | E138: GCA | F138: Rural | G138: 19 | H138: M | I138: P2 | J138: Before Displacement | K138: Daily wage worker
A139: Kachin | B139: Hpakant | C139: Baptist Church, Hmaw Si Sar(Lon Khin) | D139: MMR001CMP169 | E139: GCA | F139: Rural | G139: 36 | H139: M | I139: P2 | J139: Before Displacement | K139: Daily wage worker
A140: Kachin | B140: Hpakant | C140: Baptist Church, Hmaw Si Sar(Lon Khin) | D140: MMR001CMP169 | E140: GCA | F140: Rural | G140: 36 | H140: F | I140: P2 | J140: Before Displacement | K140: Daily wage worker
A141: Kachin | B141: Hpakant | C141: Baptist Church, Hmaw Si Sar(Lon Khin) | D141: MMR001CMP169 | E141: GCA | F141: Rural | G141: 36 | H141: F | I141: P1 | J141: Before Displacement | K141: Farming by own land
A142: Kachin | B142: Hpakant | C142: Baptist Church, Hmaw Si Sar(Lon Khin) | D142: MMR001CMP169 | E142: GCA | F142: Rural | G142: 36 | H142: M | I142: P1 | J142: Before Displacement | K142: Farming by own land
A143: Kachin | B143: Hpakant | C143: 5 Ward Baptist Church(lon Khin) | D143: MMR001CMP179 | E143: GCA | F143: Rural | G143: 77 | H143: F | I143: P1 | J143: Before Displacement | K143: Farming by own land
A144: Kachin | B144: Hpakant | C144: 5 Ward Baptist Church(lon Khin) | D144: MMR001CMP179 | E144: GCA | F144: Rural | G144: 77 | H144: M | I144: P2 | J144: Before Displacement | K144: Mining
A145: Kachin | B145: Hpakant | C145: 5 Ward Baptist Church(lon Khin) | D145: MMR001CMP179 | E145: GCA | F145: Rural | G145: 77 | H145: F | I145: P2 | J145: Before Displacement | K145: Daily wage worker
A146: Kachin | B146: Hpakant | C146: 5 Ward Baptist Church(lon Khin) | D146: MMR001CMP179 | E146: GCA | F146: Rural | G146: 77 | H146: M | I146: P1 | J146: Before Displacement | K146: Farming by own land
A147: Kachin | B147: Hpakant | C147: Sai Nai Baptish Church, Maw Shan Vil., Seki Mu | D147: MMR001CMP183 | E147: GCA | F147: Mixed | G147: 8 | H147: M | I147: P2 | J147: Before Displacement | K147: Livestock
A148: Kachin | B148: Hpakant | C148: Sai Nai Baptish Church, Maw Shan Vil., Seki Mu | D148: MMR001CMP183 | E148: GCA | F148: Mixed | G148: 8 | H148: F | I148: P2 | J148: Before Displacement | K148: Livestock
A149: Kachin | B149: Hpakant | C149: Sai Nai Baptish Church, Maw Shan Vil., Seki Mu | D149: MMR001CMP183 | E149: GCA | F149: Mixed | G149: 8 | H149: F | I149: P1 | J149: Before Displacement | K149: Farming by own land
A150: Kachin | B150: Hpakant | C150: Sai Nai Baptish Church, Maw Shan Vil., Seki Mu | D150: MMR001CMP183 | E150: GCA | F150: Mixed | G150: 8 | H150: M | I150: P1 | J150: Before Displacement | K150: Farming by own land
A151: Kachin | B151: Hpakant | C151: Ward 2 Sai Taung Baptist Church, Seik Mu | D151: MMR001CMP184 | E151: GCA | F151: Rural | G151: 35 | H151: F | I151: P2 | J151: Before Displacement | K151: None
A152: Kachin | B152: Hpakant | C152: Ward 2 Sai Taung Baptist Church, Seik Mu | D152: MMR001CMP184 | E152: GCA | F152: Rural | G152: 35 | H152: F | I152: P1 | J152: Before Displacement | K152: Trade (buying and selling)
A153: Kachin | B153: Hpakant | C153: Ward 2 Sai Taung Baptist Church, Seik Mu | D153: MMR001CMP184 | E153: GCA | F153: Rural | G153: 35 | H153: M | I153: P2 | J153: Before Displacement | K153: Mining
A154: Kachin | B154: Hpakant | C154: Ward 2 Sai Taung Baptist Church, Seik Mu | D154: MMR001CMP184 | E154: GCA | F154: Rural | G154: 35 | H154: M | I154: P1 | J154: Before Displacement | K154: Daily wage worker
A155: Kachin | B155: Chipwi | C155: Chipwi KBC camp | D155: MMR001CMP042 | E155: GCA | F155: Urban | G155: 109 | H155: M | I155: P2 | J155: Before Displacement | K155: Livestock
A156: Kachin | B156: Chipwi | C156: Chipwi KBC camp | D156: MMR001CMP042 | E156: GCA | F156: Urban | G156: 109 | H156: F | I156: P2 | J156: Before Displacement | K156: Livestock
A157: Kachin | B157: Chipwi | C157: Chipwi KBC camp | D157: MMR001CMP042 | E157: GCA | F157: Urban | G157: 109 | H157: M | I157: P1 | J157: Before Displacement | K157: Farming by own land
A158: Kachin | B158: Myitkyina | C158: Tat Kone Emanuel Church | D158: MMR001CMP004 | E158: GCA | F158: Urban | G158: 6 | H158: M | I158: P2 | J158: Before Displacement | K158: Farming by own land
A159: Kachin | B159: Myitkyina | C159: Tat Kone Emanuel Church | D159: MMR001CMP004 | E159: GCA | F159: Urban | G159: 6 | H159: F | I159: P2 | J159: Before Displacement | K159: Livestock
A160: Kachin | B160: Myitkyina | C160: Tat Kone Emanuel Church | D160: MMR001CMP004 | E160: GCA | F160: Urban | G160: 6 | H160: F | I160: P1 | J160: Before Displacement | K160: Farming by own land
A161: Kachin | B161: Myitkyina | C161: Tat Kone Emanuel Church | D161: MMR001CMP004 | E161: GCA | F161: Urban | G161: 6 | H161: M | I161: P1 | J161: Before Displacement | K161: Daily wage worker
A162: Kachin | B162: Myitkyina | C162: Shatapru Thida Aye Baptist Church | D162: MMR001CMP007 | E162: GCA | F162: Urban | G162: 22 | H162: F | I162: P2 | J162: Before Displacement | K162: Livestock
A163: Kachin | B163: Myitkyina | C163: Shatapru Thida Aye Baptist Church | D163: MMR001CMP007 | E163: GCA | F163: Urban | G163: 22 | H163: M | I163: P2 | J163: Before Displacement | K163: Trade (buying and selling)
A164: Kachin | B164: Myitkyina | C164: Shatapru Thida Aye Baptist Church | D164: MMR001CMP007 | E164: GCA | F164: Urban | G164: 22 | H164: F | I164: P1 | J164: Before Displacement | K164: Farming by own land
A165: Kachin | B165: Myitkyina | C165: Shatapru Thida Aye Baptist Church | D165: MMR001CMP007 | E165: GCA | F165: Urban | G165: 22 | H165: M | I165: P1 | J165: Before Displacement | K165: Farming by own land
A166: Kachin | B166: Myitkyina | C166: Maw Hpawng Hka Nan Baptist Church | D166: MMR001CMP020 | E166: GCA | F166: Rural | G166: 21 | H166: M | I166: P1 | J166: Before Displacement | K166: Farming by own land
A167: Kachin | B167: Myitkyina | C167: Maw Hpawng Hka Nan Baptist Church | D167: MMR001CMP020 | E167: GCA | F167: Rural | G167: 21 | H167: M | I167: P2 | J167: Before Displacement | K167: Livestock
A168: Kachin | B168: Myitkyina | C168: Maw Hpawng Hka Nan Baptist Church | D168: MMR001CMP020 | E168: GCA | F168: Rural | G168: 21 | H168: F | I168: P2 | J168: Before Displacement | K168: Livestock
A169: Kachin | B169: Myitkyina | C169: Maw Hpawng Hka Nan Baptist Church | D169: MMR001CMP020 | E169: GCA | F169: Rural | G169: 21 | H169: F | I169: P1 | J169: Before Displacement | K169: Farming by own land
A170: Kachin | B170: Myitkyina | C170: Maw Hpawng Lhaovo Baptist Church | D170: MMR001CMP021 | E170: GCA | F170: Rural | G170: 14 | H170: M | I170: P2 | J170: Before Displacement | K170: Daily wage worker
A171: Kachin | B171: Myitkyina | C171: Maw Hpawng Lhaovo Baptist Church | D171: MMR001CMP021 | E171: GCA | F171: Rural | G171: 14 | H171: F | I171: P2 | J171: Before Displacement | K171: Trade (buying and selling)
A172: Kachin | B172: Myitkyina | C172: Maw Hpawng Lhaovo Baptist Church | D172: MMR001CMP021 | E172: GCA | F172: Rural | G172: 14 | H172: F | I172: P1 | J172: Before Displacement | K172: Livestock
A173: Kachin | B173: Myitkyina | C173: Maw Hpawng Lhaovo Baptist Church | D173: MMR001CMP021 | E173: GCA | F173: Rural | G173: 14 | H173: M | I173: P1 | J173: Before Displacement | K173: Farming by own land
A174: Kachin | B174: Myitkyina | C174: Wun Tho Buddhist Monastery | D174: MMR001CMP022 | E174: GCA | F174: Urban | G174: 7 | H174: M | I174: P1 | J174: Before Displacement | K174: Daily wage worker
A175: Kachin | B175: Myitkyina | C175: Wun Tho Buddhist Monastery | D175: MMR001CMP022 | E175: GCA | F175: Urban | G175: 7 | H175: M | I175: P2 | J175: Before Displacement | K175: Trade (buying and selling)
A176: Kachin | B176: Myitkyina | C176: Wun Tho Buddhist Monastery | D176: MMR001CMP022 | E176: GCA | F176: Urban | G176: 7 | H176: F | I176: P2 | J176: Before Displacement | K176: Trade (buying and selling)
A177: Kachin | B177: Myitkyina | C177: Wun Tho Buddhist Monastery | D177: MMR001CMP022 | E177: GCA | F177: Urban | G177: 7 | H177: F | I177: P1 | J177: Before Displacement | K177: Daily wage worker
A178: Kachin | B178: Myitkyina | C178: Tat Kone COC Baptist - Tat Kone Htoi San | D178: MMR001CMP023 | E178: GCA | F178: Urban | G178: 54 | H178: M | I178: P2 | J178: Before Displacement
A179: Kachin | B179: Myitkyina | C179: Tat Kone COC Baptist - Tat Kone Htoi San | D179: MMR001CMP023 | E179: GCA | F179: Urban | G179: 54 | H179: F | I179: P2 | J179: Before Displacement
A180: Kachin | B180: Myitkyina | C180: Tat Kone COC Baptist - Tat Kone Htoi San | D180: MMR001CMP023 | E180: GCA | F180: Urban | G180: 54 | H180: F | I180: P1 | J180: Before Displacement
A181: Kachin | B181: Myitkyina | C181: Tat Kone COC Baptist - Tat Kone Htoi San | D181: MMR001CMP023 | E181: GCA | F181: Urban | G181: 54 | H181: M | I181: P1 | J181: Before Displacement
A182: Kachin | B182: Waingmaw | C182: Qtr. 4 Monestry (Thargaya Thayett Taw) | D182: MMR001CMP026 | E182: GCA | F182: Urban | G182: 88 | H182: F | I182: P1 | J182: Before Displacement | K182: Daily wage worker
A183: Kachin | B183: Waingmaw | C183: Qtr. 4 Monestry (Thargaya Thayett Taw) | D183: MMR001CMP026 | E183: GCA | F183: Urban | G183: 88 | H183: M | I183: P2 | J183: Before Displacement | K183: Handicrafts
A184: Kachin | B184: Waingmaw | C184: Qtr. 4 Monestry (Thargaya Thayett Taw) | D184: MMR001CMP026 | E184: GCA | F184: Urban | G184: 88 | H184: F | I184: P2 | J184: Before Displacement | K184: Handicrafts
A185: Kachin | B185: Waingmaw | C185: Qtr. 4 Monestry (Thargaya Thayett Taw) | D185: MMR001CMP026 | E185: GCA | F185: Urban | G185: 88 | H185: M | I185: P1 | J185: Before Displacement | K185: Trade (buying and selling)
A186: Kachin | B186: Waingmaw | C186: Hkat Cho | D186: MMR001CMP028 | E186: GCA | F186: Rural | G186: 99 | H186: F | I186: P2 | J186: Before Displacement | K186: Trade (buying and selling)
A187: Kachin | B187: Waingmaw | C187: Hkat Cho | D187: MMR001CMP028 | E187: GCA | F187: Rural | G187: 99 | H187: M | I187: P1 | J187: Before Displacement | K187: Daily wage worker
A188: Kachin | B188: Waingmaw | C188: Hkat Cho | D188: MMR001CMP028 | E188: GCA | F188: Rural | G188: 99 | H188: F | I188: P1 | J188: Before Displacement | K188: Farming by own land
A189: Kachin | B189: Waingmaw | C189: Hkat Cho | D189: MMR001CMP028 | E189: GCA | F189: Rural | G189: 99 | H189: M | I189: P2 | J189: Before Displacement | K189: Mining
A190: Kachin | B190: Chipwi | C190: Lhaovao Baptist Church (LBC) | D190: MMR001CMP195 | E190: GCA | F190: Urban | G190: 143 | H190: M | I190: P2 | J190: Before Displacement | K190: Livestock
A191: Kachin | B191: Chipwi | C191: Lhaovao Baptist Church (LBC) | D191: MMR001CMP195 | E191: GCA | F191: Urban | G191: 143 | H191: F | I191: P2 | J191: Before Displacement | K191: Livestock
A192: Kachin | B192: Chipwi | C192: Lhaovao Baptist Church (LBC) | D192: MMR001CMP195 | E192: GCA | F192: Urban | G192: 143 | H192: F | I192: P1 | J192: Before Displacement | K192: Farming by own land
A193: Kachin | B193: Chipwi | C193: Lhaovao Baptist Church (LBC) | D193: MMR001CMP195 | E193: GCA | F193: Urban | G193: 143 | H193: M | I193: P1 | J193: Before Displacement | K193: Farming by own land
A194: Kachin | B194: Myitkyina | C194: Tat Kone COC Baptist - Tat Kone Htoi San | D194: MMR001CMP023 | E194: GCA | F194: Urban | G194: 54 | H194: F | I194: P1 | J194: After Displacement | K194: Livestock
A195: Kachin | B195: Myitkyina | C195: Tat Kone COC Baptist - Tat Kone Htoi San | D195: MMR001CMP023 | E195: GCA | F195: Urban | G195: 54 | H195: F | I195: P2 | J195: After Displacement | K195: Trade (buying and selling)
A196: Kachin | B196: Myitkyina | C196: Tat Kone COC Baptist - Tat Kone Htoi San | D196: MMR001CMP023 | E196: GCA | F196: Urban | G196: 54 | H196: M | I196: P1 | J196: After Displacement | K196: Daily wage worker
A197: Kachin | B197: Myitkyina | C197: Tat Kone COC Baptist - Tat Kone Htoi San | D197: MMR001CMP023 | E197: GCA | F197: Urban | G197: 54 | H197: M | I197: P2 | J197: After Displacement | K197: Mining
A198: Kachin | B198: Myitkyina | C198: Shatapru Thida Aye Baptist Church | D198: MMR001CMP007 | E198: GCA | F198: Urban | G198: 22 | H198: F | I198: P1 | J198: After Displacement | K198: Daily wage worker
A199: Kachin | B199: Myitkyina | C199: Shatapru Thida Aye Baptist Church | D199: MMR001CMP007 | E199: GCA | F199: Urban | G199: 22 | H199: F | I199: P2 | J199: After Displacement | K199: Handicrafts
A200: Kachin | B200: Myitkyina | C200: Shatapru Thida Aye Baptist Church | D200: MMR001CMP007 | E200: GCA | F200: Urban | G200: 22 | H200: M | I200: P1 | J200: After Displacement | K200: Daily wage worker
... 825 more rows

Sheet Livelihood
A1: Breakdown of "top two" identified priority livelihoods - by gender and displacement period
A3: Choose Gender | B3: Column Labels | G3: TOTAL
B4: Female | D4: Male | F4: Grand Total
A5: Livelihood Type | B5: Before Displacement | C5: After Displacement | D5: Before Displacement | E5: After Displacement | G5: Before Displacement | H5: After Displacement | I5: % | J5: Livelihood Type | K5: after displacement
A6: Fishing | B6: 11 | C6: 4 | D6: 9 | E6: 1 | F6: 25 | G6: =GETPIVOTDATA("Priority",$A$3,"Sex","Female","Period","Before Displacement","Livelihood","Fishing")+GETPIVOTDATA("Priority",$A$3,"Sex","Male","Period","Before Displacement","Livelihood","Fishing") -> 20 | H6: =GETPIVOTDATA("Priority",$A$3,"Sex","Female","Period","After Displacement","Livelihood","Fishing")+GETPIVOTDATA("Priority",$A$3,"Sex","Male","Period","After Displacement","Livelihood","Fishing") -> 5 | I6: =(H6-G6)/G6 -> -0.75 | J6: Fishing | K6: =H6 -> 5
A7: Handicrafts | B7: 3 | C7: 7 | D7: 2 | E7: 10 | F7: 22 | G7: =GETPIVOTDATA("Priority",$A$3,"Sex","Female","Period","Before Displacement","Livelihood","Handicrafts")+GETPIVOTDATA("Priority",$A$3,"Sex","Male","Period","Before Displacement","Livelihood","Handicrafts") -> 5 | H7: =GETPIVOTDATA("Priority",$A$3,"Sex","Female","Period","After Displacement","Livelihood","Handicrafts")+GETPIVOTDATA("Priority",$A$3,"Sex","Male","Period","After Displacement","Livelihood","Handicrafts") -> 17 | I7: =(H7-G7)/G7 -> 2.4 | J7: Handicrafts | K7: 17
A8: Livestock | B8: 67 | C8: 77 | D8: 50 | E8: 44 | F8: 238 | G8: =GETPIVOTDATA("Priority",$A$3,"Sex","Female","Period","Before Displacement","Livelihood","Livestock")+GETPIVOTDATA("Priority",$A$3,"Sex","Male","Period","Before Displacement","Livelihood","Livestock") -> 117 | H8: =GETPIVOTDATA("Priority",$A$3,"Sex","Female","Period","After Displacement","Livelihood","Livestock")+GETPIVOTDATA("Priority",$A$3,"Sex","Male","Period","After Displacement","Livelihood","Livestock") -> 121 | I8: =(H8-G8)/G8 -> 0.03418803419 | J8: Livestock | K8: 121
A9: Manucfacturing (Non Food) | C9: 3 | E9: 1 | F9: 4 | G9: =GETPIVOTDATA("Priority",$A$3,"Sex","Female","Period","Before Displacement","Livelihood","Manucfacturing (Non Food)")+GETPIVOTDATA("Priority",$A$3,"Sex","Male","Period","Before Displacement","Livelihood","Manucfacturing (Non Food)") -> 0 | H9: =GETPIVOTDATA("Priority",$A$3,"Sex","Female","Period","After Displacement","Livelihood","Manucfacturing (Non Food)")+GETPIVOTDATA("Priority",$A$3,"Sex","Male","Period","After Displacement","Livelihood","Manucfacturing (Non Food)") -> 4 | J9: Manucfacturing (Non Food) | K9: 4
A10: Manufacturing (Food processing) | B10: 1 | C10: 3 | D10: 1 | F10: 5 | G10: =GETPIVOTDATA("Priority",$A$3,"Sex","Female","Period","Before Displacement","Livelihood","Manufacturing (Food processing)")+GETPIVOTDATA("Priority",$A$3,"Sex","Male","Period","Before Displacement","Livelihood","Manufacturing (Food processing)") -> 2 | H10: =GETPIVOTDATA("Priority",$A$3,"Sex","Female","Period","After Displacement","Livelihood","Manufacturing (Food processing)")+GETPIVOTDATA("Priority",$A$3,"Sex","Male","Period","After Displacement","Livelihood","Manufacturing (Food processing)") -> 3 | I10: =(H10-G10)/G10 -> 0.5 | J10: Manufacturing (Food processing) | K10: 3
A11: Mining | D11: 12 | E11: 28 | F11: 40 | G11: =GETPIVOTDATA("Priority",$A$3,"Sex","Female","Period","Before Displacement","Livelihood","Mining")+GETPIVOTDATA("Priority",$A$3,"Sex","Male","Period","Before Displacement","Livelihood","Mining") -> 12 | H11: =GETPIVOTDATA("Priority",$A$3,"Sex","Female","Period","After Displacement","Livelihood","Mining")+GETPIVOTDATA("Priority",$A$3,"Sex","Male","Period","After Displacement","Livelihood","Mining") -> 28 | I11: 1.333333333 | J11: Mining | K11: 28
A12: None | B12: 2 | C12: 17 | D12: 2 | E12: 7 | F12: 28 | G12: =GETPIVOTDATA("Priority",$A$3,"Sex","Female","Period","Before Displacement","Livelihood","None")+GETPIVOTDATA("Priority",$A$3,"Sex","Male","Period","Before Displacement","Livelihood","None") -> 4 | H12: =GETPIVOTDATA("Priority",$A$3,"Sex","Female","Period","After Displacement","Livelihood","None")+GETPIVOTDATA("Priority",$A$3,"Sex","Male","Period","After Displacement","Livelihood","None") -> 24 | I12: 5 | J12: None | K12: 24
A13: Other | B13: 3 | C13: 4 | D13: 2 | E13: 12 | F13: 21 | G13: =GETPIVOTDATA("Priority",$A$3,"Sex","Female","Period","Before Displacement","Livelihood","Other")+GETPIVOTDATA("Priority",$A$3,"Sex","Male","Period","Before Displacement","Livelihood","Other") -> 5 | H13: =GETPIVOTDATA("Priority",$A$3,"Sex","Female","Period","After Displacement","Livelihood","Other")+GETPIVOTDATA("Priority",$A$3,"Sex","Male","Period","After Displacement","Livelihood","Other") -> 16 | I13: 2.2 | J13: Other | K13: 16
A14: Trade (buying and selling) | B14: 20 | C14: 25 | D14: 9 | E14: 5 | F14: 59 | G14: =GETPIVOTDATA("Priority",$A$3,"Sex","Female","Period","Before Displacement","Livelihood","Trade (buying and selling)")+GETPIVOTDATA("Priority",$A$3,"Sex","Male","Period","Before Displacement","Livelihood","Trade (buying and selling)") -> 29 | H14: =GETPIVOTDATA("Priority",$A$3,"Sex","Female","Period","After Displacement","Livelihood","Trade (buying and selling)")+GETPIVOTDATA("Priority",$A$3,"Sex","Male","Period","After Displacement","Livelihood","Trade (buying and selling)") -> 30 | I14: 0.03448275862 | J14: Trade (buying and selling) | K14: 30
A15: Daily wage worker | B15: 29 | C15: 80 | D15: 42 | E15: 107 | F15: 258 | G15: =GETPIVOTDATA("Priority",$A$3,"Sex","Female","Period","Before Displacement","Livelihood","Daily wage worker")+GETPIVOTDATA("Priority",$A$3,"Sex","Male","Period","Before Displacement","Livelihood","Daily wage worker") -> 71 | H15: =GETPIVOTDATA("Priority",$A$3,"Sex","Female","Period","After Displacement","Livelihood","Daily wage worker")+GETPIVOTDATA("Priority",$A$3,"Sex","Male","Period","After Displacement","Livelihood","Daily wage worker") -> 187 | I15: 1.633802817 | J15: Daily wage worker | K15: 187
A16: Farming by own land | B16: 87 | C16: 21 | D16: 93 | E16: 22 | F16: 223 | G16: =GETPIVOTDATA("Priority",$A$3,"Sex","Female","Period","Before Displacement","Livelihood","Farming by own land")+GETPIVOTDATA("Priority",$A$3,"Sex","Male","Period","Before Displacement","Livelihood","Farming by own land") -> 180 | H16: =GETPIVOTDATA("Priority",$A$3,"Sex","Female","Period","After Displacement","Livelihood","Farming by own land")+GETPIVOTDATA("Priority",$A$3,"Sex","Male","Period","After Displacement","Livelihood","Farming by own land") -> 43 | I16: -0.7611111111 | J16: Farming by own land | K16: 43
A17: Farming by Land Tenancy | B17: 3 | C17: 8 | D17: 2 | E17: 16 | F17: 29 | G17: =GETPIVOTDATA("Priority",$A$3,"Sex","Female","Period","Before Displacement","Livelihood","Farming by Land Tenancy")+GETPIVOTDATA("Priority",$A$3,"Sex","Male","Period","Before Displacement","Livelihood","Farming by Land Tenancy") -> 5 | H17: =GETPIVOTDATA("Priority",$A$3,"Sex","Female","Period","After Displacement","Livelihood","Farming by Land Tenancy")+GETPIVOTDATA("Priority",$A$3,"Sex","Male","Period","After Displacement","Livelihood","Farming by Land Tenancy") -> 24 | I17: 3.8 | J17: Farming by Land Tenancy | K17: 24
A18: (blank) | B18: 30 | C18: 7 | D18: 32 | E18: 3 | F18: 72 | G18: =GETPIVOTDATA("Priority",$A$3,"Sex","Female","Period","Before Displacement","Livelihood","(blank)")+GETPIVOTDATA("Priority",$A$3,"Sex","Male","Period","Before Displacement","Livelihood","(blank)") -> 62 | H18: =GETPIVOTDATA("Priority",$A$3,"Sex","Female","Period","After Displacement","Livelihood",)+GETPIVOTDATA("Priority",$A$3,"Sex","Male","Period","After Displacement","Livelihood",) -> 10 | I18: -0.8387096774 | J18: (blank) | K18: 10
A19: Grand Total | B19: 256 | C19: 256 | D19: 256 | E19: 256 | F19: 1024

Sheet Data_Sector_Education
A1: State | B1: Township | C1: Camp | D1: CP_PCode | E1: Accessibility | F1: Location_Type | G1: HS_Cluster | H1: Education_Resposible | I1: Nursery_Availability | J1: Nursery_Distance | K1: Nursery_Foot | L1: Nursery_Motor | M1: Nursery_Car | N1: Nursery_Water | O1: Pri_School_Availability | P1: Pri_School_Distance | Q1: Pri_School_Foot | R1: Pri_School_Motor | S1: Pri_School_Car | T1: Pri_School_Water | U1: Sec_Scool_Availability | V1: Sec_Scool_Distance | W1: Sec_School_Foot | X1: Sec_School_Motor | Y1: Sec_School_Car | Z1: Sec_School_Water | AA1: Hig_School_Availability | AB1: Hig_School_Distance | AC1: Hig_School_Foot | AD1: Hig_School_Motor | AE1: Hig_School_Car | AF1: Hig_School_Water | AG1: Pre_School_ECD_Male | AH1: Pre_School_ECD_Female | AI1: Primary_Male | AJ1: Primary_Female | AK1: Middle_Male | AL1: Middle_Female | AM1: High_Male | AN1: High_Female | AO1: Preschool_Teachers | AP1: Primary_Teachers | AQ1: Middle_Teachers | AR1: High_Teachers | AS1: Male_Total | AT1: Female_Total | AU1: Teachers_Total | AV1: EduSupplyReceived | AW1: Textbook | AX1: Exercisebook | AY1: RainCoat | AZ1: SchoolBag | BA1: SchoolUniform | BB1: Government | BC1: I_NGO | BD1: PrivateDonor
A2: Kachin | B2: Hpakant | C2: Ku Day Maw KBC | D2: MMR001CMP231 | E2: GCA | F2: Rural | G2: 46 | H2: Focal point | I2: No | J2: 0.200000003 | K2: 10 | L2: 3 | M2: 3 | O2: No | P2: 0.200000003 | Q2: 10 | R2: 3 | S2: 3 | U2: No | V2: 0.200000003 | W2: 10 | X2: 3 | Y2: 3 | AA2: No | AB2: 1 | AC2: 30 | AD2: 10 | AE2: 10 | AG2: 4 | AH2: 4 | AI2: 20 | AJ2: 21 | AK2: 11 | AL2: 8 | AM2: 4 | AN2: 1 | AO2: 0 | AP2: 0 | AQ2: 0 | AR2: 0 | AS2: 39 | AT2: 34 | AU2: 0 | AV2: No | AW2: No | AX2: No | AY2: No | AZ2: No | BA2: No | BB2: No | BC2: No | BD2: No
A3: Kachin | B3: Mansi | C3: Man Wing Baptist Church Cultural Compound | D3: MMR001CMP230 | E3: GCA | F3: Rural | G3: 113 | H3: Committee | I3: Yes | J3: 0 | O3: No | P3: 1 | Q3: 20 | R3: 5 | U3: No | V3: 1 | W3: 20 | X3: 5 | AA3: No | AB3: 1 | AC3: 20 | AD3: 5 | AG3: 40 | AH3: 30 | AI3: 20 | AJ3: 22 | AK3: 15 | AL3: 20 | AM3: 4 | AN3: 6 | AO3: 2 | AP3: 0 | AQ3: 0 | AR3: 0 | AS3: 79 | AT3: 78 | AU3: 0 | AV3: Yes | AW3: No | AX3: Yes | AY3: Yes | AZ3: No | BA3: Yes | BB3: No | BC3: Yes | BD3: No
A4: Kachin | B4: Mansi | C4: Maing Khaung Catholic Church | D4: MMR001CMP223 | E4: GCA | F4: Rural | G4: 123 | H4: Focal point | I4: No | J4: 0.200000003 | K4: 10 | L4: 2 | M4: 2 | O4: No | P4: 0.200000003 | Q4: 10 | R4: 2 | S4: 2 | U4: No | V4: 0.200000003 | W4: 10 | X4: 2 | Y4: 2 | AA4: No | AB4: 0.200000003 | AC4: 10 | AD4: 2 | AE4: 2 | AG4: 10 | AH4: 13 | AI4: 24 | AJ4: 23 | AK4: 9 | AL4: 22 | AM4: 3 | AN4: 19 | AO4: 2 | AP4: 0 | AQ4: 0 | AR4: 0 | AS4: 46 | AT4: 77 | AU4: 0 | AV4: No | AW4: Yes | AX4: Yes | AY4: No | AZ4: No | BA4: Yes | BB4: Yes | BC4: Yes | BD4: No
A5: Kachin | B5: Momauk | C5: Nhkawng Pa | D5: MMR001CMP131 | E5: NGCA | F5: Rural | G5: 375 | H5: Focal point | I5: Yes | J5: 0 | K5: 0 | L5: 0 | M5: 0 | O5: Yes | P5: 0 | Q5: 0 | R5: 0 | S5: 0 | U5: Yes | V5: 0 | W5: 0 | X5: 0 | Y5: 0 | AA5: No | AB5: 32 | AC5: 240 | AD5: 120 | AE5: 120 | AG5: 31 | AH5: 19 | AI5: 165 | AJ5: 130 | AK5: 110 | AL5: 89 | AM5: 0 | AN5: 0 | AO5: 6 | AP5: 9 | AQ5: 22 | AR5: 0 | AS5: 306 | AT5: 238 | AU5: 37 | AV5: No | AW5: Yes | AX5: No | AY5: No | AZ5: No | BA5: No | BB5: No | BC5: Yes | BD5: No
A6: Kachin | B6: Momauk | C6: Loi Je Catholic Church | D6: MMR001CMP069 | E6: GCA | F6: Urban | G6: 124 | H6: Committee | I6: Yes | J6: 0 | O6: No | P6: 0.200000003 | Q6: 10 | R6: 5 | S6: 5 | U6: No | V6: 0.200000003 | W6: 10 | X6: 5 | Y6: 5 | AA6: No | AB6: 0.200000003 | AC6: 10 | AD6: 5 | AE6: 5 | AG6: 6 | AH6: 6 | AI6: 26 | AJ6: 28 | AK6: 18 | AL6: 12 | AM6: 0 | AN6: 0 | AO6: 2 | AP6: 3 | AQ6: 0 | AR6: 0 | AS6: 50 | AT6: 46 | AU6: 5 | AV6: No | AW6: No | AX6: Yes | AY6: Yes | AZ6: Yes | BA6: No | BB6: Yes | BC6: Yes | BD6: No
A7: Kachin | B7: Hpakant | C7: Baptist Church, Hmaw Si Sar(Lon Khin) | D7: MMR001CMP169 | E7: GCA | F7: Rural | G7: 36 | H7: Focal point | I7: No | J7: 0 | K7: 3 | L7: 1 | M7: 1 | O7: No | P7: 0.200000003 | Q7: 10 | R7: 3 | S7: 3 | U7: No | V7: 0.200000003 | W7: 10 | X7: 3 | Y7: 3 | AA7: No | AB7: 2 | AC7: 40 | AD7: 15 | AE7: 15 | AG7: 4 | AH7: 10 | AI7: 22 | AJ7: 25 | AK7: 12 | AL7: 18 | AM7: 1 | AN7: 4 | AO7: 0 | AP7: 0 | AQ7: 0 | AR7: 0 | AS7: 39 | AT7: 57 | AU7: 0 | AV7: Yes | AW7: Yes | AX7: Yes | AY7: No | AZ7: No | BA7: No | BB7: Yes | BC7: No | BD7: Yes
A8: Kachin | B8: Momauk | C8: Pa Kahtawng | D8: MMR001CMP126 | E8: NGCA | F8: Mixed | G8: 677 | H8: Focal point | I8: Yes | J8: 0 | O8: Yes | P8: 0 | U8: Yes | V8: 1.600000024 | W8: 30 | X8: 10 | Y8: 10 | AA8: No | AB8: 1.600000024 | AC8: 30 | AD8: 10 | AE8: 10 | AG8: 38 | AH8: 54 | AI8: 205 | AJ8: 223 | AK8: 423 | AL8: 540 | AM8: 10 | AN8: 0 | AO8: 12 | AP8: 44 | AQ8: 0 | AR8: 0 | AS8: 676 | AT8: 0 | AU8: 56 | AV8: No | AW8: Yes | AX8: Yes | AY8: No | AZ8: Yes | BA8: No | BB8: No | BC8: Yes | BD8: No
A9: Kachin | B9: Hpakant | C9: 5 Ward Baptist Church(lon Khin) | D9: MMR001CMP179 | E9: GCA | F9: Rural | G9: 77 | I9: Yes | J9: 0 | O9: No | P9: 0.3000000119 | Q9: 15 | R9: 5 | S9: 5 | U9: No | V9: 0.400000006 | W9: 25 | X9: 7 | Y9: 7 | AA9: No | AB9: 0.400000006 | AC9: 25 | AD9: 7 | AE9: 7 | AG9: 10 | AH9: 6 | AI9: 22 | AJ9: 26 | AK9: 22 | AL9: 27 | AM9: 7 | AN9: 7 | AO9: 0 | AP9: 0 | AQ9: 0 | AR9: 0 | AS9: 61 | AT9: 66 | AU9: 0 | AV9: Yes | AW9: Yes | AX9: Yes | AY9: No | AZ9: No | BA9: No | BB9: Yes | BC9: No | BD9: No
A10: Kachin | B10: Bhamo | C10: Nant Hlaing Church | D10: MMR001CMP054 | E10: GCA | F10: Rural | G10: 20 | H10: Focal point | I10: No | J10: 0.200000003 | K10: 15 | L10: 5 | M10: 5 | O10: No | P10: 0.200000003 | Q10: 15 | R10: 5 | S10: 5 | U10: No | V10: 3.200000048 | W10: 60 | X10: 15 | Y10: 15 | AA10: No | AB10: 3.200000048 | AC10: 60 | AD10: 15 | AE10: 15 | AG10: 8 | AH10: 10 | AI10: 8 | AJ10: 10 | AK10: 6 | AL10: 10 | AM10: 0 | AN10: 0 | AO10: 0 | AP10: 0 | AQ10: 0 | AR10: 0 | AS10: 22 | AT10: 30 | AU10: 0 | AV10: Yes | AW10: Yes | AX10: Yes | AY10: Yes | AZ10: Yes | BA10: Yes | BB10: Yes | BC10: Yes | BD10: No
A11: Kachin | B11: Hpakant | C11: Hpakant Baptist Church, Nam Ma Hpit | D11: MMR001CMP229 | E11: GCA | F11: Rural | G11: 116 | H11: Focal point | I11: Yes | J11: 0 | O11: No | P11: 0.200000003 | Q11: 10 | R11: 3 | S11: 3 | U11: No | V11: 0.200000003 | W11: 10 | X11: 3 | Y11: 3 | AA11: No | AB11: 2 | AC11: 40 | AD11: 15 | AE11: 15 | AG11: 16 | AH11: 20 | AI11: 35 | AJ11: 36 | AK11: 30 | AL11: 23 | AM11: 8 | AN11: 12 | AO11: 0 | AP11: 0 | AQ11: 0 | AR11: 0 | AS11: 89 | AT11: 91 | AU11: 0 | AV11: No | AW11: No | AX11: No | AY11: No | AZ11: No | BA11: No | BB11: No | BC11: No | BD11: No
A12: Kachin | B12: Hpakant | C12: Ward 2 Sai Taung Baptist Church, Seik Mu | D12: MMR001CMP184 | E12: GCA | F12: Rural | G12: 35 | H12: Focal point | I12: Yes | J12: 0 | O12: No | P12: 0.200000003 | Q12: 10 | R12: 3 | S12: 3 | U12: No | V12: 0.200000003 | W12: 10 | X12: 3 | Y12: 3 | AA12: No | AB12: 0.200000003 | AC12: 10 | AD12: 3 | AE12: 3 | AG12: 2 | AH12: 7 | AI12: 11 | AJ12: 10 | AK12: 4 | AL12: 4 | AM12: 4 | AN12: 4 | AO12: 0 | AP12: 0 | AQ12: 0 | AR12: 0 | AS12: 21 | AT12: 25 | AU12: 0 | AV12: No | AW12: No | AX12: No | AY12: No | AZ12: No | BA12: No | BB12: No | BC12: No | BD12: No
A13: Kachin | B13: Hpakant | C13: Sai Nai Baptish Church, Maw Shan Vil., Seki Mu | D13: MMR001CMP183 | E13: GCA | F13: Mixed | G13: 8 | H13: Committee | I13: Yes | O13: No | P13: 0.200000003 | Q13: 20 | R13: 5 | S13: 5 | U13: No | V13: 0.200000003 | W13: 20 | X13: 5 | Y13: 5 | AA13: No | AB13: 0.5 | AC13: 30 | AD13: 15 | AE13: 15 | AG13: 1 | AH13: 2 | AI13: 3 | AJ13: 4 | AK13: 1 | AL13: 1 | AM13: 0 | AN13: 0 | AO13: 0 | AP13: 0 | AQ13: 0 | AR13: 0 | AS13: 5 | AT13: 7 | AU13: 0 | AV13: Yes | AW13: Yes | AX13: Yes | AY13: No | AZ13: No | BA13: No | BB13: No | BC13: No | BD13: Yes
A14: Kachin | B14: Hpakant | C14: Hlaing Naung Baptist | D14: MMR001CMP148 | E14: GCA | F14: Mixed | G14: 14 | H14: Focal point | I14: Yes | J14: 0 | O14: No | P14: 0.6000000238 | Q14: 20 | U14: No | V14: 1 | W14: 30 | AA14: No | AB14: 1 | AC14: 30 | AG14: 3 | AH14: 2 | AI14: 7 | AJ14: 5 | AK14: 3 | AL14: 1 | AM14: 0 | AN14: 2 | AO14: 0 | AP14: 0 | AQ14: 0 | AR14: 0 | AS14: 13 | AT14: 10 | AU14: 0 | AV14: No | AW14: No | AX14: No | AY14: No | AZ14: No | BA14: No | BB14: No | BC14: No | BD14: No
A15: Kachin | B15: Waingmaw | C15: Maina KBC (Bawng Ring) | D15: MMR001CMP040 | E15: GCA | F15: Rural | G15: 428 | H15: Focal point | I15: Yes | J15: 0 | O15: No | P15: 0.1000000015 | R15: 10 | U15: No | V15: 0.75 | X15: 20 | AA15: No | AB15: 3 | AD15: 60 | AG15: 46 | AH15: 41 | AI15: 193 | AJ15: 130 | AK15: 96 | AL15: 123 | AM15: 45 | AN15: 91 | AO15: 8 | AP15: 13 | AQ15: 14 | AR15: 0 | AS15: 340 | AT15: 385 | AU15: 0 | AV15: No | AW15: No | AX15: No | AY15: No | AZ15: No | BA15: No | BB15: No | BC15: No | BD15: No
A16: Kachin | B16: Myitkyina | C16: Shatapru Sut Ngai Tawng | D16: MMR001CMP006 | E16: GCA | F16: Urban | G16: 95 | H16: Committee | I16: No | J16: 0.200000003 | K16: 20 | L16: 10 | O16: No | P16: 0.200000003 | Q16: 20 | R16: 10 | U16: No | V16: 0.200000003 | W16: 20 | X16: 10 | AA16: No | AB16: 0.200000003 | AC16: 20 | AD16: 10 | AG16: 14 | AH16: 11 | AI16: 50 | AJ16: 31 | AK16: 19 | AL16: 28 | AM16: 8 | AN16: 17 | AO16: 0 | AP16: 0 | AQ16: 0 | AR16: 0 | AS16: 91 | AT16: 87 | AU16: 0 | AV16: Yes | AW16: No | AX16: No | AY16: No | AZ16: No | BA16: Yes | BB16: Yes | BC16: No | BD16: No
A17: Kachin | B17: Hpakant | C17: Yumar Baptist Church | D17: MMR001CMP105 | E17: GCA | F17: Rural | G17: 19 | H17: Focal point | I17: Yes | J17: 0 | O17: No | P17: 0.3000000119 | Q17: 15 | R17: 5 | S17: 5 | U17: No | V17: 0.3000000119 | W17: 15 | X17: 5 | Y17: 5 | AA17: No | AB17: 2 | AC17: 40 | AD17: 15 | AE17: 15 | AG17: 2 | AH17: 2 | AI17: 7 | AJ17: 7 | AK17: 4 | AL17: 1 | AM17: 1 | AN17: 1 | AO17: 0 | AP17: 0 | AQ17: 0 | AR17: 0 | AS17: 14 | AT17: 15 | AU17: 0 | AV17: Yes | AW17: Yes | AX17: Yes | AY17: No | AZ17: No | BA17: No | BB17: Yes | BC17: No | BD17: No
A18: Kachin | B18: Myitkyina | C18: Pa Dauk Myaing(Pa La Na) | D18: MMR001CMP162 | E18: GCA | F18: Rural | G18: 43 | H18: Focal point | I18: No | J18: 0 | K18: 5 | L18: 5 | O18: No | P18: 2 | R18: 30 | U18: No | V18: 2 | X18: 30 | AA18: No | AB18: 2 | AD18: 30 | AG18: 6 | AH18: 6 | AI18: 15 | AJ18: 17 | AK18: 10 | AL18: 12 | AM18: 5 | AN18: 6 | AO18: 0 | AP18: 0 | AQ18: 0 | AR18: 0 | AS18: 36 | AT18: 41 | AU18: 0 | AV18: Yes | AW18: Yes | AX18: Yes | AY18: Yes | AZ18: Yes | BA18: Yes | BB18: No | BC18: No | BD18: Yes
A19: Kachin | B19: Waingmaw | C19: Mading Baptist Church | D19: MMR001CMP027 | E19: GCA | F19: Rural | G19: 22 | H19: Focal point | I19: No | J19: 0 | O19: No | P19: 0.1000000015 | Q19: 5 | U19: No | V19: 0.400000006 | W19: 15 | AA19: No | AB19: 0.400000006 | AC19: 15 | AG19: 4 | AH19: 2 | AI19: 12 | AJ19: 10 | AK19: 8 | AL19: 10 | AM19: 5 | AN19: 2 | AO19: 0 | AP19: 0 | AQ19: 0 | AR19: 0 | AS19: 29 | AT19: 24 | AU19: 0 | AV19: Yes | AW19: No | AX19: Yes | AY19: No | AZ19: Yes | BA19: No | BB19: No | BC19: Yes | BD19: No
A20: Kachin | B20: Myitkyina | C20: Nan Kway St. John Catholic Church | D20: MMR001CMP024 | E20: GCA | F20: Rural | G20: 67 | H20: Focal point | I20: Yes | J20: 0 | O20: No | P20: 5 | Q20: 30 | R20: 15 | S20: 15 | U20: No | V20: 5 | W20: 30 | X20: 15 | Y20: 15 | AA20: No | AB20: 5 | AC20: 30 | AD20: 15 | AE20: 15 | AG20: 10 | AH20: 7 | AI20: 31 | AJ20: 27 | AK20: 21 | AL20: 18 | AM20: 6 | AN20: 15 | AO20: 0 | AP20: 0 | AQ20: 0 | AR20: 0 | AS20: 68 | AT20: 67 | AU20: 0 | AV20: Yes | AW20: No | AX20: No | AY20: Yes | AZ20: Yes | BA20: Yes | BB20: Yes | BC20: No | BD20: Yes
A21: Kachin | B21: Waingmaw | C21: Woi Chyai | D21: MMR001CMP116 | E21: NGCA | F21: Urban | G21: 1344 | H21: Focal point | I21: Yes | J21: 0 | O21: Yes | P21: 0 | U21: No | V21: 0.5 | W21: 15 | X21: 5 | AA21: No | AB21: 0.5 | AC21: 15 | AD21: 5 | AG21: 86 | AH21: 112 | AI21: 193 | AJ21: 179 | AK21: 134 | AL21: 133 | AM21: 198 | AN21: 240 | AO21: 14 | AP21: 18 | AQ21: 0 | AR21: 0 | AS21: 611 | AT21: 664 | AU21: 32 | AV21: Yes | AW21: Yes | AX21: Yes | AY21: Yes | AZ21: Yes | BA21: No | BB21: No | BC21: Yes | BD21: No
A22: Kachin | B22: Momauk | C22: Hpun Lum Yang | D22: MMR001CMP122 | E22: NGCA | F22: Rural | G22: 662 | H22: Focal point | I22: Yes | J22: 0 | O22: Yes | P22: 0 | U22: No | V22: 7 | X22: 40 | AA22: No | AB22: 7 | AD22: 40 | AG22: 66 | AH22: 69 | AI22: 175 | AJ22: 205 | AK22: 185 | AL22: 196 | AM22: 20 | AN22: 30 | AO22: 13 | AP22: 39 | AQ22: 0 | AR22: 0 | AS22: 0 | AT22: 0 | AU22: 0 | AV22: Yes | AW22: Yes | AX22: Yes | AY22: Yes | AZ22: Yes | BA22: No | BB22: No | BC22: Yes | BD22: No
A23: Kachin | B23: Momauk | C23: Je Yang Hka | D23: MMR001CMP121 | E23: NGCA | F23: Rural | G23: 1695 | H23: Focal point | I23: Yes | J23: 0 | O23: Yes | P23: 0 | U23: No | V23: 1 | X23: 10 | AA23: No | AB23: 1 | AD23: 10 | AG23: 295 | AH23: 247 | AI23: 930 | AJ23: 883 | AK23: 142 | AL23: 163 | AM23: 25 | AN23: 35 | AO23: 23 | AP23: 85 | AQ23: 0 | AR23: 0 | AS23: 1392 | AT23: 1328 | AU23: 0 | AV23: No | AW23: Yes | AX23: Yes | AY23: Yes | AZ23: Yes | BA23: No | BB23: No | BC23: Yes | BD23: Yes
A24: Kachin | B24: Momauk | C24: Man Bung Catholic compound | D24: MMR001CMP062 | E24: GCA | F24: Urban | G24: 261 | H24: Focal point | I24: Yes | J24: 0 | K24: 0 | L24: 0 | M24: 0 | O24: No | P24: 0.200000003 | Q24: 15 | R24: 4 | S24: 4 | U24: No | V24: 3.200000048 | W24: 60 | X24: 25 | Y24: 25 | AA24: No | AB24: 3.200000048 | AC24: 60 | AD24: 25 | AE24: 25 | AG24: 21 | AH24: 29 | AI24: 87 | AJ24: 124 | AK24: 75 | AL24: 56 | AM24: 18 | AN24: 32 | AO24: 4 | AP24: 0 | AQ24: 0 | AR24: 0 | AS24: 201 | AT24: 241 | AU24: 0 | AV24: No | AW24: Yes | AX24: Yes | AY24: Yes | AZ24: Yes | BA24: No | BB24: Yes | BC24: Yes | BD24: No
A25: Kachin | B25: Momauk | C25: Dum Bung | D25: MMR001CMP123 | E25: NGCA | F25: Rural | G25: 116 | H25: Focal point | I25: Yes | J25: 0 | O25: Yes | P25: 0 | U25: No | V25: 35 | W25: 720 | X25: 120 | AA25: No | AB25: 35 | AC25: 720 | AD25: 120 | AG25: 19 | AH25: 19 | AI25: 82 | AJ25: 73 | AK25: 8 | AL25: 21 | AM25: 4 | AN25: 8 | AO25: 3 | AP25: 10 | AQ25: 0 | AR25: 0 | AS25: 113 | AT25: 121 | AU25: 0 | AV25: Yes | AW25: Yes | AX25: Yes | AY25: Yes | AZ25: Yes | BA25: No | BB25: No | BC25: Yes | BD25: No
A26: Kachin | B26: Mansi | C26: Man Wing Baptist Church | D26: MMR001CMP133 | E26: GCA | F26: Rural | G26: 111 | H26: Focal point | I26: No | J26: 0 | K26: 15 | L26: 5 | O26: No | P26: 0 | Q26: 20 | U26: No | V26: 0 | W26: 15 | X26: 5 | AA26: No | AB26: 0 | AC26: 15 | AD26: 5 | AG26: 8 | AH26: 13 | AI26: 97 | AJ26: 71 | AK26: 26 | AL26: 26 | AM26: 6 | AN26: 3 | AO26: 2 | AP26: 0 | AQ26: 0 | AR26: 0 | AS26: 137 | AT26: 113 | AU26: 0 | AV26: No | AW26: No | AX26: No | AY26: No | AZ26: No | BA26: No | BB26: No | BC26: No | BD26: No
A27: Kachin | B27: Myitkyina | C27: Jan Mai Kawng Catholic Church | D27: MMR001CMP019 | E27: GCA | F27: Urban | G27: 105 | H27: Focal point | I27: Yes | J27: 0 | O27: No | P27: 3 | Q27: 20 | R27: 10 | U27: No | V27: 3 | W27: 20 | X27: 10 | AA27: No | AB27: 3 | AC27: 20 | AD27: 10 | AG27: 18 | AH27: 18 | AI27: 58 | AJ27: 44 | AK27: 27 | AL27: 26 | AM27: 5 | AN27: 16 | AO27: 3 | AP27: 0 | AQ27: 0 | AR27: 0 | AS27: 158 | AT27: 104 | AU27: 0 | AV27: Yes | AW27: No | AX27: Yes | AY27: Yes | AZ27: No | BA27: No | BB27: No | BC27: No | BD27: Yes
A28: Kachin | B28: Waingmaw | C28: Maina Catholic Church (St. Joseph) | D28: MMR001CMP029 | E28: GCA | F28: Rural | G28: 222 | H28: Focal point | I28: Yes | J28: 0 | O28: No | P28: 0.5 | R28: 10 | U28: No | V28: 0.5 | X28: 10 | AA28: No | AB28: 0.5 | AD28: 10 | AG28: 42 | AH28: 44 | AI28: 77 | AJ28: 90 | AK28: 68 | AL28: 61 | AM28: 38 | AN28: 60 | AO28: 6 | AP28: 0 | AQ28: 0 | AR28: 0 | AS28: 225 | AT28: 255 | AU28: 0 | AV28: No | AW28: No | AX28: Yes | AY28: Yes | AZ28: No | BA28: No | BB28: No | BC28: No | BD28: No
A29: Kachin | B29: Shwegu | C29: Shwe Gu Catholic Church | D29: MMR001CMP068 | E29: GCA | F29: Urban | G29: 41 | H29: Focal point | I29: Yes | J29: 0 | O29: No | P29: 1.600000024 | Q29: 30 | R29: 15 | S29: 15 | U29: No | V29: 1.600000024 | W29: 30 | X29: 15 | Y29: 15 | AA29: No | AB29: 1.600000024 | AC29: 30 | AD29: 15 | AE29: 15 | AG29: 4 | AH29: 2 | AI29: 18 | AJ29: 22 | AK29: 12 | AL29: 19 | AM29: 4 | AN29: 6 | AO29: 0 | AP29: 0 | AQ29: 0 | AR29: 0 | AS29: 38 | AT29: 49 | AU29: 0 | AV29: No | AW29: No | AX29: No | AY29: No | AZ29: No | BA29: No | BB29: No | BC29: No | BD29: No
A30: Kachin | B30: Bhamo | C30: AD-2000 Tharthana Compound | D30: MMR001CMP050 | E30: GCA | F30: Urban | G30: 274 | H30: Focal point | I30: Yes | J30: 0 | O30: Yes | P30: 0 | U30: No | V30: 0.400000006 | W30: 15 | X30: 5 | Y30: 5 | AA30: No | AB30: 0.400000006 | AC30: 15 | AD30: 5 | AE30: 5 | AG30: 15 | AH30: 20 | AI30: 174 | AJ30: 161 | AK30: 62 | AL30: 49 | AM30: 31 | AN30: 65 | AO30: 3 | AP30: 5 | AQ30: 0 | AR30: 0 | AS30: 282 | AT30: 295 | AU30: 8 | AV30: No | AW30: No | AX30: No | AY30: No | AZ30: No | BA30: No | BB30: No | BC30: No | BD30: No
A31: Kachin | B31: Mansi | C31: Lana Zup Ja | D31: MMR001CMP128 | E31: NGCA | F31: Rural | G31: 545 | H31: Committee | I31: Yes | J31: 0 | O31: Yes | P31: 0 | U31: No | V31: 0.200000003 | W31: 15 | X31: 5 | Y31: 5 | AA31: No | AB31: 0.200000003 | AC31: 15 | AD31: 5 | AE31: 5 | AG31: 46 | AH31: 66 | AI31: 274 | AJ31: 354 | AK31: 210 | AL31: 156 | AM31: 0 | AN31: 0 | AO31: 9 | AP31: 38 | AQ31: 16 | AR31: 0 | AS31: 530 | AT31: 576 | AU31: 63 | AV31: No | AW31: No | AX31: Yes | AY31: No | AZ31: No | BA31: No | BB31: No | BC31: Yes | BD31: No
A32: Kachin | B32: Mansi | C32: Man Wing Catholic Church 1 | D32: MMR001CMP228 | E32: GCA | F32: Rural | G32: 123 | H32: Committee | I32: Yes | J32: 0 | O32: No | P32: 0.200000003 | Q32: 10 | R32: 5 | S32: 5 | U32: No | V32: 0.200000003 | W32: 20 | X32: 5 | Y32: 5 | AA32: No | AB32: 0.200000003 | AC32: 20 | AD32: 5 | AE32: 5 | AG32: 53 | AH32: 53 | AI32: 268 | AJ32: 211 | AK32: 93 | AL32: 122 | AM32: 32 | AN32: 39 | AO32: 7 | AP32: 8 | AQ32: 0 | AR32: 0 | AS32: 446 | AT32: 425 | AU32: 15 | AV32: Yes | AW32: Yes | AX32: No | AY32: No | AZ32: No | BA32: No | BB32: Yes | BC32: No | BD32: No
A33: Kachin | B33: Waingmaw | C33: Maga Yang | D33: MMR001CMP119 | E33: NGCA | F33: Rural | G33: 608 | H33: Focal point | I33: Yes | J33: 0 | O33: Yes | P33: 0 | U33: Yes | V33: 0 | X33: 0 | AA33: No | AB33: 80 | AD33: 240 | AG33: 70 | AH33: 60 | AI33: 246 | AJ33: 112 | AK33: 17 | AL33: 35 | AM33: 13 | AN33: 28 | AO33: 10 | AP33: 26 | AQ33: 7 | AR33: 0 | AS33: 346 | AT33: 235 | AU33: 0 | AV33: No | AW33: Yes | AX33: Yes | AY33: Yes | AZ33: Yes | BA33: No | BB33: No | BC33: Yes | BD33: No
A34: Kachin | B34: Myitkyina | C34: Tat Kone Galile Baptist Church | D34: MMR001CMP003 | E34: GCA | F34: Urban | G34: 32 | H34: Committee | I34: Yes | J34: 0 | O34: No | P34: 0.200000003 | Q34: 10 | R34: 5 | U34: No | V34: 0.3000000119 | W34: 15 | X34: 5 | AA34: No | AB34: 1 | AC34: 30 | AD34: 10 | AG34: 3 | AH34: 2 | AI34: 13 | AJ34: 18 | AK34: 8 | AL34: 15 | AM34: 2 | AN34: 5 | AO34: 0 | AP34: 0 | AQ34: 0 | AR34: 0 | AS34: 26 | AT34: 40 | AU34: 0 | AV34: No | AW34: No | AX34: No | AY34: No | AZ34: No | BA34: No | BB34: No | BC34: No | BD34: No
A35: Kachin | B35: Myitkyina | C35: Shwe Zet Baptist Church | D35: MMR001CMP009 | E35: GCA | F35: Urban | G35: 90 | H35: Focal point | I35: Yes | J35: 0 | O35: No | P35: 0.5249999762 | Q35: 15 | R35: 5 | U35: No | V35: 0.5249999762 | W35: 15 | X35: 5 | AA35: No | AB35: 0.5249999762 | AC35: 15 | AD35: 5 | AG35: 20 | AH35: 17 | AI35: 39 | AJ35: 24 | AK35: 22 | AL35: 30 | AM35: 14 | AN35: 6 | AO35: 7 | AP35: 7 | AQ35: 6 | AR35: 5 | AS35: 95 | AT35: 97 | AU35: 25 | AV35: Yes | AW35: Yes | AX35: No | AY35: No | AZ35: No | BA35: Yes | BB35: Yes | BC35: No | BD35: No
A36: Kachin | B36: Myitkyina | C36: Jan Mai Kawng Baptist Church | D36: MMR001CMP018 | E36: GCA | F36: Urban | G36: 203 | H36: Focal point | I36: Yes | J36: 0 | O36: No | P36: 0.400000006 | Q36: 3 | U36: No | V36: 0.200000003 | W36: 20 | X36: 10 | AA36: No | AB36: 2 | AC36: 50 | AD36: 20 | AG36: 16 | AH36: 24 | AI36: 85 | AJ36: 90 | AK36: 61 | AL36: 53 | AM36: 46 | AN36: 48 | AO36: 0 | AP36: 0 | AQ36: 0 | AR36: 0 | AS36: 208 | AT36: 215 | AU36: 0 | AV36: Yes | AW36: Yes | AX36: Yes | AY36: Yes | AZ36: Yes | BA36: Yes | BB36: Yes | BC36: No | BD36: Yes
A37: Kachin | B37: Myitkyina | C37: Tat Kone Baptist Church | D37: MMR001CMP001 | E37: GCA | F37: Urban | G37: 54 | H37: Committee | I37: No | J37: 1 | K37: 30 | L37: 10 | O37: No | P37: 1 | Q37: 30 | R37: 10 | U37: No | V37: 1 | W37: 30 | X37: 10 | AA37: No | AB37: 2 | AC37: 50 | AD37: 20 | AG37: 8 | AH37: 6 | AI37: 15 | AJ37: 17 | AK37: 6 | AL37: 10 | AM37: 8 | AN37: 15 | AO37: 0 | AP37: 0 | AQ37: 0 | AR37: 0 | AS37: 37 | AT37: 48 | AU37: 0 | AV37: No | AW37: No | AX37: No | AY37: No | AZ37: No | BA37: No | BB37: No | BC37: No | BD37: No
A38: Kachin | B38: Myitkyina | C38: Le Kone Bethlehem Church | D38: MMR001CMP015 | E38: GCA | F38: Urban | G38: 108 | H38: Focal point | I38: Yes | J38: 0 | O38: No | P38: 0.1000000015 | U38: No | V38: 0.5 | AA38: No | AB38: 0.5 | AG38: 7 | AH38: 3 | AI38: 8 | AJ38: 9 | AK38: 26 | AL38: 24 | AM38: 24 | AN38: 24 | AO38: 0 | AP38: 0 | AQ38: 0 | AR38: 0 | AS38: 65 | AT38: 50 | AU38: 0 | AV38: No | AW38: No | AX38: No | AY38: No | AZ38: No | BA38: No | BB38: No | BC38: No | BD38: No
A39: Kachin | B39: Puta-O | C39: Lung Sut | D39: MMR001CMP234 | E39: GCA | F39: Urban | G39: 59 | H39: Focal point | I39: Yes | J39: 0 | O39: No | P39: 0.200000003 | Q39: 5 | U39: No | V39: 1 | W39: 30 | X39: 10 | AA39: No | AB39: 3 | AC39: 1.200000048 | AD39: 30 | AG39: 9 | AH39: 6 | AI39: 23 | AJ39: 12 | AK39: 13 | AL39: 6 | AM39: 8 | AN39: 12 | AO39: 0 | AP39: 0 | AQ39: 0 | AR39: 0 | AS39: 53 | AT39: 36 | AU39: 0 | AV39: Yes | AW39: No | AX39: Yes | AY39: Yes | AZ39: No | BA39: Yes | BB39: No | BC39: No | BD39: Yes
A40: Kachin | B40: Myitkyina | C40: Tat Kone San Pya Baptist Church | D40: MMR001CMP005 | E40: GCA | F40: Urban | G40: 43 | H40: Focal point | I40: No | J40: 0.25 | K40: 3 | L40: 1 | O40: No | P40: 0.1000000015 | Q40: 20 | R40: 10 | U40: No | V40: 0.200000003 | W40: 25 | X40: 10 | AA40: No | AB40: 0.200000003 | AC40: 25 | AD40: 10 | AG40: 6 | AH40: 3 | AI40: 14 | AJ40: 11 | AK40: 19 | AL40: 15 | AM40: 4 | AN40: 1 | AO40: 0 | AP40: 0 | AQ40: 0 | AR40: 0 | AS40: 43 | AT40: 30 | AU40: 0 | AV40: Yes | AW40: Yes | AX40: Yes | AY40: Yes | AZ40: Yes | BA40: Yes | BB40: Yes | BC40: Yes | BD40: Yes
A41: Kachin | B41: Myitkyina | C41: Le Kone Ziun Baptist Church | D41: MMR001CMP014 | E41: GCA | F41: Urban | G41: 138 | H41: Focal point | I41: Yes | J41: 0 | O41: No | P41: 0.1000000015 | Q41: 5 | U41: No | V41: 0.3000000119 | W41: 10 | AA41: No | AB41: 0.3000000119 | AC41: 10 | AG41: 10 | AH41: 10 | AI41: 50 | AJ41: 40 | AK41: 61 | AL41: 50 | AM41: 43 | AN41: 50 | AO41: 0 | AP41: 0 | AQ41: 0 | AR41: 0 | AS41: 164 | AT41: 150 | AU41: 0 | AV41: No | AW41: No | AX41: No | AY41: No | AZ41: No | BA41: No | BB41: No | BC41: No | BD41: No
A42: Kachin | B42: Myitkyina | C42: Njang Dung Baptist Church | D42: MMR001CMP002 | E42: GCA | F42: Urban | G42: 57 | H42: Focal point | I42: Yes | J42: 0 | O42: Yes | P42: 0 | U42: No | V42: 0.200000003 | X42: 15 | AA42: No | AB42: 0.200000003 | AD42: 15 | AG42: 6 | AH42: 6 | AI42: 21 | AJ42: 27 | AK42: 12 | AL42: 12 | AM42: 1 | AN42: 5 | AO42: 6 | AP42: 8 | AR42: 0 | AS42: 40 | AT42: 50 | AU42: 0 | AV42: No | AW42: Yes | AX42: Yes | AY42: No | AZ42: Yes | BA42: No | BB42: Yes | BC42: No | BD42: No
A43: Kachin | B43: Myitkyina | C43: Kyun Pin Thar Baptist Church | D43: MMR001CMP013 | E43: GCA | F43: Urban | G43: 44 | H43: Committee | I43: Yes | J43: 0 | O43: No | P43: 0.200000003 | Q43: 5 | U43: No | V43: 2 | W43: 5 | AA43: No | AB43: 1 | AC43: 20 | AG43: 1 | AH43: 4 | AI43: 6 | AJ43: 4 | AK43: 4 | AL43: 4 | AM43: 3 | AN43: 2 | AO43: 5 | AP43: 16 | AQ43: 24 | AR43: 15 | AS43: 14 | AT43: 11 | AU43: 60 | AV43: Yes | AW43: No | AX43: Yes | AY43: No | AZ43: No | BA43: No | BB43: No | BC43: No | BD43: Yes
A44: Kachin | B44: Mogaung | C44: Mang Hawng Baptist Church | D44: MMR001CMP077 | E44: GCA | F44: Mixed | G44: 18 | H44: Committee | I44: No | J44: 0 | O44: No | P44: 0 | U44: No | V44: 0.5 | W44: 15 | AA44: No | AB44: 0.5 | AC44: 15 | AG44: 5 | AH44: 3 | AI44: 15 | AJ44: 8 | AK44: 2 | AL44: 3 | AM44: 1 | AN44: 3 | AO44: 0 | AP44: 0 | AQ44: 0 | AR44: 0 | AS44: 23 | AT44: 17 | AU44: 0 | AV44: No | AW44: No | AX44: No | AY44: No | AZ44: No | BA44: No | BB44: No | BC44: No | BD44: No
A45: Kachin | B45: Mogaung | C45: Nat Gyi Kone Baptist Church | D45: MMR001CMP079 | E45: GCA | F45: Urban | G45: 14 | H45: Focal point | I45: No | J45: 0.400000006 | K45: 15 | O45: No | P45: 0.6000000238 | Q45: 20 | U45: No | V45: 0.6000000238 | W45: 20 | AA45: No | AB45: 0.6000000238 | AC45: 20 | AG45: 3 | AH45: 2 | AI45: 4 | AJ45: 4 | AK45: 3 | AL45: 4 | AM45: 0 | AN45: 0 | AO45: 0 | AP45: 0 | AQ45: 0 | AR45: 0 | AS45: 10 | AT45: 10 | AU45: 0 | AV45: No | AW45: No | AX45: No | AY45: No | AZ45: No | BA45: No | BB45: No | BC45: No | BD45: No
A46: Kachin | B46: Mogaung | C46: Kyun Taw Baptist Church | D46: MMR001CMP078 | E46: GCA | F46: Mixed | G46: 13 | H46: Focal point | I46: Yes | J46: 0 | O46: No | P46: 0.1000000015 | Q46: 5 | R46: 2 | U46: No | V46: 0.400000006 | W46: 20 | X46: 10 | AA46: No | AB46: 0.400000006 | AC46: 20 | AD46: 10 | AG46: 1 | AH46: 0 | AI46: 12 | AJ46: 5 | AK46: 8 | AL46: 1 | AM46: 5 | AN46: 3 | AO46: 0 | AP46: 0 | AQ46: 0 | AR46: 0 | AS46: 26 | AT46: 9 | AU46: 0 | AV46: No | AW46: No | AX46: No | AY46: No | AZ46: No | BA46: No | BB46: No | BC46: No | BD46: No
A47: Kachin | B47: Mohnyin | C47: Nawng Ing (Indawgyi) Baptist Church | D47: MMR001CMP152 | E47: GCA | F47: Rural | G47: 18 | H47: Committee | I47: Yes | J47: 0 | O47: No | P47: 0.3000000119 | Q47: 10 | U47: No | V47: 0.400000006 | W47: 15 | AA47: No | AB47: 0.400000006 | AC47: 15 | AG47: 3 | AH47: 0 | AI47: 15 | AJ47: 8 | AK47: 10 | AL47: 3 | AM47: 2 | AN47: 7 | AO47: 0 | AP47: 0 | AQ47: 0 | AR47: 0 | AS47: 30 | AT47: 18 | AU47: 0 | AV47: No | AW47: No | AX47: No | AY47: No | AZ47: No | BA47: No | BB47: No | BC47: No | BD47: No
A48: Kachin | B48: Waingmaw | C48: Qtr. 2 Myoma Baptist Church | D48: MMR001CMP025 | E48: GCA | F48: Urban | G48: 65 | H48: Committee | I48: No | J48: 0.3000000119 | K48: 5 | O48: No | P48: 0.400000006 | Q48: 10 | U48: No | V48: 0.400000006 | W48: 10 | AA48: No | AB48: 0.400000006 | AC48: 10 | AG48: 0 | AH48: 3 | AI48: 27 | AJ48: 11 | AK48: 23 | AL48: 10 | AM48: 12 | AN48: 20 | AO48: 0 | AP48: 0 | AQ48: 0 | AR48: 0 | AS48: 42 | AT48: 44 | AU48: 0 | AV48: No | AW48: No | AX48: No | AY48: No | AZ48: No | BA48: No | BB48: No | BC48: No | BD48: No
A49: Kachin | B49: Myitkyina | C49: Maliyang Baptist Church | D49: MMR001CMP016 | E49: GCA | F49: Urban | G49: 60 | H49: Focal point | I49: No | J49: 0 | K49: 3 | O49: No | P49: 0 | Q49: 3 | U49: No | V49: 0 | W49: 3 | AA49: No | AB49: 0 | AG49: 3 | AH49: 5 | AI49: 26 | AJ49: 17 | AK49: 13 | AL49: 19 | AM49: 10 | AN49: 7 | AO49: 0 | AP49: 0 | AQ49: 0 | AR49: 0 | AS49: 52 | AT49: 48 | AU49: 0 | AV49: No | AW49: No | AX49: No | AY49: No | AZ49: No | BA49: No | BB49: No | BC49: No | BD49: No
A50: Kachin | B50: Myitkyina | C50: Maw Hpawng Hka Nan Baptist Church | D50: MMR001CMP020 | E50: GCA | F50: Rural | G50: 21 | H50: Committee | I50: No | J50: 0.02500000037 | K50: 15 | O50: No | P50: 0.02500000037 | Q50: 15 | U50: No | V50: 0.02500000037 | W50: 15 | AA50: No | AB50: 2 | AD50: 15 | AG50: 1 | AH50: 6 | AI50: 8 | AJ50: 11 | AK50: 5 | AL50: 5 | AM50: 0 | AN50: 3 | AO50: 0 | AP50: 0 | AQ50: 0 | AR50: 0 | AS50: 14 | AT50: 25 | AU50: 0 | AV50: No | AW50: Yes | AX50: No | AY50: No | AZ50: No | BA50: No | BB50: Yes | BC50: Yes | BD50: No
A51: Kachin | B51: Myitkyina | C51: Tat Kone COC Baptist - Tat Kone Htoi San | D51: MMR001CMP023 | E51: GCA | F51: Urban | G51: 54 | H51: Focal point | I51: No | J51: 0 | O51: No | P51: 0.1000000015 | Q51: 3 | R51: 5 | U51: No | V51: 3 | X51: 15 | AA51: No | AB51: 3 | AD51: 15 | AG51: 0 | AH51: 0 | AI51: 19 | AJ51: 23 | AK51: 10 | AL51: 8 | AM51: 5 | AN51: 6 | AO51: 0 | AP51: 0 | AQ51: 0 | AR51: 0 | AS51: 34 | AT51: 37 | AU51: 0 | AV51: Yes | AW51: Yes | AX51: Yes | AY51: No | AZ51: No | BA51: No | BB51: No | BC51: Yes | BD51: No
A52: Kachin | B52: Myitkyina | C52: Tat Kone Emanuel Church | D52: MMR001CMP004 | E52: GCA | F52: Urban | G52: 6 | H52: Committee | I52: Yes | O52: No | P52: 0.5 | Q52: 20 | U52: No | V52: 0.5 | W52: 20 | AA52: No | AB52: 1 | AC52: 30 | AG52: 1 | AH52: 2 | AI52: 3 | AJ52: 3 | AK52: 0 | AL52: 1 | AM52: 0 | AN52: 0 | AO52: 0 | AP52: 0 | AQ52: 0 | AR52: 0 | AS52: 4 | AT52: 6 | AU52: 0 | AV52: No | AW52: No | AX52: No | AY52: No | AZ52: No | BA52: No | BB52: No | BC52: No | BD52: No
A53: Kachin | B53: Waingmaw | C53: Hkat Cho | D53: MMR001CMP028 | E53: GCA | F53: Rural | G53: 99 | H53: Focal point | I53: No | J53: 0.125 | K53: 4 | O53: No | P53: 0.125 | Q53: 4 | U53: No | V53: 0.25 | W53: 5 | AA53: No | AB53: 0.25 | AC53: 5 | AG53: 8 | AH53: 5 | AI53: 30 | AJ53: 25 | AK53: 12 | AL53: 13 | AM53: 2 | AN53: 3 | AO53: 0 | AP53: 0 | AQ53: 0 | AR53: 0 | AS53: 52 | AT53: 46 | AU53: 0 | AV53: No | AW53: No | AX53: No | AY53: No | AZ53: No | BA53: No | BB53: No | BC53: No | BD53: No
A54: Kachin | B54: Waingmaw | C54: Thargaya Lisu Baptist Church | D54: MMR001CMP037 | E54: GCA | F54: Urban | G54: 44 | H54: Focal point | I54: No | J54: 0.125 | K54: 2 | O54: No | P54: 0.25 | Q54: 5 | U54: No | V54: 0.25 | W54: 5 | AA54: No | AB54: 0.75 | AD54: 5 | AG54: 4 | AH54: 4 | AI54: 14 | AJ54: 11 | AK54: 13 | AL54: 17 | AM54: 6 | AN54: 2 | AO54: 0 | AQ54: 0 | AR54: 0 | AS54: 37 | AT54: 34 | AU54: 0 | AV54: No | AW54: No | AX54: No | AY54: No | AZ54: No | BA54: No | BB54: No | BC54: No | BD54: No
A55: Kachin | B55: Waingmaw | C55: Maina AG Church | D55: MMR001CMP031 | E55: GCA | F55: Urban | G55: 143 | H55: Focal point | I55: Yes | J55: 0 | O55: No | P55: 1 | Q55: 15 | U55: No | V55: 1 | W55: 15 | AA55: No | AB55: 1 | AC55: 20 | AG55: 20 | AH55: 23 | AI55: 68 | AJ55: 74 | AK55: 47 | AL55: 46 | AM55: 10 | AN55: 20 | AO55: 2 | AP55: 0 | AQ55: 0 | AR55: 0 | AS55: 145 | AT55: 163 | AU55: 0 | AV55: Yes | AW55: Yes | AX55: No | AY55: No | AZ55: No | BA55: Yes | BB55: No | BC55: Yes | BD55: No
A56: Kachin | B56: Waingmaw | C56: Maina Lawang Baptist Church | D56: MMR001CMP039 | E56: GCA | F56: Rural | G56: 48 | H56: Focal point | I56: Yes | J56: 0 | O56: No | P56: 0.1000000015 | Q56: 10 | R56: 5 | U56: No | V56: 0.1000000015 | W56: 10 | X56: 5 | AA56: No | AB56: 0.1000000015 | AG56: 10 | AH56: 4 | AI56: 8 | AJ56: 9 | AK56: 12 | AL56: 9 | AM56: 9 | AN56: 14 | AO56: 0 | AP56: 0 | AQ56: 0 | AR56: 0 | AS56: 39 | AT56: 36 | AU56: 0 | AV56: Yes | AW56: Yes | AX56: Yes | AY56: No | AZ56: No | BA56: No | BB56: Yes | BC56: No | BD56: Yes
A57: Kachin | B57: Myitkyina | C57: Maw Hpawng Lhaovo Baptist Church | D57: MMR001CMP021 | E57: GCA | F57: Rural | G57: 14 | H57: Committee | I57: Yes | J57: 0 | O57: No | P57: 0.75 | Q57: 10 | U57: No | V57: 0.75 | W57: 10 | AA57: No | AB57: 1 | AD57: 10 | AG57: 1 | AH57: 2 | AI57: 2 | AJ57: 7 | AK57: 5 | AL57: 4 | AM57: 3 | AN57: 4 | AO57: 2 | AP57: 5 | AQ57: 5 | AR57: 6 | AS57: 11 | AT57: 17 | AU57: 18 | AV57: No | AW57: Yes | AX57: Yes | AY57: No | AZ57: No | BA57: Yes | BB57: Yes | BC57: No | BD57: Yes
A58: Kachin | B58: Myitkyina | C58: Du Kahtawng Qtr. 14 | D58: MMR001CMP012 | E58: GCA | F58: Urban | G58: 6 | H58: Committee | I58: Yes | J58: 0 | O58: No | P58: 0.3000000119 | R58: 15 | U58: No | V58: 0.3000000119 | X58: 15 | AA58: No | AB58: 0.1000000015 | AD58: 5 | AG58: 0 | AH58: 1 | AI58: 1 | AJ58: 4 | AK58: 3 | AL58: 1 | AM58: 0 | AN58: 0 | AO58: 14 | AP58: 3 | AQ58: 19 | AR58: 7 | AS58: 4 | AT58: 6 | AU58: 43 | AV58: Yes | AW58: No | AX58: No | AY58: No | AZ58: No | BA58: No | BB58: Yes | BC58: No | BD58: No
A59: Kachin | B59: Waingmaw | C59: Qtr. 4 Monestry (Thargaya Thayett Taw) | D59: MMR001CMP026 | E59: GCA | F59: Urban | G59: 88 | H59: Focal point | I59: No | J59: 0.375 | K59: 10 | O59: No | P59: 0.375 | Q59: 10 | U59: No | V59: 0.375 | W59: 10 | AA59: No | AB59: 1 | AD59: 5 | AG59: 7 | AH59: 10 | AI59: 38 | AJ59: 26 | AK59: 18 | AL59: 25 | AM59: 2 | AN59: 5 | AO59: 0 | AP59: 0 | AQ59: 0 | AR59: 0 | AS59: 65 | AT59: 68 | AU59: 0 | AV59: Yes | AW59: No | AX59: Yes | AY59: No | AZ59: No | BA59: No | BB59: No | BC59: No | BD59: Yes
A60: Kachin | B60: Chipwi | C60: Chipwi KBC camp | D60: MMR001CMP042 | E60: GCA | F60: Urban | G60: 109 | I60: Yes | J60: 0 | O60: No | P60: 0.125 | Q60: 5 | U60: No | V60: 0.125 | W60: 5 | AA60: No | AB60: 0.125 | AC60: 5 | AG60: 18 | AH60: 17 | AI60: 57 | AJ60: 45 | AK60: 21 | AL60: 13 | AM60: 36 | AN60: 65 | AO60: 4 | AP60: 7 | AQ60: 0 | AR60: 0 | AS60: 132 | AT60: 140 | AU60: 11 | AV60: No | AW60: Yes | AX60: No | AY60: No | AZ60: No | BA60: No | BB60: No | BC60: Yes | BD60: No
A61: Kachin | B61: Chipwi | C61: Lhaovao Baptist Church (LBC) | D61: MMR001CMP195 | E61: GCA | F61: Urban | G61: 143 | H61: Focal point | I61: No | J61: 0.125 | K61: 3 | O61: No | P61: 0.125 | Q61: 3 | U61: No | V61: 0.125 | W61: 3 | AA61: No | AB61: 0.25 | AC61: 5 | AG61: 16 | AH61: 8 | AI61: 40 | AJ61: 30 | AK61: 20 | AL61: 30 | AM61: 10 | AN61: 12 | AP61: 0 | AQ61: 0 | AS61: 86 | AT61: 80 | AU61: 0 | AV61: Yes | AW61: Yes | AX61: Yes | AY61: No | AZ61: No | BA61: No | BB61: Yes | BC61: No | BD61: No
A62: Kachin | B62: Waingmaw | C62: Qtr. 2 Lhaovo Baptist Church | D62: MMR001CMP032 | E62: GCA | F62: Urban | G62: 91 | H62: Focal point | I62: Yes | J62: 0 | O62: No | P62: 0.125 | Q62: 3 | U62: No | V62: 0.25 | W62: 5 | AA62: No | AB62: 0.25 | AC62: 5 | AG62: 6 | AH62: 7 | AI62: 25 | AJ62: 32 | AK62: 32 | AL62: 24 | AM62: 10 | AN62: 12 | AO62: 0 | AP62: 0 | AQ62: 0 | AR62: 0 | AS62: 73 | AT62: 75 | AU62: 0 | AV62: Yes | AW62: Yes | AX62: Yes | AY62: No | AZ62: No | BA62: Yes | BB62: Yes | BC62: Yes | BD62: No
A63: Kachin | B63: Waingmaw | C63: Waingmaw AG Church | D63: MMR001CMP038 | E63: GCA | F63: Urban | G63: 70 | H63: Committee | I63: Yes | J63: 0 | O63: No | P63: 0.125 | Q63: 5 | U63: No | V63: 0.125 | W63: 5 | AA63: No | AB63: 0.125 | AC63: 5 | AG63: 2 | AH63: 3 | AI63: 19 | AJ63: 20 | AK63: 15 | AL63: 19 | AM63: 15 | AN63: 16 | AO63: 0 | AP63: 0 | AQ63: 15 | AR63: 0 | AS63: 41 | AT63: 88 | AU63: 0 | AV63: No | AW63: No | AX63: No | AY63: No | AZ63: No | BA63: No | BB63: No | BC63: No | BD63: No
A64: Kachin | B64: Waingmaw | C64: Qtr. 3 Mu-yin Baptist Church | D64: MMR001CMP030 | E64: GCA | F64: Urban | G64: 31 | H64: Focal point | I64: No | J64: 0.75 | K64: 15 | O64: No | P64: 0.75 | Q64: 15 | U64: No | V64: 0.75 | W64: 15 | AA64: No | AB64: 0.75 | AC64: 15 | AG64: 1 | AH64: 0 | AI64: 13 | AJ64: 6 | AK64: 9 | AL64: 12 | AM64: 9 | AN64: 12 | AO64: 0 | AP64: 0 | AQ64: 0 | AR64: 0 | AS64: 32 | AT64: 30 | AU64: 0 | AV64: Yes | AW64: No | AX64: Yes | AY64: No | AZ64: No | BA64: No | BB64: No | BC64: No | BD64: Yes
A65: Kachin | B65: Myitkyina | C65: Wun Tho Buddhist Monastery | D65: MMR001CMP022 | E65: GCA | F65: Urban | G65: 7 | I65: No | J65: 0 | O65: No | P65: 1 | R65: 15 | U65: No | V65: 1 | X65: 15 | AA65: No | AB65: 1 | AD65: 15 | AG65: 0 | AH65: 0 | AI65: 0 | AJ65: 1 | AK65: 1 | AL65: 9 | AM65: 2 | AN65: 0 | AO65: 0 | AP65: 0 | AQ65: 0 | AR65: 0 | AS65: 3 | AT65: 10 | AU65: 0 | AV65: No | AW65: Yes | AX65: Yes | AY65: No | AZ65: No | BA65: Yes | BB65: No | BC65: Yes | BD65: No
A66: Shan_North | B66: Namhkan | C66: Nam Hkam (KBC Jaw Wang) II | D66: MMR015CMP214 | E66: GCA | F66: Urban | G66: 38 | H66: Committee | I66: Yes | J66: 0 | O66: Yes | P66: 0 | S66: 5 | U66: No | V66: 0 | Y66: 10 | AA66: No | AB66: 0 | AE66: 15 | AG66: 9 | AH66: 5 | AI66: 23 | AJ66: 17 | AK66: 12 | AL66: 25 | AM66: 8 | AN66: 2 | AO66: 0 | AP66: 0 | AQ66: 0 | AR66: 0 | AS66: 52 | AT66: 49 | AU66: 0 | AV66: No | AW66: No | AX66: No | AY66: No | AZ66: No | BA66: No | BB66: No | BC66: No | BD66: No
A67: Shan_North | B67: Kutkai | C67: Nam Hpak Ka Mare | D67: MMR015CMP007 | E67: GCA | F67: Rural | G67: 64 | H67: Focal point | I67: No | J67: 1 | K67: 10 | L67: 3 | O67: No | P67: 0.25 | Q67: 10 | R67: 3 | U67: No | V67: 1 | W67: 10 | X67: 3 | AA67: No | AB67: 1 | AC67: 10 | AD67: 3 | AG67: 13 | AH67: 11 | AI67: 38 | AJ67: 33 | AK67: 27 | AL67: 28 | AM67: 0 | AN67: 0 | AO67: 0 | AP67: 0 | AQ67: 0 | AR67: 0 | AS67: 78 | AT67: 72 | AU67: 0 | AV67: No | AW67: No | AX67: No | AY67: No | AZ67: No | BA67: No | BB67: No | BC67: No | BD67: No
A68: Kachin | B68: Waingmaw | C68: Hkau Shau (BP 12) | D68: MMR001CMP115 | E68: NGCA | F68: Sub-urban | G68: 136 | H68: Focal point | I68: Yes | J68: 0 | O68: Yes | P68: 0 | U68: No | V68: 70 | X68: 210 | AA68: No | AB68: 70 | AD68: 210 | AG68: 20 | AH68: 31 | AI68: 69 | AJ68: 73 | AK68: 18 | AL68: 23 | AM68: 0 | AN68: 0 | AO68: 0 | AP68: 0 | AQ68: 0 | AR68: 0 | AS68: 107 | AT68: 127 | AU68: 16 | AV68: Yes | AW68: Yes | AX68: Yes | AY68: Yes | AZ68: Yes | BA68: No | BB68: No | BC68: Yes | BD68: Yes
A69: Kachin | B69: Waingmaw | C69: Zai Awng / Mung Ga Zup | D69: MMR001CMP111 | E69: NGCA | F69: Sub-urban | G69: 680 | H69: Focal point | I69: Yes | J69: 0 | O69: Yes | P69: 0 | U69: Yes | V69: 0 | AA69: No | AB69: 0 | AG69: 89 | AH69: 75 | AI69: 280 | AJ69: 228 | AK69: 160 | AL69: 192 | AM69: 27 | AN69: 38 | AO69: 0 | AP69: 0 | AQ69: 0 | AR69: 0 | AS69: 556 | AT69: 533 | AU69: 33 | AV69: No | AW69: No | AX69: No | AY69: No | AZ69: No | BA69: No | BB69: No | BC69: No | BD69: No
A70: Kachin | B70: Chipwi | C70: Hpare Hkyer - BP6 | D70: MMR001CMP043 | E70: NGCA | F70: Sub-urban | G70: 154 | H70: Focal point | I70: Yes | J70: 0 | O70: Yes | P70: 0 | U70: Yes | V70: 0 | AA70: Yes | AB70: 0 | AG70: 27 | AH70: 29 | AI70: 129 | AJ70: 106 | AK70: 27 | AL70: 16 | AM70: 0 | AN70: 0 | AO70: 4 | AP70: 14 | AQ70: 0 | AR70: 0 | AS70: 183 | AT70: 151 | AU70: 18 | AV70: Yes | AW70: No | AX70: Yes | AY70: Yes | AZ70: Yes | BA70: No | BB70: No | BC70: Yes | BD70: Yes
A71: Kachin | B71: Waingmaw | C71: Shing Jai | D71: MMR001CMP041 | E71: GCA | F71: Rural | G71: 172 | H71: Focal point | I71: Yes | J71: 0 | O71: Yes | P71: 0 | U71: Yes | V71: 3 | X71: 10 | Y71: 10 | AA71: Yes | AB71: 12 | AD71: 45 | AE71: 45 | AG71: 25 | AH71: 25 | AI71: 90 | AJ71: 78 | AK71: 68 | AL71: 54 | AM71: 8 | AN71: 6 | AO71: 4 | AP71: 4 | AQ71: 0 | AR71: 0 | AS71: 101 | AT71: 163 | AU71: 8 | AV71: Yes | AW71: Yes | AX71: Yes | AY71: Yes | AZ71: Yes | BA71: No | BB71: No | BC71: Yes | BD71: No
A72: Kachin | B72: Mansi | C72: Mansi Baptist Church | D72: MMR001CMP066 | E72: GCA | F72: Urban | G72: 221 | H72: Committee | I72: Yes | J72: 0 | K72: 5 | O72: No | P72: 0 | U72: No | V72: 0 | AA72: No | AB72: 0 | AG72: 30 | AH72: 32 | AI72: 87 | AJ72: 49 | AK72: 39 | AL72: 48 | AM72: 13 | AN72: 11 | AO72: 4 | AP72: 0 | AQ72: 0 | AR72: 0 | AS72: 169 | AT72: 140 | AU72: 0 | AV72: No | AW72: No | AX72: No | AY72: No | AZ72: No | BA72: No | BB72: No | BC72: No | BD72: No
A73: Shan_North | B73: Namhkan | C73: Namhkan - Pang Long KBC | D73: MMR015CMP215 | E73: GCA | F73: Urban | G73: 126 | H73: Committee | I73: No | J73: 0 | K73: 10 | L73: 5 | M73: 5 | O73: No | P73: 0 | Q73: 15 | R73: 10 | S73: 10 | U73: No | V73: 0 | W73: 20 | X73: 10 | Y73: 10 | AA73: No | AB73: 0 | AC73: 20 | AD73: 10 | AE73: 10 | AG73: 36 | AH73: 19 | AI73: 58 | AJ73: 39 | AK73: 17 | AL73: 16 | AM73: 4 | AN73: 8 | AO73: 4 | AP73: 6 | AQ73: 0 | AR73: 0 | AS73: 0 | AT73: 0 | AU73: 0 | AV73: Yes | AW73: Yes | AX73: Yes | AY73: Yes | AZ73: Yes | BA73: Yes | BB73: Yes | BC73: Yes | BD73: Yes
A74: Kachin | B74: Momauk | C74: Momauk Baptist Church | D74: MMR001CMP056 | E74: GCA | F74: Urban | G74: 207 | H74: Committee | I74: Yes | J74: 1 | K74: 15 | L74: 5 | O74: No | P74: 0 | U74: No | V74: 0 | AA74: No | AB74: 0 | AG74: 49 | AH74: 44 | AI74: 77 | AJ74: 153 | AK74: 89 | AL74: 122 | AM74: 52 | AN74: 63 | AO74: 10 | AP74: 0 | AQ74: 0 | AR74: 0 | AS74: 372 | AT74: 402 | AU74: 0 | AV74: No | AW74: No | AX74: No | AY74: No | AZ74: No | BA74: No | BB74: No | BC74: No | BD74: No
A75: Shan_North | B75: Muse | C75: Muse Baptist Church | D75: MMR015CMP213 | E75: GCA | F75: Urban | G75: 56 | H75: Committee | I75: Yes | J75: 0 | O75: No | P75: 1 | Q75: 40 | R75: 10 | S75: 10 | U75: No | V75: 0 | W75: 5 | AA75: No | AB75: 0 | AC75: 5 | AG75: 10 | AH75: 16 | AI75: 31 | AJ75: 26 | AK75: 18 | AL75: 23 | AM75: 3 | AN75: 5 | AO75: 0 | AP75: 0 | AQ75: 0 | AR75: 0 | AS75: 62 | AT75: 70 | AU75: 0 | AV75: Yes | AW75: Yes | AX75: Yes | AY75: Yes | AZ75: Yes | BA75: Yes | BB75: Yes | BC75: Yes | BD75: Yes
A76: Shan_North | B76: Kutkai | C76: Zup Aung Camp | D76: MMR015CMP020 | E76: GCA | F76: Rural | G76: 218 | H76: Focal point | I76: Yes | J76: 0 | O76: No | P76: 1 | Q76: 30 | R76: 15 | U76: No | V76: 1.5 | W76: 45 | X76: 15 | AA76: No | AB76: 0 | AG76: 0 | AH76: 0 | AI76: 0 | AJ76: 0 | AK76: 0 | AL76: 0 | AM76: 0 | AN76: 0 | AO76: 0 | AP76: 0 | AQ76: 0 | AR76: 0 | AS76: 0 | AT76: 0 | AU76: 0 | AV76: No | AW76: No | AX76: No | AY76: No | AZ76: No | BA76: No | BB76: No | BC76: No | BD76: No
A77: Shan_North | B77: Kutkai | C77: Mine Yu Lay village | D77: MMR015CMP018 | E77: GCA | F77: Rural | G77: 63 | H77: Committee | I77: Yes | J77: 0 | O77: No | P77: 3 | Q77: 1 | U77: No | V77: 3 | W77: 1 | AA77: No | AB77: 0 | AG77: 14 | AH77: 19 | AI77: 34 | AJ77: 55 | AK77: 2 | AL77: 3 | AM77: 3 | AN77: 0 | AO77: 0 | AP77: 0 | AQ77: 0 | AR77: 0 | AS77: 53 | AT77: 77 | AU77: 0 | AV77: No | AW77: No | AX77: No | AY77: No | AZ77: No | BA77: No | BB77: No | BC77: No | BD77: No
A78: Shan_North | B78: Kutkai | C78: Kutkai downtown (KBC Church) | D78: MMR015CMP016 | E78: GCA | F78: Urban | G78: 65 | H78: Committee | I78: No | J78: 0 | K78: 5 | L78: 2 | O78: No | P78: 0 | Q78: 5 | R78: 2 | U78: No | V78: 0 | W78: 15 | X78: 5 | AA78: No | AB78: 0 | AC78: 15 | AD78: 5 | AG78: 18 | AH78: 10 | AI78: 49 | AJ78: 35 | AK78: 27 | AL78: 15 | AM78: 7 | AN78: 5 | AO78: 0 | AP78: 0 | AQ78: 0 | AR78: 0 | AS78: 101 | AT78: 65 | AU78: 0 | AV78: No | AW78: No | AX78: No | AY78: No | AZ78: No | BA78: No | BB78: No | BC78: No | BD78: No
A79: Shan_North | B79: Namtu | C79: Nam Tu Baptist | D79: MMR015CMP014 | E79: GCA | F79: Urban | G79: 9 | I79: No | J79: 0 | K79: 2 | O79: No | P79: 0 | Q79: 5 | U79: No | V79: 0 | W79: 10 | AA79: No | AB79: 0 | AC79: 40 | AG79: 1 | AH79: 0 | AI79: 0 | AJ79: 0 | AK79: 0 | AL79: 0 | AM79: 0 | AN79: 0 | AO79: 0 | AP79: 0 | AQ79: 0 | AR79: 0 | AS79: 10 | AT79: 11 | AU79: 0 | AV79: No | AW79: No | AX79: No | AY79: No | AZ79: No | BA79: No | BB79: No | BC79: No | BD79: No
A80: Kachin | B80: Hpakant | C80: Nant Ma Hpit Catholic Church | D80: MMR001CMP103 | E80: GCA | F80: Rural | G80: 48 | H80: Focal point | I80: Yes | J80: 0 | O80: No | P80: 0 | Q80: 5 | R80: 3 | U80: No | V80: 0 | W80: 5 | X80: 3 | AA80: No | AB80: 2 | AC80: 60 | AD80: 30 | AE80: 30 | AG80: 8 | AH80: 7 | AI80: 9 | AJ80: 15 | AK80: 13 | AL80: 8 | AM80: 6 | AN80: 8 | AO80: 3 | AP80: 0 | AQ80: 0 | AR80: 0 | AS80: 36 | AT80: 38 | AU80: 0 | AV80: No | AW80: No | AX80: Yes | AY80: Yes | AZ80: Yes | BA80: Yes | BB80: Yes | BC80: No | BD80: Yes
A81: Kachin | B81: Waingmaw | C81: Pajau / Jan Mai | D81: MMR001CMP120 | E81: NGCA | F81: Sub-urban | G81: 191 | H81: Focal point | I81: Yes | J81: 0 | O81: Yes | P81: 0 | U81: No | V81: 45 | X81: 150 | Y81: 90 | AA81: No | AB81: 45 | AD81: 150 | AE81: 90 | AG81: 14 | AH81: 15 | AI81: 69 | AJ81: 54 | AK81: 10 | AL81: 14 | AM81: 0 | AN81: 0 | AO81: 3 | AP81: 14 | AQ81: 0 | AR81: 0 | AS81: 93 | AT81: 83 | AU81: 17 | AV81: No | AW81: No | AX81: No | AY81: No | AZ81: No | BA81: No | BB81: No | BC81: No | BD81: No
A82: Kachin | B82: Momauk | C82: Loi Je Lisu Camp | D82: MMR001CMP070 | E82: GCA | F82: Urban | G82: 188 | H82: Focal point | I82: Yes | J82: 2 | K82: 20 | L82: 10 | O82: Yes | P82: 1 | Q82: 10 | U82: Yes | V82: 1 | W82: 10 | AA82: Yes | AB82: 1 | AC82: 10 | AG82: 17 | AH82: 18 | AI82: 83 | AJ82: 75 | AK82: 50 | AL82: 51 | AM82: 38 | AN82: 50 | AO82: 0 | AP82: 0 | AQ82: 0 | AR82: 0 | AS82: 188 | AT82: 194 | AU82: 0 | AV82: No | AW82: No | AX82: No | AY82: No | AZ82: No | BA82: No | BB82: No | BC82: No | BD82: No
A83: Shan_North | B83: Namhkan | C83: Nam Hkam Catholic Church ( St. Thomas I) | D83: MMR015CMP003 | E83: GCA | F83: Urban | G83: 48 | H83: Committee | I83: Yes | J83: 0 | O83: No | P83: 1.200000048 | Q83: 60 | R83: 3 | U83: No | V83: 1 | W83: 40 | X83: 15 | AA83: No | AB83: 1 | AC83: 40 | AD83: 15 | AG83: 5 | AH83: 7 | AI83: 21 | AJ83: 18 | AK83: 21 | AL83: 19 | AM83: 14 | AN83: 15 | AO83: 0 | AP83: 0 | AQ83: 0 | AR83: 0 | AS83: 61 | AT83: 59 | AU83: 0 | AV83: Yes | AW83: No | AX83: Yes | AY83: No | AZ83: No | BA83: No | BB83: No | BC83: Yes | BD83: No
A84: Shan_North | B84: Muse | C84: Muse Catholic Church | D84: MMR015CMP216 | E84: GCA | F84: Urban | G84: 26 | H84: Committee | I84: No | J84: 0.5 | K84: 20 | L84: 10 | O84: No | P84: 0.5 | Q84: 20 | R84: 10 | U84: No | V84: 0.5 | W84: 20 | X84: 10 | AA84: No | AB84: 0.5 | AC84: 20 | AD84: 10 | AG84: 7 | AH84: 3 | AI84: 8 | AJ84: 11 | AK84: 8 | AL84: 11 | AM84: 0 | AN84: 3 | AO84: 0 | AP84: 0 | AQ84: 0 | AR84: 0 | AS84: 0 | AT84: 0 | AU84: 0 | AV84: No | AW84: No | AX84: No | AY84: No | AZ84: No | BA84: No | BB84: No | BC84: No | BD84: No
A85: Shan_North | B85: Kutkai | C85: Mungji Pa Dabang (Catholic Church) | D85: MMR015CMP217 | E85: GCA | F85: Mixed | G85: 23 | H85: Focal point | I85: No | J85: 0.009999999776 | K85: 15 | L85: 5 | O85: No | P85: 0.200000003 | Q85: 15 | R85: 5 | U85: No | V85: 0.200000003 | W85: 15 | X85: 5 | AA85: No | AB85: 0.200000003 | AC85: 15 | AD85: 5 | AG85: 4 | AH85: 4 | AI85: 18 | AJ85: 6 | AK85: 8 | AL85: 16 | AM85: 0 | AN85: 3 | AO85: 0 | AP85: 0 | AQ85: 0 | AR85: 0 | AS85: 30 | AT85: 29 | AU85: 0 | AV85: No | AW85: No | AX85: No | AY85: No | AZ85: No | BA85: No | BB85: No | BC85: No | BD85: No
A86: Shan_North | B86: Manton | C86: Mandung - RC | D86: MMR015CMP209 | E86: GCA | F86: Urban | G86: 31 | H86: Committee | I86: No | J86: 0.1000000015 | K86: 10 | O86: No | P86: 0.1000000015 | Q86: 10 | U86: No | V86: 0.200000003 | W86: 15 | AA86: No | AB86: 0.1000000015 | AC86: 10 | AG86: 5 | AH86: 7 | AI86: 16 | AJ86: 18 | AK86: 6 | AL86: 13 | AM86: 4 | AN86: 1 | AO86: 0 | AP86: 0 | AQ86: 0 | AR86: 0 | AS86: 31 | AT86: 39 | AU86: 0 | AV86: No | AW86: No | AX86: No | AY86: No | AZ86: No | BA86: No | BB86: No | BC86: No | BD86: No
A87: Shan_North | B87: Kutkai | C87: Kutkai downtown (RC Church) | D87: MMR015CMP017 | E87: GCA | F87: Urban | G87: 31 | H87: Focal point | I87: Yes | J87: 0 | O87: No | P87: 0.1000000015 | Q87: 10 | R87: 5 | U87: No | V87: 0.3000000119 | W87: 15 | X87: 5 | AA87: No | AB87: 0.3000000119 | AC87: 15 | AD87: 5 | AG87: 7 | AH87: 7 | AI87: 16 | AJ87: 20 | AK87: 10 | AL87: 6 | AM87: 5 | AN87: 4 | AO87: 0 | AP87: 3 | AQ87: 0 | AR87: 0 | AS87: 37 | AT87: 38 | AU87: 3 | AV87: Yes | AW87: Yes | AX87: Yes | AY87: Yes | AZ87: Yes | BA87: Yes | BB87: Yes | BC87: Yes | BD87: No
A88: Kachin | B88: Shwegu | C88: Shwe Gu Baptist Church | D88: MMR001CMP067 | E88: GCA | F88: Urban | G88: 83 | H88: Focal point | I88: Yes | J88: 0 | K88: 3 | O88: Yes | Q88: 10 | U88: Yes | V88: 1 | W88: 20 | X88: 10 | AA88: Yes | AB88: 1 | AC88: 20 | AG88: 7 | AH88: 6 | AI88: 31 | AJ88: 23 | AK88: 32 | AL88: 38 | AM88: 12 | AN88: 30 | AO88: 2 | AP88: 54 | AQ88: 70 | AR88: 42 | AS88: 84 | AT88: 69 | AU88: 153 | AV88: No | AW88: No | AX88: No | AY88: No | AZ88: No | BA88: No | BB88: No | BC88: No | BD88: No
A89: Kachin | B89: Momauk | C89: Loi Je Baptist Church | D89: MMR001CMP071 | E89: GCA | F89: Urban | G89: 29 | H89: Focal point | I89: Yes | J89: 0 | K89: 5 | O89: Yes | P89: 1 | Q89: 20 | U89: Yes | V89: 1 | W89: 20 | AA89: No | AB89: 1 | AC89: 20 | AG89: 5 | AH89: 4 | AI89: 14 | AJ89: 15 | AK89: 10 | AL89: 18 | AM89: 14 | AN89: 19 | AO89: 0 | AP89: 0 | AQ89: 0 | AR89: 0 | AS89: 43 | AT89: 56 | AU89: 0 | AV89: No | AW89: No | AX89: No | AY89: No | AZ89: No | BA89: No | BB89: No | BC89: No | BD89: No
A90: Shan_North | B90: Kutkai | C90: Mungji Pa Dabang (Baptist Church) | D90: MMR015CMP006 | E90: GCA | F90: Rural | G90: 49 | H90: Focal point | I90: Yes | J90: 0 | K90: 5 | O90: Yes | P90: 0 | U90: No | V90: 1 | W90: 20 | X90: 5 | AA90: No | AB90: 1 | AC90: 20 | AD90: 5 | AG90: 18 | AH90: 13 | AI90: 31 | AJ90: 26 | AK90: 14 | AL90: 18 | AM90: 0 | AN90: 5 | AO90: 0 | AP90: 0 | AQ90: 0 | AR90: 0 | AS90: 0 | AT90: 0 | AU90: 0 | AV90: No | AW90: No | AX90: No | AY90: No | AZ90: No | BA90: No | BB90: No | BC90: No | BD90: No
A91: Kachin | B91: Momauk | C91: Nyaung Na Pin | D91: MMR001CMP072 | E91: GCA | F91: Mixed | G91: 50 | H91: Focal point | I91: Yes | J91: 0 | K91: 5 | O91: No | P91: 1 | Q91: 15 | U91: No | V91: 1 | W91: 15 | AA91: No | AB91: 1 | AC91: 15 | AG91: 15 | AH91: 28 | AI91: 18 | AJ91: 31 | AK91: 20 | AL91: 19 | AM91: 6 | AN91: 11 | AO91: 0 | AP91: 0 | AQ91: 0 | AR91: 0 | AS91: 59 | AT91: 89 | AU91: 0 | AV91: No | AW91: No | AX91: No | AY91: No | AZ91: No | BA91: No | BB91: No | BC91: No | BD91: No
A92: Kachin | B92: Bhamo | C92: Htoi San Church | D92: MMR001CMP052 | E92: GCA | F92: Urban | G92: 43 | H92: Focal point | I92: Yes | J92: 0 | L92: 5 | O92: Yes | P92: 1 | Q92: 15 | R92: 5 | U92: Yes | V92: 1 | W92: 15 | X92: 5 | AA92: Yes | AB92: 1 | AC92: 15 | AD92: 5 | AG92: 6 | AH92: 9 | AI92: 24 | AJ92: 26 | AK92: 7 | AL92: 13 | AM92: 2 | AN92: 9 | AO92: 4 | AP92: 0 | AQ92: 0 | AR92: 0 | AS92: 39 | AT92: 57 | AU92: 0 | AV92: No | AW92: No | AX92: No | AY92: No | AZ92: No | BA92: No | BB92: No | BC92: No | BD92: No
A93: Kachin | B93: Bhamo | C93: Robert Church | D93: MMR001CMP047 | E93: GCA | F93: Urban | G93: 652 | H93: Focal point | I93: Yes | K93: 10 | O93: Yes | P93: 0 | Q93: 5 | U93: No | V93: 0 | W93: 5 | AA93: No | AB93: 0 | AC93: 3 | AG93: 51 | AH93: 48 | AI93: 271 | AJ93: 239 | AK93: 162 | AL93: 153 | AM93: 40 | AN93: 66 | AO93: 5 | AP93: 0 | AQ93: 0 | AR93: 0 | AS93: 525 | AT93: 506 | AU93: 0 | AV93: Yes | AW93: Yes | AX93: Yes | AY93: No | AZ93: No | BA93: No | BB93: Yes | BC93: No | BD93: No
A94: Kachin | B94: Bhamo | C94: Aung Thar Church | D94: MMR001CMP194 | E94: GCA | F94: Mixed | G94: 12 | H94: Committee | I94: Yes | K94: 5 | O94: Yes | P94: 2 | R94: 15 | U94: Yes | V94: 2 | X94: 15 | AA94: Yes | AB94: 2 | AD94: 15 | AG94: 1 | AH94: 1 | AI94: 7 | AJ94: 9 | AK94: 4 | AL94: 3 | AM94: 1 | AN94: 3 | AO94: 0 | AP94: 0 | AQ94: 0 | AR94: 0 | AS94: 13 | AT94: 16 | AU94: 0 | AV94: No | AW94: No | AX94: No | AY94: No | AZ94: No | BA94: No | BB94: No | BC94: No | BD94: No
A95: Kachin | B95: Bhamo | C95: Phan Khar Kone | D95: MMR001CMP193 | E95: GCA | F95: Rural | G95: 157 | H95: Focal point | I95: Yes | J95: 0 | K95: 5 | O95: Yes | P95: 0 | Q95: 5 | U95: No | V95: 0 | AA95: No | AB95: 0 | AG95: 20 | AH95: 28 | AI95: 39 | AJ95: 41 | AK95: 36 | AL95: 40 | AM95: 31 | AN95: 39 | AO95: 4 | AP95: 6 | AQ95: 0 | AR95: 0 | AS95: 126 | AT95: 148 | AU95: 10 | AV95: No | AW95: No | AX95: No | AY95: No | AZ95: No | BA95: No | BB95: No | BC95: No | BD95: No
A96: Kachin | B96: Mansi | C96: Maing Khaung | D96: MMR001CMP218 | E96: GCA | F96: Rural | G96: 372 | H96: Focal point | I96: Yes | J96: 0 | K96: 5 | O96: Yes | P96: 1 | Q96: 5 | U96: Yes | V96: 1 | W96: 15 | X96: 5 | AA96: Yes | AB96: 1 | AC96: 15 | AD96: 5 | AG96: 12 | AH96: 11 | AI96: 105 | AJ96: 185 | AK96: 95 | AL96: 82 | AM96: 52 | AN96: 66 | AO96: 0 | AP96: 0 | AQ96: 0 | AR96: 0 | AS96: 1165 | AT96: 344 | AU96: 0 | AV96: No | AW96: No | AX96: No | AY96: No | AZ96: No | BA96: No | BB96: No | BC96: No | BD96: No
A97: Kachin | B97: Momauk | C97: Seng Ja | D97: MMR001CMP073 | E97: GCA | F97: Rural | G97: 45 | H97: Focal point | I97: Yes | J97: 0 | L97: 5 | O97: No | P97: 0 | U97: No | V97: 0 | AA97: No | AB97: 0 | AG97: 3 | AH97: 3 | AI97: 15 | AJ97: 18 | AK97: 12 | AL97: 18 | AM97: 13 | AN97: 1 | AO97: 0 | AP97: 0 | AQ97: 0 | AR97: 0 | AS97: 43 | AT97: 40 | AU97: 0 | AV97: No | AW97: No | AX97: No | AY97: No | AZ97: No | BA97: No | BB97: No | BC97: No | BD97: No
A98: Kachin | B98: Chipwi | C98: Saw Zam | D98: MMR001CMP225 | E98: GCA | F98: Rural | G98: 30 | H98: Focal point | I98: Yes | J98: 0 | O98: No | P98: 0 | Q98: 20 | R98: 5 | S98: 5 | U98: No | V98: 5 | W98: 120 | X98: 30 | Y98: 30 | AA98: No | AB98: 5 | AC98: 120 | AD98: 30 | AE98: 30 | AG98: 7 | AH98: 10 | AI98: 13 | AJ98: 12 | AK98: 5 | AL98: 3 | AM98: 0 | AN98: 1 | AO98: 2 | AP98: 0 | AQ98: 0 | AR98: 0 | AS98: 25 | AT98: 26 | AU98: 2 | AV98: No | AW98: Yes | AX98: Yes | AY98: Yes | AZ98: Yes | BA98: Yes | BB98: Yes | BC98: Yes | BD98: No
A99: Shan_North | B99: Manton | C99: Mandung - Jinghpaw | D99: MMR015CMP009 | E99: GCA | F99: Urban | G99: 37 | H99: Focal point | I99: No | J99: 1 | K99: 3 | L99: 1 | O99: No | P99: 0.02500000037 | Q99: 5 | R99: 2 | U99: No | V99: 0.02500000037 | W99: 5 | X99: 2 | AA99: No | AB99: 0.02500000037 | AC99: 5 | AD99: 2 | AG99: 5 | AH99: 4 | AI99: 0 | AJ99: 0 | AK99: 0 | AL99: 0 | AM99: 0 | AN99: 0 | AO99: 0 | AP99: 0 | AQ99: 0 | AR99: 0 | AS99: 0 | AT99: 0 | AU99: 0 | AV99: No | AW99: No | AX99: No | AY99: No | AZ99: No | BA99: No | BB99: No | BC99: No | BD99: No
A100: Kachin | B100: Bhamo | C100: Lisu Boarding-House | D100: MMR001CMP049 | E100: GCA | F100: Urban | G100: 116 | H100: Committee | I100: No | J100: 1 | K100: 30 | L100: 8 | O100: No | P100: 1 | Q100: 30 | R100: 8 | U100: No | V100: 2 | W100: 60 | X100: 15 | AA100: No | AB100: 2 | AC100: 60 | AD100: 15 | AG100: 21 | AH100: 16 | AI100: 58 | AJ100: 51 | AK100: 41 | AL100: 15 | AM100: 4 | AN100: 9 | AO100: 0 | AP100: 0 | AQ100: 0 | AR100: 0 | AS100: 124 | AT100: 91 | AU100: 0 | AV100: Yes | AW100: Yes | AX100: Yes | AY100: No | AZ100: No | BA100: No | BB100: No | BC100: Yes | BD100: No
A101: Kachin | B101: Bhamo | C101: Ta Gun Taing Monastery (Shwe Kyi Na) | D101: MMR001CMP055 | E101: GCA | F101: Urban | G101: 25 | H101: Committee | I101: Yes | O101: No | P101: 1 | Q101: 20 | R101: 8 | U101: No | V101: 1 | W101: 20 | X101: 8 | AA101: No | AB101: 1.600000024 | AC101: 25 | AD101: 10 | AG101: 0 | AH101: 3 | AI101: 22 | AJ101: 9 | AK101: 4 | AL101: 8 | AM101: 2 | AN101: 4 | AO101: 0 | AP101: 0 | AQ101: 0 | AR101: 0 | AS101: 28 | AT101: 24 | AU101: 0 | AV101: Yes | AW101: No | AX101: Yes | AY101: No | AZ101: No | BA101: No | BB101: No | BC101: No | BD101: No
A102: Kachin | B102: Waingmaw | C102: Border Post 8 | D102: MMR001CMP113 | E102: NGCA | F102: Rural | G102: 155 | H102: Focal point | I102: Yes | J102: 0 | O102: Yes | P102: 0 | U102: No | V102: 0 | AA102: No | AB102: 0 | AG102: 18 | AH102: 18 | AI102: 46 | AJ102: 37 | AK102: 26 | AL102: 37 | AM102: 16 | AN102: 20 | AO102: 5 | AP102: 12 | AQ102: 0 | AR102: 0 | AS102: 106 | AT102: 112 | AU102: 17 | AV102: No | AW102: No | AX102: Yes | AY102: No | AZ102: Yes | BA102: No | BB102: No | BC102: Yes | BD102: No
A103: Kachin | B103: Waingmaw | C103: Post 6 Camp | D103: MMR001CMP160 | E103: NGCA | F103: Rural | G103: 90 | H103: Focal point | I103: Yes | J103: 0 | O103: Yes | P103: 0 | U103: Yes | V103: 0 | AA103: No | AB103: 0 | AG103: 10 | AH103: 5 | AI103: 47 | AJ103: 47 | AK103: 35 | AL103: 27 | AM103: 10 | AN103: 13 | AO103: 3 | AP103: 8 | AQ103: 10 | AR103: 0 | AS103: 102 | AT103: 92 | AU103: 21 | AV103: Yes | AW103: No | AX103: Yes | AY103: Yes | AZ103: Yes | BA103: No | BB103: No | BC103: Yes | BD103: Yes
A104: Kachin | B104: Momauk | C104: Ni Thaw Ka Monestry | D104: MMR001CMP059 | E104: GCA | F104: Urban | G104: 24 | H104: Committee | I104: No | J104: 0 | K104: 10 | L104: 3 | O104: No | P104: 0 | Q104: 18 | R104: 6 | U104: No | V104: 0 | W104: 18 | X104: 6 | AA104: No | AB104: 0 | AC104: 18 | AD104: 6 | AG104: 3 | AH104: 3 | AI104: 8 | AJ104: 2 | AK104: 10 | AL104: 4 | AM104: 1 | AN104: 7 | AO104: 0 | AP104: 0 | AQ104: 0 | AR104: 0 | AS104: 22 | AT104: 16 | AU104: 0 | AV104: No | AW104: No | AX104: No | AY104: No | AZ104: No | BA104: No | BB104: No | BC104: No | BD104: No
A105: Kachin | B105: Chipwi | C105: Pan Wa | D105: MMR001CMP210 | E105: GCA | F105: Mixed | G105: 60 | H105: Focal point | I105: No | J105: 0.5 | K105: 30 | L105: 10 | M105: 10 | O105: No | P105: 0.5 | Q105: 30 | R105: 10 | S105: 10 | U105: No | V105: 0.5 | W105: 30 | X105: 10 | Y105: 10 | AA105: No | AB105: 0.5 | AC105: 30 | AD105: 10 | AE105: 10 | AG105: 7 | AH105: 7 | AI105: 40 | AJ105: 34 | AK105: 11 | AL105: 3 | AM105: 1 | AN105: 1 | AO105: 0 | AP105: 0 | AQ105: 0 | AR105: 0 | AS105: 59 | AT105: 45 | AU105: 0 | AV105: No | AW105: Yes | AX105: Yes | AY105: Yes | AZ105: Yes | BA105: No | BB105: No | BC105: Yes | BD105: No
A106: Kachin | B106: Bhamo | C106: Yoe Kyi Monastery | D106: MMR001CMP053 | E106: GCA | F106: Urban | G106: 15 | H106: Committee | I106: No | J106: 1 | K106: 30 | L106: 10 | M106: 10 | O106: No | P106: 1 | Q106: 30 | R106: 10 | S106: 10 | U106: No | V106: 1 | W106: 30 | X106: 10 | Y106: 10 | AA106: No | AB106: 1 | AC106: 30 | AD106: 10 | AE106: 10 | AG106: 2 | AH106: 0 | AI106: 3 | AJ106: 4 | AK106: 6 | AL106: 4 | AM106: 1 | AN106: 1 | AO106: 0 | AP106: 0 | AQ106: 0 | AR106: 0 | AS106: 12 | AT106: 9 | AU106: 0 | AV106: Yes | AW106: No | AX106: Yes | AY106: No | AZ106: No | BA106: No | BB106: No | BC106: No | BD106: No
A107: Kachin | B107: Hpakant | C107: 5 Ward RC Church(lon Khin) | D107: MMR001CMP168 | E107: GCA | F107: Rural | G107: 66 | H107: Focal point | I107: No | J107: 0 | K107: 10 | L107: 5 | O107: No | P107: 1 | Q107: 30 | R107: 20 | U107: No | V107: 1 | W107: 30 | X107: 20 | AA107: No | AB107: 1 | AC107: 30 | AD107: 20 | AG107: 5 | AH107: 4 | AI107: 25 | AJ107: 21 | AK107: 7 | AL107: 15 | AM107: 11 | AN107: 2 | AO107: 2 | AP107: 0 | AQ107: 0 | AR107: 0 | AS107: 48 | AT107: 42 | AU107: 0 | AV107: No | AW107: No | AX107: Yes | AY107: Yes | AZ107: Yes | BA107: No | BB107: No | BC107: Yes | BD107: No
A108: Kachin | B108: Mansi | C108: Man Wing Catholic Church 2 | D108: MMR001CMP132 | E108: GCA | F108: Rural | G108: 458 | H108: Committee | I108: Yes | J108: 0 | O108: Yes | P108: 0 | U108: Yes | V108: 0 | AA108: No | AB108: 1.600000024 | AC108: 25 | AD108: 10 | AE108: 10 | AG108: 13 | AH108: 17 | AI108: 42 | AJ108: 40 | AK108: 20 | AL108: 24 | AM108: 34 | AN108: 31 | AO108: 3 | AP108: 0 | AQ108: 0 | AR108: 0 | AS108: 109 | AT108: 112 | AU108: 0 | AV108: No | AW108: No | AX108: No | AY108: No | AZ108: No | BA108: No | BB108: No | BC108: No | BD108: No
A109: Kachin | B109: Mansi | C109: Bum Tsit Pa | D109: MMR001CMP129 | E109: NGCA | F109: Rural | G109: 245 | H109: Focal point | I109: Yes | J109: 0 | O109: Yes | P109: 0 | U109: No | V109: 3.200000048 | W109: 180 | X109: 60 | Y109: 60 | AA109: No | AB109: 3.200000048 | AC109: 180 | AD109: 60 | AE109: 60 | AG109: 70 | AH109: 120 | AI109: 52 | AJ109: 250 | AK109: 250 | AL109: 400 | AM109: 0 | AN109: 0 | AO109: 12 | AP109: 0 | AQ109: 34 | AR109: 0 | AS109: 372 | AT109: 770 | AU109: 46 | AV109: No | AW109: No | AX109: No | AY109: No | AZ109: No | BA109: No | BB109: No | BC109: No | BD109: No
A110: Kachin | B110: Myitkyina | C110: Du Kahtawng Qtr. 5 | D110: MMR001CMP011 | E110: GCA | F110: Urban | G110: 50 | H110: Focal point | I110: Yes | J110: 0 | O110: No | P110: 0.3000000119 | R110: 15 | U110: No | V110: 0.3000000119 | X110: 15 | AA110: No | AB110: 0.1000000015 | AD110: 15 | AG110: 0 | AH110: 1 | AI110: 6 | AJ110: 2 | AK110: 1 | AL110: 2 | AM110: 0 | AN110: 1 | AO110: 14 | AP110: 3 | AQ110: 19 | AR110: 7 | AS110: 7 | AT110: 6 | AU110: 43 | AV110: No | AW110: No | AX110: No | AY110: No | AZ110: No | BA110: No | BB110: No | BC110: No | BD110: No
A111: Kachin | B111: Myitkyina | C111: Man Hkring Baptist Church | D111: MMR001CMP008 | E111: GCA | F111: Urban | G111: 101 | H111: Focal point | I111: Yes | J111: 0 | O111: No | P111: 0.200000003 | Q111: 10 | U111: No | V111: 0.200000003 | W111: 10 | AA111: No | AB111: 0.200000003 | AC111: 10 | AG111: 17 | AH111: 19 | AI111: 50 | AJ111: 43 | AK111: 18 | AL111: 31 | AM111: 24 | AN111: 18 | AO111: 0 | AP111: 0 | AQ111: 0 | AR111: 0 | AS111: 109 | AT111: 111 | AU111: 0 | AV111: Yes | AW111: Yes | AX111: Yes | AY111: Yes | AZ111: Yes | BA111: Yes | BB111: Yes | BC111: No | BD111: Yes
A112: Kachin | B112: Myitkyina | C112: Du Kahtawng Qtr. 4 | D112: MMR001CMP010 | E112: GCA | F112: Urban | G112: 6 | H112: Committee | I112: No | J112: 1 | L112: 20 | O112: No | P112: 0.3000000119 | R112: 15 | U112: No | V112: 0.1000000015 | X112: 15 | AA112: No | AB112: 1 | AD112: 5 | AG112: 0 | AH112: 0 | AI112: 2 | AJ112: 2 | AK112: 2 | AL112: 1 | AM112: 1 | AN112: 2 | AO112: 14 | AP112: 3 | AQ112: 19 | AR112: 7 | AS112: 5 | AT112: 5 | AU112: 43 | AV112: No | AW112: No | AX112: No | AY112: No | AZ112: No | BA112: No | BB112: No | BC112: No | BD112: No
A113: Kachin | B113: Mohnyin | C113: St. Patrick Catholic Church | D113: MMR001CMP080 | E113: GCA | F113: Urban | G113: 12 | H113: Focal point | I113: Yes | J113: 0 | O113: No | P113: 0 | Q113: 10 | R113: 4 | S113: 3 | U113: No | V113: 0 | W113: 10 | X113: 4 | Y113: 3 | AA113: No | AB113: 0 | AC113: 10 | AD113: 4 | AE113: 3 | AG113: 1 | AH113: 3 | AI113: 3 | AJ113: 5 | AK113: 2 | AL113: 5 | AM113: 3 | AN113: 3 | AO113: 0 | AP113: 0 | AQ113: 0 | AR113: 0 | AS113: 9 | AT113: 16 | AU113: 0 | AV113: No | AW113: No | AX113: Yes | AY113: Yes | AZ113: Yes | BA113: No | BB113: No | BC113: No | BD113: No
A114: Kachin | B114: Hpakant | C114: Nam Ma Phyit, COC | D114: MMR001CMP192 | E114: GCA | F114: Urban | G114: 17 | H114: Committee | I114: Yes | J114: 0.25 | K114: 15 | L114: 5 | M114: 2 | O114: Yes | P114: 0.25 | Q114: 15 | R114: 5 | S114: 2 | U114: Yes | V114: 0.25 | W114: 15 | X114: 5 | Y114: 2 | AA114: Yes | AB114: 0.25 | AC114: 15 | AD114: 5 | AE114: 2 | AG114: 0 | AH114: 0 | AI114: 0 | AJ114: 0 | AK114: 0 | AL114: 0 | AM114: 0 | AN114: 0 | AO114: 0 | AP114: 0 | AQ114: 0 | AR114: 0 | AS114: 0 | AT114: 0 | AU114: 0 | AV114: No | AW114: Yes | AX114: No | AY114: No | AZ114: Yes | BA114: Yes | BB114: Yes | BC114: Yes | BD114: Yes
A115: Shan_North | B115: Namhkan | C115: Nam Hkam - Nay Win Ni (Palawng) | D115: MMR015CMP004 | E115: GCA | F115: Urban | G115: 70 | H115: Committee | I115: No | J115: 1.5 | K115: 45 | O115: No | P115: 1 | Q115: 30 | U115: No | V115: 1 | W115: 30 | AA115: No | AB115: 1 | AC115: 30 | AG115: 14 | AH115: 7 | AI115: 40 | AJ115: 44 | AK115: 8 | AL115: 8 | AM115: 2 | AN115: 4 | AO115: 0 | AP115: 0 | AQ115: 0 | AR115: 0 | AS115: 64 | AT115: 63 | AU115: 0 | AV115: Yes | AW115: No | AX115: Yes | AY115: Yes | AZ115: Yes | BA115: Yes | BB115: No | BC115: Yes | BD115: No
A116: Shan_North | B116: Namhkan | C116: Nam Hkam (KBC Jaw Wang) | D116: MMR015CMP001 | E116: GCA | F116: Urban | G116: 73 | H116: Committee | I116: Yes | J116: 0 | O116: No | P116: 0 | S116: 5 | U116: No | V116: 0 | Y116: 5 | AA116: No | AB116: 0 | AE116: 5 | AG116: 9 | AH116: 10 | AI116: 32 | AJ116: 30 | AK116: 18 | AL116: 24 | AM116: 5 | AN116: 9 | AO116: 0 | AP116: 0 | AQ116: 0 | AR116: 0 | AS116: 69 | AT116: 73 | AU116: 0 | AV116: No | AW116: No | AX116: No | AY116: No | AZ116: No | BA116: No | BB116: No | BC116: No | BD116: No
A117: Kachin | B117: Waingmaw | C117: Nawng Hee Village | D117: MMR001CMP033 | E117: GCA | F117: Rural | G117: 18 | H117: Focal point | I117: No | J117: 0.25 | K117: 5 | O117: No | P117: 0.125 | Q117: 3 | U117: No | V117: 0.125 | W117: 3 | AA117: No | AB117: 0.125 | AC117: 3 | AG117: 1 | AH117: 2 | AI117: 7 | AJ117: 10 | AK117: 1 | AL117: 4 | AM117: 1 | AN117: 2 | AO117: 0 | AP117: 0 | AR117: 0 | AS117: 10 | AT117: 18 | AU117: 0 | AV117: No | AW117: No | AX117: No | AY117: No | AZ117: No | BA117: No | BB117: No | BC117: No | BD117: No
A118: Kachin | B118: Myitkyina | C118: Shatapru Thida Aye Baptist Church | D118: MMR001CMP007 | E118: GCA | F118: Urban | G118: 22 | H118: Focal point | I118: No | J118: 0.25 | K118: 3 | O118: No | P118: 0.25 | Q118: 3 | U118: No | V118: 1 | X118: 10 | AA118: No | AB118: 1 | AD118: 10 | AG118: 2 | AH118: 1 | AI118: 7 | AJ118: 8 | AK118: 6 | AL118: 8 | AM118: 8 | AN118: 6 | AO118: 0 | AP118: 0 | AQ118: 0 | AR118: 0 | AS118: 23 | AT118: 23 | AU118: 0 | AV118: No | AW118: No | AX118: No | AY118: No | AZ118: No | BA118: No | BB118: No | BC118: No | BD118: No
A119: Kachin | B119: Hpakant | C119: Lisu Baptist Church, Maw Wan Ward | D119: MMR001CMP167 | E119: GCA | F119: Rural | G119: 15 | H119: Committee | I119: Yes | J119: 1 | K119: 30 | L119: 15 | M119: 15 | O119: Yes | P119: 0 | U119: Yes | V119: 0 | AA119: Yes | AB119: 1 | AC119: 30 | AD119: 15 | AE119: 15 | AG119: 0 | AH119: 0 | AI119: 12 | AJ119: 5 | AK119: 1 | AL119: 1 | AM119: 1 | AN119: 4 | AO119: 0 | AP119: 12 | AQ119: 12 | AR119: 12 | AS119: 14 | AT119: 10 | AU119: 36 | AV119: Yes | AW119: Yes | AX119: No | AY119: No | AZ119: No | BA119: No | BB119: Yes | BC119: No | BD119: No
A120: Kachin | B120: Bhamo | C120: Mu-yin Baptist Church | D120: MMR001CMP051 | E120: GCA | F120: Urban | G120: 23 | H120: Focal point | I120: No | J120: 0.6000000238 | K120: 20 | L120: 6 | O120: No | P120: 0.200000003 | Q120: 10 | R120: 3 | U120: No | V120: 0.6000000238 | W120: 20 | X120: 6 | AA120: No | AB120: 0.6000000238 | AC120: 20 | AD120: 6 | AG120: 2 | AH120: 2 | AI120: 3 | AJ120: 4 | AK120: 5 | AL120: 3 | AM120: 0 | AN120: 4 | AO120: 0 | AP120: 0 | AQ120: 0 | AR120: 0 | AS120: 10 | AT120: 13 | AU120: 0 | AV120: Yes | AW120: No | AX120: No | AY120: No | AZ120: No | BA120: No | BB120: No | BC120: No | BD120: No
A121: Kachin | B121: Hpakant | C121: Hmaw Wan, Anglican | D121: MMR001CMP191 | E121: GCA | F121: Urban | G121: 13 | H121: Focal point | I121: Yes | J121: 0 | O121: Yes | P121: 0.125 | Q121: 10 | R121: 2 | S121: 2 | U121: Yes | V121: 0.125 | W121: 10 | X121: 2 | Y121: 2 | AA121: Yes | AB121: 0.125 | AC121: 10 | AD121: 2 | AE121: 2 | AG121: 0 | AH121: 1 | AI121: 7 | AJ121: 5 | AK121: 4 | AL121: 3 | AM121: 1 | AN121: 2 | AO121: 2 | AP121: 7 | AQ121: 7 | AR121: 14 | AS121: 12 | AT121: 11 | AU121: 30 | AV121: Yes | AW121: No | AX121: Yes | AY121: No | AZ121: No | BA121: Yes | BB121: Yes | BC121: Yes | BD121: No
A122: Kachin | B122: Mogaung | C122: Sar Hmaw - KBC | D122: MMR001CMP236 | E122: GCA | F122: Rural | G122: 40 | H122: Committee | I122: No | J122: 0.5 | K122: 20 | L122: 10 | O122: No | P122: 0.5 | Q122: 20 | R122: 10 | U122: No | V122: 1 | W122: 50 | X122: 20 | AA122: No | AB122: 1 | AC122: 50 | AD122: 20 | AG122: 6 | AH122: 7 | AI122: 11 | AJ122: 10 | AK122: 9 | AL122: 7 | AM122: 2 | AN122: 5 | AO122: 0 | AP122: 0 | AQ122: 0 | AR122: 0 | AS122: 28 | AT122: 29 | AU122: 0 | AV122: No | AW122: No | AX122: No | AY122: No | AZ122: No | BA122: No | BB122: No | BC122: No | BD122: No
A123: Kachin | B123: Hpakant | C123: Maw Wan, Mu-yin Baptist Church | D123: MMR001CMP091 | E123: GCA | F123: Urban | G123: 5 | H123: Focal point | I123: Yes | J123: 0.125 | K123: 15 | L123: 3 | M123: 3 | O123: Yes | P123: 0.625 | Q123: 20 | R123: 5 | S123: 5 | U123: Yes | V123: 0.625 | W123: 20 | X123: 5 | Y123: 5 | AA123: Yes | AB123: 0.625 | AC123: 20 | AD123: 5 | AE123: 5 | AG123: 1 | AH123: 2 | AI123: 3 | AJ123: 2 | AK123: 3 | AL123: 1 | AM123: 0 | AN123: 1 | AO123: 2 | AP123: 3 | AQ123: 7 | AR123: 12 | AS123: 7 | AT123: 6 | AU123: 24 | AV123: Yes | AW123: Yes | AX123: Yes | AY123: No | AZ123: No | BA123: No | BB123: Yes | BC123: No | BD123: No
A124: Kachin | B124: Hpakant | C124: Rawan Baptist Church, Maw Shan Vil., Seik Mu | D124: MMR001CMP182 | E124: GCA | F124: Urban | G124: 10 | H124: Focal point | I124: Yes | J124: 0.125 | K124: 10 | L124: 3 | M124: 3 | O124: Yes | P124: 0.25 | Q124: 15 | R124: 10 | S124: 10 | U124: Yes | V124: 0.25 | W124: 15 | X124: 10 | Y124: 10 | AA124: Yes | AB124: 0.25 | AC124: 15 | AD124: 10 | AE124: 10 | AG124: 1 | AH124: 1 | AI124: 1 | AJ124: 4 | AK124: 1 | AL124: 4 | AM124: 1 | AN124: 2 | AO124: 6 | AP124: 5 | AQ124: 6 | AR124: 6 | AS124: 4 | AT124: 10 | AU124: 23 | AV124: No | AW124: No | AX124: No | AY124: No | AZ124: No | BA124: No | BB124: No | BC124: No | BD124: No
A125: Kachin | B125: Hpakant | C125: AG Church, Maw Wan | D125: MMR001CMP190 | E125: GCA | F125: Urban | G125: 14 | H125: Committee | I125: Yes | J125: 0.125 | K125: 5 | L125: 2 | M125: 2 | O125: Yes | P125: 0.125 | Q125: 5 | R125: 2 | S125: 2 | U125: Yes | V125: 0.125 | W125: 5 | X125: 2 | Y125: 2 | AA125: Yes | AB125: 0.125 | AC125: 5 | AD125: 2 | AE125: 2 | AG125: 1 | AH125: 4 | AI125: 8 | AJ125: 5 | AK125: 4 | AL125: 6 | AM125: 1 | AN125: 4 | AO125: 3 | AP125: 14 | AQ125: 7 | AR125: 7 | AS125: 14 | AT125: 19 | AU125: 31 | AV125: Yes | AW125: Yes | AX125: Yes | AY125: No | AZ125: Yes | BA125: No | BB125: Yes | BC125: Yes | BD125: No
A126: Kachin | B126: Hpakant | C126: Lisu Baptist Church, Maw Shan Vil,. Seik Mu | D126: MMR001CMP181 | E126: GCA | F126: Urban | G126: 25 | H126: Focal point | I126: Yes | J126: 0 | O126: Yes | P126: 0.125 | Q126: 5 | R126: 2 | S126: 2 | U126: No | V126: 0 | AA126: Yes | AB126: 0.125 | AC126: 5 | AD126: 2 | AE126: 2 | AG126: 1 | AH126: 5 | AI126: 3 | AJ126: 8 | AK126: 5 | AL126: 3 | AM126: 5 | AN126: 4 | AO126: 7 | AP126: 7 | AQ126: 7 | AR126: 6 | AS126: 14 | AT126: 20 | AU126: 34 | AV126: Yes | AW126: Yes | AX126: Yes | AY126: No | AZ126: Yes | BA126: Yes | BB126: Yes | BC126: Yes | BD126: No
A127: Kachin | B127: Hpakant | C127: Dhama Rakhita, Nyein Chan Tar Yar Ward(Lon Khin) | D127: MMR001CMP174 | E127: GCA | F127: Urban | G127: 65 | H127: Focal point | I127: No | J127: 0 | O127: Yes | P127: 1.5 | Q127: 30 | R127: 20 | S127: 10 | U127: Yes | V127: 0 | W127: 30 | X127: 20 | Y127: 10 | AA127: Yes | AB127: 0 | AC127: 30 | AD127: 20 | AE127: 10 | AG127: 0 | AH127: 0 | AI127: 23 | AJ127: 28 | AK127: 20 | AL127: 23 | AM127: 2 | AN127: 6 | AO127: 0 | AP127: 15 | AQ127: 8 | AR127: 13 | AS127: 45 | AT127: 57 | AU127: 36 | AV127: No | AW127: No | AX127: No | AY127: No | AZ127: No | BA127: No | BB127: No | BC127: No | BD127: No
A128: Kachin | B128: Hpakant | C128: AG Church, Hmaw Si Sa | D128: MMR001CMP176 | E128: GCA | F128: Urban | G128: 67 | H128: Committee | I128: Yes | J128: 1 | K128: 1 | L128: 15 | M128: 10 | O128: Yes | P128: 1 | Q128: 1 | R128: 15 | S128: 10 | U128: Yes | V128: 1 | W128: 1 | X128: 15 | Y128: 10 | AA128: Yes | AB128: 2 | AC128: 2 | AD128: 30 | AE128: 20 | AG128: 5 | AH128: 4 | AI128: 34 | AJ128: 16 | AK128: 23 | AL128: 16 | AM128: 14 | AN128: 8 | AO128: 6 | AP128: 1 | AQ128: 3 | AR128: 4 | AS128: 76 | AT128: 44 | AU128: 14 | AV128: No | AW128: No | AX128: No | AY128: No | AZ128: No | BA128: No | BB128: No | BC128: No | BD128: No
A129: Kachin | B129: Hpakant | C129: Chin Church, Seik Mu | D129: MMR001CMP109 | E129: GCA | F129: Urban | G129: 6 | H129: Focal point | I129: Yes | J129: 0.25 | K129: 10 | L129: 5 | O129: Yes | P129: 0.625 | Q129: 25 | R129: 15 | U129: Yes | V129: 0.625 | W129: 25 | X129: 15 | AA129: Yes | AB129: 0.625 | AC129: 25 | AD129: 15 | AG129: 0 | AH129: 2 | AI129: 2 | AJ129: 4 | AK129: 0 | AL129: 3 | AM129: 1 | AN129: 0 | AO129: 2 | AP129: 8 | AQ129: 8 | AR129: 8 | AS129: 3 | AT129: 9 | AU129: 26 | AV129: Yes | AW129: Yes | AX129: Yes | AY129: No | AZ129: No | BA129: Yes | BB129: Yes | BC129: Yes | BD129: No

Sheet Education
A1: Breakdown of Students enrolled with number of teachers at all grades - by State and Township | G1: Breakdown of camps receiving educational supplies during the current academic year | L1: Breakdown of source of educational supplies in the camps
E2: Students per teacher | L2: Government
A3: State / Township | B3: Attending Male Students | C3: Attending Female Students | D3: # of Teachers | G3: Count of State | H3: Column Labels | L3: Count of State | M3: Column Labels
A4: Kachin | B4: 13502 | C4: 12420 | D4: 1054 | E4: =(GETPIVOTDATA("Attending Male Students",$A$3,"State","Kachin")+GETPIVOTDATA("Attending Female Students",$A$3,"State","Kachin"))/GETPIVOTDATA("# of Teachers",$A$3,"State","Kachin") -> 24.59392789 | G4: State / Township | H4: No | I4: Yes | J4: Grand Total | L4: State / Township | M4: No | N4: Yes | O4: Grand Total
A5: Bhamo | B5: 1181 | C5: 1189 | D5: 18 | G5: Kachin | H5: 67 | I5: 44 | J5: 111 | L5: Kachin | M5: 80 | N5: 31 | O5: 111
A6: Chipwi | B6: 485 | C6: 442 | D6: 31 | G6: Bhamo | H6: 4 | I6: 6 | J6: 10 | L6: Shan_North | M6: 14 | N6: 3 | O6: 17
A7: Hpakant | B7: 554 | C7: 571 | D7: 254 | G7: Chipwi | H7: 3 | I7: 2 | J7: 5 | L7: Grand Total | M7: 94 | N7: 34 | O7: 128
A8: Mansi | B8: 3053 | C8: 2635 | D8: 124 | G8: Hpakant | H8: 10 | I8: 10 | J8: 20 | L8: Percentage % | M8: =GETPIVOTDATA("State",$L$3,"Government","No")/GETPIVOTDATA("State",$L$3) -> 0.734375 | N8: =GETPIVOTDATA("State",$L$3,"Government","Yes")/GETPIVOTDATA("State",$L$3) -> 0.265625 | O8: =M8+N8 -> 1
A9: Mogaung | B9: 87 | C9: 65 | D9: 0 | G9: Mansi | H9: 7 | I9: 2 | J9: 9
A10: Mohnyin | B10: 39 | C10: 34 | D10: 0 | G10: Mogaung | H10: 4 | J10: 4 | L10: I/NGO
A11: Momauk | B11: 3465 | C11: 2771 | D11: 98 | G11: Mohnyin | H11: 2 | J11: 2 | L11: Count of State | M11: Column Labels
A12: Myitkyina | B12: 1311 | C12: 1284 | D12: 232 | G12: Momauk | H12: 11 | I12: 2 | J12: 13 | L12: State / Township | M12: No | N12: Yes | O12: Grand Total
A13: Shwegu | B13: 122 | C13: 118 | D13: 153 | G13: Myitkyina | H13: 13 | I13: 11 | J13: 24 | L13: Kachin | M13: 76 | N13: 35 | O13: 111
A14: Waingmaw | B14: 3152 | C14: 3275 | D14: 144 | G14: Shwegu | H14: 2 | J14: 2 | L14: Shan_North | M14: 12 | N14: 5 | O14: 17
A15: Puta-O | B15: 53 | C15: 36 | D15: 0 | G15: Waingmaw | H15: 11 | I15: 10 | J15: 21 | L15: Grand Total | M15: 88 | N15: 40 | O15: 128
A16: Shan_North | B16: 648 | C16: 645 | D16: 3 | E16: =(GETPIVOTDATA("Attending Male Students",$A$3,"State","Shan_North")+GETPIVOTDATA("Attending Female Students",$A$3,"State","Shan_North"))/GETPIVOTDATA("# of Teachers",$A$3,"State","Shan_North") -> 431 | G16: Puta-O | I16: 1 | J16: 1 | L16: Percentage % | M16: =GETPIVOTDATA("State",$L$11,"I_NGO","No")/GETPIVOTDATA("State",$L$11) -> 0.6875 | N16: =GETPIVOTDATA("State",$L$11,"I_NGO","Yes")/GETPIVOTDATA("State",$L$11) -> 0.3125 | O16: =M16+N16 -> 1
A17: Kutkai | B17: 299 | C17: 281 | D17: 3 | G17: Shan_North | H17: 12 | I17: 5 | J17: 17
A18: Manton | B18: 31 | C18: 39 | D18: 0 | G18: Kutkai | H18: 6 | I18: 1 | J18: 7 | L18: Private Donor
A19: Muse | B19: 62 | C19: 70 | D19: 0 | G19: Manton | H19: 2 | J19: 2 | L19: Count of State | M19: Column Labels
A20: Namhkan | B20: 246 | C20: 244 | D20: 0 | G20: Muse | H20: 1 | I20: 1 | J20: 2 | L20: State / Township | M20: No | N20: Yes | O20: Grand Total
A21: Namtu | B21: 10 | C21: 11 | D21: 0 | G21: Namhkan | H21: 2 | I21: 3 | J21: 5 | L21: Kachin | M21: 91 | N21: 20 | O21: 111
A22: Grand Total | B22: 14150 | C22: 13065 | D22: 1057 | G22: Namtu | H22: 1 | J22: 1 | L22: Shan_North | M22: 15 | N22: 2 | O22: 17
A23: Percentage % | B23: =GETPIVOTDATA("Attending Male Students",$A$3)/(GETPIVOTDATA("Attending Male Students",$A$3)+GETPIVOTDATA("Attending Female Students",$A$3)) -> 0.51993386 | C23: =GETPIVOTDATA("Attending Female Students",$A$3)/(GETPIVOTDATA("Attending Male Students",$A$3)+GETPIVOTDATA("Attending Female Students",$A$3)) -> 0.48006614 | G23: Grand Total | H23: 79 | I23: 49 | J23: 128 | L23: Grand Total | M23: 106 | N23: 22 | O23: 128
G24: Percentage % | H24: =GETPIVOTDATA("State",$G$3,"EduSupplyReceived","No")/GETPIVOTDATA("State",$G$3) -> 0.6171875 | I24: =GETPIVOTDATA("State",$G$3,"EduSupplyReceived","Yes")/GETPIVOTDATA("State",$G$3) -> 0.3828125 | J24: =H24+I24 -> 1 | L24: Percentage % | M24: =GETPIVOTDATA("State",$L$19,"PrivateDonor","No")/GETPIVOTDATA("State",$L$19) -> 0.828125 | N24: =GETPIVOTDATA("State",$L$19,"PrivateDonor","Yes")/GETPIVOTDATA("State",$L$19) -> 0.171875 | O24: =M24+N24 -> 1
A25: Breakdown of availability of education services within the camps | G25: Breakdown of items received by students in the camps
A27: Pre-School / Nursery Availability | G27: Textbooks
A29: Count of CP_PCode | B29: Column Labels | G29: Count of State | H29: Column Labels
A30: Row Labels | B30: No | C30: Yes | D30: Grand Total | G30: State / Township | H30: No | I30: Yes | J30: Grand Total
A31: Kachin | B31: 33 | C31: 78 | D31: 111 | G31: Kachin | H31: 69 | I31: 42 | J31: 111
A32: Shan_North | B32: 9 | C32: 8 | D32: 17 | G32: Shan_North | H32: 14 | I32: 3 | J32: 17
A33: Grand Total | B33: 42 | C33: 86 | D33: 128 | G33: Grand Total | H33: 83 | I33: 45 | J33: 128
A34: Percentage % | B34: =GETPIVOTDATA("CP_PCode",$A$29,"Nursery_Availability","No")/GETPIVOTDATA("CP_PCode",$A$29) -> 0.328125 | C34: =GETPIVOTDATA("CP_PCode",$A$29,"Nursery_Availability","Yes")/GETPIVOTDATA("CP_PCode",$A$29) -> 0.671875 | D34: =SUM(B34:C34) -> 1 | G34: Percentage % | H34: =GETPIVOTDATA("State",$G$29,"Textbook","No")/GETPIVOTDATA("State",$G$29) -> 0.6484375 | I34: =GETPIVOTDATA("State",$G$29,"Textbook","Yes")/GETPIVOTDATA("State",$G$29) -> 0.3515625 | J34: =H34+I34 -> 1
A36: Primary School Availability | G36: Exercise books
A38: Count of CP_PCode | B38: Column Labels | G38: Count of State | H38: Column Labels
A39: Row Labels | B39: No | C39: Yes | D39: Grand Total | G39: State / Township | H39: No | I39: Yes | J39: Grand Total
A40: Kachin | B40: 74 | C40: 37 | D40: 111 | G40: Kachin | H40: 58 | I40: 53 | J40: 111
A41: Shan_North | B41: 15 | C41: 2 | D41: 17 | G41: Shan_North | H41: 12 | I41: 5 | J41: 17
A42: Grand Total | B42: 89 | C42: 39 | D42: 128 | G42: Grand Total | H42: 70 | I42: 58 | J42: 128
A43: Percentage % | B43: =GETPIVOTDATA("CP_PCode",$A$38,"Pri_School_Availability","No")/GETPIVOTDATA("CP_PCode",$A$38) -> 0.6953125 | C43: =GETPIVOTDATA("CP_PCode",$A$38,"Pri_School_Availability","Yes")/GETPIVOTDATA("CP_PCode",$A$38) -> 0.3046875 | D43: =SUM(B43:C43) -> 1 | G43: Percentage % | H43: =GETPIVOTDATA("State",$G$38,"Exercisebook","No")/GETPIVOTDATA("State",$G$38) -> 0.546875 | I43: =GETPIVOTDATA("State",$G$38,"Exercisebook","Yes")/GETPIVOTDATA("State",$G$38) -> 0.453125 | J43: =H43+I43 -> 1
A45: Middle School Availability | G45: Rain coat / Umbrella
A47: Count of CP_PCode | B47: Column Labels | G47: Count of State | H47: Column Labels
A48: Row Labels | B48: No | C48: Yes | D48: Grand Total | G48: State / Township | H48: No | I48: Yes | J48: Grand Total
A49: Kachin | B49: 88 | C49: 23 | D49: 111 | G49: Kachin | H49: 85 | I49: 26 | J49: 111
A50: Shan_North | B50: 17 | D50: 17 | G50: Shan_North | H50: 13 | I50: 4 | J50: 17
A51: Grand Total | B51: 105 | C51: 23 | D51: 128 | G51: Grand Total | H51: 98 | I51: 30 | J51: 128
A52: Percentage % | B52: =GETPIVOTDATA("CP_PCode",$A$47,"Sec_Scool_Availability","No")/GETPIVOTDATA("CP_PCode",$A$47) -> 0.8203125 | C52: =GETPIVOTDATA("CP_PCode",$A$47,"Sec_Scool_Availability","Yes")/GETPIVOTDATA("CP_PCode",$A$47) -> 0.1796875 | D52: =SUM(B52:C52) -> 1 | G52: Percentage % | H52: =GETPIVOTDATA("State",$G$47,"RainCoat","No")/GETPIVOTDATA("State",$G$47) -> 0.765625 | I52: =GETPIVOTDATA("State",$G$47,"RainCoat","Yes")/GETPIVOTDATA("State",$G$47) -> 0.234375 | J52: =H52+I52 -> 1
A54: High School Availability | G54: School Bag
A56: Count of CP_PCode | B56: Column Labels | G56: Count of State | H56: Column Labels
A57: Row Labels | B57: No | C57: Yes | D57: Grand Total | G57: State / Township | H57: No | I57: Yes | J57: Grand Total
A58: Kachin | B58: 94 | C58: 17 | D58: 111 | G58: Kachin | H58: 82 | I58: 29 | J58: 111
A59: Shan_North | B59: 17 | D59: 17 | G59: Shan_North | H59: 13 | I59: 4 | J59: 17
A60: Grand Total | B60: 111 | C60: 17 | D60: 128 | G60: Grand Total | H60: 95 | I60: 33 | J60: 128
A61: Percentage % | B61: =GETPIVOTDATA("CP_PCode",$A$56,"Hig_School_Availability","No")/GETPIVOTDATA("CP_PCode",$A$56) -> 0.8671875 | C61: =GETPIVOTDATA("CP_PCode",$A$56,"Hig_School_Availability","Yes")/GETPIVOTDATA("CP_PCode",$A$56) -> 0.1328125 | D61: =SUM(B61:C61) -> 1 | G61: Percentage % | H61: =GETPIVOTDATA("State",$G$56,"SchoolBag","No")/GETPIVOTDATA("State",$G$56) -> 0.7421875 | I61: =GETPIVOTDATA("State",$G$56,"SchoolBag","Yes")/GETPIVOTDATA("State",$G$56) -> 0.2578125 | J61: =H61+I61 -> 1
G63: School Uniforms
G65: Count of State | H65: Column Labels
G66: State / Township | H66: No | I66: Yes | J66: Grand Total
G67: Kachin | H67: 90 | I67: 21 | J67: 111
G68: Shan_North | H68: 13 | I68: 4 | J68: 17
G69: Grand Total | H69: 103 | I69: 25 | J69: 128
G70: Percentage % | H70: =GETPIVOTDATA("State",$G$65,"SchoolUniform","No")/GETPIVOTDATA("State",$G$65) -> 0.8046875 | I70: =GETPIVOTDATA("State",$G$65,"SchoolUniform","Yes")/GETPIVOTDATA("State",$G$65) -> 0.1953125 | J70: =H70+I70 -> 1

Sheet Data_Sector_Food
A1: State | B1: Township | C1: Camp | D1: CP_PCode | E1: Accessibility | F1: Location_Type | G1: HS_Cluster | H1: Kitchen_Type | I1: StorageFacility | J1: CampProfile_Data_Responsability.Responsible | K1: code_Responsible.Responsible | L1: Service | M1: Avaibility | N1: Distance | O1: Foot | P1: Motor | Q1: Car | R1: Water | S1: F13_01 | T1: F13_1_IDP_M | U1: F13_1_IDP_F | V1: F13_1_Non_M | W1: F13_1_Non_F | X1: F13_1_Tot_M | Y1: F13_1_Tot_F | Z1: FoodCash_MgmtCommittee | AA1: FemaleIDP | AB1: MaleIDP | AC1: MaleNonIDP | AD1: FemaleNonIDP | AE1: MaleTotal | AF1: FemaleTotal
A2: Kachin | B2: Myitkyina | C2: Shatapru Sut Ngai Tawng | D2: MMR001CMP006 | E2: GCA | F2: Urban | G2: 95 | H2: Individual household kitchen | I2: Yes | J2: Resp02 | K2: Committee | L2: Regular market | M2: No | N2: 1 | O2: 40 | P2: 20 | S2: TRUE | T2: 2 | U2: 0 | V2: 1 | W2: 0 | X2: 3 | Y2: 0 | Z2: Yes | AA2: 0 | AB2: 2 | AC2: 1 | AD2: 0 | AE2: 3 | AF2: 0
A3: Kachin | B3: Mansi | C3: Maing Khaung Catholic Church | D3: MMR001CMP223 | E3: GCA | F3: Rural | G3: 123 | H3: Individual household kitchen | I3: No | J3: Resp02 | K3: Committee | L3: Regular market | M3: No | N3: 0.200000003 | O3: 10 | P3: 10 | Q3: 10 | S3: FALSE | T3: 4 | U3: 3 | V3: 1 | W3: 0 | X3: 5 | Y3: 3 | Z3: No | AA3: 3 | AB3: 4 | AC3: 1 | AD3: 0 | AE3: 5 | AF3: 3
A4: Kachin | B4: Waingmaw | C4: Qtr. 2 Myoma Baptist Church | D4: MMR001CMP025 | E4: GCA | F4: Urban | G4: 65 | H4: Individual household kitchen | I4: Yes | J4: Resp02 | K4: Committee | L4: Regular market | M4: No | N4: 1 | O4: 20 | S4: TRUE | T4: 3 | U4: 3 | V4: 0 | W4: 0 | X4: 3 | Y4: 3 | Z4: Yes | AA4: 3 | AB4: 3 | AC4: 0 | AD4: 0 | AE4: 3 | AF4: 3
A5: Kachin | B5: Waingmaw | C5: Mading Baptist Church | D5: MMR001CMP027 | E5: GCA | F5: Rural | G5: 22 | H5: Communal | I5: Yes | J5: Resp01 | K5: Focal point | L5: Regular market | M5: No | N5: 0.200000003 | O5: 10 | S5: TRUE | T5: 3 | U5: 3 | V5: 1 | W5: 0 | X5: 4 | Y5: 3 | Z5: Yes | AA5: 3 | AB5: 3 | AC5: 1 | AD5: 0 | AE5: 4 | AF5: 3
A6: Kachin | B6: Myitkyina | C6: Du Kahtawng Qtr. 4 | D6: MMR001CMP010 | E6: GCA | F6: Urban | G6: 6 | H6: Communal | I6: No | J6: Resp02 | K6: Committee | L6: Regular market | M6: No | N6: 0.200000003 | P6: 10 | S6: TRUE | T6: 3 | U6: 3 | V6: 0 | W6: 0 | X6: 3 | Y6: 3 | Z6: Yes | AA6: 3 | AB6: 3 | AC6: 0 | AD6: 0 | AE6: 3 | AF6: 3
A7: Kachin | B7: Myitkyina | C7: Du Kahtawng Qtr. 14 | D7: MMR001CMP012 | E7: GCA | F7: Urban | G7: 6 | H7: Communal | I7: No | J7: Resp02 | K7: Committee | L7: Regular market | M7: No | N7: 0.200000003 | P7: 10 | S7: TRUE | T7: 3 | U7: 3 | V7: 0 | W7: 0 | X7: 3 | Y7: 3 | Z7: Yes | AA7: 3 | AB7: 3 | AC7: 0 | AD7: 0 | AE7: 3 | AF7: 3
A8: Kachin | B8: Hpakant | C8: Hpakant Baptist Church, Nam Ma Hpit | D8: MMR001CMP229 | E8: GCA | F8: Rural | G8: 116 | H8: Communal | I8: Yes | J8: RESP05 | L8: Regular market | M8: No | N8: 2 | O8: 30 | P8: 10 | Q8: 10 | S8: TRUE | T8: 3 | U8: 7 | V8: 0 | W8: 0 | X8: 3 | Y8: 7 | Z8: Yes | AA8: 7 | AB8: 3 | AC8: 0 | AD8: 0 | AE8: 3 | AF8: 7
A9: Kachin | B9: Myitkyina | C9: Man Hkring Baptist Church | D9: MMR001CMP008 | E9: GCA | F9: Urban | G9: 101 | H9: Individual household kitchen | I9: No | J9: Resp01 | K9: Focal point | L9: Regular market | M9: No | N9: 0 | O9: 25 | P9: 10 | Q9: 10 | S9: FALSE | T9: 3 | U9: 3 | V9: 1 | W9: 0 | X9: 4 | Y9: 3 | Z9: No | AA9: 3 | AB9: 3 | AC9: 1 | AD9: 0 | AE9: 4 | AF9: 3
A10: Kachin | B10: Hpakant | C10: Ku Day Maw KBC | D10: MMR001CMP231 | E10: GCA | F10: Rural | G10: 46 | H10: Individual household kitchen | I10: No | J10: RESP05 | L10: Regular market | M10: No | N10: 1 | O10: 30 | P10: 10 | Q10: 10 | S10: TRUE | T10: 5 | U10: 3 | V10: 0 | W10: 0 | X10: 5 | Y10: 3 | Z10: Yes | AA10: 3 | AB10: 5 | AC10: 0 | AD10: 0 | AE10: 5 | AF10: 3
A11: Kachin | B11: Hpakant | C11: Nant Ma Hpit Catholic Church | D11: MMR001CMP103 | E11: GCA | F11: Rural | G11: 48 | H11: Both | I11: No | J11: Resp01 | K11: Focal point | L11: Regular market | M11: No | N11: 1 | O11: 45 | P11: 15 | Q11: 15 | S11: TRUE | T11: 5 | U11: 4 | V11: 0 | W11: 2 | X11: 5 | Y11: 6 | Z11: Yes | AA11: 4 | AB11: 5 | AC11: 0 | AD11: 2 | AE11: 5 | AF11: 6
A12: Kachin | B12: Myitkyina | C12: Nan Kway St. John Catholic Church | D12: MMR001CMP024 | E12: GCA | F12: Rural | G12: 67 | H12: Individual household kitchen | I12: Yes | J12: Resp02 | K12: Committee | L12: Regular market | M12: No | O12: 10 | P12: 5 | Q12: 5 | S12: TRUE | T12: 2 | U12: 3 | V12: 0 | W12: 0 | X12: 2 | Y12: 3 | Z12: Yes | AA12: 3 | AB12: 2 | AC12: 0 | AD12: 0 | AE12: 2 | AF12: 3
A13: Kachin | B13: Mansi | C13: Man Wing Catholic Church 1 | D13: MMR001CMP228 | E13: GCA | F13: Rural | G13: 123 | H13: Individual household kitchen | I13: Yes | J13: Resp02 | K13: Committee | L13: Regular market | M13: No | N13: 0.400000006 | O13: 30 | P13: 5 | Q13: 5 | S13: TRUE | T13: 4 | U13: 3 | V13: 0 | W13: 0 | X13: 4 | Y13: 3 | Z13: Yes | AA13: 3 | AB13: 4 | AC13: 0 | AD13: 0 | AE13: 4 | AF13: 3
A14: Kachin | B14: Mansi | C14: Man Wing Catholic Church 2 | D14: MMR001CMP132 | E14: GCA | F14: Rural | G14: 458 | H14: Individual household kitchen | I14: Yes | J14: Resp02 | K14: Committee | L14: Regular market | M14: No | N14: 1.600000024 | O14: 25 | P14: 10 | Q14: 10 | S14: TRUE | T14: 5 | U14: 4 | V14: 0 | W14: 0 | X14: 5 | Y14: 4 | Z14: Yes | AA14: 4 | AB14: 5 | AC14: 0 | AD14: 0 | AE14: 5 | AF14: 4
A15: Kachin | B15: Mansi | C15: Bum Tsit Pa | D15: MMR001CMP129 | E15: NGCA | F15: Rural | G15: 245 | H15: Individual household kitchen | I15: Yes | J15: Resp02 | K15: Committee | L15: Regular market | M15: No | N15: 3.200000048 | O15: 180 | P15: 60 | Q15: 60 | S15: TRUE | T15: 2 | U15: 12 | V15: 0 | W15: 0 | X15: 2 | Y15: 12 | Z15: Yes | AA15: 12 | AB15: 2 | AC15: 0 | AD15: 0 | AE15: 2 | AF15: 12
A16: Kachin | B16: Waingmaw | C16: Maina Lawang Baptist Church | D16: MMR001CMP039 | E16: GCA | F16: Rural | G16: 48 | H16: Individual household kitchen | I16: Yes | J16: Resp01 | K16: Focal point | L16: Regular market | M16: No | N16: 0.1000000015 | O16: 10 | P16: 5 | S16: TRUE | T16: 2 | U16: 5 | V16: 0 | W16: 0 | X16: 2 | Y16: 5 | Z16: Yes | AA16: 5 | AB16: 2 | AC16: 0 | AD16: 0 | AE16: 2 | AF16: 5
A17: Kachin | B17: Myitkyina | C17: Du Kahtawng Qtr. 5 | D17: MMR001CMP011 | E17: GCA | F17: Urban | G17: 50 | H17: Communal | I17: No | J17: Resp01 | K17: Focal point | L17: Regular market | M17: No | N17: 0.200000003 | P17: 10 | S17: TRUE | T17: 2 | U17: 2 | V17: 6 | W17: 1 | X17: 8 | Y17: 3 | Z17: Yes | AA17: 2 | AB17: 2 | AC17: 6 | AD17: 1 | AE17: 8 | AF17: 3
A18: Kachin | B18: Myitkyina | C18: Pa Dauk Myaing(Pa La Na) | D18: MMR001CMP162 | E18: GCA | F18: Rural | G18: 43 | H18: Individual household kitchen | I18: No | J18: Resp04 | K18: Don't know | L18: Regular market | M18: Yes | N18: 0 | S18: TRUE | T18: 3 | U18: 3 | V18: 1 | W18: 1 | X18: 4 | Y18: 4 | Z18: Yes | AA18: 3 | AB18: 3 | AC18: 1 | AD18: 1 | AE18: 4 | AF18: 4
A19: Kachin | B19: Waingmaw | C19: Post 6 Camp | D19: MMR001CMP160 | E19: NGCA | F19: Rural | G19: 90 | H19: Individual household kitchen | I19: Yes | J19: Resp01 | K19: Focal point | L19: Regular market | M19: No | N19: 34 | P19: 150 | S19: TRUE | T19: 5 | U19: 1 | V19: 0 | W19: 0 | X19: 5 | Y19: 1 | Z19: Yes | AA19: 1 | AB19: 5 | AC19: 0 | AD19: 0 | AE19: 5 | AF19: 1
A20: Kachin | B20: Mohnyin | C20: St. Patrick Catholic Church | D20: MMR001CMP080 | E20: GCA | F20: Urban | G20: 12 | H20: Individual household kitchen | I20: No | J20: Resp02 | K20: Committee | L20: Regular market | M20: No | N20: 0 | O20: 10 | P20: 3 | Q20: 3 | S20: FALSE | T20: 0 | U20: 0 | V20: 0 | W20: 0 | X20: 0 | Y20: 0 | Z20: No | AA20: 0 | AB20: 0 | AC20: 0 | AD20: 0 | AE20: 0 | AF20: 0
A21: Kachin | B21: Waingmaw | C21: Woi Chyai | D21: MMR001CMP116 | E21: NGCA | F21: Urban | G21: 1344 | H21: Both | I21: No | J21: Resp02 | K21: Committee | L21: Regular market | M21: Yes | N21: 0 | S21: TRUE | T21: 3 | U21: 0 | V21: 0 | W21: 0 | X21: 3 | Y21: 0 | Z21: Yes | AA21: 0 | AB21: 3 | AC21: 0 | AD21: 0 | AE21: 3 | AF21: 0
A22: Kachin | B22: Momauk | C22: Hpun Lum Yang | D22: MMR001CMP122 | E22: NGCA | F22: Rural | G22: 662 | H22: Individual household kitchen | I22: Yes | J22: Resp02 | K22: Committee | L22: Regular market | M22: No | N22: 7 | P22: 40 | S22: TRUE | T22: 3 | U22: 2 | V22: 0 | W22: 0 | X22: 3 | Y22: 2 | Z22: Yes | AA22: 2 | AB22: 3 | AC22: 0 | AD22: 0 | AE22: 3 | AF22: 2
A23: Kachin | B23: Momauk | C23: Je Yang Hka | D23: MMR001CMP121 | E23: NGCA | F23: Rural | G23: 1695 | H23: Individual household kitchen | I23: Yes | J23: Resp04 | K23: Don't know | L23: Regular market | M23: Yes | N23: 0 | S23: FALSE | T23: 0 | U23: 0 | V23: 0 | W23: 0 | X23: 0 | Y23: 0 | Z23: No | AA23: 0 | AB23: 0 | AC23: 0 | AD23: 0 | AE23: 0 | AF23: 0
A24: Kachin | B24: Hpakant | C24: Ward 2 Sai Taung Baptist Church, Seik Mu | D24: MMR001CMP184 | E24: GCA | F24: Rural | G24: 35 | H24: Communal | I24: Yes | L24: Regular market | M24: No | N24: 0.3000000119 | O24: 10 | P24: 3 | Q24: 3 | S24: TRUE | T24: 3 | U24: 3 | V24: 0 | W24: 0 | X24: 3 | Y24: 3 | Z24: Yes | AA24: 3 | AB24: 3 | AC24: 0 | AD24: 0 | AE24: 3 | AF24: 3
A25: Kachin | B25: Momauk | C25: Dum Bung | D25: MMR001CMP123 | E25: NGCA | F25: Rural | G25: 116 | H25: Individual household kitchen | I25: No | J25: Resp04 | K25: Don't know | L25: Regular market | M25: No | N25: 5 | O25: 120 | P25: 45 | Q25: 45 | S25: FALSE | T25: 0 | U25: 0 | V25: 0 | W25: 0 | X25: 0 | Y25: 0 | Z25: No | AA25: 0 | AB25: 0 | AC25: 0 | AD25: 0 | AE25: 0 | AF25: 0
A26: Kachin | B26: Momauk | C26: Nhkawng Pa | D26: MMR001CMP131 | E26: NGCA | F26: Rural | G26: 375 | H26: Individual household kitchen | I26: Yes | J26: Resp02 | K26: Committee | L26: Regular market | M26: No | N26: 0.200000003 | O26: 10 | P26: 3 | Q26: 3 | S26: TRUE | T26: 0 | U26: 0 | V26: 0 | W26: 0 | X26: 0 | Y26: 0 | Z26: Yes | AA26: 0 | AB26: 0 | AC26: 0 | AD26: 0 | AE26: 0 | AF26: 0
A27: Kachin | B27: Myitkyina | C27: Jan Mai Kawng Catholic Church | D27: MMR001CMP019 | E27: GCA | F27: Urban | G27: 105 | H27: Individual household kitchen | I27: No | J27: Resp02 | K27: Committee | L27: Regular market | M27: No | N27: 0.5 | O27: 10 | P27: 5 | S27: TRUE | T27: 0 | U27: 6 | V27: 0 | W27: 0 | X27: 0 | Y27: 6 | Z27: Yes | AA27: 6 | AB27: 0 | AC27: 0 | AD27: 0 | AE27: 0 | AF27: 6
A28: Kachin | B28: Waingmaw | C28: Maina Catholic Church (St. Joseph) | D28: MMR001CMP029 | E28: GCA | F28: Rural | G28: 222 | H28: Individual household kitchen | I28: Yes | J28: Resp02 | K28: Committee | L28: Regular market | M28: Yes | N28: 0 | S28: TRUE | T28: 3 | U28: 3 | V28: 0 | W28: 0 | X28: 3 | Y28: 3 | Z28: Yes | AA28: 3 | AB28: 3 | AC28: 0 | AD28: 0 | AE28: 3 | AF28: 3
A29: Kachin | B29: Chipwi | C29: Pan Wa | D29: MMR001CMP210 | E29: GCA | F29: Mixed | G29: 60 | H29: Individual household kitchen | I29: Yes | J29: Resp02 | K29: Committee | L29: Regular market | M29: No | N29: 0.5 | O29: 30 | P29: 10 | Q29: 10 | S29: FALSE | T29: 0 | U29: 0 | V29: 0 | W29: 0 | X29: 0 | Y29: 0 | Z29: No | AA29: 0 | AB29: 0 | AC29: 0 | AD29: 0 | AE29: 0 | AF29: 0
A30: Kachin | B30: Chipwi | C30: Saw Zam | D30: MMR001CMP225 | E30: GCA | F30: Rural | G30: 30 | H30: Individual household kitchen | I30: Yes | J30: Resp02 | K30: Committee | L30: Regular market | M30: No | N30: 5 | O30: 120 | P30: 30 | Q30: 30 | S30: FALSE | T30: 0 | U30: 0 | V30: 0 | W30: 0 | X30: 0 | Y30: 0 | Z30: No | AA30: 0 | AB30: 0 | AC30: 0 | AD30: 0 | AE30: 0 | AF30: 0
A31: Kachin | B31: Hpakant | C31: 5 Ward RC Church(lon Khin) | D31: MMR001CMP168 | E31: GCA | F31: Rural | G31: 66 | H31: Individual household kitchen | I31: Yes | J31: Resp04 | K31: Don't know | L31: Regular market | M31: No | N31: 0 | O31: 10 | P31: 5 | S31: TRUE | T31: 0 | U31: 0 | V31: 5 | W31: 5 | X31: 5 | Y31: 5 | Z31: Yes | AA31: 0 | AB31: 0 | AC31: 5 | AD31: 5 | AE31: 5 | AF31: 5
A32: Kachin | B32: Hpakant | C32: 5 Ward Baptist Church(lon Khin) | D32: MMR001CMP179 | E32: GCA | F32: Rural | G32: 77 | H32: Communal | I32: Yes | J32: RESP05 | L32: Regular market | M32: No | N32: 0.3000000119 | O32: 15 | P32: 3 | Q32: 3 | S32: TRUE | T32: 1 | U32: 6 | V32: 0 | W32: 0 | X32: 1 | Y32: 6 | Z32: Yes | AA32: 6 | AB32: 1 | AC32: 0 | AD32: 0 | AE32: 1 | AF32: 6
A33: Kachin | B33: Waingmaw | C33: Maga Yang | D33: MMR001CMP119 | E33: NGCA | F33: Rural | G33: 608 | H33: Individual household kitchen | I33: Yes | J33: Resp02 | K33: Committee | L33: Regular market | M33: No | N33: 15 | P33: 40 | S33: TRUE | T33: 2 | U33: 2 | V33: 0 | W33: 0 | X33: 2 | Y33: 2 | Z33: Yes | AA33: 2 | AB33: 2 | AC33: 0 | AD33: 0 | AE33: 2 | AF33: 2
A34: Kachin | B34: Mogaung | C34: Nat Gyi Kone Baptist Church | D34: MMR001CMP079 | E34: GCA | F34: Urban | G34: 14 | H34: Communal | I34: Yes | J34: Resp01 | K34: Focal point | L34: Regular market | M34: No | N34: 0.5 | O34: 15 | S34: TRUE | T34: 1 | U34: 2 | V34: 0 | W34: 0 | X34: 1 | Y34: 2 | Z34: Yes | AA34: 2 | AB34: 1 | AC34: 0 | AD34: 0 | AE34: 1 | AF34: 2
A35: Kachin | B35: Shwegu | C35: Shwe Gu Catholic Church | D35: MMR001CMP068 | E35: GCA | F35: Urban | G35: 41 | H35: Individual household kitchen | I35: Yes | J35: Resp02 | K35: Committee | L35: Regular market | M35: No | N35: 0.400000006 | O35: 20 | P35: 5 | Q35: 5 | S35: TRUE | T35: 3 | U35: 2 | V35: 0 | W35: 0 | X35: 3 | Z35: Yes | AA35: 2 | AB35: 3 | AC35: 0 | AD35: 0 | AE35: 3
A36: Kachin | B36: Myitkyina | C36: Jan Mai Kawng Baptist Church | D36: MMR001CMP018 | E36: GCA | F36: Urban | G36: 203 | H36: Communal | I36: Yes | J36: Resp02 | K36: Committee | L36: Regular market | M36: No | N36: 1 | O36: 25 | P36: 10 | S36: TRUE | T36: 3 | U36: 5 | V36: 3 | W36: 1 | X36: 6 | Y36: 6 | Z36: Yes | AA36: 5 | AB36: 3 | AC36: 3 | AD36: 1 | AE36: 6 | AF36: 6
A37: Kachin | B37: Myitkyina | C37: Tat Kone Baptist Church | D37: MMR001CMP001 | E37: GCA | F37: Urban | G37: 54 | I37: No | J37: Resp02 | K37: Committee | L37: Regular market | M37: No | N37: 1 | O37: 30 | S37: FALSE | T37: 0 | U37: 0 | V37: 0 | W37: 0 | X37: 0 | Y37: 0 | Z37: No | AA37: 0 | AB37: 0 | AC37: 0 | AD37: 0 | AE37: 0 | AF37: 0
A38: Kachin | B38: Myitkyina | C38: Le Kone Bethlehem Church | D38: MMR001CMP015 | E38: GCA | F38: Urban | G38: 108 | H38: Communal | I38: Yes | J38: Resp01 | K38: Focal point | L38: Regular market | M38: No | N38: 0.200000003 | S38: TRUE | T38: 1 | U38: 4 | V38: 0 | W38: 1 | X38: 1 | Y38: 5 | Z38: Yes | AA38: 4 | AB38: 1 | AC38: 0 | AD38: 1 | AE38: 1 | AF38: 5
A39: Kachin | B39: Myitkyina | C39: Tat Kone Galile Baptist Church | D39: MMR001CMP003 | E39: GCA | F39: Urban | G39: 32 | H39: Individual household kitchen | I39: No | J39: Resp02 | K39: Committee | L39: Regular market | M39: No | N39: 0.200000003 | O39: 10 | P39: 5 | S39: TRUE | T39: 2 | U39: 2 | V39: 0 | W39: 0 | X39: 2 | Y39: 2 | Z39: Yes | AA39: 2 | AB39: 2 | AC39: 0 | AD39: 0 | AE39: 2 | AF39: 2
A40: Kachin | B40: Myitkyina | C40: Maliyang Baptist Church | D40: MMR001CMP016 | E40: GCA | F40: Urban | G40: 60 | H40: Individual household kitchen | I40: Yes | J40: Resp01 | K40: Focal point | L40: Regular market | M40: No | N40: 0 | O40: 3 | S40: TRUE | T40: 1 | U40: 1 | V40: 1 | W40: 1 | X40: 2 | Y40: 2 | Z40: Yes | AA40: 1 | AB40: 1 | AC40: 1 | AD40: 1 | AE40: 2 | AF40: 2
A41: Kachin | B41: Mogaung | C41: Mang Hawng Baptist Church | D41: MMR001CMP077 | E41: GCA | F41: Mixed | G41: 18 | H41: Communal | I41: No | J41: Resp02 | K41: Committee | L41: Regular market | M41: No | N41: 0.5 | O41: 15 | S41: TRUE | T41: 2 | U41: 3 | V41: 1 | W41: 1 | X41: 3 | Y41: 4 | Z41: Yes | AA41: 3 | AB41: 2 | AC41: 1 | AD41: 1 | AE41: 3 | AF41: 4
A42: Kachin | B42: Puta-O | C42: Lung Sut | D42: MMR001CMP234 | E42: GCA | F42: Urban | G42: 59 | H42: Individual household kitchen | I42: No | J42: RESP05 | L42: Regular market | M42: No | N42: 0.3000000119 | O42: 30 | P42: 5 | S42: TRUE | T42: 3 | U42: 2 | V42: 0 | W42: 0 | X42: 3 | Y42: 2 | Z42: Yes | AA42: 2 | AB42: 3 | AC42: 0 | AD42: 0 | AE42: 3 | AF42: 2
A43: Kachin | B43: Mogaung | C43: Kyun Taw Baptist Church | D43: MMR001CMP078 | E43: GCA | F43: Mixed | G43: 13 | H43: Communal | I43: Yes | J43: Resp04 | K43: Don't know | L43: Regular market | M43: No | N43: 2 | O43: 10 | P43: 5 | Q43: 5 | S43: TRUE | T43: 2 | U43: 1 | V43: 1 | W43: 1 | X43: 3 | Y43: 2 | Z43: Yes | AA43: 1 | AB43: 2 | AC43: 1 | AD43: 1 | AE43: 3 | AF43: 2
A44: Kachin | B44: Mohnyin | C44: Nawng Ing (Indawgyi) Baptist Church | D44: MMR001CMP152 | E44: GCA | F44: Rural | G44: 18 | H44: Individual household kitchen | I44: No | J44: Resp02 | K44: Committee | L44: Regular market | M44: No | N44: 1 | O44: 40 | S44: TRUE | T44: 2 | U44: 2 | V44: 2 | W44: 2 | X44: 4 | Y44: 4 | Z44: Yes | AA44: 2 | AB44: 2 | AC44: 2 | AD44: 2 | AE44: 4 | AF44: 4
A45: Kachin | B45: Hpakant | C45: Sai Nai Baptish Church, Maw Shan Vil., Seki Mu | D45: MMR001CMP183 | E45: GCA | F45: Mixed | G45: 8 | H45: Communal | I45: No | J45: RESP05 | L45: Regular market | M45: No | N45: 0.5 | O45: 30 | P45: 10 | Q45: 10 | S45: FALSE | T45: 2 | U45: 2 | V45: 0 | W45: 0 | X45: 0 | Y45: 0 | Z45: No | AA45: 2 | AB45: 2 | AC45: 0 | AD45: 0 | AE45: 0 | AF45: 0
A46: Kachin | B46: Hpakant | C46: Hlaing Naung Baptist | D46: MMR001CMP148 | E46: GCA | F46: Mixed | G46: 14 | H46: Individual household kitchen | I46: Yes | J46: Resp02 | K46: Committee | L46: Regular market | M46: No | N46: 0.6999999881 | O46: 30 | S46: TRUE | T46: 1 | U46: 2 | V46: 1 | W46: 0 | X46: 2 | Y46: 2 | Z46: Yes | AA46: 2 | AB46: 1 | AC46: 1 | AD46: 0 | AE46: 2 | AF46: 2
A47: Kachin | B47: Waingmaw | C47: Maina KBC (Bawng Ring) | D47: MMR001CMP040 | E47: GCA | F47: Rural | G47: 428 | H47: Individual household kitchen | I47: Yes | J47: Resp02 | K47: Committee | L47: Regular market | M47: Yes | N47: 0 | S47: TRUE | T47: 8 | U47: 9 | V47: 1 | W47: 0 | X47: 9 | Y47: 9 | Z47: Yes | AA47: 9 | AB47: 8 | AC47: 1 | AD47: 0 | AE47: 9 | AF47: 9
A48: Kachin | B48: Myitkyina | C48: Shwe Zet Baptist Church | D48: MMR001CMP009 | E48: GCA | F48: Urban | G48: 90 | H48: Individual household kitchen | I48: No | J48: Resp02 | K48: Committee | L48: Regular market | M48: No | N48: 0.25 | O48: 5 | S48: TRUE | T48: 2 | U48: 3 | V48: 3 | W48: 1 | X48: 5 | Y48: 4 | Z48: Yes | AA48: 3 | AB48: 2 | AC48: 3 | AD48: 1 | AE48: 5 | AF48: 4
A49: Kachin | B49: Myitkyina | C49: Kyun Pin Thar Baptist Church | D49: MMR001CMP013 | E49: GCA | F49: Urban | G49: 44 | H49: Individual household kitchen | I49: No | J49: Resp02 | K49: Committee | L49: Regular market | M49: No | N49: 0.1000000015 | O49: 3 | S49: FALSE | T49: 0 | U49: 0 | V49: 0 | W49: 0 | X49: 0 | Y49: 0 | Z49: No | AA49: 0 | AB49: 0 | AC49: 0 | AD49: 0 | AE49: 0 | AF49: 0
A50: Kachin | B50: Hpakant | C50: Yumar Baptist Church | D50: MMR001CMP105 | E50: GCA | F50: Rural | G50: 19 | H50: Communal | I50: No | J50: RESP05 | L50: Regular market | M50: No | N50: 2 | O50: 40 | P50: 15 | Q50: 15 | S50: TRUE | T50: 3 | U50: 2 | V50: 0 | W50: 0 | X50: 0 | Y50: 0 | Z50: Yes | AA50: 2 | AB50: 3 | AC50: 0 | AD50: 0 | AE50: 0 | AF50: 0
A51: Kachin | B51: Momauk | C51: Loi Je Catholic Church | D51: MMR001CMP069 | E51: GCA | F51: Urban | G51: 124 | H51: Individual household kitchen | I51: No | J51: Resp02 | K51: Committee | L51: Regular market | M51: No | N51: 0.200000003 | O51: 10 | P51: 5 | Q51: 5 | S51: FALSE | T51: 4 | U51: 4 | V51: 0 | W51: 0 | X51: 4 | Y51: 4 | Z51: No | AA51: 4 | AB51: 4 | AC51: 0 | AD51: 0 | AE51: 4 | AF51: 4
A52: Kachin | B52: Bhamo | C52: AD-2000 Tharthana Compound | D52: MMR001CMP050 | E52: GCA | F52: Urban | G52: 274 | H52: Individual household kitchen | I52: No | J52: Resp02 | K52: Committee | L52: Regular market | M52: Yes | N52: 0 | S52: FALSE | T52: 0 | U52: 0 | V52: 0 | W52: 0 | X52: 0 | Y52: 0 | Z52: No | AA52: 0 | AB52: 0 | AC52: 0 | AD52: 0 | AE52: 0 | AF52: 0
A53: Kachin | B53: Bhamo | C53: Nant Hlaing Church | D53: MMR001CMP054 | E53: GCA | F53: Rural | G53: 20 | H53: Individual household kitchen | I53: No | J53: Resp01 | K53: Focal point | L53: Regular market | M53: No | N53: 0.200000003 | O53: 15 | P53: 5 | Q53: 5 | S53: TRUE | T53: 4 | U53: 5 | V53: 0 | W53: 0 | X53: 0 | Y53: 0 | Z53: Yes | AA53: 5 | AB53: 4 | AC53: 0 | AD53: 0 | AE53: 0 | AF53: 0
A54: Kachin | B54: Momauk | C54: Pa Kahtawng | D54: MMR001CMP126 | E54: NGCA | F54: Mixed | G54: 677 | H54: Individual household kitchen | I54: Yes | J54: Resp02 | K54: Committee | L54: Regular market | M54: Yes | N54: 0 | S54: TRUE | T54: 6 | U54: 6 | V54: 2 | W54: 0 | X54: 8 | Y54: 6 | Z54: Yes | AA54: 6 | AB54: 6 | AC54: 2 | AD54: 0 | AE54: 8 | AF54: 6
A55: Kachin | B55: Momauk | C55: Man Bung Catholic compound | D55: MMR001CMP062 | E55: GCA | F55: Urban | G55: 261 | H55: Individual household kitchen | I55: Yes | J55: Resp01 | K55: Focal point | L55: Regular market | M55: No | N55: 1.799999952 | O55: 20 | P55: 15 | Q55: 15 | S55: TRUE | T55: 5 | U55: 5 | V55: 0 | W55: 0 | X55: 5 | Y55: 5 | Z55: Yes | AA55: 5 | AB55: 5 | AC55: 0 | AD55: 0 | AE55: 5 | AF55: 5
A56: Kachin | B56: Myitkyina | C56: Le Kone Ziun Baptist Church | D56: MMR001CMP014 | E56: GCA | F56: Urban | G56: 138 | H56: Individual household kitchen | I56: Yes | J56: Resp02 | K56: Committee | L56: Regular market | M56: No | N56: 0.3000000119 | O56: 10 | S56: TRUE | T56: 1 | U56: 4 | V56: 1 | W56: 0 | X56: 2 | Y56: 4 | Z56: Yes | AA56: 4 | AB56: 1 | AC56: 1 | AD56: 0 | AE56: 2 | AF56: 4
A57: Kachin | B57: Hpakant | C57: Baptist Church, Hmaw Si Sar(Lon Khin) | D57: MMR001CMP169 | E57: GCA | F57: Rural | G57: 36 | H57: Communal | I57: Yes | J57: RESP05 | L57: Regular market | M57: No | N57: 2 | O57: 40 | P57: 15 | Q57: 15 | S57: TRUE | T57: 2 | U57: 5 | V57: 0 | W57: 0 | X57: 2 | Y57: 5 | Z57: Yes | AA57: 5 | AB57: 2 | AC57: 0 | AD57: 0 | AE57: 2 | AF57: 5
A58: Kachin | B58: Bhamo | C58: Mu-yin Baptist Church | D58: MMR001CMP051 | E58: GCA | F58: Urban | G58: 23 | H58: Individual household kitchen | I58: No | J58: Resp01 | K58: Focal point | L58: Regular market | M58: No | N58: 0.6000000238 | O58: 20 | P58: 6 | S58: TRUE | T58: 1 | U58: 2 | V58: 0 | W58: 0 | X58: 1 | Y58: 2 | Z58: Yes | AA58: 2 | AB58: 1 | AC58: 0 | AD58: 0 | AE58: 1 | AF58: 2
A59: Kachin | B59: Myitkyina | C59: Njang Dung Baptist Church | D59: MMR001CMP002 | E59: GCA | F59: Urban | G59: 57 | H59: Individual household kitchen | I59: No | J59: Resp02 | K59: Committee | L59: Regular market | M59: No | N59: 0.400000006 | P59: 20 | S59: TRUE | T59: 3 | U59: 4 | V59: 0 | W59: 0 | X59: 3 | Y59: 4 | Z59: Yes | AA59: 4 | AB59: 3 | AC59: 0 | AD59: 0 | AE59: 3 | AF59: 4
A60: Kachin | B60: Myitkyina | C60: Tat Kone San Pya Baptist Church | D60: MMR001CMP005 | E60: GCA | F60: Urban | G60: 43 | H60: Communal | I60: No | J60: Resp01 | K60: Focal point | L60: Regular market | M60: No | N60: 2 | S60: TRUE | T60: 3 | U60: 2 | V60: 0 | W60: 0 | X60: 3 | Y60: 2 | Z60: Yes | AA60: 2 | AB60: 3 | AC60: 0 | AD60: 0 | AE60: 3 | AF60: 2
A61: Kachin | B61: Waingmaw | C61: Qtr. 4 Monestry (Thargaya Thayett Taw) | D61: MMR001CMP026 | E61: GCA | F61: Urban | G61: 88 | H61: Individual household kitchen | I61: Yes | J61: Resp01 | K61: Focal point | L61: Regular market | M61: No | N61: 0.125 | O61: 2 | S61: TRUE | T61: 3 | U61: 2 | V61: 0 | W61: 0 | X61: 3 | Y61: 2 | Z61: Yes | AA61: 2 | AB61: 3 | AC61: 0 | AD61: 0 | AE61: 3 | AF61: 2
A62: Kachin | B62: Chipwi | C62: Chipwi KBC camp | D62: MMR001CMP042 | E62: GCA | F62: Urban | G62: 109 | H62: Individual household kitchen | I62: Yes | J62: RESP05 | L62: Regular market | M62: No | N62: 0.25 | O62: 10 | S62: TRUE | T62: 3 | V62: 5 | W62: 2 | X62: 8 | Y62: 2 | Z62: Yes | AB62: 3 | AC62: 5 | AD62: 2 | AE62: 8 | AF62: 2
A63: Kachin | B63: Waingmaw | C63: Nawng Hee Village | D63: MMR001CMP033 | E63: GCA | F63: Rural | G63: 18 | H63: Individual household kitchen | I63: Yes | J63: RESP05 | L63: Regular market | M63: No | N63: 0.75 | O63: 20 | S63: TRUE | T63: 3 | U63: 4 | V63: 0 | W63: 0 | X63: 3 | Y63: 4 | Z63: Yes | AA63: 4 | AB63: 3 | AC63: 0 | AD63: 0 | AE63: 3 | AF63: 4
A64: Kachin | B64: Myitkyina | C64: Shatapru Thida Aye Baptist Church | D64: MMR001CMP007 | E64: GCA | F64: Urban | G64: 22 | H64: Communal | I64: No | J64: Resp01 | K64: Focal point | L64: Regular market | M64: No | N64: 0.25 | O64: 3 | S64: TRUE | T64: 1 | U64: 4 | V64: 0 | W64: 0 | X64: 1 | Y64: 4 | Z64: Yes | AA64: 4 | AB64: 1 | AC64: 0 | AD64: 0 | AE64: 1 | AF64: 4
A65: Kachin | B65: Mansi | C65: Lana Zup Ja | D65: MMR001CMP128 | E65: NGCA | F65: Rural | G65: 545 | H65: Individual household kitchen | I65: Yes | J65: Resp02 | K65: Committee | L65: Regular market | M65: No | N65: 0.200000003 | O65: 15 | P65: 5 | Q65: 5 | S65: TRUE | T65: 1 | U65: 2 | V65: 0 | W65: 0 | X65: 1 | Y65: 2 | Z65: Yes | AA65: 2 | AB65: 1 | AC65: 0 | AD65: 0 | AE65: 1 | AF65: 2
A66: Shan_North | B66: Namhkan | C66: Namhkan - Pang Long KBC | D66: MMR015CMP215 | E66: GCA | F66: Urban | G66: 126 | H66: Individual household kitchen | I66: Yes | J66: Resp02 | K66: Committee | L66: Regular market | M66: No | N66: 0 | S66: TRUE | T66: 2 | U66: 3 | V66: 0 | W66: 0 | X66: 2 | Y66: 3 | Z66: Yes | AA66: 3 | AB66: 2 | AC66: 0 | AD66: 0 | AE66: 2 | AF66: 3
A67: Kachin | B67: Waingmaw | C67: Border Post 8 | D67: MMR001CMP113 | E67: NGCA | F67: Rural | G67: 155 | H67: Individual household kitchen | I67: Yes | J67: Resp02 | K67: Committee | L67: Regular market | M67: No | N67: 14 | O67: 180 | P67: 50 | S67: TRUE | T67: 1 | U67: 5 | V67: 0 | W67: 0 | X67: 1 | Y67: 5 | Z67: Yes | AA67: 5 | AB67: 1 | AC67: 0 | AD67: 0 | AE67: 1 | AF67: 5
A68: Kachin | B68: Bhamo | C68: Htoi San Church | D68: MMR001CMP052 | E68: GCA | F68: Urban | G68: 43 | H68: Individual household kitchen | I68: Yes | J68: Resp02 | K68: Committee | L68: Regular market | M68: Yes | N68: 1 | O68: 10 | P68: 5 | S68: TRUE | T68: 0 | U68: 1 | V68: 1 | W68: 0 | X68: 1 | Y68: 1 | Z68: Yes | AA68: 1 | AB68: 0 | AC68: 1 | AD68: 0 | AE68: 1 | AF68: 1
A69: Kachin | B69: Waingmaw | C69: Pajau / Jan Mai | D69: MMR001CMP120 | E69: NGCA | F69: Sub-urban | G69: 191 | H69: Individual household kitchen | I69: No | J69: Resp02 | K69: Committee | L69: Regular market | M69: No | N69: 15 | P69: 45 | Q69: 30 | S69: TRUE | T69: 2 | U69: 2 | V69: 0 | W69: 0 | X69: 2 | Y69: 2 | Z69: Yes | AA69: 2 | AB69: 2 | AC69: 0 | AD69: 0 | AE69: 2 | AF69: 2
A70: Kachin | B70: Waingmaw | C70: Zai Awng / Mung Ga Zup | D70: MMR001CMP111 | E70: NGCA | F70: Sub-urban | G70: 680 | H70: Individual household kitchen | I70: Yes | J70: Resp02 | K70: Committee | L70: Regular market | M70: No | N70: 32 | P70: 120 | S70: TRUE | T70: 2 | U70: 4 | V70: 0 | W70: 0 | X70: 2 | Y70: 4 | Z70: Yes | AA70: 4 | AB70: 2 | AC70: 0 | AD70: 0 | AE70: 2 | AF70: 4
A71: Kachin | B71: Chipwi | C71: Hpare Hkyer - BP6 | D71: MMR001CMP043 | E71: NGCA | F71: Sub-urban | G71: 154 | H71: Individual household kitchen | I71: No | J71: Resp02 | K71: Committee | L71: Regular market | M71: No | N71: 25 | P71: 80 | S71: TRUE | T71: 4 | U71: 4 | V71: 0 | W71: 0 | X71: 4 | Y71: 4 | Z71: Yes | AA71: 4 | AB71: 4 | AC71: 0 | AD71: 0 | AE71: 4 | AF71: 4
A72: Kachin | B72: Shwegu | C72: Shwe Gu Baptist Church | D72: MMR001CMP067 | E72: GCA | F72: Urban | G72: 83 | H72: Communal | I72: No | J72: Resp01 | K72: Focal point | L72: Regular market | M72: Yes | N72: 1 | O72: 20 | P72: 10 | Q72: 5 | S72: TRUE | T72: 4 | U72: 3 | V72: 0 | W72: 0 | X72: 4 | Y72: 3 | Z72: Yes | AA72: 3 | AB72: 4 | AC72: 0 | AD72: 0 | AE72: 4 | AF72: 3
A73: Kachin | B73: Waingmaw | C73: Hkau Shau (BP 12) | D73: MMR001CMP115 | E73: NGCA | F73: Sub-urban | G73: 136 | H73: Individual household kitchen | I73: Yes | J73: Resp01 | K73: Focal point | L73: Regular market | M73: No | N73: 60 | P73: 150 | S73: TRUE | T73: 4 | U73: 4 | V73: 0 | W73: 0 | X73: 4 | Y73: 4 | Z73: Yes | AA73: 4 | AB73: 4 | AC73: 0 | AD73: 0 | AE73: 4 | AF73: 4
A74: Kachin | B74: Mansi | C74: Mansi Baptist Church | D74: MMR001CMP066 | E74: GCA | F74: Urban | G74: 221 | H74: Individual household kitchen | I74: Yes | J74: Resp02 | K74: Committee | L74: Regular market | M74: No | N74: 0 | S74: TRUE | T74: 2 | U74: 1 | V74: 1 | W74: 1 | X74: 3 | Y74: 2 | Z74: Yes | AA74: 1 | AB74: 2 | AC74: 1 | AD74: 1 | AE74: 3 | AF74: 2
A75: Shan_North | B75: Namhkan | C75: Nam Hkam (KBC Jaw Wang) II | D75: MMR015CMP214 | E75: GCA | F75: Urban | G75: 38 | H75: Individual household kitchen | I75: Yes | J75: Resp02 | K75: Committee | L75: Regular market | M75: No | N75: 0 | Q75: 15 | S75: TRUE | T75: 2 | U75: 3 | V75: 2 | W75: 1 | X75: 4 | Y75: 4 | Z75: Yes | AA75: 3 | AB75: 2 | AC75: 2 | AD75: 1 | AE75: 4 | AF75: 4
A76: Shan_North | B76: Muse | C76: Muse Baptist Church | D76: MMR015CMP213 | E76: GCA | F76: Urban | G76: 56 | H76: Individual household kitchen | I76: Yes | J76: Resp02 | K76: Committee | L76: Regular market | M76: No | N76: 0 | O76: 5 | S76: TRUE | T76: 2 | U76: 5 | V76: 1 | W76: 0 | X76: 3 | Y76: 5 | Z76: Yes | AA76: 5 | AB76: 2 | AC76: 1 | AD76: 0 | AE76: 3 | AF76: 5
A77: Shan_North | B77: Kutkai | C77: Zup Aung Camp | D77: MMR015CMP020 | E77: GCA | F77: Rural | G77: 218 | H77: Individual household kitchen | I77: No | J77: Resp01 | K77: Focal point | L77: Regular market | M77: No | N77: 1 | O77: 30 | P77: 15 | S77: FALSE | T77: 0 | U77: 0 | V77: 0 | W77: 0 | X77: 0 | Y77: 0 | Z77: No | AA77: 0 | AB77: 0 | AC77: 0 | AD77: 0 | AE77: 0 | AF77: 0
A78: Shan_North | B78: Kutkai | C78: Mine Yu Lay village | D78: MMR015CMP018 | E78: GCA | F78: Rural | G78: 63 | H78: Individual household kitchen | I78: No | J78: Resp02 | K78: Committee | L78: Regular market | M78: No | N78: 0 | S78: TRUE | T78: 2 | U78: 3 | V78: 0 | W78: 0 | X78: 2 | Y78: 3 | Z78: Yes | AA78: 3 | AB78: 2 | AC78: 0 | AD78: 0 | AE78: 2 | AF78: 3
A79: Shan_North | B79: Kutkai | C79: Kutkai downtown (KBC Church) | D79: MMR015CMP016 | E79: GCA | F79: Urban | G79: 65 | H79: Both | I79: Yes | J79: Resp02 | K79: Committee | L79: Regular market | M79: No | N79: 0 | O79: 10 | P79: 5 | S79: TRUE | T79: 4 | U79: 7 | V79: 0 | W79: 0 | X79: 4 | Y79: 7 | Z79: Yes | AA79: 7 | AB79: 4 | AC79: 0 | AD79: 0 | AE79: 4 | AF79: 7
A80: Shan_North | B80: Namtu | C80: Nam Tu Baptist | D80: MMR015CMP014 | E80: GCA | F80: Urban | G80: 9 | H80: Individual household kitchen | I80: No | J80: RESP05 | L80: Regular market | M80: No | N80: 0 | O80: 35 | P80: 5 | S80: TRUE | T80: 1 | U80: 1 | V80: 1 | W80: 1 | X80: 2 | Y80: 2 | Z80: Yes | AA80: 1 | AB80: 1 | AC80: 1 | AD80: 1 | AE80: 2 | AF80: 2
A81: Kachin | B81: Waingmaw | C81: Shing Jai | D81: MMR001CMP041 | E81: GCA | F81: Rural | G81: 172 | H81: Individual household kitchen | I81: Yes | J81: Resp02 | K81: Committee | L81: Regular market | M81: Yes | N81: 0 | S81: TRUE | T81: 9 | U81: 6 | V81: 0 | W81: 0 | X81: 9 | Y81: 6 | Z81: Yes | AA81: 6 | AB81: 9 | AC81: 0 | AD81: 0 | AE81: 9 | AF81: 6
A82: Kachin | B82: Momauk | C82: Loi Je Baptist Church | D82: MMR001CMP071 | E82: GCA | F82: Urban | G82: 29 | H82: Individual household kitchen | I82: Yes | J82: Resp02 | K82: Committee | L82: Regular market | M82: Yes | N82: 1 | O82: 20 | P82: 10 | S82: FALSE | T82: 1 | U82: 1 | V82: 0 | W82: 0 | X82: 1 | Y82: 1 | Z82: No | AA82: 1 | AB82: 1 | AC82: 0 | AD82: 0 | AE82: 1 | AF82: 1
A83: Kachin | B83: Mogaung | C83: Sar Hmaw - KBC | D83: MMR001CMP236 | E83: GCA | F83: Rural | G83: 40 | H83: Individual household kitchen | I83: No | J83: Resp02 | K83: Committee | L83: Regular market | M83: No | N83: 1 | O83: 50 | P83: 20 | S83: TRUE | T83: 2 | U83: 2 | V83: 2 | W83: 2 | X83: 4 | Y83: 4 | Z83: Yes | AA83: 2 | AB83: 2 | AC83: 2 | AD83: 2 | AE83: 4 | AF83: 4
A84: Shan_North | B84: Namhkan | C84: Nam Hkam Catholic Church ( St. Thomas I) | D84: MMR015CMP003 | E84: GCA | F84: Urban | G84: 48 | H84: Communal | I84: Yes | J84: Resp02 | K84: Committee | L84: Regular market | M84: No | N84: 0.6999999881 | O84: 30 | P84: 10 | S84: FALSE | T84: 0 | U84: 0 | V84: 0 | W84: 0 | X84: 0 | Y84: 0 | Z84: No | AA84: 0 | AB84: 0 | AC84: 0 | AD84: 0 | AE84: 0 | AF84: 0
A85: Shan_North | B85: Muse | C85: Muse Catholic Church | D85: MMR015CMP216 | E85: GCA | F85: Urban | G85: 26 | H85: Individual household kitchen | I85: No | J85: Resp02 | K85: Committee | L85: Regular market | M85: No | N85: 1 | O85: 30 | P85: 10 | S85: TRUE | T85: 4 | U85: 5 | V85: 0 | W85: 0 | X85: 5 | Y85: 5 | Z85: Yes | AA85: 5 | AB85: 4 | AC85: 0 | AD85: 0 | AE85: 5 | AF85: 5
A86: Shan_North | B86: Kutkai | C86: Mungji Pa Dabang (Catholic Church) | D86: MMR015CMP217 | E86: GCA | F86: Mixed | G86: 23 | H86: Individual household kitchen | I86: No | J86: Resp01 | K86: Focal point | L86: Regular market | M86: No | N86: 2 | O86: 80 | P86: 30 | S86: TRUE | T86: 2 | U86: 3 | V86: 0 | W86: 0 | X86: 2 | Y86: 3 | Z86: Yes | AA86: 3 | AB86: 2 | AC86: 0 | AD86: 0 | AE86: 2 | AF86: 3
A87: Shan_North | B87: Manton | C87: Mandung - RC | D87: MMR015CMP209 | E87: GCA | F87: Urban | G87: 31 | H87: Individual household kitchen | I87: No | J87: Resp02 | K87: Committee | L87: Regular market | M87: No | N87: 0.1000000015 | O87: 10 | S87: FALSE | T87: 5 | U87: 0 | V87: 0 | W87: 0 | X87: 5 | Y87: 0 | Z87: No | AA87: 0 | AB87: 5 | AC87: 0 | AD87: 0 | AE87: 5 | AF87: 0
A88: Kachin | B88: Momauk | C88: Nyaung Na Pin | D88: MMR001CMP072 | E88: GCA | F88: Mixed | G88: 50 | H88: Individual household kitchen | I88: Yes | J88: Resp02 | K88: Committee | L88: Regular market | M88: Yes | N88: 1 | O88: 10 | S88: TRUE | T88: 6 | U88: 11 | V88: 0 | W88: 0 | X88: 6 | Y88: 11 | Z88: Yes | AA88: 11 | AB88: 6 | AC88: 0 | AD88: 0 | AE88: 6 | AF88: 11
A89: Kachin | B89: Momauk | C89: Seng Ja | D89: MMR001CMP073 | E89: GCA | F89: Rural | G89: 45 | H89: Individual household kitchen | I89: Yes | J89: Resp02 | K89: Committee | L89: Regular market | M89: No | N89: 0 | S89: TRUE | T89: 1 | U89: 3 | V89: 0 | W89: 0 | X89: 1 | Y89: 3 | Z89: Yes | AA89: 3 | AB89: 1 | AC89: 0 | AD89: 0 | AE89: 1 | AF89: 3
A90: Shan_North | B90: Kutkai | C90: Mungji Pa Dabang (Baptist Church) | D90: MMR015CMP006 | E90: GCA | F90: Rural | G90: 49 | H90: Individual household kitchen | I90: Yes | J90: Resp01 | K90: Focal point | L90: Regular market | M90: No | N90: 1 | O90: 20 | P90: 5 | S90: TRUE | T90: 1 | U90: 0 | V90: 9 | W90: 1 | X90: 10 | Y90: 4 | Z90: Yes | AA90: 0 | AB90: 1 | AC90: 9 | AD90: 1 | AE90: 10 | AF90: 4
A91: Kachin | B91: Momauk | C91: Loi Je Lisu Camp | D91: MMR001CMP070 | E91: GCA | F91: Urban | G91: 188 | H91: Individual household kitchen | I91: Yes | J91: Resp02 | K91: Committee | L91: Regular market | M91: Yes | N91: 2 | O91: 30 | P91: 15 | S91: TRUE | T91: 5 | U91: 4 | V91: 0 | W91: 0 | X91: 5 | Y91: 4 | Z91: Yes | AA91: 4 | AB91: 5 | AC91: 0 | AD91: 0 | AE91: 5 | AF91: 4
A92: Kachin | B92: Bhamo | C92: Phan Khar Kone | D92: MMR001CMP193 | E92: GCA | F92: Rural | G92: 157 | H92: Individual household kitchen | I92: No | J92: Resp01 | K92: Focal point | L92: Regular market | M92: Yes | O92: 5 | S92: TRUE | T92: 2 | U92: 5 | V92: 0 | W92: 0 | X92: 2 | Y92: 5 | Z92: Yes | AA92: 5 | AB92: 2 | AC92: 0 | AD92: 0 | AE92: 2 | AF92: 5
A93: Kachin | B93: Mansi | C93: Maing Khaung | D93: MMR001CMP218 | E93: GCA | F93: Rural | G93: 372 | H93: Individual household kitchen | I93: No | J93: Resp02 | K93: Committee | L93: Regular market | M93: Yes | N93: 0 | S93: TRUE | T93: 3 | U93: 2 | V93: 0 | W93: 0 | X93: 3 | Y93: 2 | Z93: Yes | AA93: 2 | AB93: 3 | AC93: 0 | AD93: 0 | AE93: 3 | AF93: 2
A94: Kachin | B94: Momauk | C94: Momauk Baptist Church | D94: MMR001CMP056 | E94: GCA | F94: Urban | G94: 207 | H94: Communal | I94: Yes | J94: Resp02 | K94: Committee | L94: Regular market | M94: No | N94: 0 | S94: TRUE | T94: 0 | U94: 0 | V94: 0 | W94: 0 | X94: 0 | Y94: 0 | Z94: Yes | AA94: 0 | AB94: 0 | AC94: 0 | AD94: 0 | AE94: 0 | AF94: 0
A95: Kachin | B95: Bhamo | C95: Robert Church | D95: MMR001CMP047 | E95: GCA | F95: Urban | G95: 652 | H95: Individual household kitchen | I95: Yes | J95: Resp02 | K95: Committee | L95: Regular market | M95: Yes | N95: 1 | O95: 20 | Q95: 8 | S95: TRUE | T95: 2 | U95: 3 | W95: 0 | X95: 2 | Y95: 3 | Z95: Yes | AA95: 3 | AB95: 2 | AD95: 0 | AE95: 2 | AF95: 3
A96: Kachin | B96: Bhamo | C96: Aung Thar Church | D96: MMR001CMP194 | E96: GCA | F96: Mixed | G96: 12 | H96: Communal | I96: No | J96: Resp02 | K96: Committee | L96: Regular market | M96: Yes | N96: 2 | P96: 15 | S96: FALSE | T96: 0 | U96: 0 | V96: 0 | W96: 0 | X96: 0 | Y96: 0 | Z96: No | AA96: 0 | AB96: 0 | AC96: 0 | AD96: 0 | AE96: 0 | AF96: 0
A97: Shan_North | B97: Kutkai | C97: Kutkai downtown (RC Church) | D97: MMR015CMP017 | E97: GCA | F97: Urban | G97: 31 | H97: Individual household kitchen | I97: No | J97: Resp01 | K97: Focal point | L97: Regular market | M97: No | N97: 1 | O97: 50 | P97: 20 | S97: TRUE | T97: 4 | U97: 3 | V97: 0 | W97: 0 | X97: 4 | Y97: 3 | Z97: Yes | AA97: 3 | AB97: 4 | AC97: 0 | AD97: 0 | AE97: 4 | AF97: 3
A98: Kachin | B98: Waingmaw | C98: Thargaya Lisu Baptist Church | D98: MMR001CMP037 | E98: GCA | F98: Urban | G98: 44 | H98: Individual household kitchen | I98: Yes | J98: Resp01 | K98: Focal point | L98: Regular market | M98: No | N98: 0.125 | O98: 2 | S98: TRUE | T98: 3 | U98: 4 | V98: 0 | W98: 0 | X98: 3 | Y98: 4 | Z98: Yes | AA98: 4 | AB98: 3 | AC98: 0 | AD98: 0 | AE98: 3 | AF98: 4
A99: Kachin | B99: Momauk | C99: Ni Thaw Ka Monestry | D99: MMR001CMP059 | E99: GCA | F99: Urban | G99: 24 | H99: Individual household kitchen | I99: No | J99: Resp02 | K99: Committee | L99: Regular market | M99: No | N99: 0 | O99: 10 | P99: 3 | S99: TRUE | T99: 0 | U99: 4 | V99: 0 | W99: 0 | X99: 0 | Y99: 4 | Z99: Yes | AA99: 4 | AB99: 0 | AC99: 0 | AD99: 0 | AE99: 0 | AF99: 4
A100: Shan_North | B100: Namhkan | C100: Nam Hkam - Nay Win Ni (Palawng) | D100: MMR015CMP004 | E100: GCA | F100: Urban | G100: 70 | H100: Communal | I100: No | J100: Resp02 | K100: Committee | L100: Regular market | M100: No | N100: 1.049999952 | O100: 45 | S100: TRUE | T100: 2 | U100: 0 | V100: 1 | W100: 0 | X100: 3 | Y100: 0 | Z100: Yes | AA100: 0 | AB100: 2 | AC100: 1 | AD100: 0 | AE100: 3 | AF100: 0
A101: Shan_North | B101: Namhkan | C101: Nam Hkam (KBC Jaw Wang) | D101: MMR015CMP001 | E101: GCA | F101: Urban | G101: 73 | H101: Individual household kitchen | I101: Yes | J101: Resp02 | K101: Committee | L101: Regular market | M101: No | N101: 0 | Q101: 30 | S101: TRUE | T101: 2 | U101: 1 | V101: 2 | W101: 1 | X101: 4 | Y101: 2 | Z101: Yes | AA101: 1 | AB101: 2 | AC101: 2 | AD101: 1 | AE101: 4 | AF101: 2
A102: Kachin | B102: Mansi | C102: Man Wing Baptist Church Cultural Compound | D102: MMR001CMP230 | E102: GCA | F102: Rural | G102: 113 | H102: Individual household kitchen | I102: Yes | J102: Resp02 | K102: Committee | L102: Regular market | M102: No | N102: 1 | O102: 20 | P102: 5 | S102: TRUE | T102: 13 | U102: 6 | V102: 0 | W102: 0 | X102: 13 | Y102: 6 | Z102: Yes | AA102: 6 | AB102: 13 | AC102: 0 | AD102: 0 | AE102: 13 | AF102: 6
A103: Kachin | B103: Mansi | C103: Man Wing Baptist Church | D103: MMR001CMP133 | E103: GCA | F103: Rural | G103: 111 | H103: Individual household kitchen | I103: Yes | J103: Resp01 | K103: Focal point | L103: Regular market | M103: No | N103: 0 | O103: 20 | S103: TRUE | T103: 2 | U103: 2 | V103: 0 | W103: 0 | X103: 2 | Y103: 2 | Z103: Yes | AA103: 2 | AB103: 2 | AC103: 0 | AD103: 0 | AE103: 2 | AF103: 2
A104: Shan_North | B104: Manton | C104: Mandung - Jinghpaw | D104: MMR015CMP009 | E104: GCA | F104: Urban | G104: 37 | H104: Individual household kitchen | I104: No | J104: RESP05 | L104: Regular market | M104: No | N104: 0.2599999905 | O104: 7 | P104: 3 | S104: FALSE | T104: 0 | U104: 0 | V104: 0 | W104: 0 | X104: 0 | Y104: 0 | Z104: No | AA104: 0 | AB104: 0 | AC104: 0 | AD104: 0 | AE104: 0 | AF104: 0
A105: Kachin | B105: Waingmaw | C105: Hkat Cho | D105: MMR001CMP028 | E105: GCA | F105: Rural | G105: 99 | H105: Individual household kitchen | I105: Yes | J105: Resp01 | K105: Focal point | L105: Regular market | M105: No | N105: 0.5 | P105: 5 | S105: TRUE | T105: 3 | U105: 4 | V105: 0 | W105: 0 | X105: 3 | Y105: 4 | Z105: Yes | AA105: 4 | AB105: 3 | AC105: 0 | AD105: 0 | AE105: 3 | AF105: 4
A106: Kachin | B106: Hpakant | C106: AG Church, Hmaw Si Sa | D106: MMR001CMP176 | E106: GCA | F106: Urban | G106: 67 | H106: Individual household kitchen | I106: No | J106: Resp02 | K106: Committee | L106: Regular market | M106: Yes | N106: 0 | S106: TRUE | T106: 7 | U106: 7 | V106: 0 | W106: 0 | X106: 7 | Y106: 7 | Z106: Yes | AA106: 7 | AB106: 7 | AC106: 0 | AD106: 0 | AE106: 7 | AF106: 7
A107: Kachin | B107: Waingmaw | C107: Maina AG Church | D107: MMR001CMP031 | E107: GCA | F107: Urban | G107: 143 | H107: Individual household kitchen | I107: No | J107: Resp01 | K107: Focal point | L107: Regular market | M107: No | N107: 1 | O107: 20 | S107: TRUE | T107: 5 | U107: 7 | V107: 0 | W107: 0 | X107: 5 | Y107: 7 | Z107: Yes | AA107: 7 | AB107: 5 | AC107: 0 | AD107: 0 | AE107: 5 | AF107: 7
A108: Kachin | B108: Chipwi | C108: Lhaovao Baptist Church (LBC) | D108: MMR001CMP195 | E108: GCA | F108: Urban | G108: 143 | H108: Individual household kitchen | I108: Yes | J108: Resp01 | K108: Focal point | L108: Regular market | M108: No | N108: 0.25 | O108: 5 | S108: TRUE | T108: 1 | U108: 1 | V108: 6 | W108: 0 | X108: 7 | Y108: 1 | Z108: Yes | AA108: 1 | AB108: 1 | AC108: 6 | AD108: 0 | AE108: 7 | AF108: 1
A109: Kachin | B109: Waingmaw | C109: Qtr. 2 Lhaovo Baptist Church | D109: MMR001CMP032 | E109: GCA | F109: Urban | G109: 91 | H109: Individual household kitchen | I109: Yes | J109: Resp01 | K109: Focal point | L109: Regular market | M109: No | N109: 1 | O109: 20 | S109: TRUE | T109: 6 | U109: 5 | V109: 2 | W109: 2 | X109: 8 | Y109: 7 | Z109: Yes | AA109: 5 | AB109: 6 | AC109: 2 | AD109: 2 | AE109: 8 | AF109: 7
A110: Kachin | B110: Waingmaw | C110: Waingmaw AG Church | D110: MMR001CMP038 | E110: GCA | F110: Urban | G110: 70 | H110: Individual household kitchen | I110: Yes | J110: Resp01 | K110: Focal point | L110: Regular market | M110: No | N110: 1 | O110: 20 | S110: TRUE | T110: 4 | U110: 4 | V110: 3 | W110: 1 | X110: 7 | Y110: 5 | Z110: Yes | AA110: 4 | AB110: 4 | AC110: 3 | AD110: 1 | AE110: 7 | AF110: 5
A111: Kachin | B111: Waingmaw | C111: Qtr. 3 Mu-yin Baptist Church | D111: MMR001CMP030 | E111: GCA | F111: Urban | G111: 31 | H111: Both | I111: Yes | J111: Resp01 | K111: Focal point | L111: Regular market | M111: No | N111: 0.375 | O111: 8 | S111: TRUE | T111: 4 | U111: 3 | V111: 0 | W111: 0 | X111: 4 | Y111: 3 | Z111: Yes | AA111: 3 | AB111: 4 | AC111: 0 | AD111: 0 | AE111: 4 | AF111: 3
A112: Kachin | B112: Myitkyina | C112: Tat Kone COC Baptist - Tat Kone Htoi San | D112: MMR001CMP023 | E112: GCA | F112: Urban | G112: 54 | H112: Individual household kitchen | I112: No | J112: Resp01 | K112: Focal point | L112: Regular market | M112: No | N112: 2 | P112: 10 | Q112: 5 | S112: TRUE | T112: 2 | U112: 3 | X112: 2 | Y112: 3 | Z112: Yes | AA112: 3 | AB112: 2 | AE112: 2 | AF112: 3
A113: Kachin | B113: Hpakant | C113: Rawan Baptist Church, Maw Shan Vil., Seik Mu | D113: MMR001CMP182 | E113: GCA | F113: Urban | G113: 10 | H113: Individual household kitchen | I113: Yes | J113: Resp02 | K113: Committee | L113: Regular market | M113: Yes | N113: 0 | S113: FALSE | T113: 0 | U113: 0 | V113: 0 | W113: 0 | X113: 0 | Y113: 0 | Z113: No | AA113: 0 | AB113: 0 | AC113: 0 | AD113: 0 | AE113: 0 | AF113: 0
A114: Kachin | B114: Bhamo | C114: Lisu Boarding-House | D114: MMR001CMP049 | E114: GCA | F114: Urban | G114: 116 | H114: Both | I114: No | J114: Resp02 | K114: Committee | L114: Regular market | M114: No | N114: 0.1199999973 | O114: 20 | P114: 12 | S114: TRUE | T114: 0 | U114: 5 | V114: 0 | W114: 0 | X114: 0 | Y114: 5 | Z114: Yes | AA114: 5 | AB114: 0 | AC114: 0 | AD114: 0 | AE114: 0 | AF114: 5
A115: Kachin | B115: Myitkyina | C115: Tat Kone Emanuel Church | D115: MMR001CMP004 | E115: GCA | F115: Urban | G115: 6 | H115: Both | I115: No | J115: RESP05 | L115: Regular market | M115: No | N115: 0.5 | O115: 20 | S115: FALSE | T115: 0 | U115: 0 | V115: 0 | W115: 0 | X115: 0 | Y115: 0 | Z115: No | AA115: 0 | AB115: 0 | AC115: 0 | AD115: 0 | AE115: 0 | AF115: 0
A116: Kachin | B116: Myitkyina | C116: Wun Tho Buddhist Monastery | D116: MMR001CMP022 | E116: GCA | F116: Urban | G116: 7 | H116: Individual household kitchen | I116: No | J116: RESP05 | L116: Regular market | M116: No | N116: 0.5 | P116: 10 | S116: TRUE | T116: 1 | U116: 2 | V116: 0 | W116: 0 | X116: 1 | Y116: 2 | Z116: Yes | AA116: 2 | AB116: 1 | AC116: 0 | AD116: 0 | AE116: 1 | AF116: 2
A117: Kachin | B117: Myitkyina | C117: Maw Hpawng Lhaovo Baptist Church | D117: MMR001CMP021 | E117: GCA | F117: Rural | G117: 14 | H117: Communal | I117: Yes | J117: Resp02 | K117: Committee | L117: Regular market | M117: No | N117: 0.125 | O117: 2 | S117: TRUE | T117: 1 | U117: 2 | V117: 0 | W117: 0 | X117: 1 | Y117: 2 | Z117: Yes | AA117: 2 | AB117: 1 | AC117: 0 | AD117: 0 | AE117: 1 | AF117: 2
A118: Kachin | B118: Myitkyina | C118: Maw Hpawng Hka Nan Baptist Church | D118: MMR001CMP020 | E118: GCA | F118: Rural | G118: 21 | H118: Individual household kitchen | I118: Yes | J118: Resp02 | K118: Committee | L118: Regular market | M118: No | N118: 0.02500000037 | O118: 15 | S118: TRUE | T118: 1 | U118: 1 | V118: 0 | W118: 0 | X118: 1 | Y118: 1 | Z118: Yes | AA118: 1 | AB118: 1 | AC118: 0 | AD118: 0 | AE118: 1 | AF118: 1
A119: Kachin | B119: Hpakant | C119: Hmaw Wan, Anglican | D119: MMR001CMP191 | E119: GCA | F119: Urban | G119: 13 | H119: Individual household kitchen | I119: Yes | J119: Resp02 | K119: Committee | L119: Regular market | M119: Yes | N119: 0.1280000061 | P119: 10 | Q119: 2 | R119: 2 | S119: TRUE | T119: 2 | U119: 2 | V119: 0 | W119: 0 | X119: 2 | Y119: 2 | Z119: Yes | AA119: 2 | AB119: 2 | AC119: 0 | AD119: 0 | AE119: 2 | AF119: 2
A120: Kachin | B120: Bhamo | C120: Yoe Kyi Monastery | D120: MMR001CMP053 | E120: GCA | F120: Urban | G120: 15 | H120: Individual household kitchen | I120: No | J120: Resp02 | K120: Committee | L120: Regular market | M120: No | N120: 1 | O120: 30 | P120: 10 | Q120: 10 | S120: FALSE | T120: 0 | U120: 0 | V120: 0 | W120: 0 | X120: 0 | Y120: 0 | Z120: No | AA120: 0 | AB120: 0 | AC120: 0 | AD120: 0 | AE120: 0 | AF120: 0
A121: Kachin | B121: Hpakant | C121: Maw Wan, Mu-yin Baptist Church | D121: MMR001CMP091 | E121: GCA | F121: Urban | G121: 5 | H121: Individual household kitchen | I121: No | J121: Resp02 | K121: Committee | L121: Regular market | M121: Yes | N121: 0.125 | O121: 5 | P121: 2 | Q121: 2 | S121: TRUE | T121: 1 | U121: 0 | V121: 2 | W121: 0 | X121: 3 | Y121: 0 | Z121: Yes | AA121: 0 | AB121: 1 | AC121: 2 | AD121: 0 | AE121: 3 | AF121: 0
A122: Kachin | B122: Bhamo | C122: Ta Gun Taing Monastery (Shwe Kyi Na) | D122: MMR001CMP055 | E122: GCA | F122: Urban | G122: 25 | H122: Both | I122: No | J122: Resp02 | K122: Committee | L122: Regular market | M122: No | N122: 1 | O122: 20 | P122: 8 | S122: TRUE | T122: 3 | U122: 4 | V122: 0 | W122: 0 | X122: 0 | Y122: 0 | Z122: Yes | AA122: 4 | AB122: 3 | AC122: 0 | AD122: 0 | AE122: 0 | AF122: 0
A123: Kachin | B123: Hpakant | C123: Lisu Baptist Church, Maw Wan Ward | D123: MMR001CMP167 | E123: GCA | F123: Rural | G123: 15 | H123: Individual household kitchen | I123: Yes | J123: Resp03 | K123: No | L123: Regular market | M123: Yes | N123: 0.125 | O123: 10 | P123: 2 | Q123: 2 | S123: TRUE | T123: 2 | U123: 3 | V123: 0 | W123: 0 | X123: 2 | Y123: 3 | Z123: Yes | AA123: 3 | AB123: 2 | AC123: 0 | AD123: 0 | AE123: 2 | AF123: 3
A124: Kachin | B124: Hpakant | C124: AG Church, Maw Wan | D124: MMR001CMP190 | E124: GCA | F124: Urban | G124: 14 | H124: Individual household kitchen | I124: No | J124: Resp03 | K124: No | L124: Regular market | M124: Yes | N124: 0.5 | O124: 5 | S124: TRUE | T124: 0 | U124: 3 | V124: 0 | W124: 1 | X124: 0 | Y124: 4 | Z124: Yes | AA124: 3 | AB124: 0 | AC124: 0 | AD124: 1 | AE124: 0 | AF124: 4
A125: Kachin | B125: Hpakant | C125: Chin Church, Seik Mu | D125: MMR001CMP109 | E125: GCA | F125: Urban | G125: 6 | H125: Individual household kitchen | I125: No | J125: Resp04 | K125: Don't know | L125: Regular market | M125: Yes | N125: 0.375 | O125: 15 | P125: 10 | S125: FALSE | T125: 0 | U125: 0 | V125: 0 | W125: 0 | X125: 0 | Y125: 0 | Z125: No | AA125: 0 | AB125: 0 | AC125: 0 | AD125: 0 | AE125: 0 | AF125: 0
A126: Kachin | B126: Hpakant | C126: Lisu Baptist Church, Maw Shan Vil,. Seik Mu | D126: MMR001CMP181 | E126: GCA | F126: Urban | G126: 25 | H126: Individual household kitchen | I126: Yes | J126: Resp01 | K126: Focal point | L126: Regular market | M126: Yes | N126: 0.125 | O126: 5 | P126: 2 | Q126: 2 | S126: TRUE | T126: 3 | U126: 4 | V126: 0 | W126: 0 | X126: 3 | Y126: 4 | Z126: Yes | AA126: 4 | AB126: 3 | AC126: 0 | AD126: 0 | AE126: 3 | AF126: 4
A127: Kachin | B127: Hpakant | C127: Dhama Rakhita, Nyein Chan Tar Yar Ward(Lon Khin) | D127: MMR001CMP174 | E127: GCA | F127: Urban | G127: 65 | H127: Individual household kitchen | I127: Yes | J127: Resp02 | K127: Committee | L127: Regular market | M127: No | N127: 0 | S127: TRUE | T127: 7 | U127: 12 | V127: 0 | W127: 0 | X127: 7 | Y127: 12 | Z127: Yes | AA127: 12 | AB127: 7 | AC127: 0 | AD127: 0 | AE127: 7 | AF127: 12
A128: Shan_North | B128: Kutkai | C128: Nam Hpak Ka Mare | D128: MMR015CMP007 | E128: GCA | F128: Rural | G128: 64 | H128: Individual household kitchen | I128: No | J128: Resp02 | K128: Committee | L128: Regular market | M128: Yes | N128: 0 | S128: TRUE | T128: 3 | U128: 6 | V128: 0 | W128: 0 | X128: 3 | Y128: 6 | Z128: Yes | AA128: 6 | AB128: 3 | AC128: 0 | AD128: 0 | AE128: 3 | AF128: 6
A129: Kachin | B129: Hpakant | C129: Nam Ma Phyit, COC | D129: MMR001CMP192 | E129: GCA | F129: Urban | G129: 17 | H129: Individual household kitchen | I129: Yes | J129: Resp02 | K129: Committee | L129: Regular market | M129: Yes | N129: 0.25 | O129: 15 | P129: 5 | Q129: 2 | S129: TRUE | T129: 4 | U129: 5 | V129: 0 | W129: 0 | X129: 4 | Y129: 5 | Z129: Yes | AA129: 5 | AB129: 4 | AC129: 0 | AD129: 0 | AE129: 4 | AF129: 5

Sheet Food
A2: Breakdown of availability of "Regular Market" within the camps | H2: Breakdown of availability of Food/Cash Management Committee in the camps
A4: Count of CP_PCode | B4: Column Labels | H4: Count of CP_PCode | I4: Column Labels
A5: State | B5: No | C5: Yes | D5: Grand Total | H5: State | I5: No | J5: Yes | K5: Grand Total
A6: Kachin | B6: 85 | C6: 26 | D6: 111 | H6: Kachin | I6: 18 | J6: 93 | K6: 111
A7: Shan_North | B7: 16 | C7: 1 | D7: 17 | H7: Shan_North | I7: 4 | J7: 13 | K7: 17
A8: Grand Total | B8: 101 | C8: 27 | D8: 128 | H8: Grand Total | I8: 22 | J8: 106 | K8: 128
A9: Percentage % | B9: =GETPIVOTDATA("CP_PCode",$A$4,"Avaibility","No")/GETPIVOTDATA("CP_PCode",$A$4) -> 0.7890625 | C9: =GETPIVOTDATA("CP_PCode",$A$4,"Avaibility","Yes")/GETPIVOTDATA("CP_PCode",$A$4) -> 0.2109375 | D9: =SUM(B9:C9) -> 1 | H9: Percentage % | I9: =GETPIVOTDATA("CP_PCode",$H$4,"FoodCash_MgmtCommittee","No")/GETPIVOTDATA("CP_PCode",$H$4) -> 0.171875 | J9: =GETPIVOTDATA("CP_PCode",$H$4,"FoodCash_MgmtCommittee","Yes")/GETPIVOTDATA("CP_PCode",$H$4) -> 0.828125 | K9: =SUM(I9:J9) -> 1
A11: Breakdown of types of Kitchens in the camps | H11: Breakdown of numbers of Food/Cash Management committee members
A13: Count of CP_PCode | B13: Column Labels | H13: State | I13: Males | J13: Females
A14: State | B14: Communal | C14: (blank) | D14: Individual household kitchen | E14: Both | F14: Grand Total | H14: Kachin | I14: 317 | J14: 343
A15: Kachin | B15: 21 | C15: 1 | D15: 83 | E15: 6 | F15: 111 | H15: Shan_North | I15: 53 | J15: 47
A16: Shan_North | B16: 2 | D16: 14 | E16: 1 | F16: 17 | H16: Grand Total | I16: 370 | J16: 390
A17: Grand Total | B17: 23 | C17: 1 | D17: 97 | E17: 7 | F17: 128
A18: Percentage % | B18: =GETPIVOTDATA("CP_PCode",$A$13,"Kitchen_Type","Communal")/GETPIVOTDATA("CP_PCode",$A$13) -> 0.1796875 | C18: =GETPIVOTDATA("CP_PCode",$A$13,"Kitchen_Type",)/GETPIVOTDATA("CP_PCode",$A$13) -> 0.0078125 | D18: =GETPIVOTDATA("CP_PCode",$A$13,"Kitchen_Type","Individual household kitchen")/GETPIVOTDATA("CP_PCode",$A$13) -> 0.7578125 | E18: =GETPIVOTDATA("CP_PCode",$A$13,"Kitchen_Type","Both")/GETPIVOTDATA("CP_PCode",$A$13) -> 0.0546875 | F18: =SUM(B18:E18) -> 1 | H18: Percentage % | I18: =GETPIVOTDATA("Males",$H$13)/(GETPIVOTDATA("Males",$H$13)+GETPIVOTDATA("Females",$H$13)) -> 0.4868421053 | J18: =GETPIVOTDATA("Females",$H$13)/(GETPIVOTDATA("Males",$H$13)+GETPIVOTDATA("Females",$H$13)) -> 0.5131578947
A20: Breakdown of availability of proper food storage facilities in the camps
A22: Count of CP_PCode | B22: Column Labels
A23: State | B23: No | C23: Yes | D23: Grand Total
A24: Kachin | B24: 47 | C24: 64 | D24: 111
A25: Shan_North | B25: 10 | C25: 7 | D25: 17
A26: Grand Total | B26: 57 | C26: 71 | D26: 128
A27: Percentage % | B27: =GETPIVOTDATA("CP_PCode",$A$22,"StorageFacility","No")/GETPIVOTDATA("CP_PCode",$A$22) -> 0.4453125 | C27: =GETPIVOTDATA("CP_PCode",$A$22,"StorageFacility","Yes")/GETPIVOTDATA("CP_PCode",$A$22) -> 0.5546875 | D27: =SUM(B27:C27) -> 1

Sheet Data_Sector_Health
A1: State | B1: Township | C1: Camp | D1: CP_PCode | E1: Accessibility | F1: Location_Type | G1: HS_Cluster | H1: Responsible | I1: Service | J1: Avaibility | K1: Distance | L1: Foot | M1: Motor | N1: Car | O1: Water | P1: Health_Facility | Q1: Other | R1: Doctors | S1: Nurses | T1: Pychological_Support_Services | U1: Mid_Wives | V1: Preventive_Health_Care | W1: Reproductive_Heath_Care | X1: Community_Health_Workers | Y1: GBV_related_healthcare | Z1: Immunization | AA1: Patient_referral | AB1: Primary_HealthCare_service
A2: Kachin | B2: Mogaung | C2: Nat Gyi Kone Baptist Church | D2: MMR001CMP079 | E2: GCA | F2: Urban | G2: 14 | H2: Committee | I2: Health facility | J2: No | K2: 1 | L2: 30 | P2: Township Hospital | R2: TRUE | S2: TRUE | T2: FALSE | U2: TRUE | V2: TRUE | W2: TRUE | X2: FALSE | Y2: FALSE | Z2: FALSE | AA2: FALSE | AB2: FALSE
A3: Kachin | B3: Waingmaw | C3: Maina KBC (Bawng Ring) | D3: MMR001CMP040 | E3: GCA | F3: Rural | G3: 428 | H3: Committee | I3: Health facility | J3: Yes | K3: 0 | P3: Township Hospital | R3: FALSE | S3: TRUE | T3: TRUE | U3: TRUE | V3: TRUE | W3: TRUE | X3: FALSE | Y3: TRUE | Z3: TRUE | AA3: TRUE | AB3: TRUE
A4: Kachin | B4: Hpakant | C4: Hlaing Naung Baptist | D4: MMR001CMP148 | E4: GCA | F4: Mixed | G4: 14 | H4: Committee | I4: Health facility | J4: No | K4: 30 | P4: Township Hospital | R4: TRUE | S4: TRUE | T4: FALSE | U4: TRUE | V4: TRUE | W4: FALSE | X4: TRUE | Y4: FALSE | Z4: FALSE | AA4: TRUE | AB4: TRUE
A5: Kachin | B5: Mohnyin | C5: Nawng Ing (Indawgyi) Baptist Church | D5: MMR001CMP152 | E5: GCA | F5: Rural | G5: 18 | H5: Committee | I5: Health facility | J5: No | K5: 0 | P5: Rural Health Centre | R5: FALSE | S5: TRUE | T5: FALSE | U5: FALSE | V5: TRUE | W5: FALSE | X5: FALSE | Y5: TRUE | Z5: FALSE | AA5: TRUE | AB5: FALSE
A6: Kachin | B6: Waingmaw | C6: Maina Catholic Church (St. Joseph) | D6: MMR001CMP029 | E6: GCA | F6: Rural | G6: 222 | H6: Committee | I6: Health facility | J6: Yes | K6: 0 | P6: Camp Clinic | R6: TRUE | S6: TRUE | T6: TRUE | U6: TRUE | V6: TRUE | W6: TRUE | X6: FALSE | Y6: TRUE | Z6: TRUE | AA6: TRUE | AB6: TRUE
A7: Kachin | B7: Myitkyina | C7: Jan Mai Kawng Catholic Church | D7: MMR001CMP019 | E7: GCA | F7: Urban | G7: 105 | H7: Committee | I7: Health facility | J7: No | K7: 0.5 | L7: 10 | M7: 5 | P7: Township Hospital | R7: TRUE | S7: TRUE | T7: FALSE | U7: TRUE | V7: TRUE | W7: FALSE | X7: FALSE | Y7: FALSE | Z7: TRUE | AA7: TRUE | AB7: TRUE
A8: Kachin | B8: Waingmaw | C8: Woi Chyai | D8: MMR001CMP116 | E8: NGCA | F8: Urban | G8: 1344 | H8: Committee | I8: Health facility | J8: Yes | K8: 0 | P8: Other | Q8: Civil Hospital | R8: TRUE | S8: TRUE | T8: TRUE | U8: TRUE | V8: TRUE | W8: TRUE | X8: TRUE | Y8: TRUE | Z8: TRUE | AA8: TRUE | AB8: TRUE
A9: Kachin | B9: Myitkyina | C9: Du Kahtawng Qtr. 14 | D9: MMR001CMP012 | E9: GCA | F9: Urban | G9: 6 | H9: Committee | I9: Health facility | J9: No | K9: 1 | M9: 20 | P9: State Hospital | R9: FALSE | S9: TRUE | T9: FALSE | U9: TRUE | V9: TRUE | W9: FALSE | X9: FALSE | Y9: FALSE | Z9: FALSE | AA9: FALSE | AB9: TRUE
A10: Kachin | B10: Myitkyina | C10: Le Kone Ziun Baptist Church | D10: MMR001CMP014 | E10: GCA | F10: Urban | G10: 138 | H10: Committee | I10: Health facility | J10: No | K10: 0.200000003 | L10: 5 | P10: State Hospital | R10: TRUE | S10: TRUE | T10: FALSE | U10: TRUE | V10: TRUE | W10: FALSE | X10: FALSE | Y10: FALSE | Z10: FALSE | AA10: TRUE | AB10: TRUE
A11: Kachin | B11: Mogaung | C11: Mang Hawng Baptist Church | D11: MMR001CMP077 | E11: GCA | F11: Mixed | G11: 18 | H11: Committee | I11: Health facility | J11: No | K11: 0.6000000238 | L11: 20 | P11: Township Hospital | R11: TRUE | S11: TRUE | T11: FALSE | U11: TRUE | V11: TRUE | W11: FALSE | X11: FALSE | Y11: FALSE | Z11: FALSE | AA11: TRUE | AB11: TRUE
A12: Kachin | B12: Momauk | C12: Je Yang Hka | D12: MMR001CMP121 | E12: NGCA | F12: Rural | G12: 1695 | H12: Committee | I12: Health facility | J12: Yes | K12: 0 | P12: Camp Clinic | R12: TRUE | S12: TRUE | T12: TRUE | U12: TRUE | V12: TRUE | W12: TRUE | X12: TRUE | Y12: TRUE | Z12: TRUE | AA12: TRUE | AB12: TRUE
A13: Kachin | B13: Momauk | C13: Hpun Lum Yang | D13: MMR001CMP122 | E13: NGCA | F13: Rural | G13: 662 | H13: Committee | I13: Health facility | J13: Yes | K13: 0 | P13: Camp Clinic | R13: FALSE | S13: TRUE | T13: TRUE | U13: TRUE | V13: TRUE | W13: TRUE | X13: TRUE | Y13: TRUE | Z13: TRUE | AA13: TRUE | AB13: TRUE
A14: Kachin | B14: Waingmaw | C14: Qtr. 2 Myoma Baptist Church | D14: MMR001CMP025 | E14: GCA | F14: Urban | G14: 65 | H14: Committee | I14: Health facility | J14: Yes | K14: 0 | P14: Camp Clinic | R14: TRUE | S14: TRUE | T14: FALSE | U14: TRUE | V14: TRUE | W14: TRUE | X14: TRUE | Y14: TRUE | Z14: TRUE | AA14: TRUE | AB14: TRUE
A15: Kachin | B15: Waingmaw | C15: Mading Baptist Church | D15: MMR001CMP027 | E15: GCA | F15: Rural | G15: 22 | H15: Committee | I15: Health facility | J15: Yes | K15: 0 | P15: Camp Clinic | R15: TRUE | S15: TRUE | T15: FALSE | U15: TRUE | V15: TRUE | W15: TRUE | X15: TRUE | Y15: TRUE | Z15: TRUE | AA15: TRUE | AB15: TRUE
A16: Kachin | B16: Mansi | C16: Man Wing Catholic Church 2 | D16: MMR001CMP132 | E16: GCA | F16: Rural | G16: 458 | H16: Committee | I16: Health facility | J16: Yes | K16: 0 | R16: FALSE | S16: FALSE | T16: FALSE | U16: FALSE | V16: FALSE | W16: FALSE | X16: FALSE | Y16: FALSE | Z16: FALSE | AA16: FALSE | AB16: FALSE
A17: Kachin | B17: Myitkyina | C17: Pa Dauk Myaing(Pa La Na) | D17: MMR001CMP162 | E17: GCA | F17: Rural | G17: 43 | H17: Committee | I17: Health facility | J17: No | K17: 2 | M17: 30 | P17: Rural Health Centre | R17: FALSE | S17: FALSE | T17: FALSE | U17: TRUE | V17: TRUE | W17: TRUE | X17: FALSE | Y17: FALSE | Z17: FALSE | AA17: FALSE | AB17: TRUE
A18: Kachin | B18: Momauk | C18: Man Bung Catholic compound | D18: MMR001CMP062 | E18: GCA | F18: Urban | G18: 261 | H18: Committee | I18: Health facility | J18: Yes | R18: FALSE | S18: FALSE | T18: FALSE | U18: FALSE | V18: FALSE | W18: FALSE | X18: FALSE | Y18: FALSE | Z18: FALSE | AA18: FALSE | AB18: FALSE
A19: Kachin | B19: Hpakant | C19: 5 Ward Baptist Church(lon Khin) | D19: MMR001CMP179 | E19: GCA | F19: Rural | G19: 77 | H19: Focal point | I19: Health facility | J19: Yes | K19: 0 | P19: Rural Health Centre | R19: TRUE | S19: TRUE | T19: FALSE | U19: TRUE | V19: TRUE | W19: TRUE | X19: FALSE | Y19: FALSE | Z19: TRUE | AA19: TRUE | AB19: TRUE
A20: Kachin | B20: Mansi | C20: Maing Khaung Catholic Church | D20: MMR001CMP223 | E20: GCA | F20: Rural | G20: 123 | H20: Committee | I20: Health facility | J20: Yes | K20: 0 | P20: Camp Clinic | R20: TRUE | S20: TRUE | T20: FALSE | U20: FALSE | V20: FALSE | W20: FALSE | X20: FALSE | Y20: FALSE | Z20: FALSE | AA20: FALSE | AB20: FALSE
A21: Kachin | B21: Momauk | C21: Nhkawng Pa | D21: MMR001CMP131 | E21: NGCA | F21: Rural | G21: 375 | H21: Committee | I21: Health facility | J21: Yes | K21: 0 | L21: 0 | M21: 0 | N21: 0 | P21: Camp Clinic | R21: FALSE | S21: TRUE | T21: FALSE | U21: TRUE | V21: FALSE | W21: FALSE | X21: FALSE | Y21: FALSE | Z21: FALSE | AA21: FALSE | AB21: FALSE
A22: Kachin | B22: Momauk | C22: Loi Je Catholic Church | D22: MMR001CMP069 | E22: GCA | F22: Urban | G22: 124 | H22: Committee | I22: Health facility | J22: Yes | K22: 0 | P22: Camp Clinic | R22: FALSE | S22: TRUE | T22: FALSE | U22: FALSE | V22: FALSE | W22: FALSE | X22: TRUE | Y22: FALSE | Z22: FALSE | AA22: FALSE | AB22: FALSE
A23: Kachin | B23: Myitkyina | C23: Man Hkring Baptist Church | D23: MMR001CMP008 | E23: GCA | F23: Urban | G23: 101 | H23: Committee | I23: Health facility | J23: No | K23: 0.5 | L23: 25 | M23: 10 | N23: 10 | P23: State Hospital | R23: TRUE | S23: TRUE | T23: FALSE | U23: TRUE | V23: TRUE | W23: TRUE | X23: FALSE | Y23: TRUE | Z23: TRUE | AA23: TRUE | AB23: TRUE
A24: Kachin | B24: Waingmaw | C24: Maga Yang | D24: MMR001CMP119 | E24: NGCA | F24: Rural | G24: 608 | H24: Committee | I24: Health facility | J24: Yes | K24: 0 | P24: Camp Clinic | R24: TRUE | S24: TRUE | T24: TRUE | U24: TRUE | V24: TRUE | W24: FALSE | X24: TRUE | Y24: TRUE | Z24: FALSE | AA24: TRUE | AB24: TRUE
A25: Kachin | B25: Myitkyina | C25: Shatapru Sut Ngai Tawng | D25: MMR001CMP006 | E25: GCA | F25: Urban | G25: 95 | H25: Committee | I25: Health facility | J25: Yes | P25: State Hospital | R25: TRUE | S25: TRUE | T25: FALSE | U25: TRUE | V25: TRUE | W25: TRUE | X25: FALSE | Y25: FALSE | Z25: TRUE | AA25: FALSE | AB25: TRUE
A26: Kachin | B26: Shwegu | C26: Shwe Gu Baptist Church | D26: MMR001CMP067 | E26: GCA | F26: Urban | G26: 83 | H26: Focal point | I26: Health facility | J26: Yes | K26: 1 | L26: 20 | M26: 10 | N26: 5 | P26: Township Hospital | R26: TRUE | S26: TRUE | T26: TRUE | U26: FALSE | V26: FALSE | W26: FALSE | X26: TRUE | Y26: FALSE | Z26: FALSE | AA26: FALSE | AB26: FALSE
A27: Kachin | B27: Mansi | C27: Lana Zup Ja | D27: MMR001CMP128 | E27: NGCA | F27: Rural | G27: 545 | H27: Committee | I27: Health facility | J27: Yes | K27: 0 | P27: Camp Clinic | R27: FALSE | S27: TRUE | T27: FALSE | U27: TRUE | V27: TRUE | W27: FALSE | X27: FALSE | Y27: FALSE | Z27: FALSE | AA27: TRUE | AB27: TRUE
A28: Kachin | B28: Myitkyina | C28: Njang Dung Baptist Church | D28: MMR001CMP002 | E28: GCA | F28: Urban | G28: 57 | H28: Committee | I28: Health facility | J28: No | K28: 1 | L28: 45 | M28: 20 | P28: Sub Rural Health Centre | R28: FALSE | S28: FALSE | T28: FALSE | U28: TRUE | V28: TRUE | W28: FALSE | X28: FALSE | Y28: FALSE | Z28: FALSE | AA28: FALSE | AB28: FALSE
A29: Kachin | B29: Myitkyina | C29: Tat Kone San Pya Baptist Church | D29: MMR001CMP005 | E29: GCA | F29: Urban | G29: 43 | H29: Committee | I29: Health facility | J29: No | K29: 1 | L29: 45 | M29: 15 | P29: State Hospital | R29: FALSE | S29: TRUE | T29: FALSE | U29: TRUE | V29: TRUE | W29: TRUE | X29: FALSE | Y29: TRUE | Z29: TRUE | AA29: TRUE | AB29: TRUE
A30: Kachin | B30: Waingmaw | C30: Qtr. 4 Monestry (Thargaya Thayett Taw) | D30: MMR001CMP026 | E30: GCA | F30: Urban | G30: 88 | H30: Committee | I30: Health facility | J30: Yes | K30: 0 | P30: Township Hospital | R30: TRUE | S30: FALSE | T30: FALSE | U30: TRUE | V30: FALSE | W30: TRUE | X30: FALSE | Y30: TRUE | Z30: TRUE | AA30: FALSE | AB30: TRUE
A31: Kachin | B31: Myitkyina | C31: Jan Mai Kawng Baptist Church | D31: MMR001CMP018 | E31: GCA | F31: Urban | G31: 203 | H31: Committee | I31: Health facility | J31: Yes | K31: 0 | P31: State Hospital | R31: TRUE | S31: TRUE | T31: FALSE | U31: TRUE | V31: TRUE | W31: TRUE | X31: FALSE | Y31: FALSE | Z31: TRUE | AA31: FALSE | AB31: TRUE
A32: Kachin | B32: Puta-O | C32: Lung Sut | D32: MMR001CMP234 | E32: GCA | F32: Urban | G32: 59 | H32: Committee | I32: Health facility | J32: No | K32: 2 | L32: 1 | M32: 20 | P32: District Hospital | R32: TRUE | S32: TRUE | T32: FALSE | U32: FALSE | V32: TRUE | W32: FALSE | X32: TRUE | Y32: FALSE | Z32: FALSE | AA32: FALSE | AB32: FALSE
A33: Kachin | B33: Myitkyina | C33: Tat Kone Baptist Church | D33: MMR001CMP001 | E33: GCA | F33: Urban | G33: 54 | H33: Committee | I33: Health facility | J33: No | K33: 2.5 | M33: 30 | P33: Sub Rural Health Centre | R33: FALSE | S33: TRUE | T33: FALSE | U33: FALSE | V33: FALSE | W33: FALSE | X33: FALSE | Y33: FALSE | Z33: FALSE | AA33: FALSE | AB33: FALSE
A34: Kachin | B34: Mansi | C34: Bum Tsit Pa | D34: MMR001CMP129 | E34: NGCA | F34: Rural | G34: 245 | H34: Focal point | I34: Health facility | J34: Yes | K34: 0 | P34: Sub Rural Health Centre | R34: TRUE | S34: TRUE | T34: TRUE | U34: TRUE | V34: TRUE | W34: TRUE | X34: FALSE | Y34: TRUE | Z34: TRUE | AA34: TRUE | AB34: TRUE
A35: Kachin | B35: Myitkyina | C35: Du Kahtawng Qtr. 4 | D35: MMR001CMP010 | E35: GCA | F35: Urban | G35: 6 | H35: Committee | I35: Health facility | J35: No | K35: 1 | M35: 20 | P35: State Hospital | R35: FALSE | S35: TRUE | T35: FALSE | U35: TRUE | V35: TRUE | W35: FALSE | X35: FALSE | Y35: FALSE | Z35: FALSE | AA35: FALSE | AB35: TRUE
A36: Kachin | B36: Mansi | C36: Man Wing Baptist Church | D36: MMR001CMP133 | E36: GCA | F36: Rural | G36: 111 | H36: Focal point | I36: Health facility | J36: Yes | K36: 0 | P36: Camp Clinic | R36: FALSE | S36: FALSE | T36: FALSE | U36: TRUE | V36: TRUE | W36: TRUE | X36: FALSE | Y36: TRUE | Z36: TRUE | AA36: TRUE | AB36: TRUE
A37: Kachin | B37: Mansi | C37: Man Wing Baptist Church Cultural Compound | D37: MMR001CMP230 | E37: GCA | F37: Rural | G37: 113 | H37: Focal point | I37: Health facility | J37: Yes | K37: 0 | P37: Camp Clinic | R37: FALSE | S37: TRUE | T37: TRUE | U37: TRUE | V37: TRUE | W37: TRUE | X37: TRUE | Y37: TRUE | Z37: TRUE | AA37: TRUE | AB37: TRUE
A38: Kachin | B38: Bhamo | C38: Nant Hlaing Church | D38: MMR001CMP054 | E38: GCA | F38: Rural | G38: 20 | H38: Focal point | I38: Health facility | J38: No | K38: 0.200000003 | L38: 15 | M38: 5 | N38: 5 | P38: Rural Health Centre | R38: FALSE | S38: TRUE | T38: TRUE | U38: TRUE | V38: TRUE | W38: TRUE | X38: FALSE | Y38: TRUE | Z38: FALSE | AA38: FALSE | AB38: FALSE
A39: Kachin | B39: Hpakant | C39: Ku Day Maw KBC | D39: MMR001CMP231 | E39: GCA | F39: Rural | G39: 46 | H39: Focal point | I39: Health facility | J39: No | K39: 1 | L39: 30 | M39: 10 | N39: 10 | P39: Rural Health Centre | R39: TRUE | S39: TRUE | T39: FALSE | U39: TRUE | V39: TRUE | W39: TRUE | X39: FALSE | Y39: FALSE | Z39: FALSE | AA39: TRUE | AB39: TRUE
A40: Kachin | B40: Waingmaw | C40: Hkat Cho | D40: MMR001CMP028 | E40: GCA | F40: Rural | G40: 99 | H40: Focal point | I40: Health facility | J40: No | K40: 0.625 | M40: 5 | P40: Township Hospital | R40: TRUE | S40: TRUE | T40: FALSE | U40: TRUE | V40: TRUE | W40: TRUE | X40: FALSE | Y40: TRUE | Z40: TRUE | AA40: FALSE | AB40: TRUE
A41: Kachin | B41: Myitkyina | C41: Nan Kway St. John Catholic Church | D41: MMR001CMP024 | E41: GCA | F41: Rural | G41: 67 | H41: Focal point | I41: Health facility | J41: No | K41: 7 | L41: 45 | M41: 25 | N41: 25 | P41: Township Hospital | R41: TRUE | S41: TRUE | T41: FALSE | U41: TRUE | V41: TRUE | W41: TRUE | X41: FALSE | Y41: TRUE | Z41: TRUE | AA41: TRUE | AB41: TRUE
A42: Kachin | B42: Chipwi | C42: Pan Wa | D42: MMR001CMP210 | E42: GCA | F42: Mixed | G42: 60 | H42: Focal point | I42: Health facility | J42: No | K42: 0.5 | L42: 30 | M42: 10 | N42: 10 | P42: Rural Health Centre | R42: FALSE | S42: TRUE | T42: FALSE | U42: TRUE | V42: FALSE | W42: TRUE | X42: TRUE | Y42: FALSE | Z42: TRUE | AA42: FALSE | AB42: TRUE
A43: Kachin | B43: Myitkyina | C43: Tat Kone Emanuel Church | D43: MMR001CMP004 | E43: GCA | F43: Urban | G43: 6 | H43: Focal point | I43: Health facility | J43: No | K43: 1 | M43: 7 | P43: Township Hospital | R43: TRUE | S43: TRUE | T43: FALSE | U43: TRUE | V43: FALSE | W43: FALSE | X43: TRUE | Y43: FALSE | Z43: TRUE | AA43: FALSE | AB43: FALSE
A44: Kachin | B44: Bhamo | C44: Mu-yin Baptist Church | D44: MMR001CMP051 | E44: GCA | F44: Urban | G44: 23 | H44: Focal point | I44: Health facility | J44: No | K44: 0.400000006 | L44: 15 | M44: 4 | P44: Township Hospital | R44: FALSE | S44: FALSE | T44: TRUE | U44: FALSE | V44: TRUE | W44: TRUE | X44: TRUE | Y44: FALSE | Z44: FALSE | AA44: FALSE | AB44: TRUE
A45: Kachin | B45: Hpakant | C45: Baptist Church, Hmaw Si Sar(Lon Khin) | D45: MMR001CMP169 | E45: GCA | F45: Rural | G45: 36 | H45: Focal point | I45: Health facility | J45: No | K45: 0.5 | L45: 20 | M45: 10 | N45: 10 | P45: Rural Health Centre | R45: TRUE | S45: TRUE | T45: FALSE | U45: TRUE | V45: TRUE | W45: TRUE | X45: FALSE | Y45: FALSE | Z45: FALSE | AA45: TRUE | AB45: TRUE
A46: Kachin | B46: Waingmaw | C46: Maina Lawang Baptist Church | D46: MMR001CMP039 | E46: GCA | F46: Rural | G46: 48 | H46: Focal point | I46: Health facility | J46: Yes | K46: 0 | P46: Township Hospital | R46: FALSE | S46: TRUE | T46: FALSE | U46: TRUE | V46: FALSE | W46: TRUE | X46: TRUE | Y46: TRUE | Z46: TRUE | AA46: FALSE | AB46: TRUE
A47: Kachin | B47: Myitkyina | C47: Maliyang Baptist Church | D47: MMR001CMP016 | E47: GCA | F47: Urban | G47: 60 | H47: Focal point | I47: Health facility | J47: No | K47: 0.200000003 | L47: 5 | P47: State Hospital | R47: TRUE | S47: TRUE | T47: FALSE | U47: TRUE | V47: TRUE | W47: FALSE | X47: FALSE | Y47: TRUE | Z47: FALSE | AA47: FALSE | AB47: TRUE
A48: Kachin | B48: Waingmaw | C48: Shing Jai | D48: MMR001CMP041 | E48: GCA | F48: Rural | G48: 172 | H48: Focal point | I48: Health facility | J48: No | K48: 0 | P48: Camp Clinic | R48: FALSE | S48: TRUE | T48: FALSE | U48: FALSE | V48: TRUE | W48: FALSE | X48: FALSE | Y48: FALSE | Z48: TRUE | AA48: TRUE | AB48: TRUE
A49: Kachin | B49: Chipwi | C49: Hpare Hkyer - BP6 | D49: MMR001CMP043 | E49: NGCA | F49: Sub-urban | G49: 154 | H49: Focal point | I49: Health facility | J49: Yes | K49: 0 | R49: FALSE | S49: FALSE | T49: FALSE | U49: FALSE | V49: FALSE | W49: FALSE | X49: FALSE | Y49: FALSE | Z49: FALSE | AA49: FALSE | AB49: FALSE
A50: Kachin | B50: Bhamo | C50: Phan Khar Kone | D50: MMR001CMP193 | E50: GCA | F50: Rural | G50: 157 | H50: Focal point | I50: Health facility | J50: Yes | K50: 0 | L50: 5 | P50: Rural Health Centre | R50: FALSE | S50: FALSE | T50: TRUE | U50: TRUE | V50: TRUE | W50: TRUE | X50: TRUE | Y50: TRUE | Z50: TRUE | AA50: TRUE | AB50: TRUE
A51: Kachin | B51: Mogaung | C51: Kyun Taw Baptist Church | D51: MMR001CMP078 | E51: GCA | F51: Mixed | G51: 13 | H51: Focal point | I51: Health facility | J51: Yes | K51: 0 | P51: Rural Health Centre | R51: TRUE | S51: TRUE | T51: FALSE | U51: TRUE | V51: TRUE | W51: FALSE | X51: TRUE | Y51: FALSE | Z51: TRUE | AA51: TRUE | AB51: TRUE
A52: Kachin | B52: Waingmaw | C52: Pajau / Jan Mai | D52: MMR001CMP120 | E52: NGCA | F52: Sub-urban | G52: 191 | H52: Focal point | I52: Health facility | J52: Yes | K52: 0 | P52: Sub Rural Health Centre | R52: FALSE | S52: TRUE | T52: FALSE | U52: FALSE | V52: TRUE | W52: FALSE | X52: TRUE | Y52: FALSE | Z52: TRUE | AA52: TRUE | AB52: TRUE
A53: Kachin | B53: Myitkyina | C53: Le Kone Bethlehem Church | D53: MMR001CMP015 | E53: GCA | F53: Urban | G53: 108 | H53: Focal point | I53: Health facility | J53: Yes | K53: 0 | P53: State Hospital | R53: TRUE | S53: TRUE | T53: FALSE | U53: TRUE | V53: TRUE | W53: FALSE | X53: FALSE | Y53: FALSE | Z53: FALSE | AA53: TRUE | AB53: FALSE
A54: Shan_North | B54: Kutkai | C54: Mungji Pa Dabang (Catholic Church) | D54: MMR015CMP217 | E54: GCA | F54: Mixed | G54: 23 | H54: Focal point | I54: Health facility | J54: No | K54: 0.200000003 | L54: 15 | M54: 5 | P54: Rural Health Centre | R54: FALSE | S54: TRUE | T54: FALSE | U54: TRUE | V54: TRUE | W54: FALSE | X54: TRUE | Y54: TRUE | Z54: FALSE | AA54: FALSE | AB54: TRUE
A55: Kachin | B55: Momauk | C55: Seng Ja | D55: MMR001CMP073 | E55: GCA | F55: Rural | G55: 45 | H55: Focal point | I55: Health facility | J55: No | K55: 0 | R55: FALSE | S55: FALSE | T55: FALSE | U55: FALSE | V55: FALSE | W55: FALSE | X55: FALSE | Y55: FALSE | Z55: FALSE | AA55: FALSE | AB55: FALSE
A56: Kachin | B56: Chipwi | C56: Saw Zam | D56: MMR001CMP225 | E56: GCA | F56: Rural | G56: 30 | H56: Focal point | I56: Health facility | J56: No | K56: 5 | L56: 120 | M56: 30 | N56: 30 | P56: Rural Health Centre | R56: FALSE | S56: TRUE | T56: FALSE | U56: TRUE | V56: TRUE | W56: TRUE | X56: FALSE | Y56: FALSE | Z56: FALSE | AA56: FALSE | AB56: FALSE
A57: Kachin | B57: Bhamo | C57: Robert Church | D57: MMR001CMP047 | E57: GCA | F57: Urban | G57: 652 | H57: Focal point | I57: Health facility | J57: Yes | K57: 20 | L57: 20 | P57: District Hospital | R57: FALSE | S57: TRUE | T57: TRUE | U57: TRUE | V57: TRUE | W57: TRUE | X57: FALSE | Y57: TRUE | Z57: TRUE | AA57: TRUE | AB57: TRUE
A58: Kachin | B58: Mansi | C58: Man Wing Catholic Church 1 | D58: MMR001CMP228 | E58: GCA | F58: Rural | G58: 123 | H58: Committee | I58: Health facility | J58: Yes | K58: 0 | P58: Camp Clinic | R58: TRUE | S58: TRUE | T58: TRUE | U58: TRUE | V58: TRUE | W58: TRUE | X58: FALSE | Y58: TRUE | Z58: TRUE | AA58: TRUE | AB58: TRUE
A59: Kachin | B59: Waingmaw | C59: Zai Awng / Mung Ga Zup | D59: MMR001CMP111 | E59: NGCA | F59: Sub-urban | G59: 680 | H59: Focal point | I59: Health facility | J59: Yes | K59: 0 | P59: Sub Rural Health Centre | R59: TRUE | S59: TRUE | T59: FALSE | U59: FALSE | V59: TRUE | W59: FALSE | X59: TRUE | Y59: FALSE | Z59: TRUE | AA59: TRUE | AB59: TRUE
A60: Kachin | B60: Mansi | C60: Mansi Baptist Church | D60: MMR001CMP066 | E60: GCA | F60: Urban | G60: 221 | H60: Focal point | I60: Health facility | J60: Yes | K60: 0 | L60: 5 | P60: Township Hospital | R60: TRUE | S60: TRUE | T60: TRUE | U60: TRUE | V60: TRUE | W60: TRUE | X60: TRUE | Y60: TRUE | Z60: TRUE | AA60: TRUE | AB60: TRUE
A61: Kachin | B61: Hpakant | C61: Nant Ma Hpit Catholic Church | D61: MMR001CMP103 | E61: GCA | F61: Rural | G61: 48 | H61: Focal point | I61: Health facility | J61: No | K61: 0 | L61: 10 | M61: 3 | P61: Sub Rural Health Centre | R61: FALSE | S61: TRUE | T61: FALSE | U61: FALSE | V61: TRUE | W61: TRUE | X61: FALSE | Y61: FALSE | Z61: FALSE | AA61: FALSE | AB61: FALSE
A62: Kachin | B62: Momauk | C62: Dum Bung | D62: MMR001CMP123 | E62: NGCA | F62: Rural | G62: 116 | H62: Focal point | I62: Health facility | J62: Yes | K62: 0 | P62: Camp Clinic | R62: TRUE | S62: TRUE | T62: FALSE | U62: TRUE | V62: TRUE | W62: TRUE | X62: FALSE | Y62: FALSE | Z62: FALSE | AA62: TRUE | AB62: TRUE
A63: Kachin | B63: Waingmaw | C63: Qtr. 2 Lhaovo Baptist Church | D63: MMR001CMP032 | E63: GCA | F63: Urban | G63: 91 | H63: Focal point | I63: Health facility | J63: Yes | K63: 0 | P63: Township Hospital | R63: TRUE | S63: TRUE | T63: TRUE | U63: TRUE | V63: TRUE | W63: TRUE | X63: TRUE | Y63: TRUE | Z63: TRUE | AA63: FALSE | AB63: TRUE
A64: Kachin | B64: Chipwi | C64: Lhaovao Baptist Church (LBC) | D64: MMR001CMP195 | E64: GCA | F64: Urban | G64: 143 | H64: Focal point | I64: Health facility | J64: No | K64: 0.125 | L64: 3 | P64: Township Hospital | R64: FALSE | S64: TRUE | T64: FALSE | U64: FALSE | V64: FALSE | W64: FALSE | X64: FALSE | Y64: TRUE | Z64: TRUE | AA64: FALSE | AB64: TRUE
A65: Kachin | B65: Momauk | C65: Loi Je Lisu Camp | D65: MMR001CMP070 | E65: GCA | F65: Urban | G65: 188 | H65: Focal point | I65: Health facility | J65: Yes | K65: 2 | L65: 30 | M65: 15 | P65: Township Hospital | R65: FALSE | S65: TRUE | T65: TRUE | U65: FALSE | V65: TRUE | W65: TRUE | X65: TRUE | Y65: TRUE | Z65: TRUE | AA65: TRUE | AB65: TRUE
A66: Kachin | B66: Myitkyina | C66: Du Kahtawng Qtr. 5 | D66: MMR001CMP011 | E66: GCA | F66: Urban | G66: 50 | H66: No | I66: Health facility | J66: No | K66: 1 | M66: 20 | P66: State Hospital | R66: FALSE | S66: FALSE | T66: FALSE | U66: TRUE | V66: TRUE | W66: FALSE | X66: FALSE | Y66: FALSE | Z66: FALSE | AA66: FALSE | AB66: TRUE
A67: Kachin | B67: Hpakant | C67: AG Church, Hmaw Si Sa | D67: MMR001CMP176 | E67: GCA | F67: Urban | G67: 67 | H67: No | I67: Health facility | J67: Yes | K67: 2 | L67: 2 | M67: 30 | N67: 20 | P67: Township Hospital | R67: TRUE | S67: TRUE | T67: FALSE | U67: TRUE | V67: TRUE | W67: TRUE | X67: FALSE | Y67: TRUE | Z67: TRUE | AA67: TRUE | AB67: TRUE
A68: Kachin | B68: Hpakant | C68: Maw Wan, Mu-yin Baptist Church | D68: MMR001CMP091 | E68: GCA | F68: Urban | G68: 5 | H68: Don't know | I68: Health facility | J68: Yes | K68: 1 | L68: 30 | M68: 10 | N68: 10 | P68: Township Hospital | R68: TRUE | S68: TRUE | T68: FALSE | U68: TRUE | V68: TRUE | W68: TRUE | X68: FALSE | Y68: FALSE | Z68: TRUE | AA68: TRUE | AB68: TRUE
A69: Kachin | B69: Waingmaw | C69: Border Post 8 | D69: MMR001CMP113 | E69: NGCA | F69: Rural | G69: 155 | H69: Don't know | I69: Health facility | J69: Yes | K69: 0 | P69: Camp Clinic | R69: FALSE | S69: TRUE | T69: FALSE | U69: TRUE | V69: TRUE | W69: FALSE | X69: FALSE | Y69: TRUE | Z69: TRUE | AA69: TRUE | AB69: TRUE
A70: Kachin | B70: Momauk | C70: Loi Je Baptist Church | D70: MMR001CMP071 | E70: GCA | F70: Urban | G70: 29 | H70: Don't know | I70: Health facility | J70: No | K70: 0 | L70: 5 | P70: Township Hospital | R70: FALSE | S70: TRUE | T70: TRUE | U70: FALSE | V70: TRUE | W70: TRUE | X70: TRUE | Y70: FALSE | Z70: FALSE | AA70: TRUE | AB70: FALSE
A71: Kachin | B71: Myitkyina | C71: Tat Kone Galile Baptist Church | D71: MMR001CMP003 | E71: GCA | F71: Urban | G71: 32 | H71: Don't know | I71: Health facility | J71: No | K71: 1 | L71: 30 | M71: 10 | P71: State Hospital | R71: TRUE | S71: TRUE | T71: TRUE | U71: TRUE | V71: TRUE | W71: TRUE | X71: TRUE | Y71: TRUE | Z71: TRUE | AA71: TRUE | AB71: TRUE
A72: Kachin | B72: Hpakant | C72: Lisu Baptist Church, Maw Shan Vil,. Seik Mu | D72: MMR001CMP181 | E72: GCA | F72: Urban | G72: 25 | H72: Don't know | I72: Health facility | J72: Yes | K72: 0.125 | L72: 5 | M72: 2 | N72: 2 | P72: Rural Health Centre | R72: FALSE | S72: FALSE | T72: FALSE | U72: TRUE | V72: TRUE | W72: TRUE | X72: FALSE | Y72: FALSE | Z72: TRUE | AA72: TRUE | AB72: TRUE
A73: Kachin | B73: Hpakant | C73: Lisu Baptist Church, Maw Wan Ward | D73: MMR001CMP167 | E73: GCA | F73: Rural | G73: 15 | H73: No | I73: Health facility | J73: Yes | K73: 0.125 | L73: 10 | M73: 2 | N73: 2 | P73: Rural Health Centre | R73: FALSE | S73: TRUE | T73: FALSE | U73: TRUE | V73: TRUE | W73: TRUE | X73: FALSE | Y73: FALSE | Z73: FALSE | AA73: TRUE | AB73: TRUE
A74: Kachin | B74: Hpakant | C74: Ward 2 Sai Taung Baptist Church, Seik Mu | D74: MMR001CMP184 | E74: GCA | F74: Rural | G74: 35 | H74: Don't know | I74: Health facility | J74: Yes | K74: 0 | P74: Rural Health Centre | R74: TRUE | S74: TRUE | T74: FALSE | U74: TRUE | V74: TRUE | W74: FALSE | X74: FALSE | Y74: FALSE | Z74: FALSE | AA74: TRUE | AB74: TRUE
A75: Shan_North | B75: Kutkai | C75: Mine Yu Lay village | D75: MMR015CMP018 | E75: GCA | F75: Rural | G75: 63 | H75: No | I75: Health facility | J75: Yes | K75: 0 | P75: Camp Clinic | R75: TRUE | S75: TRUE | T75: FALSE | U75: FALSE | V75: TRUE | W75: TRUE | X75: FALSE | Y75: TRUE | Z75: TRUE | AA75: TRUE | AB75: TRUE
A76: Kachin | B76: Momauk | C76: Nyaung Na Pin | D76: MMR001CMP072 | E76: GCA | F76: Mixed | G76: 50 | H76: No | I76: Health facility | J76: Yes | K76: 1 | L76: 20 | P76: Township Hospital | R76: TRUE | S76: TRUE | T76: TRUE | U76: FALSE | V76: TRUE | W76: TRUE | X76: FALSE | Y76: FALSE | Z76: FALSE | AA76: FALSE | AB76: FALSE
A77: Kachin | B77: Hpakant | C77: Chin Church, Seik Mu | D77: MMR001CMP109 | E77: GCA | F77: Urban | G77: 6 | H77: No | I77: Health facility | J77: Yes | K77: 0.5 | L77: 20 | M77: 10 | P77: Rural Health Centre | R77: FALSE | S77: TRUE | T77: FALSE | U77: TRUE | V77: TRUE | W77: TRUE | X77: FALSE | Y77: FALSE | Z77: FALSE | AA77: FALSE | AB77: FALSE
A78: Kachin | B78: Hpakant | C78: Hmaw Wan, Anglican | D78: MMR001CMP191 | E78: GCA | F78: Urban | G78: 13 | H78: No | I78: Health facility | J78: Yes | K78: 1 | L78: 30 | M78: 15 | N78: 10 | P78: Township Hospital | R78: TRUE | S78: TRUE | T78: FALSE | U78: TRUE | V78: TRUE | W78: TRUE | X78: FALSE | Y78: FALSE | Z78: FALSE | AA78: TRUE | AB78: TRUE
